Workbook

Sheet Equations - Parameters (hidden)
A1: Yield prediction & Growth projection. Slash pine plantation
A2: PMRC technical report (1996-3; 1997-3) ; Yin et al. 1998
A4: Survival Prediction Function | J4: Pienaar et al. 1996
C5: TPA1*EXP(-(-a - c*Z)*(AGE2^b-AGE1^b))
D6: a | E6: b | F6: c | H6: If thinned: Z=1
D7: -0.0041 | E7: 1.345 | F7: 0.0019 | H7: unthinned: Z=0
A8: Dominant Height Prediction | J8: Yin et al. 1998
A9: (include response to Bedding and WC) | C9: Hd1 = | D9: a*SI25*(1-EXP(b*Age)))^c + (d*Z1 + e*Z2 + f*Z3 + g*Z1*Z3)*Age*EXP(h*Age)
J10: Z1=1 if fertilized
B11: a | C11: b | D11: c | E11: d | F11: e | G11: f | H11: g | I11: h | J11: Z2=1 if bedded
B12: 1.3679 | C12: -0.07345 | D12: 1.804 | E12: 0.678 | F12: 0.546 | G12: 1.395 | H12: -0.412 | I12: -0.0691 | J12: Z3=1 WC
A13: Response to Fertilization | J13: Martin et al. 1997
A14: Dominat Height | C14: RH = | D14: (a*T1 + bT2)*(Age-Agef)*exp(-(age-Agef)*(c*T1 + d*T2)) | I14: if fert= N, T1 =1 and T2=0
D15: a | E15: b | F15: c | G15: d | I15: if fert= N+P, T1 =0 and T2=1
D16: 0.375379 | E16: 0.652099 | F16: 0.154525 | G16: 0.100104
A17: Basal Area Prediction Model
A18: With response to silviculture | C18: (BA1) = | D18: EXP(b0 + b1/Age)*Hdom^(b2+b3/Age)*N^(b4+b5/Age)+ b6*Z1 + b7*Z3)*Age*EXP(b8*Age))
B19: b0 | C19: b1 | D19: b2 | E19: b3 | F19: b4 | G19: b5 | H19: b6 | I19: b7 | J19: b8
A20: Spodosol | B20: -2.532 | C20: -34.057 | D20: 1.241 | E20: 4.813 | F20: 0.318 | G20: 3.305 | H20: 0.419 | I20: 2.763 | J20: -0.096
A21: Response to Fertilization | J21: Martin et al. 1997
A22: Basal Area | C22: RBA = | D22: (a*T1 + bT2)*(Age-Agef)*exp(-(age-Agef)*(c*T1 + d*T2 - e*S1 - f*/S2))
C23: a | D23: b | E23: c | F23: d | G23: e | H23: f | I23: if Soil=C, S1 =1 and S2=0
C24: 1.12915 | D24: 1.68711 | E24: 0.09793 | F24: 0.073688 | G24: -0.046995 | H24: -0.055385 | I24: if Soil=D, S1 =0 and S2=1
A25: Basal Area Prediction Model
C26: In (B) = -4.807 –26.273/A + 1.512 In(H) + .527 In(N) - 4.129 In(H)/A + 2.497 In(N)/A
B27: b0 | C27: b1 | D27: b2 | E27: b3 | F27: b4 | G27: b5
B28: -2.532 | C28: -34.057 | D28: 1.241 | E28: 0.318 | F28: 4.813 | G28: 3.305
A29: Proportion of N or BA removed at thinning | J29: Pienaar et al. 1996
C30: Bt/B = (Nt/N)^1.2248 | F30: a
F31: 1.2248
A32: Competition Index | J32: Pienaar et al. 1996
F33: a
F34: -0.093
A35: Diameter distribution percentil (P24) | J35: Pienaar et al. 1996
E36: P24 = | F36: EXP (a+ b * Ln (Hdom) ) + c*ln(TPA) + d*ln(BA/TPA) )
D37: a | E37: b | F37: c | G37: d
D38: 4.032 | E38: -0.4244 | F38: 0.0725 | G38: 0.7756
A39: Per acre Yield Prediction | J39: Pienaar et al. 1996
C40: V = | D40: EXP (a)*(Hdom^b)*(BA^c)
D41: a | E41: b | F41: c
A42: TVOB (ft3/ac)) | D42: -0.173 | E42: 0.836 | F42: 1.018
A43: Volume Inside Bark Proportion | C43: VIB = | D43: VOB * (a + b*ln(Dq) )
D44: a | E44: b
D45: 0.4389 | E45: 0.1815
A48: Merchantable Volume for Whole Stand Volume Equations
A49: Harrison & Borders (1996) in Loblolly pine developed the following equations
A51: Equation system for the Lower Coastal Plain
A53: Yield Breakdown Function: | J53: Pienaar et al. 1996
D54: Ym = | E54: Y*EXP(b1*(t/Dq)^b2 + b3*N^b4*(d/Dq)^b5)
D55: b1 | E55: b2 | F55: b3 | G55: b4 | H55: b5
A56: TVOB (ft3/ac)) | D56: -0.52 | E56: 3.84 | F56: 0.69 | G56: -0.12 | H56: 5.72
A58: Where:
A59: Ym = Mechantable yield per acre for trees d inches DBH and above to a top diameter of t inches outside bark,
A60: Y = Total yield per acre (GWOB: green weight per acre outside bark (tons) at time i)
A61: Dq = Quadratic mean diameter dbh (BA/.005454N)1/2
A62: N = Number of trees per acre
A63: t = Top diameter (merchantability limit)
A64: d = Threshol dbh limit (minimum DBH to be included in this category)
A66: Biomass equations
A67: (Gholz and Fisher, 1983)
A68: ln Biomass | E68: b0 | F68: b1 | G68: Y unit | H68: X | K68: S2xy
A69: ln stem bark | E69: 2.5999 | F69: 2.5497 | G69: g | H69: dbh | I69: Gholz and Fisher 1883 | K69: 0.04
A70: ln wood mass | E70: 2.289 | F70: 3.16 | G70: g | H70: dbh | I70: Gholz and Fisher 1883 | K70: 0.06
A71: ln dead branch | E71: -2.9809 | F71: 3.8133 | G71: g | H71: dbh | I71: Gholz and Fisher 1883 | K71: 0.73
A72: ln live branch | E72: 1.3678 | F72: 2.6496 | G72: g | H72: dbh | I72: Gholz and Fisher 1883 | K72: 0.05
A73: ln foliage | E73: 1.7308 | F73: -3.2751 | G73: g | H73: dbh | I73: Gholz and Fisher 1883 | K73: 0.05
A75: (Garbett, 1977 and Donaldson, unpublished)
A76: ln Biomass | E76: b0 | F76: b1 | G76: Y unit | H76: X | K76: S2xy
A77: ln bark | E77: -4.13189451 | F77: 2.45186157 | G77: Kg | H77: dbh | I77: Garbett, 1977 and Donaldson, unpublished) | K77: 0.03094 | L77: lnD:lnBark: r2 = 0.9926; r = 0.9963, p = 00.0000; y = -4.13189451 + 2.45186157*x
A78: ln wood mass | G78: Kg | H78: dbh | I78: Garbett, 1977 and Donaldson, unpublished)
A79: ln dead branch | G79: Kg | H79: dbh | I79: Garbett, 1977 and Donaldson, unpublished)
A80: ln live branch | G80: Kg | H80: dbh | I80: Garbett, 1977 and Donaldson, unpublished)
A81: ln foliage | G81: Kg | H81: dbh | I81: Garbett, 1977 and Donaldson, unpublished)
A82: ln crown | E82: -3.44660585 | F82: 2.23210915 | G82: Kg | H82: dbh | I82: Garbett, 1977 and Donaldson, unpublished) | K82: 0.1175718109 | L82: lnD:lncrown2: r = 0.9764, p = 00.0000; y = -3.44660585 + 2.23210915*x
A83: ln Stem + bark | E83: -2.96852509 | F83: 2.58775106 | G83: Kg | H83: dbh | I83: Garbett, 1977 and Donaldson, unpublished) | K83: 0.0714348456 | L83: lnD:lnstem+bark: r = 0.9879, p = 00.0000; y = -2.96852509 + 2.58775106*x
A84: ln AGB | E84: -2.55631578 | F84: 2.52093972 | G84: Kg | H84: dbh | I84: Garbett, 1977 and Donaldson, unpublished) | K84: 0.0469009977 | L84: lnD:lnagb2: r = 0.9916, p = 00.0000; y = -2.55631578 + 2.52093972*x
A85: ln Stem | E85: -3.62619441 | F85: 2.81408089 | G85: Kg | H85: dbh | I85: Garbett, 1977 and Gholz et al. 1982) | K85: 0.03451 | L85: lnD:lnStem: r2 = 0.9716; r = 0.9857, p = 0.0000; y = -3.62619441 + 2.81408089*x
A86: ln Stem + bark | E86: -3.37557148 | F86: 2.74544375 | G86: Kg | H86: dbh2 | I86: Garbett, 1977 and Gholz et al. 1982) | K86: 0.07674 | L86: lnD2:lnStem+Bark: r2 = 0.9845; r = 0.9922, p = 00.0000; y = -3.37557148 + 2.74544375*x
E87: interc | F87: dbh | G87: age
A88: branch | E88: 0.001477 | F88: 3.562616 | G88: -0.448562
A89: foliage | E89: 0.004793 | F89: 2.709518 | G89: -0.189267
A90: stem | E90: 0.051774 | F90: 2.242298 | G90: 0.339722
A91: tagb | E91: 0.057836 | F91: 2.407877 | G91: 0.203611
A92: bfrac | E92: -0.315992 | F92: -0.374368 | G92: -0.022298
E93: a | F93: b | G93: c
A94: coarseroot | B94: AGB*(a*b^(1/AGE)*AGE^(-c)) | E94: 0.18904813 | F94: 7.2347093 | G94: -0.11485408 | H94: Age, AGB | I94: Gholz and Fisher 1883
A95: coarseroot | B95: 0.2479 + (1.8022-0.2479)*exp(-log(2)*(Age/3.0224))**2 | E95: 0.2479 | F95: 1.8022 | G95: 3.0224 | I95: G-B et al. 2014 unpublished
A97: Specific Needle Area | E97: 0.003278591828 | F97: m2 g-1 | I97: Dalla-Tea and Jokela 1991
A101: SDI - LAI - Litterfall equations
A103: LAI - SDI | G103: Y unit | H103: X
A104: LAI= a/(1+exp(-(SDI-x0)/b)) | G104: LAI | H104: SDI | I104: Gonzalez-Benecke et al. 2011
A106: Parameters as function of SI | D106: b0 | E106: b1 | F106: b2
A107: SI:a: r2 = 0.6691; r = 0.8180, p = 0.0021; y = -1.37070021 + 0.147580126*x | D107: -1.37070021 | E107: 0.147580126 | N107: 15.866 | O107: =+$D$107+$E$107*N107 -> 0.9708060691 | P107: =+$D$108+$E$108*N107 -> 57.3876874 | Q107: =+$D$109+$E$109*N107 -> 249.031086
A108: SI:b: r2 = 0.3116; p = 0.0056 | D108: 23.4519 | E108: 2.1389 | I108: Gonzalez-Benecke et al. 2011 | N108: 22.559 | O108: =+$D$107+$E$107*N108 -> 1.958559852 | P108: =+$D$108+$E$108*N108 -> 71.7033451 | Q108: =+$D$109+$E$109*N108 -> 216.041289
A109: SI:X0: r2 = 0.5983; p = 0.00002 | D109: 327.2346 | E109: -4.929 | F109: 18.5717 | N109: 24.041 | O109: =+$D$107+$E$107*N109 -> 2.177273599 | P109: =+$D$108+$E$108*N109 -> 74.8731949 | Q109: =+$D$109+$E$109*N109 -> 208.736511
A110: NEEDLEFALL-LAI | D110: a | E110: b | G110: Y unit | H110: X | K110: MSE | N110: 28.324 | O110: =+$D$107+$E$107*N110 -> 2.809359279 | P110: =+$D$108+$E$108*N110 -> 84.0341036 | Q110: =+$D$109+$E$109*N110 -> 187.625604
A111: ln(NF) = 0.80235 + 0.96529 x ln(LAI) | D111: 0.80235 | E111: 0.96529 | G111: Mg ha-1 | H111: m2 m-2 | I111: Gonzalez-Benecke et al. 2011 | K111: 0.0043
A112: NEEDLEFALL/LITTERFALL | D112: a | E112: b | F112: c | G112: d | H112: e
A113: If Weed Control at Planting : Reciprocal Quadratic: y=1/(a+bx+cx^2) Y = 1 / (0.96294 + 0.019426*x - 0.000262*x2) | D113: 0.962942784 | E113: 0.01942646656 | F113: -0.0002623665486 | I113: Gonzalez-Benecke et al. 2011
A114: If No Weed Control at Planting:
A115: If age < 10 Use 4th Degree Polynomial Fit: y=a+bx+cx^2+dx^3... | D115: -0.0005 | E115: 0.198 | F115: 0.0007 | G115: -0.0022 | H115: 9.9213e-05 | I115: Gonzalez-Benecke et al. 2011
A117: Understory Biomass equation
A118: UNDERSTORY BIOMASS | D118: a | E118: b | F118: c | G118: d | I118: Gonzalez et al. 2010
A119: UB=(a + b*LAI) / (1 + c*LAI + d*LAI2) | D119: 0.88242377 | E119: 14.925223 | F119: 1.5801704 | G119: 0.8650196 | I119: Note: LAI=all-sided
A120: SG equations
A122: SG - Age | D122: a | E122: b | G122: Y unit | H122: X
A123: SG=a*Age^b | D123: 0.37580809 | E123: 0.082121561 | H123: Year | I123: Peter et al. 2004
A125: Decay equations
A127: Mass - Age (and latitude and longitude) | F127: decay | G127: Y unit | H127: t
A128: Mass2 = Mass1 * (Lat/Long)^(-0.1247*t) | F128: 0.1247 | H128: Age | I128: Radtke et al., 2008
A130: Individual Height | I130: Gonzalez-Benecke et al. 2014
A131: (metric units) | C131: H = | D131: 1.37 + exp(a + b*dbh_m**c + d*ln(Age) + e*ln(Nha) + f*ln(BA))
A132: H =m | D132: a | E132: b | F132: c | G132: d | H132: e | I132: f
A133: dbh=cm | D133: 1.0738075 | E133: -5.4379537 | F133: -0.854453 | G133: 0.545002 | H133: -0.0217785 | I133: 0.2242741
A135: Residues total volume after harvest | B135: 0.13
A137: Residues from previous rotation (Mg / ha) | B137: 110.86
A140: Carbon % | B140: 0.5
A142: Decay Needles | B142: 0.15
A143: Decay CWD | B143: 0.13
A144: Decay Coarse Roots | B144: 0.12
A146: Fire Consumpsion
A147: Needles | B147: 0.95
A148: Branches | B148: 0.9
A149: CWD | B149: 0.2
A150: Standing Dead Trees | B150: 0.05
A151: Understory | B151: 0.85
A152: Harvest Residues | B152: 0.8
A154: SG | B154: 0.329 | C154: 0.1557 | D154: SG=a*Age^b
B155: a | C155: b
B157: Product Proportion | G157: Product Class Diameter (inch)
B158: long | C158: m-long | D158: m-short | E158: short | F158: Conv Effic | G158: d | H158: t
A159: Sawtimber | B159: 0.5 | C159: 0.25 | D159: 0 | E159: 0.25 | F159: 0.65 | G159: 12 | H159: 8
A160: CNS | B160: 0.25 | C160: 0.25 | D160: 0 | E160: 0.5 | F160: 0.65 | G160: 8 | H160: 6
A161: Pulpwood | B161: 0 | C161: 0 | D161: 0.33 | E161: 0.67 | F161: 0.58 | G161: 6 | H161: 2
A163: Half life (years) | B163: 50 | C163: 16 | D163: 4 | E163: 1
A164: Decay Rate | B164: =1-B165 -> 0.01376729551 | C164: =1-C165 -> 0.0423967193 | D164: =1-D165 -> 0.1591035847 | E164: =1-E165 -> 0.5
B165: =+EXP(LN(0.5)/B163) -> 0.9862327045 | C165: =+EXP(LN(0.5)/C163) -> 0.9576032807 | D165: =+EXP(LN(0.5)/D163) -> 0.8408964153 | E165: =+EXP(LN(0.5)/E163) -> 0.5
A167: C Cost
A168: Site prep + Herb | B168: 0.357 | C168: Mg C ha-1
A169: Machine Plant | B169: 0.101 | C169: Mg C ha-1
A170: Banded Herbicide | B170: =0.091 -> 0.091 | C170: Mg C ha-1
A171: Fert 1 | B171: 0.216 | C171: Mg C ha-1
A172: Fert 2 | B172: 0.35 | C172: Mg C ha-1
A173: Fert 3 | B173: 0.35 | C173: Mg C ha-1
A174: Fert 4 | B174: 0.35 | C174: Mg C ha-1
A175: Thinning | B175: 0.233 | C175: Mg C ha-1
A176: Biomass Racking / Spot piling | B176: 0.031 | C176: Mg C ha-1
A177: Prescriber Burning | B177: 0.017 | C177: Mg C ha-1
A178: Harvest | B178: 0.233 | C178: Mg C ha-1
A179: Transport biomass | B179: 0.002995362601 | C179: Mg C per MgC biomass
A180: Transport | B180: 0.00266025641 | C180: Mg C m-3
A182: Volume to weight Factor | B182: 37.75

Sheet inputs
A1: Note: Input Values in English Units | D1: Soil Type (CRIFF) | F1: Units (Output)
A2: Type of Simulation | D2: Groassarenic Haplaquod | I2: 2 | J2: =+IF(I2=1,1,0) -> 0 | K2: =IF($L$2=1,TRUE,FALSE) -> TRUE | L2: 1
A3: From Establishment (Planting) | D3: Ultic Haplaquod | J3: =+IF(I2=2,1,0) -> 1 | K3: =IF($L$2=2,TRUE,FALSE) -> FALSE
A4: From Inventory Post Establishment | D4: Arenic Paleaquult | I4: 1
I5: sim_lenght | J5: =IF(I19=TRUE,E22*B6,B6) -> 150 | K5: =IF($K$2=TRUE,1,IF(K6=TRUE,E14,F14)) -> 1 | L5: Starting Age
A6: Rotation Age (yr.) | B6: 25 | I6: Errors= | J6: =IF($F$22<>"",1,0)+ IF($B$34<>"",1,0)+ IF($B$25<>"",1,0)+ IF($F$20<>"",1,0) -> 0 | K6: =+IF($K$2=TRUE,$I$15,$K$16) -> 75 | L6: SI
K7: =+MAX(I13,K14) -> 607 | L7: N
A8: Simulation From Planting | D8: Simulation From Inventory | F8: =+IF(L2=2,"RECOMMENDED FOR AGE > 5 YRS.","") ->  | I8: FALSE | J8: =+IF(I8=TRUE,1,0) -> 0
A9: Trees per acre at planting | B9: 607 | D9: From Inventory Tree List | I9: FALSE | J9: =+IF(I9=TRUE,1,0) -> 0 | K9: =IF($L$9=2,TRUE,FALSE) -> FALSE | L9: 1
A10: Site Index (ft) base age = 25 | B10: 75 | D10: From Inventory Summary | I10: Fert | J10: =+IF(SUM(B20:B23)>0,1,0) -> 0
A12: Establishment Treatments | D12: Simulation From Inventory (Data From Inventory List or from external summary | I12: From Planting | J12: English | K12: Inventory | L12: English
A13: Bedding | D13: INPUTS | E13: From Inventory Tab | F13: Enter Inventory Summary | I13: =+IF($L$2=1,$B$9,"") -> 607 | J13: N | K13: =IF($L$2=1,0,'Equations - Parameters'!$B$12*$K$6*(1-EXP('Equations - Parameters'!$C$12*$K$5))^'Equations - Parameters'!$D$12) -> 0 | L13: Hdom
A14: Weed Control | D14: Age | E14: =+IF($K$3=FALSE,"",IF($K$9=TRUE,"",IF(Inventory!$Q$3="","",Inventory!$Q$3))) ->  | F14: 10 | K14: =+IF($L$2=1,0,IF($K$9=FALSE,E15,F15)) -> 0 | L14: N
D15: Stem Density (trees / acre) | E15: =+IF($K$3=FALSE,"",IF($K$9=TRUE,"",IF(Inventory!$V$4="","",Inventory!$V$4))) ->  | F15: 500 | I15: =+IF($L$2=1,$B$10,"") -> 75 | J15: SI | K15: =+IF($L$2=1,0,IF($K$9=FALSE,E16,IF(F16<>"",F16,EXP('Equations - Parameters'!$B$20+'Equations - Parameters'!$C$20/K5)*K13^('Equations - Parameters'!$D$20+'Equations - Parameters'!$E$20/K5)*K14^('Equations - Parameters'!$F$20+'Equations - Parameters'!$G$20/K5)))) -> 0 | L15: BA
A16: Fertilization | D16: BA (ft2 / acre) | E16: =+IF($K$3=FALSE,"",IF($K$9=TRUE,"",IF(Inventory!$V$5="","",Inventory!$V$5))) ->  | K16: =IF($L$2=1,0,IF($K$9=FALSE,E17,F17)) -> 0 | L16: SI
A17: Fert N | D17: Site Index (ft) base age = 25 | E17: =+IF($K$3=FALSE,"",IF($K$9=TRUE,"",IF(Inventory!$V$7="","",Inventory!$V$7))) ->  | F17: 80 | I17: 1 | J17: =+IF(I17=1,1,0) -> 1
A18: Fert NP | J18: =+IF(I17=2,1,0) -> 0
A19: Fert_number | B19: Fert Age (years) | I19: TRUE | J19: TRUE
A20: F1 | D20: Assessing C Balance? | F20: =+IF($I$19=FALSE,"",IF(E22*B6>500,"Error…... Maximum Simulation Length: 500 yrs.","")) ->  | J20: =+IF(B20="",100,B20) -> 100
A21: F2 | D21: Simulate Multiple Rotations | J21: =+IF(B21="",100,B21) -> 100
A22: F3 | D22: # Rotations to Simulate ? | E22: 6 | F22: =+IF(AND(I19=TRUE,E22=""),"Need to Enter # Rotations","") ->  | J22: =+IF(B22="",100,B22) -> 100
A23: F4 | D23: Burning Residues at Site Prep.? | J23: =+IF(B23="",100,B23) -> 100
B25: =+IF(B20="","",IF(B20>=$B$6,"ERROR IN FERTILIZATION AGE",IF(B21="","",IF(B21>=$B$6,"ERROR IN FERTILIZATION AGE",IF(B22="","",IF(B22>=$B$6,"ERROR IN FERTILIZATION AGE",IF(B23="","",IF(B23>=$B$6,"ERROR IN FERTILIZATION AGE","")))))))) ->  | D25: Stand Location (to determine CWD decay rate) (in decimal degrees) | I25: FALSE | J25: =+IF(I25=TRUE,1,0) -> 0
A26: Simulate Thinning? | D26: Latitude (N) | E26: 28
D27: Longitude (-W) | E27: 82
A29: Thinning Age | B29: Age (years) | C29: % N Removal | D29: =+IF($I$25=TRUE,"Required","Not Needed") -> Not Needed
A30: Th1 | I30: N Th | J30: =+IF(I25=FALSE,0,COUNT(B30:B33)) -> 0
A31: Th2
A32: Th3 | I32: warning
A33: Th4 | I33: =+IF($B$9*2.47105>2000,1,0) -> 0
B34: =+IF(B30="","",IF(B30>=$B$6,"ERROR IN THINNING AGE",IF(B31="","",IF(B31>=$B$6,"ERROR IN THINNING AGE",IF(B32="","",IF(B32>=$B$6,"ERROR IN THINNING AGE",IF(B33="","",IF(B33>=$B$6,"ERROR IN THINNING AGE","")))))))) ->  | I34: =+IF($B$10>90,1,IF($B$10<40,1,0)) -> 0
A36: Silvic. Scheme | B36: Age-Th1 | C36: % removal_Th1 | D36: Age_Th2 | E36: % removal-Th2 | F36: Age_harvest
A37: Unthinned | F37: =+B6 -> 25
A38: 1 Thinning | B38: =+B30 -> 0 | C38: =+C30 -> 0 | F38: =+B6 -> 25
A39: 2 Thinnings | B39: =+B30 -> 0 | C39: =+C30 -> 0 | D39: =+B31 -> 0 | E39: =+C31 -> 0 | F39: =+B6 -> 25

Sheet Growth&Yield (hidden)
D1: Hdom (ft) | H1: BA (ft2 acre-1) | L1: Hdom (ft) | U1: Thinning | AK1: N/acre | AP1: Basal Area | AU1: QMD (inch) | AZ1: SDI | BE1: D24 (inch) | BJ1: Volume inside bark | BO1: Volume outside bark | BT1: Age of Thinning | BY1: BA Removed | CD1: BA Before Thinning | CI1: BA After Thinning | CN1: N Removed | CS1: N Before Thinning | CX1: N After Thinning | DC1: Vol (OB) Removed | DH1: VOB Before Thinning | DM1: VOB After Thinning | DR1: Vol (IB) Removed | DW1: VIB Before Thinning | EB1: VIB After Thinning | EG1: QMD (inch) Removed | EL1: Merchantable VOB Unthinned | EO1: Merchantable VOB Th1 | ER1: Merchantable VOB Th2 | EU1: Merchantable VOB Th3 | EX1: Merchantable VOB Th4 | FA1: Removed Merchantable VOB Unthinned | FD1: Removed Merchantable VOB Th1 | FG1: Removed Merchantable VOB Th2 | FJ1: Removed Merchantable VOB Th3 | FM1: Removed Merchantable VOB Th4 | FP1: Merchantable VIB Unthinned | FS1: Merchantable VIB Th1 | FV1: Merchantable VIB Th2 | FY1: Merchantable VIB Th3 | GB1: Merchantable VIB Th4 | GE1: Removed Merchantable VIB Unthinned | GH1: Removed Merchantable VIB Th1 | GK1: Removed Merchantable VIB Th2 | GN1: Removed Merchantable VIB Th3 | GQ1: Removed Merchantable VIB Th4
B2: Rotation | C2: Age | D2: FERTILIZED + WC + BEDDING(feet) | H2: FERTILIZED + WC + BEDDING(feet) | L2: FERTILIZED + WC + BEDDING(feet) | P2: Remaining Unthinned | Q2: Remaining (N) Th1 | R2: Remaining (N) Th2 | S2: Remaining (N) Th3 | T2: Remaining (N) Th4 | U2: BA unthinned counterpart Th1 | V2: BA removed at Th1 | W2: Competiton Index Th1 | X2: Basal Area Th1 | Y2: BA unthinned counterpart Th2 | Z2: BA removed at Th2 | AA2: Competiton Index Th2 | AB2: Basal Area Th2 | AC2: BA unthinned counterpart Th3 | AD2: BA removed at Th3 | AE2: Competiton Index Th3 | AF2: Basal Area Th3 | AG2: BA unthinned counterpart Th4 | AH2: BA removed at Th4 | AI2: Competiton Index Th4 | AJ2: Basal Area Th4 | AK2: Unthinned | AL2: Th 1 | AM2: Th 2 | AN2: Th 3 | AO2: Th 4 | AP2: Unthinned | AQ2: Th 1 | AR2: Th 2 | AS2: Th 3 | AT2: Th 4 | AU2: Unthinned | AV2: Th 1 | AW2: Th 2 | AX2: Th 3 | AY2: Th 4 | AZ2: Unthinned | BA2: Th 1 | BB2: Th 2 | BC2: Th 3 | BD2: Th 4 | BE2: Unthinned | BF2: Th 1 | BG2: Th 2 | BH2: Th 3 | BI2: Th 4 | BJ2: Unthinned | BK2: Th 1 | BL2: Th 2 | BM2: Th 3 | BN2: Th 4 | BO2: Unthinned | BP2: Th 1 | BQ2: Th 2 | BR2: Th 3 | BS2: Th 4 | BT2: Unthinned | BU2: Th 1 | BV2: Th 2 | BW2: Th 3 | BX2: Th 4 | BY2: Unthinned | BZ2: Th 1 | CA2: Th 2 | CB2: Th 3 | CC2: Th 4 | CD2: Unthinned | CE2: Th 1 | CF2: Th 2 | CG2: Th 3 | CH2: Th 4 | CI2: Unthinned | CJ2: Th 1 | CK2: Th 2 | CL2: Th 3 | CM2: Th 4 | CN2: Unthinned | CO2: Th 1 | CP2: Th 2 | CQ2: Th 3 | CR2: Th 4 | CS2: Unthinned | CT2: Th 1 | CU2: Th 2 | CV2: Th 3 | CW2: Th 4 | CX2: Unthinned | CY2: Th 1 | CZ2: Th 2 | DA2: Th 3 | DB2: Th 4 | DC2: Unthinned | DD2: Th 1 | DE2: Th 2 | DF2: Th 3 | DG2: Th 4 | DH2: Unthinned | DI2: Th 1 | DJ2: Th 2 | DK2: Th 3 | DL2: Th 4 | DM2: Unthinned | DN2: Th 1 | DO2: Th 2 | DP2: Th 3 | DQ2: Th 4 | DR2: Unthinned | DS2: Th 1 | DT2: Th 2 | DU2: Th 3 | DV2: Th 4 | DW2: Unthinned | DX2: Th 1 | DY2: Th 2 | DZ2: Th 3 | EA2: Th 4 | EB2: Unthinned | EC2: Th 1 | ED2: Th 2 | EE2: Th 3 | EF2: Th 4 | EG2: Unthinned | EH2: Th 1 | EI2: Th 2 | EJ2: Th 3 | EK2: Th 4 | EL2: Sawtimber | EM2: CNS | EN2: Pulpwood | EO2: Sawtimber | EP2: CNS | EQ2: Pulpwood | ER2: Sawtimber | ES2: CNS | ET2: Pulpwood | EU2: Sawtimber | EV2: CNS | EW2: Pulpwood | EX2: Sawtimber | EY2: CNS | EZ2: Pulpwood | FA2: Sawtimber | FB2: CNS | FC2: Pulpwood | FD2: Sawtimber | FE2: CNS | FF2: Pulpwood | FG2: Sawtimber | FH2: CNS | FI2: Pulpwood | FJ2: Sawtimber | FK2: CNS | FL2: Pulpwood | FM2: Sawtimber | FN2: CNS | FO2: Pulpwood | FP2: Sawtimber | FQ2: CNS | FR2: Pulpwood | FS2: Sawtimber | FT2: CNS | FU2: Pulpwood | FV2: Sawtimber | FW2: CNS | FX2: Pulpwood | FY2: Sawtimber | FZ2: CNS | GA2: Pulpwood | GB2: Sawtimber | GC2: CNS | GD2: Pulpwood | GE2: Sawtimber | GF2: CNS | GG2: Pulpwood | GH2: Sawtimber | GI2: CNS | GJ2: Pulpwood | GK2: Sawtimber | GL2: CNS | GM2: Pulpwood | GN2: Sawtimber | GO2: CNS | GP2: Pulpwood | GQ2: Sawtimber | GR2: CNS | GS2: Pulpwood
A3: Year | D3: Untreat | E3: RH(Fert) | F3: RH(Bedding + WC) | G3: Hdom Treat | H3: Untreat | I3: RBA(Fert) | J3: RBA(Bedding + WC) | K3: BA Treat | L3: Untreat | M3: RH(Fert) | N3: RH(Bedding + WC) | O3: Hdom Treat | AK3: (trees / acre) | AP3: ft2/acre | AU3: (inch) | AZ3: (trees / acre) | BE3: (inch) | BJ3: ft3/acre | BO3: ft3/acre | BT3: years | BY3: ft2/acre | CD3: ft2/acre | CI3: ft2/acre | CN3: trees/acre | CS3: trees/acre | CX3: trees/acre | DC3: ft3/acre | DH3: ft3/acre | DM3: ft3/acre | DR3: ft3/acre | DW3: ft3/acre | EB3: ft3/acre | EG3: (inch) | EL3: ft3/acre | EO3: ft3/acre | ER3: ft3/acre | EU3: ft3/acre | EX3: ft3/acre | FA3: ft3/acre | FD3: ft3/acre | FG3: ft3/acre | FJ3: ft3/acre | FM3: ft3/acre | FP3: ft3/acre | FS3: ft3/acre | FV3: ft3/acre | FY3: ft3/acre | GB3: ft3/acre | GE3: ft3/acre | GH3: ft3/acre | GK3: ft3/acre | GN3: ft3/acre | GQ3: ft3/acre
A4: 0 | B4: =+IF(AND(inputs!$I$19=FALSE,A4+inputs!$K$5-1>inputs!$B$6),"",IF(AND(inputs!$K$2=TRUE,A4<=inputs!$B$6),1,IF(AND(inputs!$K$3=TRUE,A4+inputs!$K$5<=inputs!$B$6),1,IF(inputs!$K$2=TRUE,ROUNDDOWN((A4-1)/(inputs!$B$6),0)+1,ROUNDDOWN((A4+inputs!$K$5-1)/(inputs!$B$6),0)+1)))) -> 1 | C4: =+IF(B4="","",IF(AND(inputs!$I$19=FALSE,A4+inputs!$K$5-1>inputs!$B$6),"",IF(C3=inputs!$B$6,1,IF(AND(inputs!$K$2=TRUE,A4=0),0,IF(AND(inputs!$K$3=TRUE,A4=0),inputs!$K$5,IF(C3=inputs!$B$6,0,C3+1)))))) -> 0 | D4: =IF(A4>25,"",IF(A4="","",'Equations - Parameters'!$B$12*inputs!$K$6*(1-EXP('Equations - Parameters'!$C$12*A4))^'Equations - Parameters'!$D$12)) -> 0 | E4: =IF(A4>25,"",IF(A4>=inputs!$J$20,('Equations - Parameters'!$D$16*inputs!$J$17+'Equations - Parameters'!$E$16*inputs!$J$18)*(A4-inputs!$J$20)*EXP(-(A4-inputs!$J$20)*('Equations - Parameters'!$F$16*inputs!$J$17+'Equations - Parameters'!$G$16*inputs!$J$18)),0)+IF(A4>=inputs!$J$21,('Equations - Parameters'!$D$16*inputs!$J$17+'Equations - Parameters'!$E$16*inputs!$J$18)*(A4-inputs!$J$21)*EXP(-(A4-inputs!$J$21)*('Equations - Parameters'!$F$16*inputs!$J$17+'Equations - Parameters'!$G$16*inputs!$J$18)),0)+IF(A4>=inputs!$J$22,('Equations - Parameters'!$D$16*inputs!$J$17+'Equations - Parameters'!$E$16*inputs!$J$18)*(A4-inputs!$J$22)*EXP(-(A4-inputs!$J$22)*('Equations - Parameters'!$F$16*inputs!$J$17+'Equations - Parameters'!$G$16*inputs!$J$18)),0)+IF(A4>=inputs!$J$23,('Equations - Parameters'!$D$16*inputs!$J$17+'Equations - Parameters'!$E$16*inputs!$J$18)*(A4-inputs!$J$23)*EXP(-(A4-inputs!$J$23)*('Equations - Parameters'!$F$16*inputs!$J$17+'Equations - Parameters'!$G$16*inputs!$J$18)),0)) -> 0 | F4: =IF(A4>25,"",('Equations - Parameters'!$E$12*0+'Equations - Parameters'!$F$12*inputs!$J$8+'Equations - Parameters'!$G$12*inputs!$J$9+'Equations - Parameters'!$H$12*inputs!$J$10*inputs!$J$8)*A4*EXP('Equations - Parameters'!$I$12*A4)) -> 0 | G4: =IF(A4>25,"",F4+E4+D4) -> 0 | H4: =IF(C4="","",IF(AND(inputs!$K$2=TRUE,A4=0),0,IF(AND(inputs!$K$3=TRUE,A4=0),inputs!$K$15,(IF(C4=0,0,IF(inputs!$K$3=TRUE, EXP( LN(H3) + 'Equations - Parameters'!$C$28*(1/C4 - 1/C3) + ('Equations - Parameters'!$D$28*(LN(L4)-LN(L3))) + ('Equations - Parameters'!$E$28*(LN(P4)-LN(P3))) + 'Equations - Parameters'!$F$28*(LN(L4)/C4 - LN(L3)/C3) + 'Equations - Parameters'!$G$28*(LN(P4)/C4 - LN(P3)/C3) ), EXP('Equations - Parameters'!$B$20+'Equations - Parameters'!$C$20/C4)*L4^('Equations - Parameters'!$D$20+'Equations - Parameters'!$E$20/C4)*P4^('Equations - Parameters'!$F$20+'Equations - Parameters'!$G$20/C4))))))) -> 0 | I4: =IF(C4="","",IF($C4>=inputs!$J$20,('Equations - Parameters'!$C$24*inputs!$J$17+'Equations - Parameters'!$D$24*inputs!$J$18)*($C4-inputs!$J$20)*EXP(-($C4-inputs!$J$20)*('Equations - Parameters'!$E$24*inputs!$J$17+'Equations - Parameters'!$F$24*inputs!$J$18+'Equations - Parameters'!$G$24*inputs!$J$3+'Equations - Parameters'!$H$24*inputs!$J$2)),0)+IF($C4>=inputs!$J$21,('Equations - Parameters'!$C$24*inputs!$J$17+'Equations - Parameters'!$D$24*inputs!$J$18)*($C4-inputs!$J$21)*EXP(-($C4-inputs!$J$21)*('Equations - Parameters'!$E$24*inputs!$J$17+'Equations - Parameters'!$F$24*inputs!$J$18+'Equations - Parameters'!$G$24*inputs!$J$3+'Equations - Parameters'!$H$24*inputs!$J$2)),0)+IF($C4>=inputs!$J$22,('Equations - Parameters'!$C$24*inputs!$J$17+'Equations - Parameters'!$D$24*inputs!$J$18)*($C4-inputs!$J$22)*EXP(-($C4-inputs!$J$22)*('Equations - Parameters'!$E$24*inputs!$J$17+'Equations - Parameters'!$F$24*inputs!$J$18+'Equations - Parameters'!$G$24*inputs!$J$3+'Equations - Parameters'!$H$24*inputs!$J$2)),0)+IF($C4>=inputs!$J$23,('Equations - Parameters'!$C$24*inputs!$J$17+'Equations - Parameters'!$D$24*inputs!$J$18)*($C4-inputs!$J$23)*EXP(-($C4-inputs!$J$23)*('Equations - Parameters'!$E$24*inputs!$J$17+'Equations - Parameters'!$F$24*inputs!$J$18+'Equations - Parameters'!$G$24*inputs!$J$3+'Equations - Parameters'!$H$24*inputs!$J$2)),0)) -> 0 | J4: =IF(C4="","",IF(C4=0,0,('Equations - Parameters'!$H$20*0+'Equations - Parameters'!$I$20*inputs!$J$9)*C4*EXP('Equations - Parameters'!$J$20*C4))) -> 0 | K4: =IF(C4="","",J4+I4+H4) -> 0 | L4: =IF(C4="","",IF(AND(inputs!$K$2=TRUE,A4=0),0,IF(AND(inputs!$K$3=TRUE,A4=0),inputs!$K$13,(IF(C4=0,0,'Equations - Parameters'!$B$12*inputs!$B$10*(1-EXP('Equations - Parameters'!$C$12*C4))^'Equations - Parameters'!$D$12))))) -> 0 | M4: =IF(C4="","",IF(C4>=inputs!$J$20,('Equations - Parameters'!$D$16*inputs!$J$17+'Equations - Parameters'!$E$16*inputs!$J$18)*(C4-inputs!$J$20)*EXP(-(C4-inputs!$J$20)*('Equations - Parameters'!$F$16*inputs!$J$17+'Equations - Parameters'!$G$16*inputs!$J$18)),0)+IF(C4>=inputs!$J$21,('Equations - Parameters'!$D$16*inputs!$J$17+'Equations - Parameters'!$E$16*inputs!$J$18)*(C4-inputs!$J$21)*EXP(-(C4-inputs!$J$21)*('Equations - Parameters'!$F$16*inputs!$J$17+'Equations - Parameters'!$G$16*inputs!$J$18)),0)+IF(C4>=inputs!$J$22,('Equations - Parameters'!$D$16*inputs!$J$17+'Equations - Parameters'!$E$16*inputs!$J$18)*(C4-inputs!$J$22)*EXP(-(C4-inputs!$J$22)*('Equations - Parameters'!$F$16*inputs!$J$17+'Equations - Parameters'!$G$16*inputs!$J$18)),0)+IF(C4>=inputs!$J$23,('Equations - Parameters'!$D$16*inputs!$J$17+'Equations - Parameters'!$E$16*inputs!$J$18)*(C4-inputs!$J$23)*EXP(-(C4-inputs!$J$23)*('Equations - Parameters'!$F$16*inputs!$J$17+'Equations - Parameters'!$G$16*inputs!$J$18)),0)) -> 0 | N4: =IF(C4="","",('Equations - Parameters'!$E$12*0+'Equations - Parameters'!$F$12*inputs!$J$8+'Equations - Parameters'!$G$12*inputs!$J$9+'Equations - Parameters'!$H$12*inputs!$J$10*inputs!$J$8)*C4*EXP('Equations - Parameters'!$I$12*C4)) -> 0 | O4: =IF(C4="","",N4+M4+L4) -> 0 | P4: =IF(C4="","",IF(AND(inputs!$K$2=TRUE,A4=0),0,IF(AND(inputs!$K$2=TRUE,A4=1),inputs!$I$13,IF(AND(inputs!$K$3=TRUE,A4=0),inputs!$K$14,IF(C3=inputs!$B$6,inputs!$B$9,P3*EXP(('Equations - Parameters'!$D$7)*(C4^'Equations - Parameters'!$E$7-C3^'Equations - Parameters'!$E$7))))))) -> 0 | Q4: =IF(C4="","",IF(inputs!$J$25=0,0,IF(inputs!$B$30>C4,P4,IF(inputs!$B$30=C4,(P4-(inputs!$C$30*P4)),Q3*EXP(-(-'Equations - Parameters'!$D$7-'Equations - Parameters'!$F$7*inputs!$J$25)*(C4^'Equations - Parameters'!$E$7-C3^'Equations - Parameters'!$E$7)))))) -> 0 | R4: =IF(C4="","",IF(inputs!$J$25=0,0,IF(inputs!$B$31>C4,Q4,IF(inputs!$B$31=C4,(Q4-(inputs!$C$31*Q4)),R3*EXP(-(-'Equations - Parameters'!$D$7-'Equations - Parameters'!$F$7*inputs!$J$25)*(C4^'Equations - Parameters'!$E$7-C3^'Equations - Parameters'!$E$7)))))) -> 0 | S4: =IF(C4="","",IF(inputs!$J$25=0,0,IF(inputs!$B$32>C4,R4,IF(inputs!$B$32=C4,(R4-(inputs!$C$32*R4)),S3*EXP(-(-'Equations - Parameters'!$D$7-'Equations - Parameters'!$F$7*inputs!$J$25)*(C4^'Equations - Parameters'!$E$7-C3^'Equations - Parameters'!$E$7)))))) -> 0 | T4: =IF(C4="","",IF(inputs!$J$25=0,0,IF(inputs!$B$33>C4,S4,IF(inputs!$B$33=C4,(S4-(inputs!$C$33*S4)),T3*EXP(-(-'Equations - Parameters'!$D$7-'Equations - Parameters'!$F$7*inputs!$J$25)*(C4^'Equations - Parameters'!$E$7-C3^'Equations - Parameters'!$E$7)))))) -> 0 | U4: =IF(C4="","",IF(inputs!$I$25=FALSE,0,IF(C4>=inputs!$B$30,EXP('Equations - Parameters'!$B$20+'Equations - Parameters'!$C$20/C4)*O4^('Equations - Parameters'!$D$20+'Equations - Parameters'!$E$20/C4)*Q4^('Equations - Parameters'!$F$20+'Equations - Parameters'!$G$20/C4)+I4+J4,0))) -> 0 | V4: =IF(C4="","",IF(inputs!$I$25=FALSE,0,IF(C4=inputs!$B$30,K4*((P4-Q4)/P4)^'Equations - Parameters'!$F$31,0))) -> 0 | W4: =IF(C4="","",IF(inputs!$I$25=FALSE,0,IF(C4<inputs!$B$30,0,IF(C4=inputs!$B$30,(1-X4/U4),W3*EXP('Equations - Parameters'!$F$34*(C4-C3)))))) -> 0 | X4: =IF(C4="","",IF(inputs!$I$25=FALSE,0,IF(C4<inputs!$B$30,K4,IF(C4=inputs!$B$30,K4-V4,U4*(1-W4))))) -> 0 | Y4: =IF(C4="","",IF(inputs!$I$25=FALSE,0,IF(inputs!$J$30<2,0,IF(C4>=inputs!$B$31,EXP('Equations - Parameters'!$B$20+'Equations - Parameters'!$C$20/C4)*O4^('Equations - Parameters'!$D$20+'Equations - Parameters'!$E$20/C4)*R4^('Equations - Parameters'!$F$20+'Equations - Parameters'!$G$20/C4)+I4+J4,0)))) -> 0 | Z4: =IF(C4="","",IF(inputs!$I$25=FALSE,0,IF(inputs!$J$30<2,0,IF(C4=inputs!$B$31,X4*((Q4-R4)/Q4)^'Equations - Parameters'!$F$31,0)))) -> 0 | AA4: =IF(C4="","",IF(inputs!$I$25=FALSE,0,IF(inputs!$J$30<2,0,IF(C4<inputs!$B$31,0,IF(C4=inputs!$B$31,(1-AB4/Y4),AA3*EXP('Equations - Parameters'!$F$34*(C4-C3))))))) -> 0 | AB4: =IF(C4="","",IF(inputs!$I$25=FALSE,0,IF(inputs!$J$30<2,0,IF(inputs!$I$25=FALSE,0,IF(C4<inputs!$B$31,X4,IF(C4=inputs!$B$31,X4-Z4,Y4*(1-AA4))))))) -> 0 | AC4: =IF(C4="","",IF(inputs!$I$25=FALSE,0,IF(inputs!$J$30<3,0,IF(C4>=inputs!$B$32,EXP('Equations - Parameters'!$B$20+'Equations - Parameters'!$C$20/C4)*O4^('Equations - Parameters'!$D$20+'Equations - Parameters'!$E$20/C4)*S4^('Equations - Parameters'!$F$20+'Equations - Parameters'!$G$20/C4)+I4+J4,0)))) -> 0 | AD4: =IF(C4="","",IF(inputs!$I$25=FALSE,0,IF(inputs!$J$30<3,0,IF($C4=inputs!$B$32,AC4*((R4-S4)/R4)^'Equations - Parameters'!$F$31,0)))) -> 0 | AE4: =IF(C4="","",IF(inputs!$I$25=FALSE,0,IF(inputs!$J$30<3,0,IF(C4<inputs!$B$32,0,IF(C4=inputs!$B$32,(1-AF4/AC4),AE3*EXP('Equations - Parameters'!$F$34*(C4-C3))))))) -> 0 | AF4: =IF(C4="","",IF(inputs!$I$25=FALSE,0,IF(inputs!$J$30<3,0,IF($C4<inputs!$B$32,AB4,IF(C4=inputs!$B$32,AB4-AD4,AC4*(1-AE4)))))) -> 0 | AG4: =IF(C4="","",IF(inputs!$I$25=FALSE,0,IF(inputs!$J$30<4,0,IF(C4>=inputs!$B$33,EXP('Equations - Parameters'!$B$20+'Equations - Parameters'!$C$20/C4)*O4^('Equations - Parameters'!$D$20+'Equations - Parameters'!$E$20/C4)*T4^('Equations - Parameters'!$F$20+'Equations - Parameters'!$G$20/C4)+I4+J4,0)))) -> 0 | AH4: =IF(C4="","",IF(inputs!$I$25=FALSE,0,IF(inputs!$J$30<4,0,IF($C4=inputs!$B$33,AG4*((S4-T4)/S4)^'Equations - Parameters'!$F$31,0)))) -> 0 | AI4: =IF(C4="","",IF(inputs!$I$25=FALSE,0,IF(inputs!$J$30<4,0,IF(C4<inputs!$B$33,0,IF(C4=inputs!$B$33,(1-AJ4/AG4),AI3*EXP('Equations - Parameters'!$F$34*(C4-C3))))))) -> 0 | AJ4: =IF(C4="","",IF(inputs!$I$25=FALSE,0,IF(inputs!$J$30<4,0,IF($C4<inputs!$B$33,AF4,IF(C4=inputs!$B$33,AF4-AH4,AG4*(1-AI4)))))) -> 0 | AK4: =IF(C4="","",IF($C4=0,0,P4)) -> 0 | AL4: =IF(C4="","",IF($C4=0,0,Q4)) -> 0 | AM4: =IF(C4="","",IF($C4=0,0,R4)) -> 0 | AN4: =IF(C4="","",IF($C4=0,0,S4)) -> 0 | AO4: =IF(C4="","",IF($C4=0,0,T4)) -> 0 | AP4: =IF(C4="","",IF($C4=0,0,K4)) -> 0 | AQ4: =IF(C4="","",IF($C4=0,0,X4)) -> 0 | AR4: =IF(C4="","",IF($C4=0,0,AB4)) -> 0 | AS4: =IF(C4="","",IF($C4=0,0,AF4)) -> 0 | AT4: =IF(C4="","",IF($C4=0,0,AJ4)) -> 0 | AU4: =IF($C4="","",IF($AK4=0,0,2*SQRT(AP4/(AK4*PI()))*12)) -> 0 | AV4: =IF(C4="","",IF(AL4=0,0,IF(inputs!$I$25=FALSE,0,IF(C4=0,0,2*SQRT(AQ4/(AL4*PI()))*12)))) -> 0 | AW4: =IF($C4="","",IF(AM4=0,0,IF(inputs!$I$25=FALSE,0,IF($C4=0,0,2*SQRT(AR4/(AM4*PI()))*12)))) -> 0 | AX4: =IF($C4="","",IF(AN4=0,0,IF(inputs!$I$25=FALSE,0,IF(inputs!$J$30<3,0,IF(C4=0,0,2*SQRT(AS4/(AN4*PI()))*12))))) -> 0 | AY4: =IF($C4="","",IF(AO4=0,0,IF(inputs!$I$25=FALSE,0,IF(inputs!$J$30<4,0,IF(C4=0,0,2*SQRT(AT4/(AO4*PI()))*12))))) -> 0 | AZ4: =IF($C4="","",IF($C4=0,0,IF(P4=0,0,AK4*(AU4/10)^1.605))) -> 0 | BA4: =IF($C4="","",IF($C4=0,0,IF(Q4=0,0,AL4*(AV4/10)^1.605))) -> 0 | BB4: =IF($C4="","",IF($C4=0,0,IF(R4=0,0,AM4*(AW4/10)^1.605))) -> 0 | BC4: =IF($C4="","",IF($C4=0,0,IF(S4=0,0,AN4*(AX4/10)^1.605))) -> 0 | BD4: =IF($C4="","",IF($C4=0,0,IF(T4=0,0,AO4*(AY4/10)^1.605))) -> 0 | BE4: =IF($C4="","",IF($C4=0,0,IF(P4=0,0,EXP('Equations - Parameters'!$D$38+'Equations - Parameters'!$E$38*LN($O4)+'Equations - Parameters'!$F$38*LN(P4)+'Equations - Parameters'!$G$38*LN(K4/P4))))) -> 0 | BF4: =IF($C4="","",IF($C4=0,0,IF(Q4=0,0,IF(BA4=0,0,EXP('Equations - Parameters'!$D$38+'Equations - Parameters'!$E$38*LN($O4)+'Equations - Parameters'!$F$38*LN(Q4)+'Equations - Parameters'!$G$38*LN(X4/Q4)))))) -> 0 | BG4: =IF($C4="","",IF($C4=0,0,IF(R4=0,0,IF(BB4=0,0,EXP('Equations - Parameters'!$D$38+'Equations - Parameters'!$E$38*LN($O4)+'Equations - Parameters'!$F$38*LN(R4)+'Equations - Parameters'!$G$38*LN(AB4/R4)))))) -> 0 | BH4: =IF($C4="","",IF($C4=0,0,IF(S4=0,0,IF(BC4=0,0,EXP('Equations - Parameters'!$D$38+'Equations - Parameters'!$E$38*LN($O4)+'Equations - Parameters'!$F$38*LN(S4)+'Equations - Parameters'!$G$38*LN(AF4/S4)))))) -> 0 | BI4: =IF($C4="","",IF($C4=0,0,IF(T4=0,0,IF(BD4=0,0,EXP('Equations - Parameters'!$D$38+'Equations - Parameters'!$E$38*LN($O4)+'Equations - Parameters'!$F$38*LN(T4)+'Equations - Parameters'!$G$38*LN(AJ4/T4)))))) -> 0 | BJ4: =IF($C4="","",IF($C4=0,0,IF(P4=0,0,('Equations - Parameters'!$E$45*LN(AU4)+'Equations - Parameters'!$D$45)*BO4))) -> 0 | BK4: =IF($C4="","",IF($C4=0,0,IF(Q4=0,0,IF(BP4=0,0,('Equations - Parameters'!$E$45*LN(AV4)+'Equations - Parameters'!$D$45)*BP4)))) -> 0 | BL4: =IF($C4="","",IF($C4=0,0,IF(R4=0,0,IF(BQ4=0,0,('Equations - Parameters'!$E$45*LN(AW4)+'Equations - Parameters'!$D$45)*BQ4)))) -> 0 | BM4: =IF($C4="","",IF($C4=0,0,IF(S4=0,0,IF(BR4=0,0,('Equations - Parameters'!$E$45*LN(AX4)+'Equations - Parameters'!$D$45)*BR4)))) -> 0 | BN4: =IF($C4="","",IF($C4=0,0,IF(T4=0,0,IF(BS4=0,0,('Equations - Parameters'!$E$45*LN(AY4)+'Equations - Parameters'!$D$45)*BS4)))) -> 0 | BO4: =IF($C4="","",EXP('Equations - Parameters'!$D$42)*O4^('Equations - Parameters'!$E$42)*K4^'Equations - Parameters'!$F$42) -> 0 | BP4: =IF($C4="","",EXP('Equations - Parameters'!$D$42)*$O4^('Equations - Parameters'!$E$42)*X4^'Equations - Parameters'!$F$42) -> 0 | BQ4: =IF($C4="","",EXP('Equations - Parameters'!$D$42)*$O4^('Equations - Parameters'!$E$42)*AB4^'Equations - Parameters'!$F$42) -> 0 | BR4: =IF($C4="","",EXP('Equations - Parameters'!$D$42)*$O4^('Equations - Parameters'!$E$42)*AF4^'Equations - Parameters'!$F$42) -> 0 | BS4: =IF($C4="","",EXP('Equations - Parameters'!$D$42)*$O4^('Equations - Parameters'!$E$42)*AJ4^'Equations - Parameters'!$F$42) -> 0 | BT4: =IF($C4="","",0) -> 0 | BU4: =IF($C4="","",IF(inputs!$I$25=FALSE,0,IF($C4=inputs!$B$30,$C4,0))) -> 0 | BV4: =IF($C4="","",IF(inputs!$I$25=FALSE,0,IF($C4=inputs!$B$31,$C4,0))) -> 0 | BW4: =IF($C4="","",IF(inputs!$I$25=FALSE,0,IF($C4=inputs!$B$33,$C4,0))) -> 0 | BX4: =IF($C4="","",IF(inputs!$I$25=FALSE,0,IF($C4=inputs!$B$33,$C4,0))) -> 0 | BY4: =IF($C4="","",IF($C4=inputs!$B$6,K4,0)) -> 0 | BZ4: =IF($C4="","",IF($C4=inputs!$B$6,X4,V4)) -> 0 | CA4: =IF($C4="","",IF($C4=inputs!$B$6,AB4,Z4)) -> 0 | CB4: =IF($C4="","",IF($C4=inputs!$B$6,AF4,AD4)) -> 0 | CC4: =IF($C4="","",IF($C4=inputs!$B$6,AJ4,AH4)) -> 0 | CD4: =IF($C4="","",0) -> 0 | CE4: =IF($C4="","",IF(BU4=0,0,AP4)) -> 0 | CF4: =IF($C4="","",IF(BV4=0,0,AQ4)) -> 0 | CG4: =IF($C4="","",IF(BW4=0,0,AR4)) -> 0 | CH4: =IF($C4="","",IF(BX4=0,0,AS4)) -> 0 | CI4: =IF($C4="","",0) -> 0 | CJ4: =IF($C4="","",IF(CE4=0,0,CE4-BZ4)) -> 0 | CK4: =IF($C4="","",IF(CF4=0,0,CF4-CA4)) -> 0 | CL4: =IF($C4="","",IF(CG4=0,0,CG4-CB4)) -> 0 | CM4: =IF($C4="","",IF(CH4=0,0,CH4-CC4)) -> 0 | CN4: =IF($C4="","",IF(BY4=0,0,IF($C4=inputs!$B$6,P4,0))) -> 0 | CO4: =IF($C4="","",IF(BZ4=0,0,IF($C4=inputs!$B$6,Q4,IF($C4=inputs!$B$30,P4-Q4,0)))) -> 0 | CP4: =IF($C4="","",IF(CA4=0,0,IF($C4=inputs!$B$6,R4,IF($C4=inputs!$B$30,P4-Q4,IF($C4=inputs!$B$31,Q4-R4,0))))) -> 0 | CQ4: =IF($C4="","",IF(CB4=0,0,IF($C4=inputs!$B$6,S4,IF($C4=inputs!$B$30,P4-Q4,IF($C4=inputs!$B$31,Q4-R4,IF($C4=inputs!$B$32,R4-S4,0)))))) -> 0 | CR4: =IF($C4="","",IF(CC4=0,0,IF($C4=inputs!$B$6,T4,IF($C4=inputs!$B$30,P4-Q4,IF($C4=inputs!$B$31,Q4-R4,IF($C4=inputs!$B$32,R4-S4,IF($C4=inputs!$B$33,S4-T4,0))))))) -> 0 | CS4: =IF($C4="","",0) -> 0 | CT4: =IF($C4="","",IF(BU4=0,0,AK4)) -> 0 | CU4: =IF($C4="","",IF(BV4=0,0,AL4)) -> 0 | CV4: =IF($C4="","",IF(BW4=0,0,AM4)) -> 0 | CW4: =IF($C4="","",IF(BX4=0,0,AN4)) -> 0 | CX4: =IF($C4="","",0) -> 0 | CY4: =IF($C4="","",IF(CT4=0,0,CT4-CO4)) -> 0 | CZ4: =IF($C4="","",IF(CU4=0,0,CU4-CP4)) -> 0 | DA4: =IF($C4="","",IF(CV4=0,0,CV4-CQ4)) -> 0 | DB4: =IF($C4="","",IF(CW4=0,0,CW4-CR4)) -> 0 | DC4: =IF($C4="","",IF(BY4=0,0,IF($C4=inputs!$B$6,BO4,0))) -> 0 | DD4: =IF($C4="","",IF(BZ4=0,0,IF(C4=inputs!$B$6,BP4,IF(C4=inputs!$B$30,(EXP('Equations - Parameters'!$D$42)*V4^('Equations - Parameters'!$E$42)*O4^'Equations - Parameters'!$F$42),0)))) -> 0 | DE4: =IF($C4="","",IF(CA4=0,0,IF(C4=inputs!$B$6,BQ4,IF(C4=inputs!$B$30,EXP('Equations - Parameters'!$D$42)*V4^('Equations - Parameters'!$E$42)*O4^'Equations - Parameters'!$F$42,IF(C4=inputs!$B$31,EXP('Equations - Parameters'!$D$42)*Z4^('Equations - Parameters'!$E$42)*O4^'Equations - Parameters'!$F$42,0))))) -> 0 | DF4: =IF($C4="","",IF(CB4=0,0,IF(C4=inputs!$B$6,BR4,IF(C4=inputs!$B$30,EXP('Equations - Parameters'!$D$42)*V4^('Equations - Parameters'!$E$42)*O4^'Equations - Parameters'!$F$42,IF(C4=inputs!$B$31,EXP('Equations - Parameters'!$D$42)*Z4^('Equations - Parameters'!$E$42)*O4^'Equations - Parameters'!$F$42,IF(C4=inputs!$B$32,EXP('Equations - Parameters'!$D$42)*AD4^('Equations - Parameters'!$E$42)*O4^'Equations - Parameters'!$F$42,0)))))) -> 0 | DG4: =IF($C4="","",IF(CC4=0,0,IF(C4=inputs!$B$6,BS4,IF(C4=inputs!$B$30,EXP('Equations - Parameters'!$D$42)*V4^('Equations - Parameters'!$E$42)*O4^'Equations - Parameters'!$F$42,IF(C4=inputs!$B$31,EXP('Equations - Parameters'!$D$42)*Z4^('Equations - Parameters'!$E$42)*O4^'Equations - Parameters'!$F$42,IF(C4=inputs!$B$32,EXP('Equations - Parameters'!$D$42)*AD4^('Equations - Parameters'!$E$42)*O4^'Equations - Parameters'!$F$42,IF(C4=inputs!$B$33,EXP('Equations - Parameters'!$D$42)*AJ4^('Equations - Parameters'!$E$42)*O4^'Equations - Parameters'!$F$42,0))))))) -> 0 | DH4: =IF($C4="","",0) -> 0 | DI4: =IF($C4="","",IF(BU4=0,0,BO4)) -> 0 | DJ4: =IF($C4="","",IF(BV4=0,0,BP4)) -> 0 | DK4: =IF($C4="","",IF(BW4=0,0,BQ4)) -> 0 | DL4: =IF($C4="","",IF(BX4=0,0,BR4)) -> 0 | DM4: =IF($C4="","",0) -> 0 | DN4: =IF($C4="","",IF(DI4=0,0,DI4-DD4)) -> 0 | DO4: =IF($C4="","",IF(DJ4=0,0,DJ4-DE4)) -> 0 | DP4: =IF($C4="","",IF(DK4=0,0,DK4-DF4)) -> 0 | DQ4: =IF($C4="","",IF(DL4=0,0,DL4-DG4)) -> 0 | DR4: =IF($C4="","",IF(C4=inputs!$B$6,BJ4,0)) -> 0 | DS4: =IF($C4="","",IF($C4=0,0,IF(DD4=0,0,('Equations - Parameters'!$E$45*LN($AV4)+'Equations - Parameters'!$D$45)*DD4))) -> 0 | DT4: =IF($C4="","",IF($C4=0,0,IF(DE4=0,0,('Equations - Parameters'!$E$45*LN($AV4)+'Equations - Parameters'!$D$45)*DE4))) -> 0 | DU4: =IF($C4="","",IF($C4=0,0,IF(DF4=0,0,('Equations - Parameters'!$E$45*LN($AV4)+'Equations - Parameters'!$D$45)*DF4))) -> 0 | DV4: =IF($C4="","",IF($C4=0,0,IF(DG4=0,0,('Equations - Parameters'!$E$45*LN($AV4)+'Equations - Parameters'!$D$45)*DG4))) -> 0 | DW4: =IF($C4="","",IF(L4=inputs!$B$6,BO4,0)) -> 0 | DX4: =IF($C4="","",IF(BU4=0,0,BJ4)) -> 0 | DY4: =IF($C4="","",IF(BV4=0,0,BK4)) -> 0 | DZ4: =IF($C4="","",IF(BW4=0,0,BL4)) -> 0 | EA4: =IF($C4="","",IF(BX4=0,0,BM4)) -> 0 | EB4: =IF($C4="","",0) -> 0 | EC4: =IF($C4="","",IF(DX4=0,0,DX4-DS4)) -> 0 | ED4: =IF($C4="","",IF(DY4=0,0,DY4-DT4)) -> 0 | EE4: =IF($C4="","",IF(DZ4=0,0,DZ4-DU4)) -> 0 | EF4: =IF($C4="","",IF(EA4=0,0,EA4-DV4)) -> 0 | EG4: =IF($C4="","",IF(CN4=0,0,2*SQRT(BY4/(CN4*PI()))*12)) -> 0 | EH4: =IF($C4="","",IF(CO4=0,0,2*SQRT(BZ4/(CO4*PI()))*12)) -> 0 | EI4: =IF($C4="","",IF(CP4=0,0,2*SQRT(CA4/(CP4*PI()))*12)) -> 0 | EJ4: =IF($C4="","",IF(CQ4=0,0,2*SQRT(CB4/(CQ4*PI()))*12)) -> 0 | EK4: =IF($C4="","",IF(CR4=0,0,2*SQRT(CC4/(CR4*PI()))*12)) -> 0 | EL4: =IF($C4="","",IF(P4=0,0,IF(C4<2,0,BO4*EXP('Equations - Parameters'!$D$56*('Equations - Parameters'!$H$159/AU4)^'Equations - Parameters'!$E$56-'Equations - Parameters'!$F$56*P4^'Equations - Parameters'!$G$56*('Equations - Parameters'!$G$159/AU4)^'Equations - Parameters'!$H$56)))) -> 0 | EM4: =IF($C4="","",IF(P4=0,0,IF(C4<2,0,BO4*EXP('Equations - Parameters'!$D$56*('Equations - Parameters'!$H$160/AU4)^'Equations - Parameters'!$E$56-'Equations - Parameters'!$F$56*P4^'Equations - Parameters'!$G$56*('Equations - Parameters'!$G$160/AU4)^'Equations - Parameters'!$H$56)-EL4))) -> 0 | EN4: =IF($C4="","",IF(P4=0,0,IF(C4<2,0,BO4*EXP('Equations - Parameters'!$D$56*('Equations - Parameters'!$H$161/AU4)^'Equations - Parameters'!$E$56-'Equations - Parameters'!$F$56*P4^'Equations - Parameters'!$G$56*('Equations - Parameters'!$G$161/AU4)^'Equations - Parameters'!$H$56)-EM4-EL4))) -> 0 | EO4: =IF($C4="","",IF(Q4=0,0,IF(C4<2,0,IF(BP4=0,0,BP4*EXP('Equations - Parameters'!$D$56*('Equations - Parameters'!$H$159/AV4)^'Equations - Parameters'!$E$56-'Equations - Parameters'!$F$56*Q4^'Equations - Parameters'!$G$56*('Equations - Parameters'!$G$159/AV4)^'Equations - Parameters'!$H$56))))) -> 0 | EP4: =IF($C4="","",IF(Q4=0,0,IF(C4<2,0,IF(BP4=0,0,BP4*EXP('Equations - Parameters'!$D$56*('Equations - Parameters'!$H$160/AV4)^'Equations - Parameters'!$E$56-'Equations - Parameters'!$F$56*Q4^'Equations - Parameters'!$G$56*('Equations - Parameters'!$G$160/AV4)^'Equations - Parameters'!$H$56)-EO4)))) -> 0 | EQ4: =IF($C4="","",IF(Q4=0,0,IF(C4<2,0,IF(BP4=0,0,BP4*EXP('Equations - Parameters'!$D$56*('Equations - Parameters'!$H$161/AV4)^'Equations - Parameters'!$E$56-'Equations - Parameters'!$F$56*Q4^'Equations - Parameters'!$G$56*('Equations - Parameters'!$G$161/AV4)^'Equations - Parameters'!$H$56)-EP4-EO4)))) -> 0 | ER4: =IF($C4="","",IF(R4=0,0,IF(C4<2,0,IF(BQ4=0,0,BQ4*EXP('Equations - Parameters'!$D$56*('Equations - Parameters'!$H$159/AW4)^'Equations - Parameters'!$E$56-'Equations - Parameters'!$F$56*R4^'Equations - Parameters'!$G$56*('Equations - Parameters'!$G$159/AW4)^'Equations - Parameters'!$H$56))))) -> 0 | ES4: =IF($C4="","",IF(R4=0,0,IF(C4<2,0,IF(BQ4=0,0,BQ4*EXP('Equations - Parameters'!$D$56*('Equations - Parameters'!$H$160/AW4)^'Equations - Parameters'!$E$56-'Equations - Parameters'!$F$56*R4^'Equations - Parameters'!$G$56*('Equations - Parameters'!$G$160/AW4)^'Equations - Parameters'!$H$56)-ER4)))) -> 0 | ET4: =IF($C4="","",IF(R4=0,0,IF(C4<2,0,IF(BQ4=0,0,BQ4*EXP('Equations - Parameters'!$D$56*('Equations - Parameters'!$H$161/AW4)^'Equations - Parameters'!$E$56-'Equations - Parameters'!$F$56*R4^'Equations - Parameters'!$G$56*('Equations - Parameters'!$G$161/AW4)^'Equations - Parameters'!$H$56)-ES4-ER4)))) -> 0 | EU4: =IF($C4="","",IF(S4=0,0,IF(C4<2,0,IF(BR4=0,0,BR4*EXP('Equations - Parameters'!$D$56*('Equations - Parameters'!$H$159/AX4)^'Equations - Parameters'!$E$56-'Equations - Parameters'!$F$56*S4^'Equations - Parameters'!$G$56*('Equations - Parameters'!$G$159/AX4)^'Equations - Parameters'!$H$56))))) -> 0 | EV4: =IF($C4="","",IF(S4=0,0,IF(C4<2,0,IF(BR4=0,0,BR4*EXP('Equations - Parameters'!$D$56*('Equations - Parameters'!$H$160/AX4)^'Equations - Parameters'!$E$56-'Equations - Parameters'!$F$56*S4^'Equations - Parameters'!$G$56*('Equations - Parameters'!$G$160/AX4)^'Equations - Parameters'!$H$56)-EU4)))) -> 0 | EW4: =IF($C4="","",IF(S4=0,0,IF(C4<2,0,IF(BR4=0,0,BR4*EXP('Equations - Parameters'!$D$56*('Equations - Parameters'!$H$161/AX4)^'Equations - Parameters'!$E$56-'Equations - Parameters'!$F$56*S4^'Equations - Parameters'!$G$56*('Equations - Parameters'!$G$161/AX4)^'Equations - Parameters'!$H$56)-EV4-EU4)))) -> 0 | EX4: =IF($C4="","",IF(T4=0,0,IF(C4<2,0,IF(BS4=0,0,BS4*EXP('Equations - Parameters'!$D$56*('Equations - Parameters'!$H$159/AY4)^'Equations - Parameters'!$E$56-'Equations - Parameters'!$F$56*T4^'Equations - Parameters'!$G$56*('Equations - Parameters'!$G$159/AY4)^'Equations - Parameters'!$H$56))))) -> 0 | EY4: =IF($C4="","",IF(T4=0,0,IF(C4<2,0,IF(BS4=0,0,BS4*EXP('Equations - Parameters'!$D$56*('Equations - Parameters'!$H$160/AY4)^'Equations - Parameters'!$E$56-'Equations - Parameters'!$F$56*T4^'Equations - Parameters'!$G$56*('Equations - Parameters'!$G$160/AY4)^'Equations - Parameters'!$H$56)-EX4)))) -> 0 | EZ4: =IF($C4="","",IF(T4=0,0,IF(C4<2,0,IF(BS4=0,0,BS4*EXP('Equations - Parameters'!$D$56*('Equations - Parameters'!$H$161/AY4)^'Equations - Parameters'!$E$56-'Equations - Parameters'!$F$56*T4^'Equations - Parameters'!$G$56*('Equations - Parameters'!$G$161/AY4)^'Equations - Parameters'!$H$56)-EY4-EX4)))) -> 0 | FA4: =IF($C4="","",IF(DC4=0,0,DC4*EXP('Equations - Parameters'!$D$56*('Equations - Parameters'!$H$159/EG4)^'Equations - Parameters'!$E$56-'Equations - Parameters'!$F$56*CN4^'Equations - Parameters'!$G$56*('Equations - Parameters'!$G$159/EG4)^'Equations - Parameters'!$H$56))) -> 0 | FB4: =IF($C4="","",IF(DC4=0,0,DC4*EXP('Equations - Parameters'!$D$56*('Equations - Parameters'!$H$160/EG4)^'Equations - Parameters'!$E$56-'Equations - Parameters'!$F$56*CN4^'Equations - Parameters'!$G$56*('Equations - Parameters'!$G$160/EG4)^'Equations - Parameters'!$H$56)-FA4)) -> 0 | FC4: =IF($C4="","",IF(DC4=0,0,DC4*EXP('Equations - Parameters'!$D$56*('Equations - Parameters'!$H$161/EG4)^'Equations - Parameters'!$E$56-'Equations - Parameters'!$F$56*CN4^'Equations - Parameters'!$G$56*('Equations - Parameters'!$G$161/EG4)^'Equations - Parameters'!$H$56)-FB4-FA4)) -> 0 | FD4: =IF($C4="","",IF(DD4=0,0,DD4*EXP('Equations - Parameters'!$D$56*('Equations - Parameters'!$H$159/EH4)^'Equations - Parameters'!$E$56-'Equations - Parameters'!$F$56*CO4^'Equations - Parameters'!$G$56*('Equations - Parameters'!$G$159/EH4)^'Equations - Parameters'!$H$56))) -> 0 | FE4: =IF($C4="","",IF(DD4=0,0,DD4*EXP('Equations - Parameters'!$D$56*('Equations - Parameters'!$H$160/EH4)^'Equations - Parameters'!$E$56-'Equations - Parameters'!$F$56*CO4^'Equations - Parameters'!$G$56*('Equations - Parameters'!$G$160/EH4)^'Equations - Parameters'!$H$56)-FD4)) -> 0 | FF4: =IF($C4="","",IF(DD4=0,0,DD4*EXP('Equations - Parameters'!$D$56*('Equations - Parameters'!$H$161/EH4)^'Equations - Parameters'!$E$56-'Equations - Parameters'!$F$56*CO4^'Equations - Parameters'!$G$56*('Equations - Parameters'!$G$161/EH4)^'Equations - Parameters'!$H$56)-FE4-FD4)) -> 0 | FG4: =IF($C4="","",IF(DE4=0,0,DE4*EXP('Equations - Parameters'!$D$56*('Equations - Parameters'!$H$159/EI4)^'Equations - Parameters'!$E$56-'Equations - Parameters'!$F$56*CP4^'Equations - Parameters'!$G$56*('Equations - Parameters'!$G$159/EI4)^'Equations - Parameters'!$H$56))) -> 0 | FH4: =IF($C4="","",IF(DE4=0,0,DE4*EXP('Equations - Parameters'!$D$56*('Equations - Parameters'!$H$160/EI4)^'Equations - Parameters'!$E$56-'Equations - Parameters'!$F$56*CP4^'Equations - Parameters'!$G$56*('Equations - Parameters'!$G$160/EI4)^'Equations - Parameters'!$H$56)-FG4)) -> 0 | FI4: =IF($C4="","",IF(DE4=0,0,DE4*EXP('Equations - Parameters'!$D$56*('Equations - Parameters'!$H$161/EI4)^'Equations - Parameters'!$E$56-'Equations - Parameters'!$F$56*CP4^'Equations - Parameters'!$G$56*('Equations - Parameters'!$G$161/EI4)^'Equations - Parameters'!$H$56)-FH4-FG4)) -> 0 | FJ4: =IF($C4="","",IF(DF4=0,0,DF4*EXP('Equations - Parameters'!$D$56*('Equations - Parameters'!$H$159/EJ4)^'Equations - Parameters'!$E$56-'Equations - Parameters'!$F$56*CQ4^'Equations - Parameters'!$G$56*('Equations - Parameters'!$G$159/EJ4)^'Equations - Parameters'!$H$56))) -> 0 | FK4: =IF($C4="","",IF(DF4=0,0,DF4*EXP('Equations - Parameters'!$D$56*('Equations - Parameters'!$H$160/EJ4)^'Equations - Parameters'!$E$56-'Equations - Parameters'!$F$56*CQ4^'Equations - Parameters'!$G$56*('Equations - Parameters'!$G$160/EJ4)^'Equations - Parameters'!$H$56)-FJ4)) -> 0 | FL4: =IF($C4="","",IF(DF4=0,0,DF4*EXP('Equations - Parameters'!$D$56*('Equations - Parameters'!$H$161/EJ4)^'Equations - Parameters'!$E$56-'Equations - Parameters'!$F$56*CQ4^'Equations - Parameters'!$G$56*('Equations - Parameters'!$G$161/EJ4)^'Equations - Parameters'!$H$56)-FK4-FJ4)) -> 0 | FM4: =IF($C4="","",IF(DG4=0,0,DG4*EXP('Equations - Parameters'!$D$56*('Equations - Parameters'!$H$159/EK4)^'Equations - Parameters'!$E$56-'Equations - Parameters'!$F$56*CR4^'Equations - Parameters'!$G$56*('Equations - Parameters'!$G$159/EK4)^'Equations - Parameters'!$H$56))) -> 0 | FN4: =IF($C4="","",IF(DG4=0,0,DG4*EXP('Equations - Parameters'!$D$56*('Equations - Parameters'!$H$160/EK4)^'Equations - Parameters'!$E$56-'Equations - Parameters'!$F$56*CR4^'Equations - Parameters'!$G$56*('Equations - Parameters'!$G$160/EK4)^'Equations - Parameters'!$H$56)-FM4)) -> 0 | FO4: =IF($C4="","",IF(DG4=0,0,DG4*EXP('Equations - Parameters'!$D$56*('Equations - Parameters'!$H$161/EK4)^'Equations - Parameters'!$E$56-'Equations - Parameters'!$F$56*CR4^'Equations - Parameters'!$G$56*('Equations - Parameters'!$G$161/EK4)^'Equations - Parameters'!$H$56)-FN4-FM4)) -> 0 | FP4: =IF($C4="","",IF(P4=0,0,IF(C4<2,0,BJ4*EXP('Equations - Parameters'!$D$56*('Equations - Parameters'!$H$159/AU4)^'Equations - Parameters'!$E$56-'Equations - Parameters'!$F$56*P4^'Equations - Parameters'!$G$56*('Equations - Parameters'!$G$159/AU4)^'Equations - Parameters'!$H$56)))) -> 0 | FQ4: =IF($C4="","",IF(P4=0,0,IF(C4<2,0,BJ4*EXP('Equations - Parameters'!$D$56*('Equations - Parameters'!$H$160/AU4)^'Equations - Parameters'!$E$56-'Equations - Parameters'!$F$56*P4^'Equations - Parameters'!$G$56*('Equations - Parameters'!$G$160/AU4)^'Equations - Parameters'!$H$56)-FP4))) -> 0 | FR4: =IF($C4="","",IF(P4=0,0,IF(C4<2,0,BJ4*EXP('Equations - Parameters'!$D$56*('Equations - Parameters'!$H$161/AU4)^'Equations - Parameters'!$E$56-'Equations - Parameters'!$F$56*P4^'Equations - Parameters'!$G$56*('Equations - Parameters'!$G$161/AU4)^'Equations - Parameters'!$H$56)-FQ4-FP4))) -> 0 | FS4: =IF($C4="","",IF(Q4=0,0,IF(C4<2,0,IF(BK4=0,0,BK4*EXP('Equations - Parameters'!$D$56*('Equations - Parameters'!$H$159/AV4)^'Equations - Parameters'!$E$56-'Equations - Parameters'!$F$56*Q4^'Equations - Parameters'!$G$56*('Equations - Parameters'!$G$159/AV4)^'Equations - Parameters'!$H$56))))) -> 0 | FT4: =IF($C4="","",IF(Q4=0,0,IF(C4<2,0,IF(BK4=0,0,BK4*EXP('Equations - Parameters'!$D$56*('Equations - Parameters'!$H$160/AV4)^'Equations - Parameters'!$E$56-'Equations - Parameters'!$F$56*Q4^'Equations - Parameters'!$G$56*('Equations - Parameters'!$G$160/AV4)^'Equations - Parameters'!$H$56)-FS4)))) -> 0 | FU4: =IF($C4="","",IF(Q4=0,0,IF(C4<2,0,IF(BK4=0,0,BK4*EXP('Equations - Parameters'!$D$56*('Equations - Parameters'!$H$161/AV4)^'Equations - Parameters'!$E$56-'Equations - Parameters'!$F$56*Q4^'Equations - Parameters'!$G$56*('Equations - Parameters'!$G$161/AV4)^'Equations - Parameters'!$H$56)-FT4-FS4)))) -> 0 | FV4: =IF($C4="","",IF(R4=0,0,IF(C4<2,0,IF(BL4=0,0,BL4*EXP('Equations - Parameters'!$D$56*('Equations - Parameters'!$H$159/AW4)^'Equations - Parameters'!$E$56-'Equations - Parameters'!$F$56*R4^'Equations - Parameters'!$G$56*('Equations - Parameters'!$G$159/AW4)^'Equations - Parameters'!$H$56))))) -> 0 | FW4: =IF($C4="","",IF(R4=0,0,IF(C4<2,0,IF(BL4=0,0,BL4*EXP('Equations - Parameters'!$D$56*('Equations - Parameters'!$H$160/AW4)^'Equations - Parameters'!$E$56-'Equations - Parameters'!$F$56*R4^'Equations - Parameters'!$G$56*('Equations - Parameters'!$G$160/AW4)^'Equations - Parameters'!$H$56)-FV4)))) -> 0 | FX4: =IF($C4="","",IF(R4=0,0,IF(C4<2,0,IF(BL4=0,0,BL4*EXP('Equations - Parameters'!$D$56*('Equations - Parameters'!$H$161/AW4)^'Equations - Parameters'!$E$56-'Equations - Parameters'!$F$56*R4^'Equations - Parameters'!$G$56*('Equations - Parameters'!$G$161/AW4)^'Equations - Parameters'!$H$56)-FW4-FV4)))) -> 0 | FY4: =IF($C4="","",IF(S4=0,0,IF(C4<2,0,IF(BM4=0,0,BM4*EXP('Equations - Parameters'!$D$56*('Equations - Parameters'!$H$159/AX4)^'Equations - Parameters'!$E$56-'Equations - Parameters'!$F$56*S4^'Equations - Parameters'!$G$56*('Equations - Parameters'!$G$159/AX4)^'Equations - Parameters'!$H$56))))) -> 0 | FZ4: =IF($C4="","",IF(S4=0,0,IF(C4<2,0,IF(BM4=0,0,BM4*EXP('Equations - Parameters'!$D$56*('Equations - Parameters'!$H$160/AX4)^'Equations - Parameters'!$E$56-'Equations - Parameters'!$F$56*S4^'Equations - Parameters'!$G$56*('Equations - Parameters'!$G$160/AX4)^'Equations - Parameters'!$H$56)-FY4)))) -> 0 | GA4: =IF($C4="","",IF(S4=0,0,IF(C4<2,0,IF(BM4=0,0,BM4*EXP('Equations - Parameters'!$D$56*('Equations - Parameters'!$H$161/AX4)^'Equations - Parameters'!$E$56-'Equations - Parameters'!$F$56*S4^'Equations - Parameters'!$G$56*('Equations - Parameters'!$G$161/AX4)^'Equations - Parameters'!$H$56)-FZ4-FY4)))) -> 0 | GB4: =IF($C4="","",IF(T4=0,0,IF(C4<2,0,IF(BN4=0,0,BN4*EXP('Equations - Parameters'!$D$56*('Equations - Parameters'!$H$159/AY4)^'Equations - Parameters'!$E$56-'Equations - Parameters'!$F$56*T4^'Equations - Parameters'!$G$56*('Equations - Parameters'!$G$159/AY4)^'Equations - Parameters'!$H$56))))) -> 0 | GC4: =IF($C4="","",IF(T4=0,0,IF(C4<2,0,IF(BN4=0,0,BN4*EXP('Equations - Parameters'!$D$56*('Equations - Parameters'!$H$160/AY4)^'Equations - Parameters'!$E$56-'Equations - Parameters'!$F$56*T4^'Equations - Parameters'!$G$56*('Equations - Parameters'!$G$160/AY4)^'Equations - Parameters'!$H$56)-GB4)))) -> 0 | GD4: =IF($C4="","",IF(T4=0,0,IF(C4<2,0,IF(BN4=0,0,BN4*EXP('Equations - Parameters'!$D$56*('Equations - Parameters'!$H$161/AY4)^'Equations - Parameters'!$E$56-'Equations - Parameters'!$F$56*T4^'Equations - Parameters'!$G$56*('Equations - Parameters'!$G$161/AY4)^'Equations - Parameters'!$H$56)-GC4-GB4)))) -> 0 | GE4: =IF($C4="","",IF(DR4=0,0,DR4*EXP('Equations - Parameters'!$D$56*('Equations - Parameters'!$H$159/EG4)^'Equations - Parameters'!$E$56-'Equations - Parameters'!$F$56*CN4^'Equations - Parameters'!$G$56*('Equations - Parameters'!$G$159/EG4)^'Equations - Parameters'!$H$56))) -> 0 | GF4: =IF($C4="","",IF(DR4=0,0,DR4*EXP('Equations - Parameters'!$D$56*('Equations - Parameters'!$H$160/EG4)^'Equations - Parameters'!$E$56-'Equations - Parameters'!$F$56*CN4^'Equations - Parameters'!$G$56*('Equations - Parameters'!$G$160/EG4)^'Equations - Parameters'!$H$56)-GE4)) -> 0 | GG4: =IF($C4="","",IF(DR4=0,0,DR4*EXP('Equations - Parameters'!$D$56*('Equations - Parameters'!$H$161/EG4)^'Equations - Parameters'!$E$56-'Equations - Parameters'!$F$56*CN4^'Equations - Parameters'!$G$56*('Equations - Parameters'!$G$161/EG4)^'Equations - Parameters'!$H$56)-GF4-GE4)) -> 0 | GH4: =IF($C4="","",IF(DS4=0,0,DS4*EXP('Equations - Parameters'!$D$56*('Equations - Parameters'!$H$159/EH4)^'Equations - Parameters'!$E$56-'Equations - Parameters'!$F$56*CO4^'Equations - Parameters'!$G$56*('Equations - Parameters'!$G$159/EH4)^'Equations - Parameters'!$H$56))) -> 0 | GI4: =IF($C4="","",IF(DS4=0,0,DS4*EXP('Equations - Parameters'!$D$56*('Equations - Parameters'!$H$160/EH4)^'Equations - Parameters'!$E$56-'Equations - Parameters'!$F$56*CO4^'Equations - Parameters'!$G$56*('Equations - Parameters'!$G$160/EH4)^'Equations - Parameters'!$H$56)-GH4)) -> 0 | GJ4: =IF($C4="","",IF(DS4=0,0,DS4*EXP('Equations - Parameters'!$D$56*('Equations - Parameters'!$H$161/EH4)^'Equations - Parameters'!$E$56-'Equations - Parameters'!$F$56*CO4^'Equations - Parameters'!$G$56*('Equations - Parameters'!$G$161/EH4)^'Equations - Parameters'!$H$56)-GI4-GH4)) -> 0 | GK4: =IF($C4="","",IF(DT4=0,0,DT4*EXP('Equations - Parameters'!$D$56*('Equations - Parameters'!$H$159/EI4)^'Equations - Parameters'!$E$56-'Equations - Parameters'!$F$56*CP4^'Equations - Parameters'!$G$56*('Equations - Parameters'!$G$159/EI4)^'Equations - Parameters'!$H$56))) -> 0 | GL4: =IF($C4="","",IF(DT4=0,0,DT4*EXP('Equations - Parameters'!$D$56*('Equations - Parameters'!$H$160/EI4)^'Equations - Parameters'!$E$56-'Equations - Parameters'!$F$56*CP4^'Equations - Parameters'!$G$56*('Equations - Parameters'!$G$160/EI4)^'Equations - Parameters'!$H$56)-GK4)) -> 0 | GM4: =IF($C4="","",IF(DT4=0,0,DT4*EXP('Equations - Parameters'!$D$56*('Equations - Parameters'!$H$161/EI4)^'Equations - Parameters'!$E$56-'Equations - Parameters'!$F$56*CP4^'Equations - Parameters'!$G$56*('Equations - Parameters'!$G$161/EI4)^'Equations - Parameters'!$H$56)-GL4-GK4)) -> 0 | GN4: =IF($C4="","",IF(DU4=0,0,DU4*EXP('Equations - Parameters'!$D$56*('Equations - Parameters'!$H$159/EJ4)^'Equations - Parameters'!$E$56-'Equations - Parameters'!$F$56*CQ4^'Equations - Parameters'!$G$56*('Equations - Parameters'!$G$159/EJ4)^'Equations - Parameters'!$H$56))) -> 0 | GO4: =IF($C4="","",IF(DU4=0,0,DU4*EXP('Equations - Parameters'!$D$56*('Equations - Parameters'!$H$160/EJ4)^'Equations - Parameters'!$E$56-'Equations - Parameters'!$F$56*CQ4^'Equations - Parameters'!$G$56*('Equations - Parameters'!$G$160/EJ4)^'Equations - Parameters'!$H$56)-GN4)) -> 0 | GP4: =IF($C4="","",IF(DU4=0,0,DU4*EXP('Equations - Parameters'!$D$56*('Equations - Parameters'!$H$161/EJ4)^'Equations - Parameters'!$E$56-'Equations - Parameters'!$F$56*CQ4^'Equations - Parameters'!$G$56*('Equations - Parameters'!$G$161/EJ4)^'Equations - Parameters'!$H$56)-GO4-GN4)) -> 0 | GQ4: =IF($C4="","",IF(DV4=0,0,DV4*EXP('Equations - Parameters'!$D$56*('Equations - Parameters'!$H$159/EK4)^'Equations - Parameters'!$E$56-'Equations - Parameters'!$F$56*CR4^'Equations - Parameters'!$G$56*('Equations - Parameters'!$G$159/EK4)^'Equations - Parameters'!$H$56))) -> 0 | GR4: =IF($C4="","",IF(DV4=0,0,DV4*EXP('Equations - Parameters'!$D$56*('Equations - Parameters'!$H$160/EK4)^'Equations - Parameters'!$E$56-'Equations - Parameters'!$F$56*CR4^'Equations - Parameters'!$G$56*('Equations - Parameters'!$G$160/EK4)^'Equations - Parameters'!$H$56)-GQ4)) -> 0 | GS4: =IF($C4="","",IF(DV4=0,0,DV4*EXP('Equations - Parameters'!$D$56*('Equations - Parameters'!$H$161/EK4)^'Equations - Parameters'!$E$56-'Equations - Parameters'!$F$56*CR4^'Equations - Parameters'!$G$56*('Equations - Parameters'!$G$161/EK4)^'Equations - Parameters'!$H$56)-GR4-GQ4)) -> 0
A5: =+A4+1 -> 1 | B5: =+IF(AND(inputs!$I$19=FALSE,A5+inputs!$K$5-1>inputs!$B$6),"",IF(AND(inputs!$K$2=TRUE,A5<=inputs!$B$6),1,IF(AND(inputs!$K$3=TRUE,A5+inputs!$K$5<=inputs!$B$6),1,IF(inputs!$K$2=TRUE,ROUNDDOWN((A5-1)/(inputs!$B$6),0)+1,ROUNDDOWN((A5+inputs!$K$5-1)/(inputs!$B$6),0)+1)))) -> 1 | C5: =+IF(B5="","",IF(AND(inputs!$I$19=FALSE,A5+inputs!$K$5-1>inputs!$B$6),"",IF(C4=inputs!$B$6,1,IF(AND(inputs!$K$2=TRUE,A5=0),0,IF(AND(inputs!$K$3=TRUE,A5=0),inputs!$K$5,IF(C4=inputs!$B$6,0,C4+1)))))) -> 1 | D5: =IF(A5>25,"",IF(A5="","",'Equations - Parameters'!$B$12*inputs!$K$6*(1-EXP('Equations - Parameters'!$C$12*A5))^'Equations - Parameters'!$D$12)) -> 0.8645061589 | E5: =IF(A5>25,"",IF(A5>=inputs!$J$20,('Equations - Parameters'!$D$16*inputs!$J$17+'Equations - Parameters'!$E$16*inputs!$J$18)*(A5-inputs!$J$20)*EXP(-(A5-inputs!$J$20)*('Equations - Parameters'!$F$16*inputs!$J$17+'Equations - Parameters'!$G$16*inputs!$J$18)),0)+IF(A5>=inputs!$J$21,('Equations - Parameters'!$D$16*inputs!$J$17+'Equations - Parameters'!$E$16*inputs!$J$18)*(A5-inputs!$J$21)*EXP(-(A5-inputs!$J$21)*('Equations - Parameters'!$F$16*inputs!$J$17+'Equations - Parameters'!$G$16*inputs!$J$18)),0)+IF(A5>=inputs!$J$22,('Equations - Parameters'!$D$16*inputs!$J$17+'Equations - Parameters'!$E$16*inputs!$J$18)*(A5-inputs!$J$22)*EXP(-(A5-inputs!$J$22)*('Equations - Parameters'!$F$16*inputs!$J$17+'Equations - Parameters'!$G$16*inputs!$J$18)),0)+IF(A5>=inputs!$J$23,('Equations - Parameters'!$D$16*inputs!$J$17+'Equations - Parameters'!$E$16*inputs!$J$18)*(A5-inputs!$J$23)*EXP(-(A5-inputs!$J$23)*('Equations - Parameters'!$F$16*inputs!$J$17+'Equations - Parameters'!$G$16*inputs!$J$18)),0)) -> 0 | F5: =IF(A5>25,"",('Equations - Parameters'!$E$12*0+'Equations - Parameters'!$F$12*inputs!$J$8+'Equations - Parameters'!$G$12*inputs!$J$9+'Equations - Parameters'!$H$12*inputs!$J$10*inputs!$J$8)*A5*EXP('Equations - Parameters'!$I$12*A5)) -> 0 | G5: =IF(A5>25,"",F5+E5+D5) -> 0.8645061589 | H5: =IF(C5="","",IF(AND(inputs!$K$2=TRUE,A5=0),0,IF(AND(inputs!$K$3=TRUE,A5=0),inputs!$K$15,(IF(C5=0,0,IF(AND(inputs!$K$3=TRUE, B4=1), EXP( LN(H4) + 'Equations - Parameters'!$C$28*(1/C5 - 1/C4) + ('Equations - Parameters'!$D$28*(LN(L5)-LN(L4))) + ('Equations - Parameters'!$E$28*(LN(P5)-LN(P4))) + 'Equations - Parameters'!$F$28*(LN(L5)/C5 - LN(L4)/C4) + 'Equations - Parameters'!$G$28*(LN(P5)/C5 - LN(P4)/C4) ), EXP('Equations - Parameters'!$B$20+'Equations - Parameters'!$C$20/C5)*L5^('Equations - Parameters'!$D$20+'Equations - Parameters'!$E$20/C5)*P5^('Equations - Parameters'!$F$20+'Equations - Parameters'!$G$20/C5))))))) -> 6.460793434e-07 | I5: =IF(C5="","",IF($C5>=inputs!$J$20,('Equations - Parameters'!$C$24*inputs!$J$17+'Equations - Parameters'!$D$24*inputs!$J$18)*($C5-inputs!$J$20)*EXP(-($C5-inputs!$J$20)*('Equations - Parameters'!$E$24*inputs!$J$17+'Equations - Parameters'!$F$24*inputs!$J$18+'Equations - Parameters'!$G$24*inputs!$J$3+'Equations - Parameters'!$H$24*inputs!$J$2)),0)+IF($C5>=inputs!$J$21,('Equations - Parameters'!$C$24*inputs!$J$17+'Equations - Parameters'!$D$24*inputs!$J$18)*($C5-inputs!$J$21)*EXP(-($C5-inputs!$J$21)*('Equations - Parameters'!$E$24*inputs!$J$17+'Equations - Parameters'!$F$24*inputs!$J$18+'Equations - Parameters'!$G$24*inputs!$J$3+'Equations - Parameters'!$H$24*inputs!$J$2)),0)+IF($C5>=inputs!$J$22,('Equations - Parameters'!$C$24*inputs!$J$17+'Equations - Parameters'!$D$24*inputs!$J$18)*($C5-inputs!$J$22)*EXP(-($C5-inputs!$J$22)*('Equations - Parameters'!$E$24*inputs!$J$17+'Equations - Parameters'!$F$24*inputs!$J$18+'Equations - Parameters'!$G$24*inputs!$J$3+'Equations - Parameters'!$H$24*inputs!$J$2)),0)+IF($C5>=inputs!$J$23,('Equations - Parameters'!$C$24*inputs!$J$17+'Equations - Parameters'!$D$24*inputs!$J$18)*($C5-inputs!$J$23)*EXP(-($C5-inputs!$J$23)*('Equations - Parameters'!$E$24*inputs!$J$17+'Equations - Parameters'!$F$24*inputs!$J$18+'Equations - Parameters'!$G$24*inputs!$J$3+'Equations - Parameters'!$H$24*inputs!$J$2)),0)) -> 0 | J5: =IF(C5="","",IF(C5=0,0,('Equations - Parameters'!$H$20*0+'Equations - Parameters'!$I$20*inputs!$J$9)*C5*EXP('Equations - Parameters'!$J$20*C5))) -> 0 | K5: =IF(C5="","",J5+I5+H5) -> 6.460793434e-07 | L5: =IF(C5="","",IF(AND(inputs!$K$2=TRUE,A5=0),0,IF(AND(inputs!$K$3=TRUE,A5=0),inputs!$K$13,(IF(C5=0,0,'Equations - Parameters'!$B$12*inputs!$K$6*(1-EXP('Equations - Parameters'!$C$12*C5))^'Equations - Parameters'!$D$12))))) -> 0.8645061589 | M5: =IF(C5="","",IF(C5>=inputs!$J$20,('Equations - Parameters'!$D$16*inputs!$J$17+'Equations - Parameters'!$E$16*inputs!$J$18)*(C5-inputs!$J$20)*EXP(-(C5-inputs!$J$20)*('Equations - Parameters'!$F$16*inputs!$J$17+'Equations - Parameters'!$G$16*inputs!$J$18)),0)+IF(C5>=inputs!$J$21,('Equations - Parameters'!$D$16*inputs!$J$17+'Equations - Parameters'!$E$16*inputs!$J$18)*(C5-inputs!$J$21)*EXP(-(C5-inputs!$J$21)*('Equations - Parameters'!$F$16*inputs!$J$17+'Equations - Parameters'!$G$16*inputs!$J$18)),0)+IF(C5>=inputs!$J$22,('Equations - Parameters'!$D$16*inputs!$J$17+'Equations - Parameters'!$E$16*inputs!$J$18)*(C5-inputs!$J$22)*EXP(-(C5-inputs!$J$22)*('Equations - Parameters'!$F$16*inputs!$J$17+'Equations - Parameters'!$G$16*inputs!$J$18)),0)+IF(C5>=inputs!$J$23,('Equations - Parameters'!$D$16*inputs!$J$17+'Equations - Parameters'!$E$16*inputs!$J$18)*(C5-inputs!$J$23)*EXP(-(C5-inputs!$J$23)*('Equations - Parameters'!$F$16*inputs!$J$17+'Equations - Parameters'!$G$16*inputs!$J$18)),0)) -> 0 | N5: =IF(C5="","",('Equations - Parameters'!$E$12*0+'Equations - Parameters'!$F$12*inputs!$J$8+'Equations - Parameters'!$G$12*inputs!$J$9+'Equations - Parameters'!$H$12*inputs!$J$10*inputs!$J$8)*C5*EXP('Equations - Parameters'!$I$12*C5)) -> 0 | O5: =IF(C5="","",N5+M5+L5) -> 0.8645061589 | P5: =IF(C5="","",IF(AND(inputs!$K$2=TRUE,A5=0),0,IF(AND(inputs!$K$2=TRUE,A5=1),inputs!$I$13,IF(AND(inputs!$K$3=TRUE,A5=0),inputs!$K$14,IF(C4=inputs!$B$6,inputs!$B$9,P4*EXP(('Equations - Parameters'!$D$7)*(C5^'Equations - Parameters'!$E$7-C4^'Equations - Parameters'!$E$7))))))) -> 607 | Q5: =IF(C5="","",IF(inputs!$J$25=0,0,IF(inputs!$B$30>C5,P5,IF(inputs!$B$30=C5,(P5-(inputs!$C$30*P5)),Q4*EXP(-(-'Equations - Parameters'!$D$7-'Equations - Parameters'!$F$7*inputs!$J$25)*(C5^'Equations - Parameters'!$E$7-C4^'Equations - Parameters'!$E$7)))))) -> 0 | R5: =IF(C5="","",IF(inputs!$J$25=0,0,IF(inputs!$B$31>C5,Q5,IF(inputs!$B$31=C5,(Q5-(inputs!$C$31*Q5)),R4*EXP(-(-'Equations - Parameters'!$D$7-'Equations - Parameters'!$F$7*inputs!$J$25)*(C5^'Equations - Parameters'!$E$7-C4^'Equations - Parameters'!$E$7)))))) -> 0 | S5: =IF(C5="","",IF(inputs!$J$25=0,0,IF(inputs!$B$32>C5,R5,IF(inputs!$B$32=C5,(R5-(inputs!$C$32*R5)),S4*EXP(-(-'Equations - Parameters'!$D$7-'Equations - Parameters'!$F$7*inputs!$J$25)*(C5^'Equations - Parameters'!$E$7-C4^'Equations - Parameters'!$E$7)))))) -> 0 | T5: =IF(C5="","",IF(inputs!$J$25=0,0,IF(inputs!$B$33>C5,S5,IF(inputs!$B$33=C5,(S5-(inputs!$C$33*S5)),T4*EXP(-(-'Equations - Parameters'!$D$7-'Equations - Parameters'!$F$7*inputs!$J$25)*(C5^'Equations - Parameters'!$E$7-C4^'Equations - Parameters'!$E$7)))))) -> 0 | U5: =IF(C5="","",IF(inputs!$I$25=FALSE,0,IF(C5>=inputs!$B$30,EXP('Equations - Parameters'!$B$20+'Equations - Parameters'!$C$20/C5)*O5^('Equations - Parameters'!$D$20+'Equations - Parameters'!$E$20/C5)*Q5^('Equations - Parameters'!$F$20+'Equations - Parameters'!$G$20/C5)+I5+J5,0))) -> 0 | V5: =IF(C5="","",IF(inputs!$I$25=FALSE,0,IF(C5=inputs!$B$30,K5*((P5-Q5)/P5)^'Equations - Parameters'!$F$31,0))) -> 0 | W5: =IF(C5="","",IF(inputs!$I$25=FALSE,0,IF(C5<inputs!$B$30,0,IF(C5=inputs!$B$30,(1-X5/U5),W4*EXP('Equations - Parameters'!$F$34*(C5-C4)))))) -> 0 | X5: =IF(C5="","",IF(inputs!$I$25=FALSE,0,IF(C5<inputs!$B$30,K5,IF(C5=inputs!$B$30,K5-V5,U5*(1-W5))))) -> 0 | Y5: =IF(C5="","",IF(inputs!$I$25=FALSE,0,IF(inputs!$J$30<2,0,IF(C5>=inputs!$B$31,EXP('Equations - Parameters'!$B$20+'Equations - Parameters'!$C$20/C5)*O5^('Equations - Parameters'!$D$20+'Equations - Parameters'!$E$20/C5)*R5^('Equations - Parameters'!$F$20+'Equations - Parameters'!$G$20/C5)+I5+J5,0)))) -> 0 | Z5: =IF(C5="","",IF(inputs!$I$25=FALSE,0,IF(inputs!$J$30<2,0,IF(C5=inputs!$B$31,X5*((Q5-R5)/Q5)^'Equations - Parameters'!$F$31,0)))) -> 0 | AA5: =IF(C5="","",IF(inputs!$I$25=FALSE,0,IF(inputs!$J$30<2,0,IF(C5<inputs!$B$31,0,IF(C5=inputs!$B$31,(1-AB5/Y5),AA4*EXP('Equations - Parameters'!$F$34*(C5-C4))))))) -> 0 | AB5: =IF(C5="","",IF(inputs!$I$25=FALSE,0,IF(inputs!$J$30<2,0,IF(inputs!$I$25=FALSE,0,IF(C5<inputs!$B$31,X5,IF(C5=inputs!$B$31,X5-Z5,Y5*(1-AA5))))))) -> 0 | AC5: =IF(C5="","",IF(inputs!$I$25=FALSE,0,IF(inputs!$J$30<3,0,IF(C5>=inputs!$B$32,EXP('Equations - Parameters'!$B$20+'Equations - Parameters'!$C$20/C5)*O5^('Equations - Parameters'!$D$20+'Equations - Parameters'!$E$20/C5)*S5^('Equations - Parameters'!$F$20+'Equations - Parameters'!$G$20/C5)+I5+J5,0)))) -> 0 | AD5: =IF(C5="","",IF(inputs!$I$25=FALSE,0,IF(inputs!$J$30<3,0,IF($C5=inputs!$B$32,AC5*((R5-S5)/R5)^'Equations - Parameters'!$F$31,0)))) -> 0 | AE5: =IF(C5="","",IF(inputs!$I$25=FALSE,0,IF(inputs!$J$30<3,0,IF(C5<inputs!$B$32,0,IF(C5=inputs!$B$32,(1-AF5/AC5),AE4*EXP('Equations - Parameters'!$F$34*(C5-C4))))))) -> 0 | AF5: =IF(C5="","",IF(inputs!$I$25=FALSE,0,IF(inputs!$J$30<3,0,IF($C5<inputs!$B$32,AB5,IF(C5=inputs!$B$32,AB5-AD5,AC5*(1-AE5)))))) -> 0 | AG5: =IF(C5="","",IF(inputs!$I$25=FALSE,0,IF(inputs!$J$30<4,0,IF(C5>=inputs!$B$33,EXP('Equations - Parameters'!$B$20+'Equations - Parameters'!$C$20/C5)*O5^('Equations - Parameters'!$D$20+'Equations - Parameters'!$E$20/C5)*T5^('Equations - Parameters'!$F$20+'Equations - Parameters'!$G$20/C5)+I5+J5,0)))) -> 0 | AH5: =IF(C5="","",IF(inputs!$I$25=FALSE,0,IF(inputs!$J$30<4,0,IF($C5=inputs!$B$33,AG5*((S5-T5)/S5)^'Equations - Parameters'!$F$31,0)))) -> 0 | AI5: =IF(C5="","",IF(inputs!$I$25=FALSE,0,IF(inputs!$J$30<4,0,IF(C5<inputs!$B$33,0,IF(C5=inputs!$B$33,(1-AJ5/AG5),AI4*EXP('Equations - Parameters'!$F$34*(C5-C4))))))) -> 0 | AJ5: =IF(C5="","",IF(inputs!$I$25=FALSE,0,IF(inputs!$J$30<4,0,IF($C5<inputs!$B$33,AF5,IF(C5=inputs!$B$33,AF5-AH5,AG5*(1-AI5)))))) -> 0 | AK5: 607 | AL5: 0 | AM5: 0 | AN5: 0 | AO5: 0 | AP5: =+IF($C5=0,0,K5) -> 6.460793434e-07 | AQ5: =+IF($C5=0,0,X5) -> 0 | AR5: =+IF($C5=0,0,AB5) -> 0 | AS5: =+IF($C5=0,0,AF5) -> 0 | AT5: =+IF($C5=0,0,AJ5) -> 0 | AU5: 0.0004417584727 | AV5: =IF(C5="","",IF(AL5=0,0,IF(inputs!$I$25=FALSE,0,IF(C5=0,0,2*SQRT(AQ5/(AL5*PI()))*12)))) -> 0 | AW5: =IF($C5="","",IF(AM5=0,0,IF(inputs!$I$25=FALSE,0,IF($C5=0,0,2*SQRT(AR5/(AM5*PI()))*12)))) -> 0 | AX5: =IF($C5="","",IF(AN5=0,0,IF(inputs!$I$25=FALSE,0,IF(inputs!$J$30<3,0,IF(C5=0,0,2*SQRT(AS5/(AN5*PI()))*12))))) -> 0 | AY5: =IF($C5="","",IF(AO5=0,0,IF(inputs!$I$25=FALSE,0,IF(inputs!$J$30<4,0,IF(C5=0,0,2*SQRT(AT5/(AO5*PI()))*12))))) -> 0 | AZ5: 6.218855073e-05 | BA5: 0 | BB5: 0 | BC5: 0 | BD5: 0 | BE5: =IF($C5="","",IF($C5=0,0,IF(P5=0,0,EXP('Equations - Parameters'!$D$38+'Equations - Parameters'!$E$38*LN($O5)+'Equations - Parameters'!$F$38*LN(P5)+'Equations - Parameters'!$G$38*LN(K5/P5))))) -> 1.047873154e-05 | BF5: =IF($C5="","",IF($C5=0,0,IF(Q5=0,0,IF(BA5=0,0,EXP('Equations - Parameters'!$D$38+'Equations - Parameters'!$E$38*LN($O5)+'Equations - Parameters'!$F$38*LN(Q5)+'Equations - Parameters'!$G$38*LN(X5/Q5)))))) -> 0 | BG5: =IF($C5="","",IF($C5=0,0,IF(R5=0,0,IF(BB5=0,0,EXP('Equations - Parameters'!$D$38+'Equations - Parameters'!$E$38*LN($O5)+'Equations - Parameters'!$F$38*LN(R5)+'Equations - Parameters'!$G$38*LN(AB5/R5)))))) -> 0 | BH5: =IF($C5="","",IF($C5=0,0,IF(S5=0,0,IF(BC5=0,0,EXP('Equations - Parameters'!$D$38+'Equations - Parameters'!$E$38*LN($O5)+'Equations - Parameters'!$F$38*LN(S5)+'Equations - Parameters'!$G$38*LN(AF5/S5)))))) -> 0 | BI5: =IF($C5="","",IF($C5=0,0,IF(T5=0,0,IF(BD5=0,0,EXP('Equations - Parameters'!$D$38+'Equations - Parameters'!$E$38*LN($O5)+'Equations - Parameters'!$F$38*LN(T5)+'Equations - Parameters'!$G$38*LN(AJ5/T5)))))) -> 0 | BJ5: =IF($C5="","",IF($C5=0,0,IF(P5=0,0,('Equations - Parameters'!$E$45*LN(AU5)+'Equations - Parameters'!$D$45)*BO5))) -> -3.585637117e-07 | BK5: =IF($C5="","",IF($C5=0,0,IF(Q5=0,0,IF(BP5=0,0,('Equations - Parameters'!$E$45*LN(AV5)+'Equations - Parameters'!$D$45)*BP5)))) -> 0 | BL5: =IF($C5="","",IF($C5=0,0,IF(R5=0,0,IF(BQ5=0,0,('Equations - Parameters'!$E$45*LN(AW5)+'Equations - Parameters'!$D$45)*BQ5)))) -> 0 | BM5: =IF($C5="","",IF($C5=0,0,IF(S5=0,0,IF(BR5=0,0,('Equations - Parameters'!$E$45*LN(AX5)+'Equations - Parameters'!$D$45)*BR5)))) -> 0 | BN5: =IF($C5="","",IF($C5=0,0,IF(T5=0,0,IF(BS5=0,0,('Equations - Parameters'!$E$45*LN(AY5)+'Equations - Parameters'!$D$45)*BS5)))) -> 0 | BO5: =IF($C5="","",EXP('Equations - Parameters'!$D$42)*O5^('Equations - Parameters'!$E$42)*K5^'Equations - Parameters'!$F$42) -> 3.722855507e-07 | BP5: =IF($C5="","",EXP('Equations - Parameters'!$D$42)*$O5^('Equations - Parameters'!$E$42)*X5^'Equations - Parameters'!$F$42) -> 0 | BQ5: =IF($C5="","",EXP('Equations - Parameters'!$D$42)*$O5^('Equations - Parameters'!$E$42)*AB5^'Equations - Parameters'!$F$42) -> 0 | BR5: =IF($C5="","",EXP('Equations - Parameters'!$D$42)*$O5^('Equations - Parameters'!$E$42)*AF5^'Equations - Parameters'!$F$42) -> 0 | BS5: =IF($C5="","",EXP('Equations - Parameters'!$D$42)*$O5^('Equations - Parameters'!$E$42)*AJ5^'Equations - Parameters'!$F$42) -> 0 | BT5: =IF($C5="","",0) -> 0 | BU5: =IF($C5="","",IF(inputs!$I$25=FALSE,0,IF($C5=inputs!$B$30,$C5,0))) -> 0 | BV5: =IF($C5="","",IF(inputs!$I$25=FALSE,0,IF($C5=inputs!$B$31,$C5,0))) -> 0 | BW5: =IF($C5="","",IF(inputs!$I$25=FALSE,0,IF($C5=inputs!$B$32,$C5,0))) -> 0 | BX5: =IF($C5="","",IF(inputs!$I$25=FALSE,0,IF($C5=inputs!$B$33,$C5,0))) -> 0 | BY5: =IF($C5="","",IF($C5=inputs!$B$6,K5,0)) -> 0 | BZ5: =IF($C5="","",IF($C5=inputs!$B$6,X5,V5)) -> 0 | CA5: =IF($C5="","",IF($C5=inputs!$B$6,AB5,Z5)) -> 0 | CB5: =IF($C5="","",IF($C5=inputs!$B$6,AF5,AD5)) -> 0 | CC5: =IF($C5="","",IF($C5=inputs!$B$6,AJ5,AH5)) -> 0 | CD5: 0 | CE5: =IF($C5="","",IF(BU5=0,0,AP5)) -> 0 | CF5: =IF($C5="","",IF(BV5=0,0,AQ5)) -> 0 | CG5: =IF($C5="","",IF(BW5=0,0,AR5)) -> 0 | CH5: =IF($C5="","",IF(BX5=0,0,AS5)) -> 0 | CI5: 0 | CJ5: =IF($C5="","",IF(CE5=0,0,CE5-BZ5)) -> 0 | CK5: 0 | CL5: 0 | CM5: 0 | CN5: =IF($C5="","",IF(BY5=0,0,IF($C5=inputs!$B$6,P5,0))) -> 0 | CO5: =IF($C5="","",IF(BZ5=0,0,IF($C5=inputs!$B$6,Q5,IF($C5=inputs!$B$30,P5-Q5,0)))) -> 0 | CP5: =IF($C5="","",IF(CA5=0,0,IF($C5=inputs!$B$6,R5,IF($C5=inputs!$B$30,P5-Q5,IF($C5=inputs!$B$31,Q5-R5,0))))) -> 0 | CQ5: =IF($C5="","",IF(CB5=0,0,IF($C5=inputs!$B$6,S5,IF($C5=inputs!$B$30,P5-Q5,IF($C5=inputs!$B$31,Q5-R5,IF($C5=inputs!$B$32,R5-S5,0)))))) -> 0 | CR5: =IF($C5="","",IF(CC5=0,0,IF($C5=inputs!$B$6,T5,IF($C5=inputs!$B$30,P5-Q5,IF($C5=inputs!$B$31,Q5-R5,IF($C5=inputs!$B$32,R5-S5,IF($C5=inputs!$B$33,S5-T5,0))))))) -> 0 | CS5: 0 | CT5: =IF($C5="","",IF(BU5=0,0,AK5)) -> 0 | CU5: =IF($C5="","",IF(BV5=0,0,AL5)) -> 0 | CV5: =IF($C5="","",IF(BW5=0,0,AM5)) -> 0 | CW5: =IF($C5="","",IF(BX5=0,0,AN5)) -> 0 | CX5: 0 | CY5: 0 | CZ5: 0 | DA5: 0 | DB5: 0 | DC5: =IF($C5="","",IF(BY5=0,0,IF($C5=inputs!$B$6,BO5,0))) -> 0 | DD5: =IF($C5="","",IF(BZ5=0,0,IF(C5=inputs!$B$6,BP5,IF(C5=inputs!$B$30,(EXP('Equations - Parameters'!$D$42)*V5^('Equations - Parameters'!$E$42)*O5^'Equations - Parameters'!$F$42),0)))) -> 0 | DE5: =IF($C5="","",IF(CA5=0,0,IF(C5=inputs!$B$6,BQ5,IF(C5=inputs!$B$30,EXP('Equations - Parameters'!$D$42)*V5^('Equations - Parameters'!$E$42)*O5^'Equations - Parameters'!$F$42,IF(C5=inputs!$B$31,EXP('Equations - Parameters'!$D$42)*Z5^('Equations - Parameters'!$E$42)*O5^'Equations - Parameters'!$F$42,0))))) -> 0 | DF5: =IF($C5="","",IF(CB5=0,0,IF(C5=inputs!$B$6,BR5,IF(C5=inputs!$B$30,EXP('Equations - Parameters'!$D$42)*V5^('Equations - Parameters'!$E$42)*O5^'Equations - Parameters'!$F$42,IF(C5=inputs!$B$31,EXP('Equations - Parameters'!$D$42)*Z5^('Equations - Parameters'!$E$42)*O5^'Equations - Parameters'!$F$42,IF(C5=inputs!$B$32,EXP('Equations - Parameters'!$D$42)*AD5^('Equations - Parameters'!$E$42)*O5^'Equations - Parameters'!$F$42,0)))))) -> 0 | DG5: =IF($C5="","",IF(CC5=0,0,IF(C5=inputs!$B$6,BS5,IF(C5=inputs!$B$30,EXP('Equations - Parameters'!$D$42)*V5^('Equations - Parameters'!$E$42)*O5^'Equations - Parameters'!$F$42,IF(C5=inputs!$B$31,EXP('Equations - Parameters'!$D$42)*Z5^('Equations - Parameters'!$E$42)*O5^'Equations - Parameters'!$F$42,IF(C5=inputs!$B$32,EXP('Equations - Parameters'!$D$42)*AD5^('Equations - Parameters'!$E$42)*O5^'Equations - Parameters'!$F$42,IF(C5=inputs!$B$33,EXP('Equations - Parameters'!$D$42)*AJ5^('Equations - Parameters'!$E$42)*O5^'Equations - Parameters'!$F$42,0))))))) -> 0 | DH5: 0 | DI5: =IF($C5="","",IF(BU5=0,0,BO5)) -> 0 | DJ5: =IF($C5="","",IF(BV5=0,0,BP5)) -> 0 | DK5: 0 | DL5: 0 | DM5: 0 | DN5: =IF($C5="","",IF(DI5=0,0,DI5-DD5)) -> 0 | DO5: 0 | DP5: 0 | DQ5: 0 | DR5: =IF($C5="","",IF(C5=inputs!$B$6,BJ5,0)) -> 0 | DS5: =IF($C5="","",IF($C5=0,0,IF(DD5=0,0,('Equations - Parameters'!$E$45*LN($AV5)+'Equations - Parameters'!$D$45)*DD5))) -> 0 | DT5: =IF($C5="","",IF($C5=0,0,IF(DE5=0,0,('Equations - Parameters'!$E$45*LN($AV5)+'Equations - Parameters'!$D$45)*DE5))) -> 0 | DU5: =IF($C5="","",IF($C5=0,0,IF(DF5=0,0,('Equations - Parameters'!$E$45*LN($AV5)+'Equations - Parameters'!$D$45)*DF5))) -> 0 | DV5: =IF($C5="","",IF($C5=0,0,IF(DG5=0,0,('Equations - Parameters'!$E$45*LN($AV5)+'Equations - Parameters'!$D$45)*DG5))) -> 0 | DW5: =IF($C5="","",IF(L5=inputs!$B$6,BO5,0)) -> 0 | DX5: 0 | DY5: 0 | DZ5: 0 | EA5: 0 | EB5: 0 | EC5: =IF($C5="","",IF(DX5=0,0,DX5-DS5)) -> 0 | ED5: =IF($C5="","",IF(DY5=0,0,DY5-DT5)) -> 0 | EE5: =IF($C5="","",IF(DZ5=0,0,DZ5-DU5)) -> 0 | EF5: =IF($C5="","",IF(EA5=0,0,EA5-DV5)) -> 0 | EG5: =IF($C5="","",IF(CN5=0,0,2*SQRT(BY5/(CN5*PI()))*12)) -> 0 | EH5: =IF($C5="","",IF(CO5=0,0,2*SQRT(BZ5/(CO5*PI()))*12)) -> 0 | EI5: =IF($C5="","",IF(CP5=0,0,2*SQRT(CA5/(CP5*PI()))*12)) -> 0 | EJ5: =IF($C5="","",IF(CQ5=0,0,2*SQRT(CB5/(CQ5*PI()))*12)) -> 0 | EK5: =IF($C5="","",IF(CR5=0,0,2*SQRT(CC5/(CR5*PI()))*12)) -> 0 | EL5: =IF($C5="","",IF(P5=0,0,IF(C5<2,0,BO5*EXP('Equations - Parameters'!$D$56*('Equations - Parameters'!$H$159/AU5)^'Equations - Parameters'!$E$56-'Equations - Parameters'!$F$56*P5^'Equations - Parameters'!$G$56*('Equations - Parameters'!$G$159/AU5)^'Equations - Parameters'!$H$56)))) -> 0 | EM5: =IF($C5="","",IF(P5=0,0,IF(C5<2,0,BO5*EXP('Equations - Parameters'!$D$56*('Equations - Parameters'!$H$160/AU5)^'Equations - Parameters'!$E$56-'Equations - Parameters'!$F$56*P5^'Equations - Parameters'!$G$56*('Equations - Parameters'!$G$160/AU5)^'Equations - Parameters'!$H$56)-EL5))) -> 0 | EN5: =IF($C5="","",IF(P5=0,0,IF(C5<2,0,BO5*EXP('Equations - Parameters'!$D$56*('Equations - Parameters'!$H$161/AU5)^'Equations - Parameters'!$E$56-'Equations - Parameters'!$F$56*P5^'Equations - Parameters'!$G$56*('Equations - Parameters'!$G$161/AU5)^'Equations - Parameters'!$H$56)-EM5-EL5))) -> 0 | EO5: =IF($C5="","",IF(Q5=0,0,IF(C5<2,0,IF(BP5=0,0,BP5*EXP('Equations - Parameters'!$D$56*('Equations - Parameters'!$H$159/AV5)^'Equations - Parameters'!$E$56-'Equations - Parameters'!$F$56*Q5^'Equations - Parameters'!$G$56*('Equations - Parameters'!$G$159/AV5)^'Equations - Parameters'!$H$56))))) -> 0 | EP5: =IF($C5="","",IF(Q5=0,0,IF(C5<2,0,IF(BP5=0,0,BP5*EXP('Equations - Parameters'!$D$56*('Equations - Parameters'!$H$160/AV5)^'Equations - Parameters'!$E$56-'Equations - Parameters'!$F$56*Q5^'Equations - Parameters'!$G$56*('Equations - Parameters'!$G$160/AV5)^'Equations - Parameters'!$H$56)-EO5)))) -> 0 | EQ5: =IF($C5="","",IF(Q5=0,0,IF(C5<2,0,IF(BP5=0,0,BP5*EXP('Equations - Parameters'!$D$56*('Equations - Parameters'!$H$161/AV5)^'Equations - Parameters'!$E$56-'Equations - Parameters'!$F$56*Q5^'Equations - Parameters'!$G$56*('Equations - Parameters'!$G$161/AV5)^'Equations - Parameters'!$H$56)-EP5-EO5)))) -> 0 | ER5: =IF($C5="","",IF(R5=0,0,IF(C5<2,0,IF(BQ5=0,0,BQ5*EXP('Equations - Parameters'!$D$56*('Equations - Parameters'!$H$159/AW5)^'Equations - Parameters'!$E$56-'Equations - Parameters'!$F$56*R5^'Equations - Parameters'!$G$56*('Equations - Parameters'!$G$159/AW5)^'Equations - Parameters'!$H$56))))) -> 0 | ES5: =IF($C5="","",IF(R5=0,0,IF(C5<2,0,IF(BQ5=0,0,BQ5*EXP('Equations - Parameters'!$D$56*('Equations - Parameters'!$H$160/AW5)^'Equations - Parameters'!$E$56-'Equations - Parameters'!$F$56*R5^'Equations - Parameters'!$G$56*('Equations - Parameters'!$G$160/AW5)^'Equations - Parameters'!$H$56)-ER5)))) -> 0 | ET5: =IF($C5="","",IF(R5=0,0,IF(C5<2,0,IF(BQ5=0,0,BQ5*EXP('Equations - Parameters'!$D$56*('Equations - Parameters'!$H$161/AW5)^'Equations - Parameters'!$E$56-'Equations - Parameters'!$F$56*R5^'Equations - Parameters'!$G$56*('Equations - Parameters'!$G$161/AW5)^'Equations - Parameters'!$H$56)-ES5-ER5)))) -> 0 | EU5: =IF($C5="","",IF(S5=0,0,IF(C5<2,0,IF(BR5=0,0,BR5*EXP('Equations - Parameters'!$D$56*('Equations - Parameters'!$H$159/AX5)^'Equations - Parameters'!$E$56-'Equations - Parameters'!$F$56*S5^'Equations - Parameters'!$G$56*('Equations - Parameters'!$G$159/AX5)^'Equations - Parameters'!$H$56))))) -> 0 | EV5: =IF($C5="","",IF(S5=0,0,IF(C5<2,0,IF(BR5=0,0,BR5*EXP('Equations - Parameters'!$D$56*('Equations - Parameters'!$H$160/AX5)^'Equations - Parameters'!$E$56-'Equations - Parameters'!$F$56*S5^'Equations - Parameters'!$G$56*('Equations - Parameters'!$G$160/AX5)^'Equations - Parameters'!$H$56)-EU5)))) -> 0 | EW5: =IF($C5="","",IF(S5=0,0,IF(C5<2,0,IF(BR5=0,0,BR5*EXP('Equations - Parameters'!$D$56*('Equations - Parameters'!$H$161/AX5)^'Equations - Parameters'!$E$56-'Equations - Parameters'!$F$56*S5^'Equations - Parameters'!$G$56*('Equations - Parameters'!$G$161/AX5)^'Equations - Parameters'!$H$56)-EV5-EU5)))) -> 0 | EX5: =IF($C5="","",IF(T5=0,0,IF(C5<2,0,IF(BS5=0,0,BS5*EXP('Equations - Parameters'!$D$56*('Equations - Parameters'!$H$159/AY5)^'Equations - Parameters'!$E$56-'Equations - Parameters'!$F$56*T5^'Equations - Parameters'!$G$56*('Equations - Parameters'!$G$159/AY5)^'Equations - Parameters'!$H$56))))) -> 0 | EY5: =IF($C5="","",IF(T5=0,0,IF(C5<2,0,IF(BS5=0,0,BS5*EXP('Equations - Parameters'!$D$56*('Equations - Parameters'!$H$160/AY5)^'Equations - Parameters'!$E$56-'Equations - Parameters'!$F$56*T5^'Equations - Parameters'!$G$56*('Equations - Parameters'!$G$160/AY5)^'Equations - Parameters'!$H$56)-EX5)))) -> 0 | EZ5: =IF($C5="","",IF(T5=0,0,IF(C5<2,0,IF(BS5=0,0,BS5*EXP('Equations - Parameters'!$D$56*('Equations - Parameters'!$H$161/AY5)^'Equations - Parameters'!$E$56-'Equations - Parameters'!$F$56*T5^'Equations - Parameters'!$G$56*('Equations - Parameters'!$G$161/AY5)^'Equations - Parameters'!$H$56)-EY5-EX5)))) -> 0 | FA5: =IF($C5="","",IF(DC5=0,0,DC5*EXP('Equations - Parameters'!$D$56*('Equations - Parameters'!$H$159/EG5)^'Equations - Parameters'!$E$56-'Equations - Parameters'!$F$56*CN5^'Equations - Parameters'!$G$56*('Equations - Parameters'!$G$159/EG5)^'Equations - Parameters'!$H$56))) -> 0 | FB5: =IF($C5="","",IF(DC5=0,0,DC5*EXP('Equations - Parameters'!$D$56*('Equations - Parameters'!$H$160/EG5)^'Equations - Parameters'!$E$56-'Equations - Parameters'!$F$56*CN5^'Equations - Parameters'!$G$56*('Equations - Parameters'!$G$160/EG5)^'Equations - Parameters'!$H$56)-FA5)) -> 0 | FC5: =IF($C5="","",IF(DC5=0,0,DC5*EXP('Equations - Parameters'!$D$56*('Equations - Parameters'!$H$161/EG5)^'Equations - Parameters'!$E$56-'Equations - Parameters'!$F$56*CN5^'Equations - Parameters'!$G$56*('Equations - Parameters'!$G$161/EG5)^'Equations - Parameters'!$H$56)-FB5-FA5)) -> 0 | FD5: =IF($C5="","",IF(DD5=0,0,DD5*EXP('Equations - Parameters'!$D$56*('Equations - Parameters'!$H$159/EH5)^'Equations - Parameters'!$E$56-'Equations - Parameters'!$F$56*CO5^'Equations - Parameters'!$G$56*('Equations - Parameters'!$G$159/EH5)^'Equations - Parameters'!$H$56))) -> 0 | FE5: =IF($C5="","",IF(DD5=0,0,DD5*EXP('Equations - Parameters'!$D$56*('Equations - Parameters'!$H$160/EH5)^'Equations - Parameters'!$E$56-'Equations - Parameters'!$F$56*CO5^'Equations - Parameters'!$G$56*('Equations - Parameters'!$G$160/EH5)^'Equations - Parameters'!$H$56)-FD5)) -> 0 | FF5: =IF($C5="","",IF(DD5=0,0,DD5*EXP('Equations - Parameters'!$D$56*('Equations - Parameters'!$H$161/EH5)^'Equations - Parameters'!$E$56-'Equations - Parameters'!$F$56*CO5^'Equations - Parameters'!$G$56*('Equations - Parameters'!$G$161/EH5)^'Equations - Parameters'!$H$56)-FE5-FD5)) -> 0 | FG5: =IF($C5="","",IF(DE5=0,0,DE5*EXP('Equations - Parameters'!$D$56*('Equations - Parameters'!$H$159/EI5)^'Equations - Parameters'!$E$56-'Equations - Parameters'!$F$56*CP5^'Equations - Parameters'!$G$56*('Equations - Parameters'!$G$159/EI5)^'Equations - Parameters'!$H$56))) -> 0 | FH5: =IF($C5="","",IF(DE5=0,0,DE5*EXP('Equations - Parameters'!$D$56*('Equations - Parameters'!$H$160/EI5)^'Equations - Parameters'!$E$56-'Equations - Parameters'!$F$56*CP5^'Equations - Parameters'!$G$56*('Equations - Parameters'!$G$160/EI5)^'Equations - Parameters'!$H$56)-FG5)) -> 0 | FI5: =IF($C5="","",IF(DE5=0,0,DE5*EXP('Equations - Parameters'!$D$56*('Equations - Parameters'!$H$161/EI5)^'Equations - Parameters'!$E$56-'Equations - Parameters'!$F$56*CP5^'Equations - Parameters'!$G$56*('Equations - Parameters'!$G$161/EI5)^'Equations - Parameters'!$H$56)-FH5-FG5)) -> 0 | FJ5: =IF($C5="","",IF(DF5=0,0,DF5*EXP('Equations - Parameters'!$D$56*('Equations - Parameters'!$H$159/EJ5)^'Equations - Parameters'!$E$56-'Equations - Parameters'!$F$56*CQ5^'Equations - Parameters'!$G$56*('Equations - Parameters'!$G$159/EJ5)^'Equations - Parameters'!$H$56))) -> 0 | FK5: =IF($C5="","",IF(DF5=0,0,DF5*EXP('Equations - Parameters'!$D$56*('Equations - Parameters'!$H$160/EJ5)^'Equations - Parameters'!$E$56-'Equations - Parameters'!$F$56*CQ5^'Equations - Parameters'!$G$56*('Equations - Parameters'!$G$160/EJ5)^'Equations - Parameters'!$H$56)-FJ5)) -> 0 | FL5: =IF($C5="","",IF(DF5=0,0,DF5*EXP('Equations - Parameters'!$D$56*('Equations - Parameters'!$H$161/EJ5)^'Equations - Parameters'!$E$56-'Equations - Parameters'!$F$56*CQ5^'Equations - Parameters'!$G$56*('Equations - Parameters'!$G$161/EJ5)^'Equations - Parameters'!$H$56)-FK5-FJ5)) -> 0 | FM5: =IF($C5="","",IF(DG5=0,0,DG5*EXP('Equations - Parameters'!$D$56*('Equations - Parameters'!$H$159/EK5)^'Equations - Parameters'!$E$56-'Equations - Parameters'!$F$56*CR5^'Equations - Parameters'!$G$56*('Equations - Parameters'!$G$159/EK5)^'Equations - Parameters'!$H$56))) -> 0 | FN5: =IF($C5="","",IF(DG5=0,0,DG5*EXP('Equations - Parameters'!$D$56*('Equations - Parameters'!$H$160/EK5)^'Equations - Parameters'!$E$56-'Equations - Parameters'!$F$56*CR5^'Equations - Parameters'!$G$56*('Equations - Parameters'!$G$160/EK5)^'Equations - Parameters'!$H$56)-FM5)) -> 0 | FO5: =IF($C5="","",IF(DG5=0,0,DG5*EXP('Equations - Parameters'!$D$56*('Equations - Parameters'!$H$161/EK5)^'Equations - Parameters'!$E$56-'Equations - Parameters'!$F$56*CR5^'Equations - Parameters'!$G$56*('Equations - Parameters'!$G$161/EK5)^'Equations - Parameters'!$H$56)-FN5-FM5)) -> 0 | FP5: =IF($C5="","",IF(P5=0,0,IF(C5<2,0,BJ5*EXP('Equations - Parameters'!$D$56*('Equations - Parameters'!$H$159/AU5)^'Equations - Parameters'!$E$56-'Equations - Parameters'!$F$56*P5^'Equations - Parameters'!$G$56*('Equations - Parameters'!$G$159/AU5)^'Equations - Parameters'!$H$56)))) -> 0 | FQ5: =IF($C5="","",IF(P5=0,0,IF(C5<2,0,BJ5*EXP('Equations - Parameters'!$D$56*('Equations - Parameters'!$H$160/AU5)^'Equations - Parameters'!$E$56-'Equations - Parameters'!$F$56*P5^'Equations - Parameters'!$G$56*('Equations - Parameters'!$G$160/AU5)^'Equations - Parameters'!$H$56)-FP5))) -> 0 | FR5: =IF($C5="","",IF(P5=0,0,IF(C5<2,0,BJ5*EXP('Equations - Parameters'!$D$56*('Equations - Parameters'!$H$161/AU5)^'Equations - Parameters'!$E$56-'Equations - Parameters'!$F$56*P5^'Equations - Parameters'!$G$56*('Equations - Parameters'!$G$161/AU5)^'Equations - Parameters'!$H$56)-FQ5-FP5))) -> 0 | FS5: =IF($C5="","",IF(Q5=0,0,IF(C5<2,0,IF(BK5=0,0,BK5*EXP('Equations - Parameters'!$D$56*('Equations - Parameters'!$H$159/AV5)^'Equations - Parameters'!$E$56-'Equations - Parameters'!$F$56*Q5^'Equations - Parameters'!$G$56*('Equations - Parameters'!$G$159/AV5)^'Equations - Parameters'!$H$56))))) -> 0 | FT5: =IF($C5="","",IF(Q5=0,0,IF(C5<2,0,IF(BK5=0,0,BK5*EXP('Equations - Parameters'!$D$56*('Equations - Parameters'!$H$160/AV5)^'Equations - Parameters'!$E$56-'Equations - Parameters'!$F$56*Q5^'Equations - Parameters'!$G$56*('Equations - Parameters'!$G$160/AV5)^'Equations - Parameters'!$H$56)-FS5)))) -> 0 | FU5: =IF($C5="","",IF(Q5=0,0,IF(C5<2,0,IF(BK5=0,0,BK5*EXP('Equations - Parameters'!$D$56*('Equations - Parameters'!$H$161/AV5)^'Equations - Parameters'!$E$56-'Equations - Parameters'!$F$56*Q5^'Equations - Parameters'!$G$56*('Equations - Parameters'!$G$161/AV5)^'Equations - Parameters'!$H$56)-FT5-FS5)))) -> 0 | FV5: =IF($C5="","",IF(R5=0,0,IF(C5<2,0,IF(BL5=0,0,BL5*EXP('Equations - Parameters'!$D$56*('Equations - Parameters'!$H$159/AW5)^'Equations - Parameters'!$E$56-'Equations - Parameters'!$F$56*R5^'Equations - Parameters'!$G$56*('Equations - Parameters'!$G$159/AW5)^'Equations - Parameters'!$H$56))))) -> 0 | FW5: =IF($C5="","",IF(R5=0,0,IF(C5<2,0,IF(BL5=0,0,BL5*EXP('Equations - Parameters'!$D$56*('Equations - Parameters'!$H$160/AW5)^'Equations - Parameters'!$E$56-'Equations - Parameters'!$F$56*R5^'Equations - Parameters'!$G$56*('Equations - Parameters'!$G$160/AW5)^'Equations - Parameters'!$H$56)-FV5)))) -> 0 | FX5: =IF($C5="","",IF(R5=0,0,IF(C5<2,0,IF(BL5=0,0,BL5*EXP('Equations - Parameters'!$D$56*('Equations - Parameters'!$H$161/AW5)^'Equations - Parameters'!$E$56-'Equations - Parameters'!$F$56*R5^'Equations - Parameters'!$G$56*('Equations - Parameters'!$G$161/AW5)^'Equations - Parameters'!$H$56)-FW5-FV5)))) -> 0 | FY5: =IF($C5="","",IF(S5=0,0,IF(C5<2,0,IF(BM5=0,0,BM5*EXP('Equations - Parameters'!$D$56*('Equations - Parameters'!$H$159/AX5)^'Equations - Parameters'!$E$56-'Equations - Parameters'!$F$56*S5^'Equations - Parameters'!$G$56*('Equations - Parameters'!$G$159/AX5)^'Equations - Parameters'!$H$56))))) -> 0 | FZ5: =IF($C5="","",IF(S5=0,0,IF(C5<2,0,IF(BM5=0,0,BM5*EXP('Equations - Parameters'!$D$56*('Equations - Parameters'!$H$160/AX5)^'Equations - Parameters'!$E$56-'Equations - Parameters'!$F$56*S5^'Equations - Parameters'!$G$56*('Equations - Parameters'!$G$160/AX5)^'Equations - Parameters'!$H$56)-FY5)))) -> 0 | GA5: =IF($C5="","",IF(S5=0,0,IF(C5<2,0,IF(BM5=0,0,BM5*EXP('Equations - Parameters'!$D$56*('Equations - Parameters'!$H$161/AX5)^'Equations - Parameters'!$E$56-'Equations - Parameters'!$F$56*S5^'Equations - Parameters'!$G$56*('Equations - Parameters'!$G$161/AX5)^'Equations - Parameters'!$H$56)-FZ5-FY5)))) -> 0 | GB5: =IF($C5="","",IF(T5=0,0,IF(C5<2,0,IF(BN5=0,0,BN5*EXP('Equations - Parameters'!$D$56*('Equations - Parameters'!$H$159/AY5)^'Equations - Parameters'!$E$56-'Equations - Parameters'!$F$56*T5^'Equations - Parameters'!$G$56*('Equations - Parameters'!$G$159/AY5)^'Equations - Parameters'!$H$56))))) -> 0 | GC5: =IF($C5="","",IF(T5=0,0,IF(C5<2,0,IF(BN5=0,0,BN5*EXP('Equations - Parameters'!$D$56*('Equations - Parameters'!$H$160/AY5)^'Equations - Parameters'!$E$56-'Equations - Parameters'!$F$56*T5^'Equations - Parameters'!$G$56*('Equations - Parameters'!$G$160/AY5)^'Equations - Parameters'!$H$56)-GB5)))) -> 0 | GD5: =IF($C5="","",IF(T5=0,0,IF(C5<2,0,IF(BN5=0,0,BN5*EXP('Equations - Parameters'!$D$56*('Equations - Parameters'!$H$161/AY5)^'Equations - Parameters'!$E$56-'Equations - Parameters'!$F$56*T5^'Equations - Parameters'!$G$56*('Equations - Parameters'!$G$161/AY5)^'Equations - Parameters'!$H$56)-GC5-GB5)))) -> 0 | GE5: =IF($C5="","",IF(DR5=0,0,DR5*EXP('Equations - Parameters'!$D$56*('Equations - Parameters'!$H$159/EG5)^'Equations - Parameters'!$E$56-'Equations - Parameters'!$F$56*CN5^'Equations - Parameters'!$G$56*('Equations - Parameters'!$G$159/EG5)^'Equations - Parameters'!$H$56))) -> 0 | GF5: =IF($C5="","",IF(DR5=0,0,DR5*EXP('Equations - Parameters'!$D$56*('Equations - Parameters'!$H$160/EG5)^'Equations - Parameters'!$E$56-'Equations - Parameters'!$F$56*CN5^'Equations - Parameters'!$G$56*('Equations - Parameters'!$G$160/EG5)^'Equations - Parameters'!$H$56)-GE5)) -> 0 | GG5: =IF($C5="","",IF(DR5=0,0,DR5*EXP('Equations - Parameters'!$D$56*('Equations - Parameters'!$H$161/EG5)^'Equations - Parameters'!$E$56-'Equations - Parameters'!$F$56*CN5^'Equations - Parameters'!$G$56*('Equations - Parameters'!$G$161/EG5)^'Equations - Parameters'!$H$56)-GF5-GE5)) -> 0 | GH5: =IF($C5="","",IF(DS5=0,0,DS5*EXP('Equations - Parameters'!$D$56*('Equations - Parameters'!$H$159/EH5)^'Equations - Parameters'!$E$56-'Equations - Parameters'!$F$56*CO5^'Equations - Parameters'!$G$56*('Equations - Parameters'!$G$159/EH5)^'Equations - Parameters'!$H$56))) -> 0 | GI5: =IF($C5="","",IF(DS5=0,0,DS5*EXP('Equations - Parameters'!$D$56*('Equations - Parameters'!$H$160/EH5)^'Equations - Parameters'!$E$56-'Equations - Parameters'!$F$56*CO5^'Equations - Parameters'!$G$56*('Equations - Parameters'!$G$160/EH5)^'Equations - Parameters'!$H$56)-GH5)) -> 0 | GJ5: =IF($C5="","",IF(DS5=0,0,DS5*EXP('Equations - Parameters'!$D$56*('Equations - Parameters'!$H$161/EH5)^'Equations - Parameters'!$E$56-'Equations - Parameters'!$F$56*CO5^'Equations - Parameters'!$G$56*('Equations - Parameters'!$G$161/EH5)^'Equations - Parameters'!$H$56)-GI5-GH5)) -> 0 | GK5: =IF($C5="","",IF(DT5=0,0,DT5*EXP('Equations - Parameters'!$D$56*('Equations - Parameters'!$H$159/EI5)^'Equations - Parameters'!$E$56-'Equations - Parameters'!$F$56*CP5^'Equations - Parameters'!$G$56*('Equations - Parameters'!$G$159/EI5)^'Equations - Parameters'!$H$56))) -> 0 | GL5: =IF($C5="","",IF(DT5=0,0,DT5*EXP('Equations - Parameters'!$D$56*('Equations - Parameters'!$H$160/EI5)^'Equations - Parameters'!$E$56-'Equations - Parameters'!$F$56*CP5^'Equations - Parameters'!$G$56*('Equations - Parameters'!$G$160/EI5)^'Equations - Parameters'!$H$56)-GK5)) -> 0 | GM5: =IF($C5="","",IF(DT5=0,0,DT5*EXP('Equations - Parameters'!$D$56*('Equations - Parameters'!$H$161/EI5)^'Equations - Parameters'!$E$56-'Equations - Parameters'!$F$56*CP5^'Equations - Parameters'!$G$56*('Equations - Parameters'!$G$161/EI5)^'Equations - Parameters'!$H$56)-GL5-GK5)) -> 0 | GN5: =IF($C5="","",IF(DU5=0,0,DU5*EXP('Equations - Parameters'!$D$56*('Equations - Parameters'!$H$159/EJ5)^'Equations - Parameters'!$E$56-'Equations - Parameters'!$F$56*CQ5^'Equations - Parameters'!$G$56*('Equations - Parameters'!$G$159/EJ5)^'Equations - Parameters'!$H$56))) -> 0 | GO5: =IF($C5="","",IF(DU5=0,0,DU5*EXP('Equations - Parameters'!$D$56*('Equations - Parameters'!$H$160/EJ5)^'Equations - Parameters'!$E$56-'Equations - Parameters'!$F$56*CQ5^'Equations - Parameters'!$G$56*('Equations - Parameters'!$G$160/EJ5)^'Equations - Parameters'!$H$56)-GN5)) -> 0 | GP5: =IF($C5="","",IF(DU5=0,0,DU5*EXP('Equations - Parameters'!$D$56*('Equations - Parameters'!$H$161/EJ5)^'Equations - Parameters'!$E$56-'Equations - Parameters'!$F$56*CQ5^'Equations - Parameters'!$G$56*('Equations - Parameters'!$G$161/EJ5)^'Equations - Parameters'!$H$56)-GO5-GN5)) -> 0 | GQ5: =IF($C5="","",IF(DV5=0,0,DV5*EXP('Equations - Parameters'!$D$56*('Equations - Parameters'!$H$159/EK5)^'Equations - Parameters'!$E$56-'Equations - Parameters'!$F$56*CR5^'Equations - Parameters'!$G$56*('Equations - Parameters'!$G$159/EK5)^'Equations - Parameters'!$H$56))) -> 0 | GR5: =IF($C5="","",IF(DV5=0,0,DV5*EXP('Equations - Parameters'!$D$56*('Equations - Parameters'!$H$160/EK5)^'Equations - Parameters'!$E$56-'Equations - Parameters'!$F$56*CR5^'Equations - Parameters'!$G$56*('Equations - Parameters'!$G$160/EK5)^'Equations - Parameters'!$H$56)-GQ5)) -> 0 | GS5: =IF($C5="","",IF(DV5=0,0,DV5*EXP('Equations - Parameters'!$D$56*('Equations - Parameters'!$H$161/EK5)^'Equations - Parameters'!$E$56-'Equations - Parameters'!$F$56*CR5^'Equations - Parameters'!$G$56*('Equations - Parameters'!$G$161/EK5)^'Equations - Parameters'!$H$56)-GR5-GQ5)) -> 0
A6: =+A5+1 -> 2 | B6: =+IF(AND(inputs!$I$19=FALSE,A6+inputs!$K$5-1>inputs!$B$6),"",IF(AND(inputs!$K$2=TRUE,A6<=inputs!$B$6),1,IF(AND(inputs!$K$3=TRUE,A6+inputs!$K$5<=inputs!$B$6),1,IF(inputs!$K$2=TRUE,ROUNDDOWN((A6-1)/(inputs!$B$6),0)+1,ROUNDDOWN((A6+inputs!$K$5-1)/(inputs!$B$6),0)+1)))) -> 1 | C6: =+IF(B6="","",IF(AND(inputs!$I$19=FALSE,A6+inputs!$K$5-1>inputs!$B$6),"",IF(C5=inputs!$B$6,1,IF(AND(inputs!$K$2=TRUE,A6=0),0,IF(AND(inputs!$K$3=TRUE,A6=0),inputs!$K$5,IF(C5=inputs!$B$6,0,C5+1)))))) -> 2 | D6: =IF(A6>25,"",IF(A6="","",'Equations - Parameters'!$B$12*inputs!$K$6*(1-EXP('Equations - Parameters'!$C$12*A6))^'Equations - Parameters'!$D$12)) -> 2.828665487 | E6: =IF(A6>25,"",IF(A6>=inputs!$J$20,('Equations - Parameters'!$D$16*inputs!$J$17+'Equations - Parameters'!$E$16*inputs!$J$18)*(A6-inputs!$J$20)*EXP(-(A6-inputs!$J$20)*('Equations - Parameters'!$F$16*inputs!$J$17+'Equations - Parameters'!$G$16*inputs!$J$18)),0)+IF(A6>=inputs!$J$21,('Equations - Parameters'!$D$16*inputs!$J$17+'Equations - Parameters'!$E$16*inputs!$J$18)*(A6-inputs!$J$21)*EXP(-(A6-inputs!$J$21)*('Equations - Parameters'!$F$16*inputs!$J$17+'Equations - Parameters'!$G$16*inputs!$J$18)),0)+IF(A6>=inputs!$J$22,('Equations - Parameters'!$D$16*inputs!$J$17+'Equations - Parameters'!$E$16*inputs!$J$18)*(A6-inputs!$J$22)*EXP(-(A6-inputs!$J$22)*('Equations - Parameters'!$F$16*inputs!$J$17+'Equations - Parameters'!$G$16*inputs!$J$18)),0)+IF(A6>=inputs!$J$23,('Equations - Parameters'!$D$16*inputs!$J$17+'Equations - Parameters'!$E$16*inputs!$J$18)*(A6-inputs!$J$23)*EXP(-(A6-inputs!$J$23)*('Equations - Parameters'!$F$16*inputs!$J$17+'Equations - Parameters'!$G$16*inputs!$J$18)),0)) -> 0 | F6: =IF(A6>25,"",('Equations - Parameters'!$E$12*0+'Equations - Parameters'!$F$12*inputs!$J$8+'Equations - Parameters'!$G$12*inputs!$J$9+'Equations - Parameters'!$H$12*inputs!$J$10*inputs!$J$8)*A6*EXP('Equations - Parameters'!$I$12*A6)) -> 0 | G6: 2.828665487 | H6: =IF(C6="","",IF(AND(inputs!$K$2=TRUE,A6=0),0,IF(AND(inputs!$K$3=TRUE,A6=0),inputs!$K$15,(IF(C6=0,0,IF(AND(inputs!$K$3=TRUE, B5=1), EXP( LN(H5) + 'Equations - Parameters'!$C$28*(1/C6 - 1/C5) + ('Equations - Parameters'!$D$28*(LN(L6)-LN(L5))) + ('Equations - Parameters'!$E$28*(LN(P6)-LN(P5))) + 'Equations - Parameters'!$F$28*(LN(L6)/C6 - LN(L5)/C5) + 'Equations - Parameters'!$G$28*(LN(P6)/C6 - LN(P5)/C5) ), EXP('Equations - Parameters'!$B$20+'Equations - Parameters'!$C$20/C6)*L6^('Equations - Parameters'!$D$20+'Equations - Parameters'!$E$20/C6)*P6^('Equations - Parameters'!$F$20+'Equations - Parameters'!$G$20/C6))))))) -> 0.04275584764 | I6: =IF(C6="","",IF($C6>=inputs!$J$20,('Equations - Parameters'!$C$24*inputs!$J$17+'Equations - Parameters'!$D$24*inputs!$J$18)*($C6-inputs!$J$20)*EXP(-($C6-inputs!$J$20)*('Equations - Parameters'!$E$24*inputs!$J$17+'Equations - Parameters'!$F$24*inputs!$J$18+'Equations - Parameters'!$G$24*inputs!$J$3+'Equations - Parameters'!$H$24*inputs!$J$2)),0)+IF($C6>=inputs!$J$21,('Equations - Parameters'!$C$24*inputs!$J$17+'Equations - Parameters'!$D$24*inputs!$J$18)*($C6-inputs!$J$21)*EXP(-($C6-inputs!$J$21)*('Equations - Parameters'!$E$24*inputs!$J$17+'Equations - Parameters'!$F$24*inputs!$J$18+'Equations - Parameters'!$G$24*inputs!$J$3+'Equations - Parameters'!$H$24*inputs!$J$2)),0)+IF($C6>=inputs!$J$22,('Equations - Parameters'!$C$24*inputs!$J$17+'Equations - Parameters'!$D$24*inputs!$J$18)*($C6-inputs!$J$22)*EXP(-($C6-inputs!$J$22)*('Equations - Parameters'!$E$24*inputs!$J$17+'Equations - Parameters'!$F$24*inputs!$J$18+'Equations - Parameters'!$G$24*inputs!$J$3+'Equations - Parameters'!$H$24*inputs!$J$2)),0)+IF($C6>=inputs!$J$23,('Equations - Parameters'!$C$24*inputs!$J$17+'Equations - Parameters'!$D$24*inputs!$J$18)*($C6-inputs!$J$23)*EXP(-($C6-inputs!$J$23)*('Equations - Parameters'!$E$24*inputs!$J$17+'Equations - Parameters'!$F$24*inputs!$J$18+'Equations - Parameters'!$G$24*inputs!$J$3+'Equations - Parameters'!$H$24*inputs!$J$2)),0)) -> 0 | J6: =IF(C6="","",IF(C6=0,0,('Equations - Parameters'!$H$20*0+'Equations - Parameters'!$I$20*inputs!$J$9)*C6*EXP('Equations - Parameters'!$J$20*C6))) -> 0 | K6: 0.04275584764 | L6: =IF(C6="","",IF(AND(inputs!$K$2=TRUE,A6=0),0,IF(AND(inputs!$K$3=TRUE,A6=0),inputs!$K$13,(IF(C6=0,0,'Equations - Parameters'!$B$12*inputs!$K$6*(1-EXP('Equations - Parameters'!$C$12*C6))^'Equations - Parameters'!$D$12))))) -> 2.828665487 | M6: =IF(C6="","",IF(C6>=inputs!$J$20,('Equations - Parameters'!$D$16*inputs!$J$17+'Equations - Parameters'!$E$16*inputs!$J$18)*(C6-inputs!$J$20)*EXP(-(C6-inputs!$J$20)*('Equations - Parameters'!$F$16*inputs!$J$17+'Equations - Parameters'!$G$16*inputs!$J$18)),0)+IF(C6>=inputs!$J$21,('Equations - Parameters'!$D$16*inputs!$J$17+'Equations - Parameters'!$E$16*inputs!$J$18)*(C6-inputs!$J$21)*EXP(-(C6-inputs!$J$21)*('Equations - Parameters'!$F$16*inputs!$J$17+'Equations - Parameters'!$G$16*inputs!$J$18)),0)+IF(C6>=inputs!$J$22,('Equations - Parameters'!$D$16*inputs!$J$17+'Equations - Parameters'!$E$16*inputs!$J$18)*(C6-inputs!$J$22)*EXP(-(C6-inputs!$J$22)*('Equations - Parameters'!$F$16*inputs!$J$17+'Equations - Parameters'!$G$16*inputs!$J$18)),0)+IF(C6>=inputs!$J$23,('Equations - Parameters'!$D$16*inputs!$J$17+'Equations - Parameters'!$E$16*inputs!$J$18)*(C6-inputs!$J$23)*EXP(-(C6-inputs!$J$23)*('Equations - Parameters'!$F$16*inputs!$J$17+'Equations - Parameters'!$G$16*inputs!$J$18)),0)) -> 0 | N6: =IF(C6="","",('Equations - Parameters'!$E$12*0+'Equations - Parameters'!$F$12*inputs!$J$8+'Equations - Parameters'!$G$12*inputs!$J$9+'Equations - Parameters'!$H$12*inputs!$J$10*inputs!$J$8)*C6*EXP('Equations - Parameters'!$I$12*C6)) -> 0 | O6: 2.828665487 | P6: =IF(C6="","",IF(AND(inputs!$K$2=TRUE,A6=0),0,IF(AND(inputs!$K$2=TRUE,A6=1),inputs!$I$13,IF(AND(inputs!$K$3=TRUE,A6=0),inputs!$K$14,IF(C5=inputs!$B$6,inputs!$B$9,P5*EXP(('Equations - Parameters'!$D$7)*(C6^'Equations - Parameters'!$E$7-C5^'Equations - Parameters'!$E$7))))))) -> 603.1787293 | Q6: =IF(C6="","",IF(inputs!$J$25=0,0,IF(inputs!$B$30>C6,P6,IF(inputs!$B$30=C6,(P6-(inputs!$C$30*P6)),Q5*EXP(-(-'Equations - Parameters'!$D$7-'Equations - Parameters'!$F$7*inputs!$J$25)*(C6^'Equations - Parameters'!$E$7-C5^'Equations - Parameters'!$E$7)))))) -> 0 | R6: =IF(C6="","",IF(inputs!$J$25=0,0,IF(inputs!$B$31>C6,Q6,IF(inputs!$B$31=C6,(Q6-(inputs!$C$31*Q6)),R5*EXP(-(-'Equations - Parameters'!$D$7-'Equations - Parameters'!$F$7*inputs!$J$25)*(C6^'Equations - Parameters'!$E$7-C5^'Equations - Parameters'!$E$7)))))) -> 0 | S6: =IF(C6="","",IF(inputs!$J$25=0,0,IF(inputs!$B$32>C6,R6,IF(inputs!$B$32=C6,(R6-(inputs!$C$32*R6)),S5*EXP(-(-'Equations - Parameters'!$D$7-'Equations - Parameters'!$F$7*inputs!$J$25)*(C6^'Equations - Parameters'!$E$7-C5^'Equations - Parameters'!$E$7)))))) -> 0 | T6: =IF(C6="","",IF(inputs!$J$25=0,0,IF(inputs!$B$33>C6,S6,IF(inputs!$B$33=C6,(S6-(inputs!$C$33*S6)),T5*EXP(-(-'Equations - Parameters'!$D$7-'Equations - Parameters'!$F$7*inputs!$J$25)*(C6^'Equations - Parameters'!$E$7-C5^'Equations - Parameters'!$E$7)))))) -> 0 | U6: =IF(C6="","",IF(inputs!$I$25=FALSE,0,IF(C6>=inputs!$B$30,EXP('Equations - Parameters'!$B$20+'Equations - Parameters'!$C$20/C6)*O6^('Equations - Parameters'!$D$20+'Equations - Parameters'!$E$20/C6)*Q6^('Equations - Parameters'!$F$20+'Equations - Parameters'!$G$20/C6)+I6+J6,0))) -> 0 | V6: =IF(C6="","",IF(inputs!$I$25=FALSE,0,IF(C6=inputs!$B$30,K6*((P6-Q6)/P6)^'Equations - Parameters'!$F$31,0))) -> 0 | W6: =IF(C6="","",IF(inputs!$I$25=FALSE,0,IF(C6<inputs!$B$30,0,IF(C6=inputs!$B$30,(1-X6/U6),W5*EXP('Equations - Parameters'!$F$34*(C6-C5)))))) -> 0 | X6: =IF(C6="","",IF(inputs!$I$25=FALSE,0,IF(C6<inputs!$B$30,K6,IF(C6=inputs!$B$30,K6-V6,U6*(1-W6))))) -> 0 | Y6: =IF(C6="","",IF(inputs!$I$25=FALSE,0,IF(inputs!$J$30<2,0,IF(C6>=inputs!$B$31,EXP('Equations - Parameters'!$B$20+'Equations - Parameters'!$C$20/C6)*O6^('Equations - Parameters'!$D$20+'Equations - Parameters'!$E$20/C6)*R6^('Equations - Parameters'!$F$20+'Equations - Parameters'!$G$20/C6)+I6+J6,0)))) -> 0 | Z6: =IF(C6="","",IF(inputs!$I$25=FALSE,0,IF(inputs!$J$30<2,0,IF(C6=inputs!$B$31,X6*((Q6-R6)/Q6)^'Equations - Parameters'!$F$31,0)))) -> 0 | AA6: =IF(C6="","",IF(inputs!$I$25=FALSE,0,IF(inputs!$J$30<2,0,IF(C6<inputs!$B$31,0,IF(C6=inputs!$B$31,(1-AB6/Y6),AA5*EXP('Equations - Parameters'!$F$34*(C6-C5))))))) -> 0 | AB6: =IF(C6="","",IF(inputs!$I$25=FALSE,0,IF(inputs!$J$30<2,0,IF(inputs!$I$25=FALSE,0,IF(C6<inputs!$B$31,X6,IF(C6=inputs!$B$31,X6-Z6,Y6*(1-AA6))))))) -> 0 | AC6: =IF(C6="","",IF(inputs!$I$25=FALSE,0,IF(inputs!$J$30<3,0,IF(C6>=inputs!$B$32,EXP('Equations - Parameters'!$B$20+'Equations - Parameters'!$C$20/C6)*O6^('Equations - Parameters'!$D$20+'Equations - Parameters'!$E$20/C6)*S6^('Equations - Parameters'!$F$20+'Equations - Parameters'!$G$20/C6)+I6+J6,0)))) -> 0 | AD6: =IF(C6="","",IF(inputs!$I$25=FALSE,0,IF(inputs!$J$30<3,0,IF($C6=inputs!$B$32,AC6*((R6-S6)/R6)^'Equations - Parameters'!$F$31,0)))) -> 0 | AE6: =IF(C6="","",IF(inputs!$I$25=FALSE,0,IF(inputs!$J$30<3,0,IF(C6<inputs!$B$32,0,IF(C6=inputs!$B$32,(1-AF6/AC6),AE5*EXP('Equations - Parameters'!$F$34*(C6-C5))))))) -> 0 | AF6: =IF(C6="","",IF(inputs!$I$25=FALSE,0,IF(inputs!$J$30<3,0,IF($C6<inputs!$B$32,AB6,IF(C6=inputs!$B$32,AB6-AD6,AC6*(1-AE6)))))) -> 0 | AG6: =IF(C6="","",IF(inputs!$I$25=FALSE,0,IF(inputs!$J$30<4,0,IF(C6>=inputs!$B$33,EXP('Equations - Parameters'!$B$20+'Equations - Parameters'!$C$20/C6)*O6^('Equations - Parameters'!$D$20+'Equations - Parameters'!$E$20/C6)*T6^('Equations - Parameters'!$F$20+'Equations - Parameters'!$G$20/C6)+I6+J6,0)))) -> 0 | AH6: =IF(C6="","",IF(inputs!$I$25=FALSE,0,IF(inputs!$J$30<4,0,IF($C6=inputs!$B$33,AG6*((S6-T6)/S6)^'Equations - Parameters'!$F$31,0)))) -> 0 | AI6: =IF(C6="","",IF(inputs!$I$25=FALSE,0,IF(inputs!$J$30<4,0,IF(C6<inputs!$B$33,0,IF(C6=inputs!$B$33,(1-AJ6/AG6),AI5*EXP('Equations - Parameters'!$F$34*(C6-C5))))))) -> 0 | AJ6: =IF(C6="","",IF(inputs!$I$25=FALSE,0,IF(inputs!$J$30<4,0,IF($C6<inputs!$B$33,AF6,IF(C6=inputs!$B$33,AF6-AH6,AG6*(1-AI6)))))) -> 0 | AK6: 603.1787293 | AL6: 0 | AM6: 0 | AN6: 0 | AO6: 0 | AP6: 0.04275584764 | AQ6: 0 | AR6: 0 | AS6: 0 | AT6: 0 | AU6: 0.1140016289 | AV6: =IF(C6="","",IF(AL6=0,0,IF(inputs!$I$25=FALSE,0,IF(C6=0,0,2*SQRT(AQ6/(AL6*PI()))*12)))) -> 0 | AW6: =IF($C6="","",IF(AM6=0,0,IF(inputs!$I$25=FALSE,0,IF($C6=0,0,2*SQRT(AR6/(AM6*PI()))*12)))) -> 0 | AX6: =IF($C6="","",IF(AN6=0,0,IF(inputs!$I$25=FALSE,0,IF(inputs!$J$30<3,0,IF(C6=0,0,2*SQRT(AS6/(AN6*PI()))*12))))) -> 0 | AY6: =IF($C6="","",IF(AO6=0,0,IF(inputs!$I$25=FALSE,0,IF(inputs!$J$30<4,0,IF(C6=0,0,2*SQRT(AT6/(AO6*PI()))*12))))) -> 0 | AZ6: 0.45897419 | BA6: 0 | BB6: 0 | BC6: 0 | BD6: 0 | BE6: =IF($C6="","",IF($C6=0,0,IF(P6=0,0,EXP('Equations - Parameters'!$D$38+'Equations - Parameters'!$E$38*LN($O6)+'Equations - Parameters'!$F$38*LN(P6)+'Equations - Parameters'!$G$38*LN(K6/P6))))) -> 0.03488933198 | BF6: =IF($C6="","",IF($C6=0,0,IF(Q6=0,0,IF(BA6=0,0,EXP('Equations - Parameters'!$D$38+'Equations - Parameters'!$E$38*LN($O6)+'Equations - Parameters'!$F$38*LN(Q6)+'Equations - Parameters'!$G$38*LN(X6/Q6)))))) -> 0 | BG6: =IF($C6="","",IF($C6=0,0,IF(R6=0,0,IF(BB6=0,0,EXP('Equations - Parameters'!$D$38+'Equations - Parameters'!$E$38*LN($O6)+'Equations - Parameters'!$F$38*LN(R6)+'Equations - Parameters'!$G$38*LN(AB6/R6)))))) -> 0 | BH6: =IF($C6="","",IF($C6=0,0,IF(S6=0,0,IF(BC6=0,0,EXP('Equations - Parameters'!$D$38+'Equations - Parameters'!$E$38*LN($O6)+'Equations - Parameters'!$F$38*LN(S6)+'Equations - Parameters'!$G$38*LN(AF6/S6)))))) -> 0 | BI6: =IF($C6="","",IF($C6=0,0,IF(T6=0,0,IF(BD6=0,0,EXP('Equations - Parameters'!$D$38+'Equations - Parameters'!$E$38*LN($O6)+'Equations - Parameters'!$F$38*LN(T6)+'Equations - Parameters'!$G$38*LN(AJ6/T6)))))) -> 0 | BJ6: =IF($C6="","",IF($C6=0,0,IF(P6=0,0,('Equations - Parameters'!$E$45*LN(AU6)+'Equations - Parameters'!$D$45)*BO6))) -> 0.003628119405 | BK6: =IF($C6="","",IF($C6=0,0,IF(Q6=0,0,IF(BP6=0,0,('Equations - Parameters'!$E$45*LN(AV6)+'Equations - Parameters'!$D$45)*BP6)))) -> 0 | BL6: =IF($C6="","",IF($C6=0,0,IF(R6=0,0,IF(BQ6=0,0,('Equations - Parameters'!$E$45*LN(AW6)+'Equations - Parameters'!$D$45)*BQ6)))) -> 0 | BM6: =IF($C6="","",IF($C6=0,0,IF(S6=0,0,IF(BR6=0,0,('Equations - Parameters'!$E$45*LN(AX6)+'Equations - Parameters'!$D$45)*BR6)))) -> 0 | BN6: =IF($C6="","",IF($C6=0,0,IF(T6=0,0,IF(BS6=0,0,('Equations - Parameters'!$E$45*LN(AY6)+'Equations - Parameters'!$D$45)*BS6)))) -> 0 | BO6: =IF($C6="","",EXP('Equations - Parameters'!$D$42)*O6^('Equations - Parameters'!$E$42)*K6^'Equations - Parameters'!$F$42) -> 0.08104807522 | BP6: =IF($C6="","",EXP('Equations - Parameters'!$D$42)*$O6^('Equations - Parameters'!$E$42)*X6^'Equations - Parameters'!$F$42) -> 0 | BQ6: =IF($C6="","",EXP('Equations - Parameters'!$D$42)*$O6^('Equations - Parameters'!$E$42)*AB6^'Equations - Parameters'!$F$42) -> 0 | BR6: =IF($C6="","",EXP('Equations - Parameters'!$D$42)*$O6^('Equations - Parameters'!$E$42)*AF6^'Equations - Parameters'!$F$42) -> 0 | BS6: =IF($C6="","",EXP('Equations - Parameters'!$D$42)*$O6^('Equations - Parameters'!$E$42)*AJ6^'Equations - Parameters'!$F$42) -> 0 | BT6: 0 | BU6: =IF($C6="","",IF(inputs!$I$25=FALSE,0,IF($C6=inputs!$B$30,$C6,0))) -> 0 | BV6: =IF($C6="","",IF(inputs!$I$25=FALSE,0,IF($C6=inputs!$B$31,$C6,0))) -> 0 | BW6: =IF($C6="","",IF(inputs!$I$25=FALSE,0,IF($C6=inputs!$B$32,$C6,0))) -> 0 | BX6: =IF($C6="","",IF(inputs!$I$25=FALSE,0,IF($C6=inputs!$B$33,$C6,0))) -> 0 | BY6: =IF($C6="","",IF($C6=inputs!$B$6,K6,0)) -> 0 | BZ6: =IF($C6="","",IF($C6=inputs!$B$6,X6,V6)) -> 0 | CA6: =IF($C6="","",IF($C6=inputs!$B$6,AB6,Z6)) -> 0 | CB6: =IF($C6="","",IF($C6=inputs!$B$6,AF6,AD6)) -> 0 | CC6: =IF($C6="","",IF($C6=inputs!$B$6,AJ6,AH6)) -> 0 | CD6: 0 | CE6: 0 | CF6: 0 | CG6: 0 | CH6: 0 | CI6: 0 | CJ6: 0 | CK6: 0 | CL6: 0 | CM6: 0 | CN6: =IF($C6="","",IF(BY6=0,0,IF($C6=inputs!$B$6,P6,0))) -> 0 | CO6: =IF($C6="","",IF(BZ6=0,0,IF($C6=inputs!$B$6,Q6,IF($C6=inputs!$B$30,P6-Q6,0)))) -> 0 | CP6: =IF($C6="","",IF(CA6=0,0,IF($C6=inputs!$B$6,R6,IF($C6=inputs!$B$30,P6-Q6,IF($C6=inputs!$B$31,Q6-R6,0))))) -> 0 | CQ6: =IF($C6="","",IF(CB6=0,0,IF($C6=inputs!$B$6,S6,IF($C6=inputs!$B$30,P6-Q6,IF($C6=inputs!$B$31,Q6-R6,IF($C6=inputs!$B$32,R6-S6,0)))))) -> 0 | CR6: =IF($C6="","",IF(CC6=0,0,IF($C6=inputs!$B$6,T6,IF($C6=inputs!$B$30,P6-Q6,IF($C6=inputs!$B$31,Q6-R6,IF($C6=inputs!$B$32,R6-S6,IF($C6=inputs!$B$33,S6-T6,0))))))) -> 0 | CS6: 0 | CT6: =IF($C6="","",IF(BU6=0,0,AK6)) -> 0 | CU6: =IF($C6="","",IF(BV6=0,0,AL6)) -> 0 | CV6: =IF($C6="","",IF(BW6=0,0,AM6)) -> 0 | CW6: =IF($C6="","",IF(BX6=0,0,AN6)) -> 0 | CX6: 0 | CY6: 0 | CZ6: 0 | DA6: 0 | DB6: 0 | DC6: =IF($C6="","",IF(BY6=0,0,IF($C6=inputs!$B$6,BO6,0))) -> 0 | DD6: =IF($C6="","",IF(BZ6=0,0,IF(C6=inputs!$B$6,BP6,IF(C6=inputs!$B$30,(EXP('Equations - Parameters'!$D$42)*V6^('Equations - Parameters'!$E$42)*O6^'Equations - Parameters'!$F$42),0)))) -> 0 | DE6: =IF($C6="","",IF(CA6=0,0,IF(C6=inputs!$B$6,BQ6,IF(C6=inputs!$B$30,EXP('Equations - Parameters'!$D$42)*V6^('Equations - Parameters'!$E$42)*O6^'Equations - Parameters'!$F$42,IF(C6=inputs!$B$31,EXP('Equations - Parameters'!$D$42)*Z6^('Equations - Parameters'!$E$42)*O6^'Equations - Parameters'!$F$42,0))))) -> 0 | DF6: =IF($C6="","",IF(CB6=0,0,IF(C6=inputs!$B$6,BR6,IF(C6=inputs!$B$30,EXP('Equations - Parameters'!$D$42)*V6^('Equations - Parameters'!$E$42)*O6^'Equations - Parameters'!$F$42,IF(C6=inputs!$B$31,EXP('Equations - Parameters'!$D$42)*Z6^('Equations - Parameters'!$E$42)*O6^'Equations - Parameters'!$F$42,IF(C6=inputs!$B$32,EXP('Equations - Parameters'!$D$42)*AD6^('Equations - Parameters'!$E$42)*O6^'Equations - Parameters'!$F$42,0)))))) -> 0 | DG6: =IF($C6="","",IF(CC6=0,0,IF(C6=inputs!$B$6,BS6,IF(C6=inputs!$B$30,EXP('Equations - Parameters'!$D$42)*V6^('Equations - Parameters'!$E$42)*O6^'Equations - Parameters'!$F$42,IF(C6=inputs!$B$31,EXP('Equations - Parameters'!$D$42)*Z6^('Equations - Parameters'!$E$42)*O6^'Equations - Parameters'!$F$42,IF(C6=inputs!$B$32,EXP('Equations - Parameters'!$D$42)*AD6^('Equations - Parameters'!$E$42)*O6^'Equations - Parameters'!$F$42,IF(C6=inputs!$B$33,EXP('Equations - Parameters'!$D$42)*AJ6^('Equations - Parameters'!$E$42)*O6^'Equations - Parameters'!$F$42,0))))))) -> 0 | DH6: 0 | DI6: 0 | DJ6: =IF($C6="","",IF(BV6=0,0,BP6)) -> 0 | DK6: =IF($C6="","",IF(BW6=0,0,BQ6)) -> 0 | DL6: =IF($C6="","",IF(BX6=0,0,BR6)) -> 0 | DM6: 0 | DN6: 0 | DO6: 0 | DP6: 0 | DQ6: 0 | DR6: =IF($C6="","",IF(C6=inputs!$B$6,BJ6,0)) -> 0 | DS6: =IF($C6="","",IF($C6=0,0,IF(DD6=0,0,('Equations - Parameters'!$E$45*LN($AV6)+'Equations - Parameters'!$D$45)*DD6))) -> 0 | DT6: =IF($C6="","",IF($C6=0,0,IF(DE6=0,0,('Equations - Parameters'!$E$45*LN($AV6)+'Equations - Parameters'!$D$45)*DE6))) -> 0 | DU6: =IF($C6="","",IF($C6=0,0,IF(DF6=0,0,('Equations - Parameters'!$E$45*LN($AV6)+'Equations - Parameters'!$D$45)*DF6))) -> 0 | DV6: =IF($C6="","",IF($C6=0,0,IF(DG6=0,0,('Equations - Parameters'!$E$45*LN($AV6)+'Equations - Parameters'!$D$45)*DG6))) -> 0 | DW6: =IF($C6="","",IF(L6=inputs!$B$6,BO6,0)) -> 0 | DX6: 0 | DY6: 0 | DZ6: 0 | EA6: 0 | EB6: 0 | EC6: 0 | ED6: =IF($C6="","",IF(DY6=0,0,DY6-DT6)) -> 0 | EE6: =IF($C6="","",IF(DZ6=0,0,DZ6-DU6)) -> 0 | EF6: =IF($C6="","",IF(EA6=0,0,EA6-DV6)) -> 0 | EG6: 0 | EH6: 0 | EI6: 0 | EJ6: 0 | EK6: 0 | EL6: =IF($C6="","",IF(P6=0,0,IF(C6<2,0,BO6*EXP('Equations - Parameters'!$D$56*('Equations - Parameters'!$H$159/AU6)^'Equations - Parameters'!$E$56-'Equations - Parameters'!$F$56*P6^'Equations - Parameters'!$G$56*('Equations - Parameters'!$G$159/AU6)^'Equations - Parameters'!$H$56)))) -> 0 | EM6: =IF($C6="","",IF(P6=0,0,IF(C6<2,0,BO6*EXP('Equations - Parameters'!$D$56*('Equations - Parameters'!$H$160/AU6)^'Equations - Parameters'!$E$56-'Equations - Parameters'!$F$56*P6^'Equations - Parameters'!$G$56*('Equations - Parameters'!$G$160/AU6)^'Equations - Parameters'!$H$56)-EL6))) -> 0 | EN6: =IF($C6="","",IF(P6=0,0,IF(C6<2,0,BO6*EXP('Equations - Parameters'!$D$56*('Equations - Parameters'!$H$161/AU6)^'Equations - Parameters'!$E$56-'Equations - Parameters'!$F$56*P6^'Equations - Parameters'!$G$56*('Equations - Parameters'!$G$161/AU6)^'Equations - Parameters'!$H$56)-EM6-EL6))) -> 0 | EO6: =IF($C6="","",IF(Q6=0,0,IF(C6<2,0,IF(BP6=0,0,BP6*EXP('Equations - Parameters'!$D$56*('Equations - Parameters'!$H$159/AV6)^'Equations - Parameters'!$E$56-'Equations - Parameters'!$F$56*Q6^'Equations - Parameters'!$G$56*('Equations - Parameters'!$G$159/AV6)^'Equations - Parameters'!$H$56))))) -> 0 | EP6: =IF($C6="","",IF(Q6=0,0,IF(C6<2,0,IF(BP6=0,0,BP6*EXP('Equations - Parameters'!$D$56*('Equations - Parameters'!$H$160/AV6)^'Equations - Parameters'!$E$56-'Equations - Parameters'!$F$56*Q6^'Equations - Parameters'!$G$56*('Equations - Parameters'!$G$160/AV6)^'Equations - Parameters'!$H$56)-EO6)))) -> 0 | EQ6: =IF($C6="","",IF(Q6=0,0,IF(C6<2,0,IF(BP6=0,0,BP6*EXP('Equations - Parameters'!$D$56*('Equations - Parameters'!$H$161/AV6)^'Equations - Parameters'!$E$56-'Equations - Parameters'!$F$56*Q6^'Equations - Parameters'!$G$56*('Equations - Parameters'!$G$161/AV6)^'Equations - Parameters'!$H$56)-EP6-EO6)))) -> 0 | ER6: =IF($C6="","",IF(R6=0,0,IF(C6<2,0,IF(BQ6=0,0,BQ6*EXP('Equations - Parameters'!$D$56*('Equations - Parameters'!$H$159/AW6)^'Equations - Parameters'!$E$56-'Equations - Parameters'!$F$56*R6^'Equations - Parameters'!$G$56*('Equations - Parameters'!$G$159/AW6)^'Equations - Parameters'!$H$56))))) -> 0 | ES6: =IF($C6="","",IF(R6=0,0,IF(C6<2,0,IF(BQ6=0,0,BQ6*EXP('Equations - Parameters'!$D$56*('Equations - Parameters'!$H$160/AW6)^'Equations - Parameters'!$E$56-'Equations - Parameters'!$F$56*R6^'Equations - Parameters'!$G$56*('Equations - Parameters'!$G$160/AW6)^'Equations - Parameters'!$H$56)-ER6)))) -> 0 | ET6: =IF($C6="","",IF(R6=0,0,IF(C6<2,0,IF(BQ6=0,0,BQ6*EXP('Equations - Parameters'!$D$56*('Equations - Parameters'!$H$161/AW6)^'Equations - Parameters'!$E$56-'Equations - Parameters'!$F$56*R6^'Equations - Parameters'!$G$56*('Equations - Parameters'!$G$161/AW6)^'Equations - Parameters'!$H$56)-ES6-ER6)))) -> 0 | EU6: =IF($C6="","",IF(S6=0,0,IF(C6<2,0,IF(BR6=0,0,BR6*EXP('Equations - Parameters'!$D$56*('Equations - Parameters'!$H$159/AX6)^'Equations - Parameters'!$E$56-'Equations - Parameters'!$F$56*S6^'Equations - Parameters'!$G$56*('Equations - Parameters'!$G$159/AX6)^'Equations - Parameters'!$H$56))))) -> 0 | EV6: =IF($C6="","",IF(S6=0,0,IF(C6<2,0,IF(BR6=0,0,BR6*EXP('Equations - Parameters'!$D$56*('Equations - Parameters'!$H$160/AX6)^'Equations - Parameters'!$E$56-'Equations - Parameters'!$F$56*S6^'Equations - Parameters'!$G$56*('Equations - Parameters'!$G$160/AX6)^'Equations - Parameters'!$H$56)-EU6)))) -> 0 | EW6: =IF($C6="","",IF(S6=0,0,IF(C6<2,0,IF(BR6=0,0,BR6*EXP('Equations - Parameters'!$D$56*('Equations - Parameters'!$H$161/AX6)^'Equations - Parameters'!$E$56-'Equations - Parameters'!$F$56*S6^'Equations - Parameters'!$G$56*('Equations - Parameters'!$G$161/AX6)^'Equations - Parameters'!$H$56)-EV6-EU6)))) -> 0 | EX6: =IF($C6="","",IF(T6=0,0,IF(C6<2,0,IF(BS6=0,0,BS6*EXP('Equations - Parameters'!$D$56*('Equations - Parameters'!$H$159/AY6)^'Equations - Parameters'!$E$56-'Equations - Parameters'!$F$56*T6^'Equations - Parameters'!$G$56*('Equations - Parameters'!$G$159/AY6)^'Equations - Parameters'!$H$56))))) -> 0 | EY6: =IF($C6="","",IF(T6=0,0,IF(C6<2,0,IF(BS6=0,0,BS6*EXP('Equations - Parameters'!$D$56*('Equations - Parameters'!$H$160/AY6)^'Equations - Parameters'!$E$56-'Equations - Parameters'!$F$56*T6^'Equations - Parameters'!$G$56*('Equations - Parameters'!$G$160/AY6)^'Equations - Parameters'!$H$56)-EX6)))) -> 0 | EZ6: =IF($C6="","",IF(T6=0,0,IF(C6<2,0,IF(BS6=0,0,BS6*EXP('Equations - Parameters'!$D$56*('Equations - Parameters'!$H$161/AY6)^'Equations - Parameters'!$E$56-'Equations - Parameters'!$F$56*T6^'Equations - Parameters'!$G$56*('Equations - Parameters'!$G$161/AY6)^'Equations - Parameters'!$H$56)-EY6-EX6)))) -> 0 | FA6: =IF($C6="","",IF(DC6=0,0,DC6*EXP('Equations - Parameters'!$D$56*('Equations - Parameters'!$H$159/EG6)^'Equations - Parameters'!$E$56-'Equations - Parameters'!$F$56*CN6^'Equations - Parameters'!$G$56*('Equations - Parameters'!$G$159/EG6)^'Equations - Parameters'!$H$56))) -> 0 | FB6: =IF($C6="","",IF(DC6=0,0,DC6*EXP('Equations - Parameters'!$D$56*('Equations - Parameters'!$H$160/EG6)^'Equations - Parameters'!$E$56-'Equations - Parameters'!$F$56*CN6^'Equations - Parameters'!$G$56*('Equations - Parameters'!$G$160/EG6)^'Equations - Parameters'!$H$56)-FA6)) -> 0 | FC6: =IF($C6="","",IF(DC6=0,0,DC6*EXP('Equations - Parameters'!$D$56*('Equations - Parameters'!$H$161/EG6)^'Equations - Parameters'!$E$56-'Equations - Parameters'!$F$56*CN6^'Equations - Parameters'!$G$56*('Equations - Parameters'!$G$161/EG6)^'Equations - Parameters'!$H$56)-FB6-FA6)) -> 0 | FD6: =IF($C6="","",IF(DD6=0,0,DD6*EXP('Equations - Parameters'!$D$56*('Equations - Parameters'!$H$159/EH6)^'Equations - Parameters'!$E$56-'Equations - Parameters'!$F$56*CO6^'Equations - Parameters'!$G$56*('Equations - Parameters'!$G$159/EH6)^'Equations - Parameters'!$H$56))) -> 0 | FE6: =IF($C6="","",IF(DD6=0,0,DD6*EXP('Equations - Parameters'!$D$56*('Equations - Parameters'!$H$160/EH6)^'Equations - Parameters'!$E$56-'Equations - Parameters'!$F$56*CO6^'Equations - Parameters'!$G$56*('Equations - Parameters'!$G$160/EH6)^'Equations - Parameters'!$H$56)-FD6)) -> 0 | FF6: =IF($C6="","",IF(DD6=0,0,DD6*EXP('Equations - Parameters'!$D$56*('Equations - Parameters'!$H$161/EH6)^'Equations - Parameters'!$E$56-'Equations - Parameters'!$F$56*CO6^'Equations - Parameters'!$G$56*('Equations - Parameters'!$G$161/EH6)^'Equations - Parameters'!$H$56)-FE6-FD6)) -> 0 | FG6: =IF($C6="","",IF(DE6=0,0,DE6*EXP('Equations - Parameters'!$D$56*('Equations - Parameters'!$H$159/EI6)^'Equations - Parameters'!$E$56-'Equations - Parameters'!$F$56*CP6^'Equations - Parameters'!$G$56*('Equations - Parameters'!$G$159/EI6)^'Equations - Parameters'!$H$56))) -> 0 | FH6: =IF($C6="","",IF(DE6=0,0,DE6*EXP('Equations - Parameters'!$D$56*('Equations - Parameters'!$H$160/EI6)^'Equations - Parameters'!$E$56-'Equations - Parameters'!$F$56*CP6^'Equations - Parameters'!$G$56*('Equations - Parameters'!$G$160/EI6)^'Equations - Parameters'!$H$56)-FG6)) -> 0 | FI6: =IF($C6="","",IF(DE6=0,0,DE6*EXP('Equations - Parameters'!$D$56*('Equations - Parameters'!$H$161/EI6)^'Equations - Parameters'!$E$56-'Equations - Parameters'!$F$56*CP6^'Equations - Parameters'!$G$56*('Equations - Parameters'!$G$161/EI6)^'Equations - Parameters'!$H$56)-FH6-FG6)) -> 0 | FJ6: =IF($C6="","",IF(DF6=0,0,DF6*EXP('Equations - Parameters'!$D$56*('Equations - Parameters'!$H$159/EJ6)^'Equations - Parameters'!$E$56-'Equations - Parameters'!$F$56*CQ6^'Equations - Parameters'!$G$56*('Equations - Parameters'!$G$159/EJ6)^'Equations - Parameters'!$H$56))) -> 0 | FK6: =IF($C6="","",IF(DF6=0,0,DF6*EXP('Equations - Parameters'!$D$56*('Equations - Parameters'!$H$160/EJ6)^'Equations - Parameters'!$E$56-'Equations - Parameters'!$F$56*CQ6^'Equations - Parameters'!$G$56*('Equations - Parameters'!$G$160/EJ6)^'Equations - Parameters'!$H$56)-FJ6)) -> 0 | FL6: =IF($C6="","",IF(DF6=0,0,DF6*EXP('Equations - Parameters'!$D$56*('Equations - Parameters'!$H$161/EJ6)^'Equations - Parameters'!$E$56-'Equations - Parameters'!$F$56*CQ6^'Equations - Parameters'!$G$56*('Equations - Parameters'!$G$161/EJ6)^'Equations - Parameters'!$H$56)-FK6-FJ6)) -> 0 | FM6: =IF($C6="","",IF(DG6=0,0,DG6*EXP('Equations - Parameters'!$D$56*('Equations - Parameters'!$H$159/EK6)^'Equations - Parameters'!$E$56-'Equations - Parameters'!$F$56*CR6^'Equations - Parameters'!$G$56*('Equations - Parameters'!$G$159/EK6)^'Equations - Parameters'!$H$56))) -> 0 | FN6: =IF($C6="","",IF(DG6=0,0,DG6*EXP('Equations - Parameters'!$D$56*('Equations - Parameters'!$H$160/EK6)^'Equations - Parameters'!$E$56-'Equations - Parameters'!$F$56*CR6^'Equations - Parameters'!$G$56*('Equations - Parameters'!$G$160/EK6)^'Equations - Parameters'!$H$56)-FM6)) -> 0 | FO6: =IF($C6="","",IF(DG6=0,0,DG6*EXP('Equations - Parameters'!$D$56*('Equations - Parameters'!$H$161/EK6)^'Equations - Parameters'!$E$56-'Equations - Parameters'!$F$56*CR6^'Equations - Parameters'!$G$56*('Equations - Parameters'!$G$161/EK6)^'Equations - Parameters'!$H$56)-FN6-FM6)) -> 0 | FP6: =IF($C6="","",IF(P6=0,0,IF(C6<2,0,BJ6*EXP('Equations - Parameters'!$D$56*('Equations - Parameters'!$H$159/AU6)^'Equations - Parameters'!$E$56-'Equations - Parameters'!$F$56*P6^'Equations - Parameters'!$G$56*('Equations - Parameters'!$G$159/AU6)^'Equations - Parameters'!$H$56)))) -> 0 | FQ6: =IF($C6="","",IF(P6=0,0,IF(C6<2,0,BJ6*EXP('Equations - Parameters'!$D$56*('Equations - Parameters'!$H$160/AU6)^'Equations - Parameters'!$E$56-'Equations - Parameters'!$F$56*P6^'Equations - Parameters'!$G$56*('Equations - Parameters'!$G$160/AU6)^'Equations - Parameters'!$H$56)-FP6))) -> 0 | FR6: =IF($C6="","",IF(P6=0,0,IF(C6<2,0,BJ6*EXP('Equations - Parameters'!$D$56*('Equations - Parameters'!$H$161/AU6)^'Equations - Parameters'!$E$56-'Equations - Parameters'!$F$56*P6^'Equations - Parameters'!$G$56*('Equations - Parameters'!$G$161/AU6)^'Equations - Parameters'!$H$56)-FQ6-FP6))) -> 0 | FS6: =IF($C6="","",IF(Q6=0,0,IF(C6<2,0,IF(BK6=0,0,BK6*EXP('Equations - Parameters'!$D$56*('Equations - Parameters'!$H$159/AV6)^'Equations - Parameters'!$E$56-'Equations - Parameters'!$F$56*Q6^'Equations - Parameters'!$G$56*('Equations - Parameters'!$G$159/AV6)^'Equations - Parameters'!$H$56))))) -> 0 | FT6: =IF($C6="","",IF(Q6=0,0,IF(C6<2,0,IF(BK6=0,0,BK6*EXP('Equations - Parameters'!$D$56*('Equations - Parameters'!$H$160/AV6)^'Equations - Parameters'!$E$56-'Equations - Parameters'!$F$56*Q6^'Equations - Parameters'!$G$56*('Equations - Parameters'!$G$160/AV6)^'Equations - Parameters'!$H$56)-FS6)))) -> 0 | FU6: =IF($C6="","",IF(Q6=0,0,IF(C6<2,0,IF(BK6=0,0,BK6*EXP('Equations - Parameters'!$D$56*('Equations - Parameters'!$H$161/AV6)^'Equations - Parameters'!$E$56-'Equations - Parameters'!$F$56*Q6^'Equations - Parameters'!$G$56*('Equations - Parameters'!$G$161/AV6)^'Equations - Parameters'!$H$56)-FT6-FS6)))) -> 0 | FV6: =IF($C6="","",IF(R6=0,0,IF(C6<2,0,IF(BL6=0,0,BL6*EXP('Equations - Parameters'!$D$56*('Equations - Parameters'!$H$159/AW6)^'Equations - Parameters'!$E$56-'Equations - Parameters'!$F$56*R6^'Equations - Parameters'!$G$56*('Equations - Parameters'!$G$159/AW6)^'Equations - Parameters'!$H$56))))) -> 0 | FW6: =IF($C6="","",IF(R6=0,0,IF(C6<2,0,IF(BL6=0,0,BL6*EXP('Equations - Parameters'!$D$56*('Equations - Parameters'!$H$160/AW6)^'Equations - Parameters'!$E$56-'Equations - Parameters'!$F$56*R6^'Equations - Parameters'!$G$56*('Equations - Parameters'!$G$160/AW6)^'Equations - Parameters'!$H$56)-FV6)))) -> 0 | FX6: =IF($C6="","",IF(R6=0,0,IF(C6<2,0,IF(BL6=0,0,BL6*EXP('Equations - Parameters'!$D$56*('Equations - Parameters'!$H$161/AW6)^'Equations - Parameters'!$E$56-'Equations - Parameters'!$F$56*R6^'Equations - Parameters'!$G$56*('Equations - Parameters'!$G$161/AW6)^'Equations - Parameters'!$H$56)-FW6-FV6)))) -> 0 | FY6: =IF($C6="","",IF(S6=0,0,IF(C6<2,0,IF(BM6=0,0,BM6*EXP('Equations - Parameters'!$D$56*('Equations - Parameters'!$H$159/AX6)^'Equations - Parameters'!$E$56-'Equations - Parameters'!$F$56*S6^'Equations - Parameters'!$G$56*('Equations - Parameters'!$G$159/AX6)^'Equations - Parameters'!$H$56))))) -> 0 | FZ6: =IF($C6="","",IF(S6=0,0,IF(C6<2,0,IF(BM6=0,0,BM6*EXP('Equations - Parameters'!$D$56*('Equations - Parameters'!$H$160/AX6)^'Equations - Parameters'!$E$56-'Equations - Parameters'!$F$56*S6^'Equations - Parameters'!$G$56*('Equations - Parameters'!$G$160/AX6)^'Equations - Parameters'!$H$56)-FY6)))) -> 0 | GA6: =IF($C6="","",IF(S6=0,0,IF(C6<2,0,IF(BM6=0,0,BM6*EXP('Equations - Parameters'!$D$56*('Equations - Parameters'!$H$161/AX6)^'Equations - Parameters'!$E$56-'Equations - Parameters'!$F$56*S6^'Equations - Parameters'!$G$56*('Equations - Parameters'!$G$161/AX6)^'Equations - Parameters'!$H$56)-FZ6-FY6)))) -> 0 | GB6: =IF($C6="","",IF(T6=0,0,IF(C6<2,0,IF(BN6=0,0,BN6*EXP('Equations - Parameters'!$D$56*('Equations - Parameters'!$H$159/AY6)^'Equations - Parameters'!$E$56-'Equations - Parameters'!$F$56*T6^'Equations - Parameters'!$G$56*('Equations - Parameters'!$G$159/AY6)^'Equations - Parameters'!$H$56))))) -> 0 | GC6: =IF($C6="","",IF(T6=0,0,IF(C6<2,0,IF(BN6=0,0,BN6*EXP('Equations - Parameters'!$D$56*('Equations - Parameters'!$H$160/AY6)^'Equations - Parameters'!$E$56-'Equations - Parameters'!$F$56*T6^'Equations - Parameters'!$G$56*('Equations - Parameters'!$G$160/AY6)^'Equations - Parameters'!$H$56)-GB6)))) -> 0 | GD6: =IF($C6="","",IF(T6=0,0,IF(C6<2,0,IF(BN6=0,0,BN6*EXP('Equations - Parameters'!$D$56*('Equations - Parameters'!$H$161/AY6)^'Equations - Parameters'!$E$56-'Equations - Parameters'!$F$56*T6^'Equations - Parameters'!$G$56*('Equations - Parameters'!$G$161/AY6)^'Equations - Parameters'!$H$56)-GC6-GB6)))) -> 0 | GE6: =IF($C6="","",IF(DR6=0,0,DR6*EXP('Equations - Parameters'!$D$56*('Equations - Parameters'!$H$159/EG6)^'Equations - Parameters'!$E$56-'Equations - Parameters'!$F$56*CN6^'Equations - Parameters'!$G$56*('Equations - Parameters'!$G$159/EG6)^'Equations - Parameters'!$H$56))) -> 0 | GF6: =IF($C6="","",IF(DR6=0,0,DR6*EXP('Equations - Parameters'!$D$56*('Equations - Parameters'!$H$160/EG6)^'Equations - Parameters'!$E$56-'Equations - Parameters'!$F$56*CN6^'Equations - Parameters'!$G$56*('Equations - Parameters'!$G$160/EG6)^'Equations - Parameters'!$H$56)-GE6)) -> 0 | GG6: =IF($C6="","",IF(DR6=0,0,DR6*EXP('Equations - Parameters'!$D$56*('Equations - Parameters'!$H$161/EG6)^'Equations - Parameters'!$E$56-'Equations - Parameters'!$F$56*CN6^'Equations - Parameters'!$G$56*('Equations - Parameters'!$G$161/EG6)^'Equations - Parameters'!$H$56)-GF6-GE6)) -> 0 | GH6: =IF($C6="","",IF(DS6=0,0,DS6*EXP('Equations - Parameters'!$D$56*('Equations - Parameters'!$H$159/EH6)^'Equations - Parameters'!$E$56-'Equations - Parameters'!$F$56*CO6^'Equations - Parameters'!$G$56*('Equations - Parameters'!$G$159/EH6)^'Equations - Parameters'!$H$56))) -> 0 | GI6: =IF($C6="","",IF(DS6=0,0,DS6*EXP('Equations - Parameters'!$D$56*('Equations - Parameters'!$H$160/EH6)^'Equations - Parameters'!$E$56-'Equations - Parameters'!$F$56*CO6^'Equations - Parameters'!$G$56*('Equations - Parameters'!$G$160/EH6)^'Equations - Parameters'!$H$56)-GH6)) -> 0 | GJ6: =IF($C6="","",IF(DS6=0,0,DS6*EXP('Equations - Parameters'!$D$56*('Equations - Parameters'!$H$161/EH6)^'Equations - Parameters'!$E$56-'Equations - Parameters'!$F$56*CO6^'Equations - Parameters'!$G$56*('Equations - Parameters'!$G$161/EH6)^'Equations - Parameters'!$H$56)-GI6-GH6)) -> 0 | GK6: =IF($C6="","",IF(DT6=0,0,DT6*EXP('Equations - Parameters'!$D$56*('Equations - Parameters'!$H$159/EI6)^'Equations - Parameters'!$E$56-'Equations - Parameters'!$F$56*CP6^'Equations - Parameters'!$G$56*('Equations - Parameters'!$G$159/EI6)^'Equations - Parameters'!$H$56))) -> 0 | GL6: =IF($C6="","",IF(DT6=0,0,DT6*EXP('Equations - Parameters'!$D$56*('Equations - Parameters'!$H$160/EI6)^'Equations - Parameters'!$E$56-'Equations - Parameters'!$F$56*CP6^'Equations - Parameters'!$G$56*('Equations - Parameters'!$G$160/EI6)^'Equations - Parameters'!$H$56)-GK6)) -> 0 | GM6: =IF($C6="","",IF(DT6=0,0,DT6*EXP('Equations - Parameters'!$D$56*('Equations - Parameters'!$H$161/EI6)^'Equations - Parameters'!$E$56-'Equations - Parameters'!$F$56*CP6^'Equations - Parameters'!$G$56*('Equations - Parameters'!$G$161/EI6)^'Equations - Parameters'!$H$56)-GL6-GK6)) -> 0 | GN6: =IF($C6="","",IF(DU6=0,0,DU6*EXP('Equations - Parameters'!$D$56*('Equations - Parameters'!$H$159/EJ6)^'Equations - Parameters'!$E$56-'Equations - Parameters'!$F$56*CQ6^'Equations - Parameters'!$G$56*('Equations - Parameters'!$G$159/EJ6)^'Equations - Parameters'!$H$56))) -> 0 | GO6: =IF($C6="","",IF(DU6=0,0,DU6*EXP('Equations - Parameters'!$D$56*('Equations - Parameters'!$H$160/EJ6)^'Equations - Parameters'!$E$56-'Equations - Parameters'!$F$56*CQ6^'Equations - Parameters'!$G$56*('Equations - Parameters'!$G$160/EJ6)^'Equations - Parameters'!$H$56)-GN6)) -> 0 | GP6: =IF($C6="","",IF(DU6=0,0,DU6*EXP('Equations - Parameters'!$D$56*('Equations - Parameters'!$H$161/EJ6)^'Equations - Parameters'!$E$56-'Equations - Parameters'!$F$56*CQ6^'Equations - Parameters'!$G$56*('Equations - Parameters'!$G$161/EJ6)^'Equations - Parameters'!$H$56)-GO6-GN6)) -> 0 | GQ6: =IF($C6="","",IF(DV6=0,0,DV6*EXP('Equations - Parameters'!$D$56*('Equations - Parameters'!$H$159/EK6)^'Equations - Parameters'!$E$56-'Equations - Parameters'!$F$56*CR6^'Equations - Parameters'!$G$56*('Equations - Parameters'!$G$159/EK6)^'Equations - Parameters'!$H$56))) -> 0 | GR6: =IF($C6="","",IF(DV6=0,0,DV6*EXP('Equations - Parameters'!$D$56*('Equations - Parameters'!$H$160/EK6)^'Equations - Parameters'!$E$56-'Equations - Parameters'!$F$56*CR6^'Equations - Parameters'!$G$56*('Equations - Parameters'!$G$160/EK6)^'Equations - Parameters'!$H$56)-GQ6)) -> 0 | GS6: =IF($C6="","",IF(DV6=0,0,DV6*EXP('Equations - Parameters'!$D$56*('Equations - Parameters'!$H$161/EK6)^'Equations - Parameters'!$E$56-'Equations - Parameters'!$F$56*CR6^'Equations - Parameters'!$G$56*('Equations - Parameters'!$G$161/EK6)^'Equations - Parameters'!$H$56)-GR6-GQ6)) -> 0
A7: 3 | B7: =+IF(AND(inputs!$I$19=FALSE,A7+inputs!$K$5-1>inputs!$B$6),"",IF(AND(inputs!$K$2=TRUE,A7<=inputs!$B$6),1,IF(AND(inputs!$K$3=TRUE,A7+inputs!$K$5<=inputs!$B$6),1,IF(inputs!$K$2=TRUE,ROUNDDOWN((A7-1)/(inputs!$B$6),0)+1,ROUNDDOWN((A7+inputs!$K$5-1)/(inputs!$B$6),0)+1)))) -> 1 | C7: =+IF(B7="","",IF(AND(inputs!$I$19=FALSE,A7+inputs!$K$5-1>inputs!$B$6),"",IF(C6=inputs!$B$6,1,IF(AND(inputs!$K$2=TRUE,A7=0),0,IF(AND(inputs!$K$3=TRUE,A7=0),inputs!$K$5,IF(C6=inputs!$B$6,0,C6+1)))))) -> 3 | D7: =IF(A7>25,"",IF(A7="","",'Equations - Parameters'!$B$12*inputs!$K$6*(1-EXP('Equations - Parameters'!$C$12*A7))^'Equations - Parameters'!$D$12)) -> 5.512612212 | E7: =IF(A7>25,"",IF(A7>=inputs!$J$20,('Equations - Parameters'!$D$16*inputs!$J$17+'Equations - Parameters'!$E$16*inputs!$J$18)*(A7-inputs!$J$20)*EXP(-(A7-inputs!$J$20)*('Equations - Parameters'!$F$16*inputs!$J$17+'Equations - Parameters'!$G$16*inputs!$J$18)),0)+IF(A7>=inputs!$J$21,('Equations - Parameters'!$D$16*inputs!$J$17+'Equations - Parameters'!$E$16*inputs!$J$18)*(A7-inputs!$J$21)*EXP(-(A7-inputs!$J$21)*('Equations - Parameters'!$F$16*inputs!$J$17+'Equations - Parameters'!$G$16*inputs!$J$18)),0)+IF(A7>=inputs!$J$22,('Equations - Parameters'!$D$16*inputs!$J$17+'Equations - Parameters'!$E$16*inputs!$J$18)*(A7-inputs!$J$22)*EXP(-(A7-inputs!$J$22)*('Equations - Parameters'!$F$16*inputs!$J$17+'Equations - Parameters'!$G$16*inputs!$J$18)),0)+IF(A7>=inputs!$J$23,('Equations - Parameters'!$D$16*inputs!$J$17+'Equations - Parameters'!$E$16*inputs!$J$18)*(A7-inputs!$J$23)*EXP(-(A7-inputs!$J$23)*('Equations - Parameters'!$F$16*inputs!$J$17+'Equations - Parameters'!$G$16*inputs!$J$18)),0)) -> 0 | F7: =IF(A7>25,"",('Equations - Parameters'!$E$12*0+'Equations - Parameters'!$F$12*inputs!$J$8+'Equations - Parameters'!$G$12*inputs!$J$9+'Equations - Parameters'!$H$12*inputs!$J$10*inputs!$J$8)*A7*EXP('Equations - Parameters'!$I$12*A7)) -> 0 | G7: 5.512612212 | H7: =IF(C7="","",IF(AND(inputs!$K$2=TRUE,A7=0),0,IF(AND(inputs!$K$3=TRUE,A7=0),inputs!$K$15,(IF(C7=0,0,IF(AND(inputs!$K$3=TRUE, B6=1), EXP( LN(H6) + 'Equations - Parameters'!$C$28*(1/C7 - 1/C6) + ('Equations - Parameters'!$D$28*(LN(L7)-LN(L6))) + ('Equations - Parameters'!$E$28*(LN(P7)-LN(P6))) + 'Equations - Parameters'!$F$28*(LN(L7)/C7 - LN(L6)/C6) + 'Equations - Parameters'!$G$28*(LN(P7)/C7 - LN(P6)/C6) ), EXP('Equations - Parameters'!$B$20+'Equations - Parameters'!$C$20/C7)*L7^('Equations - Parameters'!$D$20+'Equations - Parameters'!$E$20/C7)*P7^('Equations - Parameters'!$F$20+'Equations - Parameters'!$G$20/C7))))))) -> 1.052371869 | I7: =IF(C7="","",IF($C7>=inputs!$J$20,('Equations - Parameters'!$C$24*inputs!$J$17+'Equations - Parameters'!$D$24*inputs!$J$18)*($C7-inputs!$J$20)*EXP(-($C7-inputs!$J$20)*('Equations - Parameters'!$E$24*inputs!$J$17+'Equations - Parameters'!$F$24*inputs!$J$18+'Equations - Parameters'!$G$24*inputs!$J$3+'Equations - Parameters'!$H$24*inputs!$J$2)),0)+IF($C7>=inputs!$J$21,('Equations - Parameters'!$C$24*inputs!$J$17+'Equations - Parameters'!$D$24*inputs!$J$18)*($C7-inputs!$J$21)*EXP(-($C7-inputs!$J$21)*('Equations - Parameters'!$E$24*inputs!$J$17+'Equations - Parameters'!$F$24*inputs!$J$18+'Equations - Parameters'!$G$24*inputs!$J$3+'Equations - Parameters'!$H$24*inputs!$J$2)),0)+IF($C7>=inputs!$J$22,('Equations - Parameters'!$C$24*inputs!$J$17+'Equations - Parameters'!$D$24*inputs!$J$18)*($C7-inputs!$J$22)*EXP(-($C7-inputs!$J$22)*('Equations - Parameters'!$E$24*inputs!$J$17+'Equations - Parameters'!$F$24*inputs!$J$18+'Equations - Parameters'!$G$24*inputs!$J$3+'Equations - Parameters'!$H$24*inputs!$J$2)),0)+IF($C7>=inputs!$J$23,('Equations - Parameters'!$C$24*inputs!$J$17+'Equations - Parameters'!$D$24*inputs!$J$18)*($C7-inputs!$J$23)*EXP(-($C7-inputs!$J$23)*('Equations - Parameters'!$E$24*inputs!$J$17+'Equations - Parameters'!$F$24*inputs!$J$18+'Equations - Parameters'!$G$24*inputs!$J$3+'Equations - Parameters'!$H$24*inputs!$J$2)),0)) -> 0 | J7: =IF(C7="","",IF(C7=0,0,('Equations - Parameters'!$H$20*0+'Equations - Parameters'!$I$20*inputs!$J$9)*C7*EXP('Equations - Parameters'!$J$20*C7))) -> 0 | K7: 1.052371869 | L7: =IF(C7="","",IF(AND(inputs!$K$2=TRUE,A7=0),0,IF(AND(inputs!$K$3=TRUE,A7=0),inputs!$K$13,(IF(C7=0,0,'Equations - Parameters'!$B$12*inputs!$K$6*(1-EXP('Equations - Parameters'!$C$12*C7))^'Equations - Parameters'!$D$12))))) -> 5.512612212 | M7: =IF(C7="","",IF(C7>=inputs!$J$20,('Equations - Parameters'!$D$16*inputs!$J$17+'Equations - Parameters'!$E$16*inputs!$J$18)*(C7-inputs!$J$20)*EXP(-(C7-inputs!$J$20)*('Equations - Parameters'!$F$16*inputs!$J$17+'Equations - Parameters'!$G$16*inputs!$J$18)),0)+IF(C7>=inputs!$J$21,('Equations - Parameters'!$D$16*inputs!$J$17+'Equations - Parameters'!$E$16*inputs!$J$18)*(C7-inputs!$J$21)*EXP(-(C7-inputs!$J$21)*('Equations - Parameters'!$F$16*inputs!$J$17+'Equations - Parameters'!$G$16*inputs!$J$18)),0)+IF(C7>=inputs!$J$22,('Equations - Parameters'!$D$16*inputs!$J$17+'Equations - Parameters'!$E$16*inputs!$J$18)*(C7-inputs!$J$22)*EXP(-(C7-inputs!$J$22)*('Equations - Parameters'!$F$16*inputs!$J$17+'Equations - Parameters'!$G$16*inputs!$J$18)),0)+IF(C7>=inputs!$J$23,('Equations - Parameters'!$D$16*inputs!$J$17+'Equations - Parameters'!$E$16*inputs!$J$18)*(C7-inputs!$J$23)*EXP(-(C7-inputs!$J$23)*('Equations - Parameters'!$F$16*inputs!$J$17+'Equations - Parameters'!$G$16*inputs!$J$18)),0)) -> 0 | N7: =IF(C7="","",('Equations - Parameters'!$E$12*0+'Equations - Parameters'!$F$12*inputs!$J$8+'Equations - Parameters'!$G$12*inputs!$J$9+'Equations - Parameters'!$H$12*inputs!$J$10*inputs!$J$8)*C7*EXP('Equations - Parameters'!$I$12*C7)) -> 0 | O7: 5.512612212 | P7: =IF(C7="","",IF(AND(inputs!$K$2=TRUE,A7=0),0,IF(AND(inputs!$K$2=TRUE,A7=1),inputs!$I$13,IF(AND(inputs!$K$3=TRUE,A7=0),inputs!$K$14,IF(C6=inputs!$B$6,inputs!$B$9,P6*EXP(('Equations - Parameters'!$D$7)*(C7^'Equations - Parameters'!$E$7-C6^'Equations - Parameters'!$E$7))))))) -> 598.6399224 | Q7: =IF(C7="","",IF(inputs!$J$25=0,0,IF(inputs!$B$30>C7,P7,IF(inputs!$B$30=C7,(P7-(inputs!$C$30*P7)),Q6*EXP(-(-'Equations - Parameters'!$D$7-'Equations - Parameters'!$F$7*inputs!$J$25)*(C7^'Equations - Parameters'!$E$7-C6^'Equations - Parameters'!$E$7)))))) -> 0 | R7: =IF(C7="","",IF(inputs!$J$25=0,0,IF(inputs!$B$31>C7,Q7,IF(inputs!$B$31=C7,(Q7-(inputs!$C$31*Q7)),R6*EXP(-(-'Equations - Parameters'!$D$7-'Equations - Parameters'!$F$7*inputs!$J$25)*(C7^'Equations - Parameters'!$E$7-C6^'Equations - Parameters'!$E$7)))))) -> 0 | S7: =IF(C7="","",IF(inputs!$J$25=0,0,IF(inputs!$B$32>C7,R7,IF(inputs!$B$32=C7,(R7-(inputs!$C$32*R7)),S6*EXP(-(-'Equations - Parameters'!$D$7-'Equations - Parameters'!$F$7*inputs!$J$25)*(C7^'Equations - Parameters'!$E$7-C6^'Equations - Parameters'!$E$7)))))) -> 0 | T7: =IF(C7="","",IF(inputs!$J$25=0,0,IF(inputs!$B$33>C7,S7,IF(inputs!$B$33=C7,(S7-(inputs!$C$33*S7)),T6*EXP(-(-'Equations - Parameters'!$D$7-'Equations - Parameters'!$F$7*inputs!$J$25)*(C7^'Equations - Parameters'!$E$7-C6^'Equations - Parameters'!$E$7)))))) -> 0 | U7: =IF(C7="","",IF(inputs!$I$25=FALSE,0,IF(C7>=inputs!$B$30,EXP('Equations - Parameters'!$B$20+'Equations - Parameters'!$C$20/C7)*O7^('Equations - Parameters'!$D$20+'Equations - Parameters'!$E$20/C7)*Q7^('Equations - Parameters'!$F$20+'Equations - Parameters'!$G$20/C7)+I7+J7,0))) -> 0 | V7: =IF(C7="","",IF(inputs!$I$25=FALSE,0,IF(C7=inputs!$B$30,K7*((P7-Q7)/P7)^'Equations - Parameters'!$F$31,0))) -> 0 | W7: =IF(C7="","",IF(inputs!$I$25=FALSE,0,IF(C7<inputs!$B$30,0,IF(C7=inputs!$B$30,(1-X7/U7),W6*EXP('Equations - Parameters'!$F$34*(C7-C6)))))) -> 0 | X7: =IF(C7="","",IF(inputs!$I$25=FALSE,0,IF(C7<inputs!$B$30,K7,IF(C7=inputs!$B$30,K7-V7,U7*(1-W7))))) -> 0 | Y7: =IF(C7="","",IF(inputs!$I$25=FALSE,0,IF(inputs!$J$30<2,0,IF(C7>=inputs!$B$31,EXP('Equations - Parameters'!$B$20+'Equations - Parameters'!$C$20/C7)*O7^('Equations - Parameters'!$D$20+'Equations - Parameters'!$E$20/C7)*R7^('Equations - Parameters'!$F$20+'Equations - Parameters'!$G$20/C7)+I7+J7,0)))) -> 0 | Z7: =IF(C7="","",IF(inputs!$I$25=FALSE,0,IF(inputs!$J$30<2,0,IF(C7=inputs!$B$31,X7*((Q7-R7)/Q7)^'Equations - Parameters'!$F$31,0)))) -> 0 | AA7: =IF(C7="","",IF(inputs!$I$25=FALSE,0,IF(inputs!$J$30<2,0,IF(C7<inputs!$B$31,0,IF(C7=inputs!$B$31,(1-AB7/Y7),AA6*EXP('Equations - Parameters'!$F$34*(C7-C6))))))) -> 0 | AB7: =IF(C7="","",IF(inputs!$I$25=FALSE,0,IF(inputs!$J$30<2,0,IF(inputs!$I$25=FALSE,0,IF(C7<inputs!$B$31,X7,IF(C7=inputs!$B$31,X7-Z7,Y7*(1-AA7))))))) -> 0 | AC7: =IF(C7="","",IF(inputs!$I$25=FALSE,0,IF(inputs!$J$30<3,0,IF(C7>=inputs!$B$32,EXP('Equations - Parameters'!$B$20+'Equations - Parameters'!$C$20/C7)*O7^('Equations - Parameters'!$D$20+'Equations - Parameters'!$E$20/C7)*S7^('Equations - Parameters'!$F$20+'Equations - Parameters'!$G$20/C7)+I7+J7,0)))) -> 0 | AD7: =IF(C7="","",IF(inputs!$I$25=FALSE,0,IF(inputs!$J$30<3,0,IF($C7=inputs!$B$32,AC7*((R7-S7)/R7)^'Equations - Parameters'!$F$31,0)))) -> 0 | AE7: =IF(C7="","",IF(inputs!$I$25=FALSE,0,IF(inputs!$J$30<3,0,IF(C7<inputs!$B$32,0,IF(C7=inputs!$B$32,(1-AF7/AC7),AE6*EXP('Equations - Parameters'!$F$34*(C7-C6))))))) -> 0 | AF7: =IF(C7="","",IF(inputs!$I$25=FALSE,0,IF(inputs!$J$30<3,0,IF($C7<inputs!$B$32,AB7,IF(C7=inputs!$B$32,AB7-AD7,AC7*(1-AE7)))))) -> 0 | AG7: =IF(C7="","",IF(inputs!$I$25=FALSE,0,IF(inputs!$J$30<4,0,IF(C7>=inputs!$B$33,EXP('Equations - Parameters'!$B$20+'Equations - Parameters'!$C$20/C7)*O7^('Equations - Parameters'!$D$20+'Equations - Parameters'!$E$20/C7)*T7^('Equations - Parameters'!$F$20+'Equations - Parameters'!$G$20/C7)+I7+J7,0)))) -> 0 | AH7: =IF(C7="","",IF(inputs!$I$25=FALSE,0,IF(inputs!$J$30<4,0,IF($C7=inputs!$B$33,AG7*((S7-T7)/S7)^'Equations - Parameters'!$F$31,0)))) -> 0 | AI7: =IF(C7="","",IF(inputs!$I$25=FALSE,0,IF(inputs!$J$30<4,0,IF(C7<inputs!$B$33,0,IF(C7=inputs!$B$33,(1-AJ7/AG7),AI6*EXP('Equations - Parameters'!$F$34*(C7-C6))))))) -> 0 | AJ7: =IF(C7="","",IF(inputs!$I$25=FALSE,0,IF(inputs!$J$30<4,0,IF($C7<inputs!$B$33,AF7,IF(C7=inputs!$B$33,AF7-AH7,AG7*(1-AI7)))))) -> 0 | AK7: 598.6399224 | AL7: 0 | AM7: 0 | AN7: 0 | AO7: 0 | AP7: 1.052371869 | AQ7: 0 | AR7: 0 | AS7: 0 | AT7: 0 | AU7: 0.5677250831 | AV7: =IF(C7="","",IF(AL7=0,0,IF(inputs!$I$25=FALSE,0,IF(C7=0,0,2*SQRT(AQ7/(AL7*PI()))*12)))) -> 0 | AW7: =IF($C7="","",IF(AM7=0,0,IF(inputs!$I$25=FALSE,0,IF($C7=0,0,2*SQRT(AR7/(AM7*PI()))*12)))) -> 0 | AX7: =IF($C7="","",IF(AN7=0,0,IF(inputs!$I$25=FALSE,0,IF(inputs!$J$30<3,0,IF(C7=0,0,2*SQRT(AS7/(AN7*PI()))*12))))) -> 0 | AY7: =IF($C7="","",IF(AO7=0,0,IF(inputs!$I$25=FALSE,0,IF(inputs!$J$30<4,0,IF(C7=0,0,2*SQRT(AT7/(AO7*PI()))*12))))) -> 0 | AZ7: 5.991799859 | BA7: 0 | BB7: 0 | BC7: 0 | BD7: 0 | BE7: =IF($C7="","",IF($C7=0,0,IF(P7=0,0,EXP('Equations - Parameters'!$D$38+'Equations - Parameters'!$E$38*LN($O7)+'Equations - Parameters'!$F$38*LN(P7)+'Equations - Parameters'!$G$38*LN(K7/P7))))) -> 0.3169658842 | BF7: =IF($C7="","",IF($C7=0,0,IF(Q7=0,0,IF(BA7=0,0,EXP('Equations - Parameters'!$D$38+'Equations - Parameters'!$E$38*LN($O7)+'Equations - Parameters'!$F$38*LN(Q7)+'Equations - Parameters'!$G$38*LN(X7/Q7)))))) -> 0 | BG7: =IF($C7="","",IF($C7=0,0,IF(R7=0,0,IF(BB7=0,0,EXP('Equations - Parameters'!$D$38+'Equations - Parameters'!$E$38*LN($O7)+'Equations - Parameters'!$F$38*LN(R7)+'Equations - Parameters'!$G$38*LN(AB7/R7)))))) -> 0 | BH7: =IF($C7="","",IF($C7=0,0,IF(S7=0,0,IF(BC7=0,0,EXP('Equations - Parameters'!$D$38+'Equations - Parameters'!$E$38*LN($O7)+'Equations - Parameters'!$F$38*LN(S7)+'Equations - Parameters'!$G$38*LN(AF7/S7)))))) -> 0 | BI7: =IF($C7="","",IF($C7=0,0,IF(T7=0,0,IF(BD7=0,0,EXP('Equations - Parameters'!$D$38+'Equations - Parameters'!$E$38*LN($O7)+'Equations - Parameters'!$F$38*LN(T7)+'Equations - Parameters'!$G$38*LN(AJ7/T7)))))) -> 0 | BJ7: =IF($C7="","",IF($C7=0,0,IF(P7=0,0,('Equations - Parameters'!$E$45*LN(AU7)+'Equations - Parameters'!$D$45)*BO7))) -> 1.240916997 | BK7: =IF($C7="","",IF($C7=0,0,IF(Q7=0,0,IF(BP7=0,0,('Equations - Parameters'!$E$45*LN(AV7)+'Equations - Parameters'!$D$45)*BP7)))) -> 0 | BL7: =IF($C7="","",IF($C7=0,0,IF(R7=0,0,IF(BQ7=0,0,('Equations - Parameters'!$E$45*LN(AW7)+'Equations - Parameters'!$D$45)*BQ7)))) -> 0 | BM7: =IF($C7="","",IF($C7=0,0,IF(S7=0,0,IF(BR7=0,0,('Equations - Parameters'!$E$45*LN(AX7)+'Equations - Parameters'!$D$45)*BR7)))) -> 0 | BN7: =IF($C7="","",IF($C7=0,0,IF(T7=0,0,IF(BS7=0,0,('Equations - Parameters'!$E$45*LN(AY7)+'Equations - Parameters'!$D$45)*BS7)))) -> 0 | BO7: =IF($C7="","",EXP('Equations - Parameters'!$D$42)*O7^('Equations - Parameters'!$E$42)*K7^'Equations - Parameters'!$F$42) -> 3.691561885 | BP7: =IF($C7="","",EXP('Equations - Parameters'!$D$42)*$O7^('Equations - Parameters'!$E$42)*X7^'Equations - Parameters'!$F$42) -> 0 | BQ7: =IF($C7="","",EXP('Equations - Parameters'!$D$42)*$O7^('Equations - Parameters'!$E$42)*AB7^'Equations - Parameters'!$F$42) -> 0 | BR7: =IF($C7="","",EXP('Equations - Parameters'!$D$42)*$O7^('Equations - Parameters'!$E$42)*AF7^'Equations - Parameters'!$F$42) -> 0 | BS7: =IF($C7="","",EXP('Equations - Parameters'!$D$42)*$O7^('Equations - Parameters'!$E$42)*AJ7^'Equations - Parameters'!$F$42) -> 0 | BT7: 0 | BU7: =IF($C7="","",IF(inputs!$I$25=FALSE,0,IF($C7=inputs!$B$30,$C7,0))) -> 0 | BV7: =IF($C7="","",IF(inputs!$I$25=FALSE,0,IF($C7=inputs!$B$31,$C7,0))) -> 0 | BW7: =IF($C7="","",IF(inputs!$I$25=FALSE,0,IF($C7=inputs!$B$32,$C7,0))) -> 0 | BX7: =IF($C7="","",IF(inputs!$I$25=FALSE,0,IF($C7=inputs!$B$33,$C7,0))) -> 0 | BY7: =IF($C7="","",IF($C7=inputs!$B$6,K7,0)) -> 0 | BZ7: =IF($C7="","",IF($C7=inputs!$B$6,X7,V7)) -> 0 | CA7: =IF($C7="","",IF($C7=inputs!$B$6,AB7,Z7)) -> 0 | CB7: =IF($C7="","",IF($C7=inputs!$B$6,AF7,AD7)) -> 0 | CC7: =IF($C7="","",IF($C7=inputs!$B$6,AJ7,AH7)) -> 0 | CD7: 0 | CE7: 0 | CF7: 0 | CG7: 0 | CH7: 0 | CI7: 0 | CJ7: 0 | CK7: 0 | CL7: 0 | CM7: 0 | CN7: =IF($C7="","",IF(BY7=0,0,IF($C7=inputs!$B$6,P7,0))) -> 0 | CO7: =IF($C7="","",IF(BZ7=0,0,IF($C7=inputs!$B$6,Q7,IF($C7=inputs!$B$30,P7-Q7,0)))) -> 0 | CP7: =IF($C7="","",IF(CA7=0,0,IF($C7=inputs!$B$6,R7,IF($C7=inputs!$B$30,P7-Q7,IF($C7=inputs!$B$31,Q7-R7,0))))) -> 0 | CQ7: =IF($C7="","",IF(CB7=0,0,IF($C7=inputs!$B$6,S7,IF($C7=inputs!$B$30,P7-Q7,IF($C7=inputs!$B$31,Q7-R7,IF($C7=inputs!$B$32,R7-S7,0)))))) -> 0 | CR7: =IF($C7="","",IF(CC7=0,0,IF($C7=inputs!$B$6,T7,IF($C7=inputs!$B$30,P7-Q7,IF($C7=inputs!$B$31,Q7-R7,IF($C7=inputs!$B$32,R7-S7,IF($C7=inputs!$B$33,S7-T7,0))))))) -> 0 | CS7: 0 | CT7: 0 | CU7: 0 | CV7: 0 | CW7: 0 | CX7: 0 | CY7: 0 | CZ7: 0 | DA7: 0 | DB7: 0 | DC7: =IF($C7="","",IF(BY7=0,0,IF($C7=inputs!$B$6,BO7,0))) -> 0 | DD7: =IF($C7="","",IF(BZ7=0,0,IF(C7=inputs!$B$6,BP7,IF(C7=inputs!$B$30,(EXP('Equations - Parameters'!$D$42)*V7^('Equations - Parameters'!$E$42)*O7^'Equations - Parameters'!$F$42),0)))) -> 0 | DE7: =IF($C7="","",IF(CA7=0,0,IF(C7=inputs!$B$6,BQ7,IF(C7=inputs!$B$30,EXP('Equations - Parameters'!$D$42)*V7^('Equations - Parameters'!$E$42)*O7^'Equations - Parameters'!$F$42,IF(C7=inputs!$B$31,EXP('Equations - Parameters'!$D$42)*Z7^('Equations - Parameters'!$E$42)*O7^'Equations - Parameters'!$F$42,0))))) -> 0 | DF7: =IF($C7="","",IF(CB7=0,0,IF(C7=inputs!$B$6,BR7,IF(C7=inputs!$B$30,EXP('Equations - Parameters'!$D$42)*V7^('Equations - Parameters'!$E$42)*O7^'Equations - Parameters'!$F$42,IF(C7=inputs!$B$31,EXP('Equations - Parameters'!$D$42)*Z7^('Equations - Parameters'!$E$42)*O7^'Equations - Parameters'!$F$42,IF(C7=inputs!$B$32,EXP('Equations - Parameters'!$D$42)*AD7^('Equations - Parameters'!$E$42)*O7^'Equations - Parameters'!$F$42,0)))))) -> 0 | DG7: =IF($C7="","",IF(CC7=0,0,IF(C7=inputs!$B$6,BS7,IF(C7=inputs!$B$30,EXP('Equations - Parameters'!$D$42)*V7^('Equations - Parameters'!$E$42)*O7^'Equations - Parameters'!$F$42,IF(C7=inputs!$B$31,EXP('Equations - Parameters'!$D$42)*Z7^('Equations - Parameters'!$E$42)*O7^'Equations - Parameters'!$F$42,IF(C7=inputs!$B$32,EXP('Equations - Parameters'!$D$42)*AD7^('Equations - Parameters'!$E$42)*O7^'Equations - Parameters'!$F$42,IF(C7=inputs!$B$33,EXP('Equations - Parameters'!$D$42)*AJ7^('Equations - Parameters'!$E$42)*O7^'Equations - Parameters'!$F$42,0))))))) -> 0 | DH7: 0 | DI7: 0 | DJ7: 0 | DK7: 0 | DL7: 0 | DM7: 0 | DN7: 0 | DO7: 0 | DP7: 0 | DQ7: 0 | DR7: =IF($C7="","",IF(C7=inputs!$B$6,BJ7,0)) -> 0 | DS7: =IF($C7="","",IF($C7=0,0,IF(DD7=0,0,('Equations - Parameters'!$E$45*LN($AV7)+'Equations - Parameters'!$D$45)*DD7))) -> 0 | DT7: =IF($C7="","",IF($C7=0,0,IF(DE7=0,0,('Equations - Parameters'!$E$45*LN($AV7)+'Equations - Parameters'!$D$45)*DE7))) -> 0 | DU7: =IF($C7="","",IF($C7=0,0,IF(DF7=0,0,('Equations - Parameters'!$E$45*LN($AV7)+'Equations - Parameters'!$D$45)*DF7))) -> 0 | DV7: =IF($C7="","",IF($C7=0,0,IF(DG7=0,0,('Equations - Parameters'!$E$45*LN($AV7)+'Equations - Parameters'!$D$45)*DG7))) -> 0 | DW7: =IF($C7="","",IF(L7=inputs!$B$6,BO7,0)) -> 0 | DX7: 0 | DY7: 0 | DZ7: 0 | EA7: 0 | EB7: 0 | EC7: 0 | ED7: 0 | EE7: 0 | EF7: 0 | EG7: 0 | EH7: 0 | EI7: 0 | EJ7: 0 | EK7: 0 | EL7: =IF($C7="","",IF(P7=0,0,IF(C7<2,0,BO7*EXP('Equations - Parameters'!$D$56*('Equations - Parameters'!$H$159/AU7)^'Equations - Parameters'!$E$56-'Equations - Parameters'!$F$56*P7^'Equations - Parameters'!$G$56*('Equations - Parameters'!$G$159/AU7)^'Equations - Parameters'!$H$56)))) -> 0 | EM7: =IF($C7="","",IF(P7=0,0,IF(C7<2,0,BO7*EXP('Equations - Parameters'!$D$56*('Equations - Parameters'!$H$160/AU7)^'Equations - Parameters'!$E$56-'Equations - Parameters'!$F$56*P7^'Equations - Parameters'!$G$56*('Equations - Parameters'!$G$160/AU7)^'Equations - Parameters'!$H$56)-EL7))) -> 0 | EN7: =IF($C7="","",IF(P7=0,0,IF(C7<2,0,BO7*EXP('Equations - Parameters'!$D$56*('Equations - Parameters'!$H$161/AU7)^'Equations - Parameters'!$E$56-'Equations - Parameters'!$F$56*P7^'Equations - Parameters'!$G$56*('Equations - Parameters'!$G$161/AU7)^'Equations - Parameters'!$H$56)-EM7-EL7))) -> 0 | EO7: =IF($C7="","",IF(Q7=0,0,IF(C7<2,0,IF(BP7=0,0,BP7*EXP('Equations - Parameters'!$D$56*('Equations - Parameters'!$H$159/AV7)^'Equations - Parameters'!$E$56-'Equations - Parameters'!$F$56*Q7^'Equations - Parameters'!$G$56*('Equations - Parameters'!$G$159/AV7)^'Equations - Parameters'!$H$56))))) -> 0 | EP7: =IF($C7="","",IF(Q7=0,0,IF(C7<2,0,IF(BP7=0,0,BP7*EXP('Equations - Parameters'!$D$56*('Equations - Parameters'!$H$160/AV7)^'Equations - Parameters'!$E$56-'Equations - Parameters'!$F$56*Q7^'Equations - Parameters'!$G$56*('Equations - Parameters'!$G$160/AV7)^'Equations - Parameters'!$H$56)-EO7)))) -> 0 | EQ7: =IF($C7="","",IF(Q7=0,0,IF(C7<2,0,IF(BP7=0,0,BP7*EXP('Equations - Parameters'!$D$56*('Equations - Parameters'!$H$161/AV7)^'Equations - Parameters'!$E$56-'Equations - Parameters'!$F$56*Q7^'Equations - Parameters'!$G$56*('Equations - Parameters'!$G$161/AV7)^'Equations - Parameters'!$H$56)-EP7-EO7)))) -> 0 | ER7: =IF($C7="","",IF(R7=0,0,IF(C7<2,0,IF(BQ7=0,0,BQ7*EXP('Equations - Parameters'!$D$56*('Equations - Parameters'!$H$159/AW7)^'Equations - Parameters'!$E$56-'Equations - Parameters'!$F$56*R7^'Equations - Parameters'!$G$56*('Equations - Parameters'!$G$159/AW7)^'Equations - Parameters'!$H$56))))) -> 0 | ES7: =IF($C7="","",IF(R7=0,0,IF(C7<2,0,IF(BQ7=0,0,BQ7*EXP('Equations - Parameters'!$D$56*('Equations - Parameters'!$H$160/AW7)^'Equations - Parameters'!$E$56-'Equations - Parameters'!$F$56*R7^'Equations - Parameters'!$G$56*('Equations - Parameters'!$G$160/AW7)^'Equations - Parameters'!$H$56)-ER7)))) -> 0 | ET7: =IF($C7="","",IF(R7=0,0,IF(C7<2,0,IF(BQ7=0,0,BQ7*EXP('Equations - Parameters'!$D$56*('Equations - Parameters'!$H$161/AW7)^'Equations - Parameters'!$E$56-'Equations - Parameters'!$F$56*R7^'Equations - Parameters'!$G$56*('Equations - Parameters'!$G$161/AW7)^'Equations - Parameters'!$H$56)-ES7-ER7)))) -> 0 | EU7: =IF($C7="","",IF(S7=0,0,IF(C7<2,0,IF(BR7=0,0,BR7*EXP('Equations - Parameters'!$D$56*('Equations - Parameters'!$H$159/AX7)^'Equations - Parameters'!$E$56-'Equations - Parameters'!$F$56*S7^'Equations - Parameters'!$G$56*('Equations - Parameters'!$G$159/AX7)^'Equations - Parameters'!$H$56))))) -> 0 | EV7: =IF($C7="","",IF(S7=0,0,IF(C7<2,0,IF(BR7=0,0,BR7*EXP('Equations - Parameters'!$D$56*('Equations - Parameters'!$H$160/AX7)^'Equations - Parameters'!$E$56-'Equations - Parameters'!$F$56*S7^'Equations - Parameters'!$G$56*('Equations - Parameters'!$G$160/AX7)^'Equations - Parameters'!$H$56)-EU7)))) -> 0 | EW7: =IF($C7="","",IF(S7=0,0,IF(C7<2,0,IF(BR7=0,0,BR7*EXP('Equations - Parameters'!$D$56*('Equations - Parameters'!$H$161/AX7)^'Equations - Parameters'!$E$56-'Equations - Parameters'!$F$56*S7^'Equations - Parameters'!$G$56*('Equations - Parameters'!$G$161/AX7)^'Equations - Parameters'!$H$56)-EV7-EU7)))) -> 0 | EX7: =IF($C7="","",IF(T7=0,0,IF(C7<2,0,IF(BS7=0,0,BS7*EXP('Equations - Parameters'!$D$56*('Equations - Parameters'!$H$159/AY7)^'Equations - Parameters'!$E$56-'Equations - Parameters'!$F$56*T7^'Equations - Parameters'!$G$56*('Equations - Parameters'!$G$159/AY7)^'Equations - Parameters'!$H$56))))) -> 0 | EY7: =IF($C7="","",IF(T7=0,0,IF(C7<2,0,IF(BS7=0,0,BS7*EXP('Equations - Parameters'!$D$56*('Equations - Parameters'!$H$160/AY7)^'Equations - Parameters'!$E$56-'Equations - Parameters'!$F$56*T7^'Equations - Parameters'!$G$56*('Equations - Parameters'!$G$160/AY7)^'Equations - Parameters'!$H$56)-EX7)))) -> 0 | EZ7: =IF($C7="","",IF(T7=0,0,IF(C7<2,0,IF(BS7=0,0,BS7*EXP('Equations - Parameters'!$D$56*('Equations - Parameters'!$H$161/AY7)^'Equations - Parameters'!$E$56-'Equations - Parameters'!$F$56*T7^'Equations - Parameters'!$G$56*('Equations - Parameters'!$G$161/AY7)^'Equations - Parameters'!$H$56)-EY7-EX7)))) -> 0 | FA7: =IF($C7="","",IF(DC7=0,0,DC7*EXP('Equations - Parameters'!$D$56*('Equations - Parameters'!$H$159/EG7)^'Equations - Parameters'!$E$56-'Equations - Parameters'!$F$56*CN7^'Equations - Parameters'!$G$56*('Equations - Parameters'!$G$159/EG7)^'Equations - Parameters'!$H$56))) -> 0 | FB7: =IF($C7="","",IF(DC7=0,0,DC7*EXP('Equations - Parameters'!$D$56*('Equations - Parameters'!$H$160/EG7)^'Equations - Parameters'!$E$56-'Equations - Parameters'!$F$56*CN7^'Equations - Parameters'!$G$56*('Equations - Parameters'!$G$160/EG7)^'Equations - Parameters'!$H$56)-FA7)) -> 0 | FC7: =IF($C7="","",IF(DC7=0,0,DC7*EXP('Equations - Parameters'!$D$56*('Equations - Parameters'!$H$161/EG7)^'Equations - Parameters'!$E$56-'Equations - Parameters'!$F$56*CN7^'Equations - Parameters'!$G$56*('Equations - Parameters'!$G$161/EG7)^'Equations - Parameters'!$H$56)-FB7-FA7)) -> 0 | FD7: =IF($C7="","",IF(DD7=0,0,DD7*EXP('Equations - Parameters'!$D$56*('Equations - Parameters'!$H$159/EH7)^'Equations - Parameters'!$E$56-'Equations - Parameters'!$F$56*CO7^'Equations - Parameters'!$G$56*('Equations - Parameters'!$G$159/EH7)^'Equations - Parameters'!$H$56))) -> 0 | FE7: =IF($C7="","",IF(DD7=0,0,DD7*EXP('Equations - Parameters'!$D$56*('Equations - Parameters'!$H$160/EH7)^'Equations - Parameters'!$E$56-'Equations - Parameters'!$F$56*CO7^'Equations - Parameters'!$G$56*('Equations - Parameters'!$G$160/EH7)^'Equations - Parameters'!$H$56)-FD7)) -> 0 | FF7: =IF($C7="","",IF(DD7=0,0,DD7*EXP('Equations - Parameters'!$D$56*('Equations - Parameters'!$H$161/EH7)^'Equations - Parameters'!$E$56-'Equations - Parameters'!$F$56*CO7^'Equations - Parameters'!$G$56*('Equations - Parameters'!$G$161/EH7)^'Equations - Parameters'!$H$56)-FE7-FD7)) -> 0 | FG7: =IF($C7="","",IF(DE7=0,0,DE7*EXP('Equations - Parameters'!$D$56*('Equations - Parameters'!$H$159/EI7)^'Equations - Parameters'!$E$56-'Equations - Parameters'!$F$56*CP7^'Equations - Parameters'!$G$56*('Equations - Parameters'!$G$159/EI7)^'Equations - Parameters'!$H$56))) -> 0 | FH7: =IF($C7="","",IF(DE7=0,0,DE7*EXP('Equations - Parameters'!$D$56*('Equations - Parameters'!$H$160/EI7)^'Equations - Parameters'!$E$56-'Equations - Parameters'!$F$56*CP7^'Equations - Parameters'!$G$56*('Equations - Parameters'!$G$160/EI7)^'Equations - Parameters'!$H$56)-FG7)) -> 0 | FI7: =IF($C7="","",IF(DE7=0,0,DE7*EXP('Equations - Parameters'!$D$56*('Equations - Parameters'!$H$161/EI7)^'Equations - Parameters'!$E$56-'Equations - Parameters'!$F$56*CP7^'Equations - Parameters'!$G$56*('Equations - Parameters'!$G$161/EI7)^'Equations - Parameters'!$H$56)-FH7-FG7)) -> 0 | FJ7: =IF($C7="","",IF(DF7=0,0,DF7*EXP('Equations - Parameters'!$D$56*('Equations - Parameters'!$H$159/EJ7)^'Equations - Parameters'!$E$56-'Equations - Parameters'!$F$56*CQ7^'Equations - Parameters'!$G$56*('Equations - Parameters'!$G$159/EJ7)^'Equations - Parameters'!$H$56))) -> 0 | FK7: =IF($C7="","",IF(DF7=0,0,DF7*EXP('Equations - Parameters'!$D$56*('Equations - Parameters'!$H$160/EJ7)^'Equations - Parameters'!$E$56-'Equations - Parameters'!$F$56*CQ7^'Equations - Parameters'!$G$56*('Equations - Parameters'!$G$160/EJ7)^'Equations - Parameters'!$H$56)-FJ7)) -> 0 | FL7: =IF($C7="","",IF(DF7=0,0,DF7*EXP('Equations - Parameters'!$D$56*('Equations - Parameters'!$H$161/EJ7)^'Equations - Parameters'!$E$56-'Equations - Parameters'!$F$56*CQ7^'Equations - Parameters'!$G$56*('Equations - Parameters'!$G$161/EJ7)^'Equations - Parameters'!$H$56)-FK7-FJ7)) -> 0 | FM7: =IF($C7="","",IF(DG7=0,0,DG7*EXP('Equations - Parameters'!$D$56*('Equations - Parameters'!$H$159/EK7)^'Equations - Parameters'!$E$56-'Equations - Parameters'!$F$56*CR7^'Equations - Parameters'!$G$56*('Equations - Parameters'!$G$159/EK7)^'Equations - Parameters'!$H$56))) -> 0 | FN7: =IF($C7="","",IF(DG7=0,0,DG7*EXP('Equations - Parameters'!$D$56*('Equations - Parameters'!$H$160/EK7)^'Equations - Parameters'!$E$56-'Equations - Parameters'!$F$56*CR7^'Equations - Parameters'!$G$56*('Equations - Parameters'!$G$160/EK7)^'Equations - Parameters'!$H$56)-FM7)) -> 0 | FO7: =IF($C7="","",IF(DG7=0,0,DG7*EXP('Equations - Parameters'!$D$56*('Equations - Parameters'!$H$161/EK7)^'Equations - Parameters'!$E$56-'Equations - Parameters'!$F$56*CR7^'Equations - Parameters'!$G$56*('Equations - Parameters'!$G$161/EK7)^'Equations - Parameters'!$H$56)-FN7-FM7)) -> 0 | FP7: =IF($C7="","",IF(P7=0,0,IF(C7<2,0,BJ7*EXP('Equations - Parameters'!$D$56*('Equations - Parameters'!$H$159/AU7)^'Equations - Parameters'!$E$56-'Equations - Parameters'!$F$56*P7^'Equations - Parameters'!$G$56*('Equations - Parameters'!$G$159/AU7)^'Equations - Parameters'!$H$56)))) -> 0 | FQ7: =IF($C7="","",IF(P7=0,0,IF(C7<2,0,BJ7*EXP('Equations - Parameters'!$D$56*('Equations - Parameters'!$H$160/AU7)^'Equations - Parameters'!$E$56-'Equations - Parameters'!$F$56*P7^'Equations - Parameters'!$G$56*('Equations - Parameters'!$G$160/AU7)^'Equations - Parameters'!$H$56)-FP7))) -> 0 | FR7: =IF($C7="","",IF(P7=0,0,IF(C7<2,0,BJ7*EXP('Equations - Parameters'!$D$56*('Equations - Parameters'!$H$161/AU7)^'Equations - Parameters'!$E$56-'Equations - Parameters'!$F$56*P7^'Equations - Parameters'!$G$56*('Equations - Parameters'!$G$161/AU7)^'Equations - Parameters'!$H$56)-FQ7-FP7))) -> 0 | FS7: =IF($C7="","",IF(Q7=0,0,IF(C7<2,0,IF(BK7=0,0,BK7*EXP('Equations - Parameters'!$D$56*('Equations - Parameters'!$H$159/AV7)^'Equations - Parameters'!$E$56-'Equations - Parameters'!$F$56*Q7^'Equations - Parameters'!$G$56*('Equations - Parameters'!$G$159/AV7)^'Equations - Parameters'!$H$56))))) -> 0 | FT7: =IF($C7="","",IF(Q7=0,0,IF(C7<2,0,IF(BK7=0,0,BK7*EXP('Equations - Parameters'!$D$56*('Equations - Parameters'!$H$160/AV7)^'Equations - Parameters'!$E$56-'Equations - Parameters'!$F$56*Q7^'Equations - Parameters'!$G$56*('Equations - Parameters'!$G$160/AV7)^'Equations - Parameters'!$H$56)-FS7)))) -> 0 | FU7: =IF($C7="","",IF(Q7=0,0,IF(C7<2,0,IF(BK7=0,0,BK7*EXP('Equations - Parameters'!$D$56*('Equations - Parameters'!$H$161/AV7)^'Equations - Parameters'!$E$56-'Equations - Parameters'!$F$56*Q7^'Equations - Parameters'!$G$56*('Equations - Parameters'!$G$161/AV7)^'Equations - Parameters'!$H$56)-FT7-FS7)))) -> 0 | FV7: =IF($C7="","",IF(R7=0,0,IF(C7<2,0,IF(BL7=0,0,BL7*EXP('Equations - Parameters'!$D$56*('Equations - Parameters'!$H$159/AW7)^'Equations - Parameters'!$E$56-'Equations - Parameters'!$F$56*R7^'Equations - Parameters'!$G$56*('Equations - Parameters'!$G$159/AW7)^'Equations - Parameters'!$H$56))))) -> 0 | FW7: =IF($C7="","",IF(R7=0,0,IF(C7<2,0,IF(BL7=0,0,BL7*EXP('Equations - Parameters'!$D$56*('Equations - Parameters'!$H$160/AW7)^'Equations - Parameters'!$E$56-'Equations - Parameters'!$F$56*R7^'Equations - Parameters'!$G$56*('Equations - Parameters'!$G$160/AW7)^'Equations - Parameters'!$H$56)-FV7)))) -> 0 | FX7: =IF($C7="","",IF(R7=0,0,IF(C7<2,0,IF(BL7=0,0,BL7*EXP('Equations - Parameters'!$D$56*('Equations - Parameters'!$H$161/AW7)^'Equations - Parameters'!$E$56-'Equations - Parameters'!$F$56*R7^'Equations - Parameters'!$G$56*('Equations - Parameters'!$G$161/AW7)^'Equations - Parameters'!$H$56)-FW7-FV7)))) -> 0 | FY7: =IF($C7="","",IF(S7=0,0,IF(C7<2,0,IF(BM7=0,0,BM7*EXP('Equations - Parameters'!$D$56*('Equations - Parameters'!$H$159/AX7)^'Equations - Parameters'!$E$56-'Equations - Parameters'!$F$56*S7^'Equations - Parameters'!$G$56*('Equations - Parameters'!$G$159/AX7)^'Equations - Parameters'!$H$56))))) -> 0 | FZ7: =IF($C7="","",IF(S7=0,0,IF(C7<2,0,IF(BM7=0,0,BM7*EXP('Equations - Parameters'!$D$56*('Equations - Parameters'!$H$160/AX7)^'Equations - Parameters'!$E$56-'Equations - Parameters'!$F$56*S7^'Equations - Parameters'!$G$56*('Equations - Parameters'!$G$160/AX7)^'Equations - Parameters'!$H$56)-FY7)))) -> 0 | GA7: =IF($C7="","",IF(S7=0,0,IF(C7<2,0,IF(BM7=0,0,BM7*EXP('Equations - Parameters'!$D$56*('Equations - Parameters'!$H$161/AX7)^'Equations - Parameters'!$E$56-'Equations - Parameters'!$F$56*S7^'Equations - Parameters'!$G$56*('Equations - Parameters'!$G$161/AX7)^'Equations - Parameters'!$H$56)-FZ7-FY7)))) -> 0 | GB7: =IF($C7="","",IF(T7=0,0,IF(C7<2,0,IF(BN7=0,0,BN7*EXP('Equations - Parameters'!$D$56*('Equations - Parameters'!$H$159/AY7)^'Equations - Parameters'!$E$56-'Equations - Parameters'!$F$56*T7^'Equations - Parameters'!$G$56*('Equations - Parameters'!$G$159/AY7)^'Equations - Parameters'!$H$56))))) -> 0 | GC7: =IF($C7="","",IF(T7=0,0,IF(C7<2,0,IF(BN7=0,0,BN7*EXP('Equations - Parameters'!$D$56*('Equations - Parameters'!$H$160/AY7)^'Equations - Parameters'!$E$56-'Equations - Parameters'!$F$56*T7^'Equations - Parameters'!$G$56*('Equations - Parameters'!$G$160/AY7)^'Equations - Parameters'!$H$56)-GB7)))) -> 0 | GD7: =IF($C7="","",IF(T7=0,0,IF(C7<2,0,IF(BN7=0,0,BN7*EXP('Equations - Parameters'!$D$56*('Equations - Parameters'!$H$161/AY7)^'Equations - Parameters'!$E$56-'Equations - Parameters'!$F$56*T7^'Equations - Parameters'!$G$56*('Equations - Parameters'!$G$161/AY7)^'Equations - Parameters'!$H$56)-GC7-GB7)))) -> 0 | GE7: =IF($C7="","",IF(DR7=0,0,DR7*EXP('Equations - Parameters'!$D$56*('Equations - Parameters'!$H$159/EG7)^'Equations - Parameters'!$E$56-'Equations - Parameters'!$F$56*CN7^'Equations - Parameters'!$G$56*('Equations - Parameters'!$G$159/EG7)^'Equations - Parameters'!$H$56))) -> 0 | GF7: =IF($C7="","",IF(DR7=0,0,DR7*EXP('Equations - Parameters'!$D$56*('Equations - Parameters'!$H$160/EG7)^'Equations - Parameters'!$E$56-'Equations - Parameters'!$F$56*CN7^'Equations - Parameters'!$G$56*('Equations - Parameters'!$G$160/EG7)^'Equations - Parameters'!$H$56)-GE7)) -> 0 | GG7: =IF($C7="","",IF(DR7=0,0,DR7*EXP('Equations - Parameters'!$D$56*('Equations - Parameters'!$H$161/EG7)^'Equations - Parameters'!$E$56-'Equations - Parameters'!$F$56*CN7^'Equations - Parameters'!$G$56*('Equations - Parameters'!$G$161/EG7)^'Equations - Parameters'!$H$56)-GF7-GE7)) -> 0 | GH7: =IF($C7="","",IF(DS7=0,0,DS7*EXP('Equations - Parameters'!$D$56*('Equations - Parameters'!$H$159/EH7)^'Equations - Parameters'!$E$56-'Equations - Parameters'!$F$56*CO7^'Equations - Parameters'!$G$56*('Equations - Parameters'!$G$159/EH7)^'Equations - Parameters'!$H$56))) -> 0 | GI7: =IF($C7="","",IF(DS7=0,0,DS7*EXP('Equations - Parameters'!$D$56*('Equations - Parameters'!$H$160/EH7)^'Equations - Parameters'!$E$56-'Equations - Parameters'!$F$56*CO7^'Equations - Parameters'!$G$56*('Equations - Parameters'!$G$160/EH7)^'Equations - Parameters'!$H$56)-GH7)) -> 0 | GJ7: =IF($C7="","",IF(DS7=0,0,DS7*EXP('Equations - Parameters'!$D$56*('Equations - Parameters'!$H$161/EH7)^'Equations - Parameters'!$E$56-'Equations - Parameters'!$F$56*CO7^'Equations - Parameters'!$G$56*('Equations - Parameters'!$G$161/EH7)^'Equations - Parameters'!$H$56)-GI7-GH7)) -> 0 | GK7: =IF($C7="","",IF(DT7=0,0,DT7*EXP('Equations - Parameters'!$D$56*('Equations - Parameters'!$H$159/EI7)^'Equations - Parameters'!$E$56-'Equations - Parameters'!$F$56*CP7^'Equations - Parameters'!$G$56*('Equations - Parameters'!$G$159/EI7)^'Equations - Parameters'!$H$56))) -> 0 | GL7: =IF($C7="","",IF(DT7=0,0,DT7*EXP('Equations - Parameters'!$D$56*('Equations - Parameters'!$H$160/EI7)^'Equations - Parameters'!$E$56-'Equations - Parameters'!$F$56*CP7^'Equations - Parameters'!$G$56*('Equations - Parameters'!$G$160/EI7)^'Equations - Parameters'!$H$56)-GK7)) -> 0 | GM7: =IF($C7="","",IF(DT7=0,0,DT7*EXP('Equations - Parameters'!$D$56*('Equations - Parameters'!$H$161/EI7)^'Equations - Parameters'!$E$56-'Equations - Parameters'!$F$56*CP7^'Equations - Parameters'!$G$56*('Equations - Parameters'!$G$161/EI7)^'Equations - Parameters'!$H$56)-GL7-GK7)) -> 0 | GN7: =IF($C7="","",IF(DU7=0,0,DU7*EXP('Equations - Parameters'!$D$56*('Equations - Parameters'!$H$159/EJ7)^'Equations - Parameters'!$E$56-'Equations - Parameters'!$F$56*CQ7^'Equations - Parameters'!$G$56*('Equations - Parameters'!$G$159/EJ7)^'Equations - Parameters'!$H$56))) -> 0 | GO7: =IF($C7="","",IF(DU7=0,0,DU7*EXP('Equations - Parameters'!$D$56*('Equations - Parameters'!$H$160/EJ7)^'Equations - Parameters'!$E$56-'Equations - Parameters'!$F$56*CQ7^'Equations - Parameters'!$G$56*('Equations - Parameters'!$G$160/EJ7)^'Equations - Parameters'!$H$56)-GN7)) -> 0 | GP7: =IF($C7="","",IF(DU7=0,0,DU7*EXP('Equations - Parameters'!$D$56*('Equations - Parameters'!$H$161/EJ7)^'Equations - Parameters'!$E$56-'Equations - Parameters'!$F$56*CQ7^'Equations - Parameters'!$G$56*('Equations - Parameters'!$G$161/EJ7)^'Equations - Parameters'!$H$56)-GO7-GN7)) -> 0 | GQ7: =IF($C7="","",IF(DV7=0,0,DV7*EXP('Equations - Parameters'!$D$56*('Equations - Parameters'!$H$159/EK7)^'Equations - Parameters'!$E$56-'Equations - Parameters'!$F$56*CR7^'Equations - Parameters'!$G$56*('Equations - Parameters'!$G$159/EK7)^'Equations - Parameters'!$H$56))) -> 0 | GR7: =IF($C7="","",IF(DV7=0,0,DV7*EXP('Equations - Parameters'!$D$56*('Equations - Parameters'!$H$160/EK7)^'Equations - Parameters'!$E$56-'Equations - Parameters'!$F$56*CR7^'Equations - Parameters'!$G$56*('Equations - Parameters'!$G$160/EK7)^'Equations - Parameters'!$H$56)-GQ7)) -> 0 | GS7: =IF($C7="","",IF(DV7=0,0,DV7*EXP('Equations - Parameters'!$D$56*('Equations - Parameters'!$H$161/EK7)^'Equations - Parameters'!$E$56-'Equations - Parameters'!$F$56*CR7^'Equations - Parameters'!$G$56*('Equations - Parameters'!$G$161/EK7)^'Equations - Parameters'!$H$56)-GR7-GQ7)) -> 0
A8: 4 | B8: =+IF(AND(inputs!$I$19=FALSE,A8+inputs!$K$5-1>inputs!$B$6),"",IF(AND(inputs!$K$2=TRUE,A8<=inputs!$B$6),1,IF(AND(inputs!$K$3=TRUE,A8+inputs!$K$5<=inputs!$B$6),1,IF(inputs!$K$2=TRUE,ROUNDDOWN((A8-1)/(inputs!$B$6),0)+1,ROUNDDOWN((A8+inputs!$K$5-1)/(inputs!$B$6),0)+1)))) -> 1 | C8: =+IF(B8="","",IF(AND(inputs!$I$19=FALSE,A8+inputs!$K$5-1>inputs!$B$6),"",IF(C7=inputs!$B$6,1,IF(AND(inputs!$K$2=TRUE,A8=0),0,IF(AND(inputs!$K$3=TRUE,A8=0),inputs!$K$5,IF(C7=inputs!$B$6,0,C7+1)))))) -> 4 | D8: =IF(A8>25,"",IF(A8="","",'Equations - Parameters'!$B$12*inputs!$K$6*(1-EXP('Equations - Parameters'!$C$12*A8))^'Equations - Parameters'!$D$12)) -> 8.69371706 | E8: =IF(A8>25,"",IF(A8>=inputs!$J$20,('Equations - Parameters'!$D$16*inputs!$J$17+'Equations - Parameters'!$E$16*inputs!$J$18)*(A8-inputs!$J$20)*EXP(-(A8-inputs!$J$20)*('Equations - Parameters'!$F$16*inputs!$J$17+'Equations - Parameters'!$G$16*inputs!$J$18)),0)+IF(A8>=inputs!$J$21,('Equations - Parameters'!$D$16*inputs!$J$17+'Equations - Parameters'!$E$16*inputs!$J$18)*(A8-inputs!$J$21)*EXP(-(A8-inputs!$J$21)*('Equations - Parameters'!$F$16*inputs!$J$17+'Equations - Parameters'!$G$16*inputs!$J$18)),0)+IF(A8>=inputs!$J$22,('Equations - Parameters'!$D$16*inputs!$J$17+'Equations - Parameters'!$E$16*inputs!$J$18)*(A8-inputs!$J$22)*EXP(-(A8-inputs!$J$22)*('Equations - Parameters'!$F$16*inputs!$J$17+'Equations - Parameters'!$G$16*inputs!$J$18)),0)+IF(A8>=inputs!$J$23,('Equations - Parameters'!$D$16*inputs!$J$17+'Equations - Parameters'!$E$16*inputs!$J$18)*(A8-inputs!$J$23)*EXP(-(A8-inputs!$J$23)*('Equations - Parameters'!$F$16*inputs!$J$17+'Equations - Parameters'!$G$16*inputs!$J$18)),0)) -> 0 | F8: =IF(A8>25,"",('Equations - Parameters'!$E$12*0+'Equations - Parameters'!$F$12*inputs!$J$8+'Equations - Parameters'!$G$12*inputs!$J$9+'Equations - Parameters'!$H$12*inputs!$J$10*inputs!$J$8)*A8*EXP('Equations - Parameters'!$I$12*A8)) -> 0 | G8: 8.69371706 | H8: =IF(C8="","",IF(AND(inputs!$K$2=TRUE,A8=0),0,IF(AND(inputs!$K$3=TRUE,A8=0),inputs!$K$15,(IF(C8=0,0,IF(AND(inputs!$K$3=TRUE, B7=1), EXP( LN(H7) + 'Equations - Parameters'!$C$28*(1/C8 - 1/C7) + ('Equations - Parameters'!$D$28*(LN(L8)-LN(L7))) + ('Equations - Parameters'!$E$28*(LN(P8)-LN(P7))) + 'Equations - Parameters'!$F$28*(LN(L8)/C8 - LN(L7)/C7) + 'Equations - Parameters'!$G$28*(LN(P8)/C8 - LN(P7)/C7) ), EXP('Equations - Parameters'!$B$20+'Equations - Parameters'!$C$20/C8)*L8^('Equations - Parameters'!$D$20+'Equations - Parameters'!$E$20/C8)*P8^('Equations - Parameters'!$F$20+'Equations - Parameters'!$G$20/C8))))))) -> 4.697650952 | I8: =IF(C8="","",IF($C8>=inputs!$J$20,('Equations - Parameters'!$C$24*inputs!$J$17+'Equations - Parameters'!$D$24*inputs!$J$18)*($C8-inputs!$J$20)*EXP(-($C8-inputs!$J$20)*('Equations - Parameters'!$E$24*inputs!$J$17+'Equations - Parameters'!$F$24*inputs!$J$18+'Equations - Parameters'!$G$24*inputs!$J$3+'Equations - Parameters'!$H$24*inputs!$J$2)),0)+IF($C8>=inputs!$J$21,('Equations - Parameters'!$C$24*inputs!$J$17+'Equations - Parameters'!$D$24*inputs!$J$18)*($C8-inputs!$J$21)*EXP(-($C8-inputs!$J$21)*('Equations - Parameters'!$E$24*inputs!$J$17+'Equations - Parameters'!$F$24*inputs!$J$18+'Equations - Parameters'!$G$24*inputs!$J$3+'Equations - Parameters'!$H$24*inputs!$J$2)),0)+IF($C8>=inputs!$J$22,('Equations - Parameters'!$C$24*inputs!$J$17+'Equations - Parameters'!$D$24*inputs!$J$18)*($C8-inputs!$J$22)*EXP(-($C8-inputs!$J$22)*('Equations - Parameters'!$E$24*inputs!$J$17+'Equations - Parameters'!$F$24*inputs!$J$18+'Equations - Parameters'!$G$24*inputs!$J$3+'Equations - Parameters'!$H$24*inputs!$J$2)),0)+IF($C8>=inputs!$J$23,('Equations - Parameters'!$C$24*inputs!$J$17+'Equations - Parameters'!$D$24*inputs!$J$18)*($C8-inputs!$J$23)*EXP(-($C8-inputs!$J$23)*('Equations - Parameters'!$E$24*inputs!$J$17+'Equations - Parameters'!$F$24*inputs!$J$18+'Equations - Parameters'!$G$24*inputs!$J$3+'Equations - Parameters'!$H$24*inputs!$J$2)),0)) -> 0 | J8: =IF(C8="","",IF(C8=0,0,('Equations - Parameters'!$H$20*0+'Equations - Parameters'!$I$20*inputs!$J$9)*C8*EXP('Equations - Parameters'!$J$20*C8))) -> 0 | K8: 4.697650952 | L8: =IF(C8="","",IF(AND(inputs!$K$2=TRUE,A8=0),0,IF(AND(inputs!$K$3=TRUE,A8=0),inputs!$K$13,(IF(C8=0,0,'Equations - Parameters'!$B$12*inputs!$K$6*(1-EXP('Equations - Parameters'!$C$12*C8))^'Equations - Parameters'!$D$12))))) -> 8.69371706 | M8: =IF(C8="","",IF(C8>=inputs!$J$20,('Equations - Parameters'!$D$16*inputs!$J$17+'Equations - Parameters'!$E$16*inputs!$J$18)*(C8-inputs!$J$20)*EXP(-(C8-inputs!$J$20)*('Equations - Parameters'!$F$16*inputs!$J$17+'Equations - Parameters'!$G$16*inputs!$J$18)),0)+IF(C8>=inputs!$J$21,('Equations - Parameters'!$D$16*inputs!$J$17+'Equations - Parameters'!$E$16*inputs!$J$18)*(C8-inputs!$J$21)*EXP(-(C8-inputs!$J$21)*('Equations - Parameters'!$F$16*inputs!$J$17+'Equations - Parameters'!$G$16*inputs!$J$18)),0)+IF(C8>=inputs!$J$22,('Equations - Parameters'!$D$16*inputs!$J$17+'Equations - Parameters'!$E$16*inputs!$J$18)*(C8-inputs!$J$22)*EXP(-(C8-inputs!$J$22)*('Equations - Parameters'!$F$16*inputs!$J$17+'Equations - Parameters'!$G$16*inputs!$J$18)),0)+IF(C8>=inputs!$J$23,('Equations - Parameters'!$D$16*inputs!$J$17+'Equations - Parameters'!$E$16*inputs!$J$18)*(C8-inputs!$J$23)*EXP(-(C8-inputs!$J$23)*('Equations - Parameters'!$F$16*inputs!$J$17+'Equations - Parameters'!$G$16*inputs!$J$18)),0)) -> 0 | N8: =IF(C8="","",('Equations - Parameters'!$E$12*0+'Equations - Parameters'!$F$12*inputs!$J$8+'Equations - Parameters'!$G$12*inputs!$J$9+'Equations - Parameters'!$H$12*inputs!$J$10*inputs!$J$8)*C8*EXP('Equations - Parameters'!$I$12*C8)) -> 0 | O8: 8.69371706 | P8: =IF(C8="","",IF(AND(inputs!$K$2=TRUE,A8=0),0,IF(AND(inputs!$K$2=TRUE,A8=1),inputs!$I$13,IF(AND(inputs!$K$3=TRUE,A8=0),inputs!$K$14,IF(C7=inputs!$B$6,inputs!$B$9,P7*EXP(('Equations - Parameters'!$D$7)*(C8^'Equations - Parameters'!$E$7-C7^'Equations - Parameters'!$E$7))))))) -> 593.5793725 | Q8: =IF(C8="","",IF(inputs!$J$25=0,0,IF(inputs!$B$30>C8,P8,IF(inputs!$B$30=C8,(P8-(inputs!$C$30*P8)),Q7*EXP(-(-'Equations - Parameters'!$D$7-'Equations - Parameters'!$F$7*inputs!$J$25)*(C8^'Equations - Parameters'!$E$7-C7^'Equations - Parameters'!$E$7)))))) -> 0 | R8: =IF(C8="","",IF(inputs!$J$25=0,0,IF(inputs!$B$31>C8,Q8,IF(inputs!$B$31=C8,(Q8-(inputs!$C$31*Q8)),R7*EXP(-(-'Equations - Parameters'!$D$7-'Equations - Parameters'!$F$7*inputs!$J$25)*(C8^'Equations - Parameters'!$E$7-C7^'Equations - Parameters'!$E$7)))))) -> 0 | S8: =IF(C8="","",IF(inputs!$J$25=0,0,IF(inputs!$B$32>C8,R8,IF(inputs!$B$32=C8,(R8-(inputs!$C$32*R8)),S7*EXP(-(-'Equations - Parameters'!$D$7-'Equations - Parameters'!$F$7*inputs!$J$25)*(C8^'Equations - Parameters'!$E$7-C7^'Equations - Parameters'!$E$7)))))) -> 0 | T8: =IF(C8="","",IF(inputs!$J$25=0,0,IF(inputs!$B$33>C8,S8,IF(inputs!$B$33=C8,(S8-(inputs!$C$33*S8)),T7*EXP(-(-'Equations - Parameters'!$D$7-'Equations - Parameters'!$F$7*inputs!$J$25)*(C8^'Equations - Parameters'!$E$7-C7^'Equations - Parameters'!$E$7)))))) -> 0 | U8: =IF(C8="","",IF(inputs!$I$25=FALSE,0,IF(C8>=inputs!$B$30,EXP('Equations - Parameters'!$B$20+'Equations - Parameters'!$C$20/C8)*O8^('Equations - Parameters'!$D$20+'Equations - Parameters'!$E$20/C8)*Q8^('Equations - Parameters'!$F$20+'Equations - Parameters'!$G$20/C8)+I8+J8,0))) -> 0 | V8: =IF(C8="","",IF(inputs!$I$25=FALSE,0,IF(C8=inputs!$B$30,K8*((P8-Q8)/P8)^'Equations - Parameters'!$F$31,0))) -> 0 | W8: =IF(C8="","",IF(inputs!$I$25=FALSE,0,IF(C8<inputs!$B$30,0,IF(C8=inputs!$B$30,(1-X8/U8),W7*EXP('Equations - Parameters'!$F$34*(C8-C7)))))) -> 0 | X8: =IF(C8="","",IF(inputs!$I$25=FALSE,0,IF(C8<inputs!$B$30,K8,IF(C8=inputs!$B$30,K8-V8,U8*(1-W8))))) -> 0 | Y8: =IF(C8="","",IF(inputs!$I$25=FALSE,0,IF(inputs!$J$30<2,0,IF(C8>=inputs!$B$31,EXP('Equations - Parameters'!$B$20+'Equations - Parameters'!$C$20/C8)*O8^('Equations - Parameters'!$D$20+'Equations - Parameters'!$E$20/C8)*R8^('Equations - Parameters'!$F$20+'Equations - Parameters'!$G$20/C8)+I8+J8,0)))) -> 0 | Z8: =IF(C8="","",IF(inputs!$I$25=FALSE,0,IF(inputs!$J$30<2,0,IF(C8=inputs!$B$31,X8*((Q8-R8)/Q8)^'Equations - Parameters'!$F$31,0)))) -> 0 | AA8: =IF(C8="","",IF(inputs!$I$25=FALSE,0,IF(inputs!$J$30<2,0,IF(C8<inputs!$B$31,0,IF(C8=inputs!$B$31,(1-AB8/Y8),AA7*EXP('Equations - Parameters'!$F$34*(C8-C7))))))) -> 0 | AB8: =IF(C8="","",IF(inputs!$I$25=FALSE,0,IF(inputs!$J$30<2,0,IF(inputs!$I$25=FALSE,0,IF(C8<inputs!$B$31,X8,IF(C8=inputs!$B$31,X8-Z8,Y8*(1-AA8))))))) -> 0 | AC8: =IF(C8="","",IF(inputs!$I$25=FALSE,0,IF(inputs!$J$30<3,0,IF(C8>=inputs!$B$32,EXP('Equations - Parameters'!$B$20+'Equations - Parameters'!$C$20/C8)*O8^('Equations - Parameters'!$D$20+'Equations - Parameters'!$E$20/C8)*S8^('Equations - Parameters'!$F$20+'Equations - Parameters'!$G$20/C8)+I8+J8,0)))) -> 0 | AD8: =IF(C8="","",IF(inputs!$I$25=FALSE,0,IF(inputs!$J$30<3,0,IF($C8=inputs!$B$32,AC8*((R8-S8)/R8)^'Equations - Parameters'!$F$31,0)))) -> 0 | AE8: =IF(C8="","",IF(inputs!$I$25=FALSE,0,IF(inputs!$J$30<3,0,IF(C8<inputs!$B$32,0,IF(C8=inputs!$B$32,(1-AF8/AC8),AE7*EXP('Equations - Parameters'!$F$34*(C8-C7))))))) -> 0 | AF8: =IF(C8="","",IF(inputs!$I$25=FALSE,0,IF(inputs!$J$30<3,0,IF($C8<inputs!$B$32,AB8,IF(C8=inputs!$B$32,AB8-AD8,AC8*(1-AE8)))))) -> 0 | AG8: =IF(C8="","",IF(inputs!$I$25=FALSE,0,IF(inputs!$J$30<4,0,IF(C8>=inputs!$B$33,EXP('Equations - Parameters'!$B$20+'Equations - Parameters'!$C$20/C8)*O8^('Equations - Parameters'!$D$20+'Equations - Parameters'!$E$20/C8)*T8^('Equations - Parameters'!$F$20+'Equations - Parameters'!$G$20/C8)+I8+J8,0)))) -> 0 | AH8: =IF(C8="","",IF(inputs!$I$25=FALSE,0,IF(inputs!$J$30<4,0,IF($C8=inputs!$B$33,AG8*((S8-T8)/S8)^'Equations - Parameters'!$F$31,0)))) -> 0 | AI8: =IF(C8="","",IF(inputs!$I$25=FALSE,0,IF(inputs!$J$30<4,0,IF(C8<inputs!$B$33,0,IF(C8=inputs!$B$33,(1-AJ8/AG8),AI7*EXP('Equations - Parameters'!$F$34*(C8-C7))))))) -> 0 | AJ8: =IF(C8="","",IF(inputs!$I$25=FALSE,0,IF(inputs!$J$30<4,0,IF($C8<inputs!$B$33,AF8,IF(C8=inputs!$B$33,AF8-AH8,AG8*(1-AI8)))))) -> 0 | AK8: 593.5793725 | AL8: 0 | AM8: 0 | AN8: 0 | AO8: 0 | AP8: 4.697650952 | AQ8: 0 | AR8: 0 | AS8: 0 | AT8: 0 | AU8: 1.204584519 | AV8: =IF(C8="","",IF(AL8=0,0,IF(inputs!$I$25=FALSE,0,IF(C8=0,0,2*SQRT(AQ8/(AL8*PI()))*12)))) -> 0 | AW8: =IF($C8="","",IF(AM8=0,0,IF(inputs!$I$25=FALSE,0,IF($C8=0,0,2*SQRT(AR8/(AM8*PI()))*12)))) -> 0 | AX8: =IF($C8="","",IF(AN8=0,0,IF(inputs!$I$25=FALSE,0,IF(inputs!$J$30<3,0,IF(C8=0,0,2*SQRT(AS8/(AN8*PI()))*12))))) -> 0 | AY8: =IF($C8="","",IF(AO8=0,0,IF(inputs!$I$25=FALSE,0,IF(inputs!$J$30<4,0,IF(C8=0,0,2*SQRT(AT8/(AO8*PI()))*12))))) -> 0 | AZ8: 19.87113302 | BA8: 0 | BB8: 0 | BC8: 0 | BD8: 0 | BE8: =IF($C8="","",IF($C8=0,0,IF(P8=0,0,EXP('Equations - Parameters'!$D$38+'Equations - Parameters'!$E$38*LN($O8)+'Equations - Parameters'!$F$38*LN(P8)+'Equations - Parameters'!$G$38*LN(K8/P8))))) -> 0.8385989165 | BF8: =IF($C8="","",IF($C8=0,0,IF(Q8=0,0,IF(BA8=0,0,EXP('Equations - Parameters'!$D$38+'Equations - Parameters'!$E$38*LN($O8)+'Equations - Parameters'!$F$38*LN(Q8)+'Equations - Parameters'!$G$38*LN(X8/Q8)))))) -> 0 | BG8: =IF($C8="","",IF($C8=0,0,IF(R8=0,0,IF(BB8=0,0,EXP('Equations - Parameters'!$D$38+'Equations - Parameters'!$E$38*LN($O8)+'Equations - Parameters'!$F$38*LN(R8)+'Equations - Parameters'!$G$38*LN(AB8/R8)))))) -> 0 | BH8: =IF($C8="","",IF($C8=0,0,IF(S8=0,0,IF(BC8=0,0,EXP('Equations - Parameters'!$D$38+'Equations - Parameters'!$E$38*LN($O8)+'Equations - Parameters'!$F$38*LN(S8)+'Equations - Parameters'!$G$38*LN(AF8/S8)))))) -> 0 | BI8: =IF($C8="","",IF($C8=0,0,IF(T8=0,0,IF(BD8=0,0,EXP('Equations - Parameters'!$D$38+'Equations - Parameters'!$E$38*LN($O8)+'Equations - Parameters'!$F$38*LN(T8)+'Equations - Parameters'!$G$38*LN(AJ8/T8)))))) -> 0 | BJ8: =IF($C8="","",IF($C8=0,0,IF(P8=0,0,('Equations - Parameters'!$E$45*LN(AU8)+'Equations - Parameters'!$D$45)*BO8))) -> 11.71083464 | BK8: =IF($C8="","",IF($C8=0,0,IF(Q8=0,0,IF(BP8=0,0,('Equations - Parameters'!$E$45*LN(AV8)+'Equations - Parameters'!$D$45)*BP8)))) -> 0 | BL8: =IF($C8="","",IF($C8=0,0,IF(R8=0,0,IF(BQ8=0,0,('Equations - Parameters'!$E$45*LN(AW8)+'Equations - Parameters'!$D$45)*BQ8)))) -> 0 | BM8: =IF($C8="","",IF($C8=0,0,IF(S8=0,0,IF(BR8=0,0,('Equations - Parameters'!$E$45*LN(AX8)+'Equations - Parameters'!$D$45)*BR8)))) -> 0 | BN8: =IF($C8="","",IF($C8=0,0,IF(T8=0,0,IF(BS8=0,0,('Equations - Parameters'!$E$45*LN(AY8)+'Equations - Parameters'!$D$45)*BS8)))) -> 0 | BO8: =IF($C8="","",EXP('Equations - Parameters'!$D$42)*O8^('Equations - Parameters'!$E$42)*K8^'Equations - Parameters'!$F$42) -> 24.77521614 | BP8: =IF($C8="","",EXP('Equations - Parameters'!$D$42)*$O8^('Equations - Parameters'!$E$42)*X8^'Equations - Parameters'!$F$42) -> 0 | BQ8: =IF($C8="","",EXP('Equations - Parameters'!$D$42)*$O8^('Equations - Parameters'!$E$42)*AB8^'Equations - Parameters'!$F$42) -> 0 | BR8: =IF($C8="","",EXP('Equations - Parameters'!$D$42)*$O8^('Equations - Parameters'!$E$42)*AF8^'Equations - Parameters'!$F$42) -> 0 | BS8: =IF($C8="","",EXP('Equations - Parameters'!$D$42)*$O8^('Equations - Parameters'!$E$42)*AJ8^'Equations - Parameters'!$F$42) -> 0 | BT8: 0 | BU8: =IF($C8="","",IF(inputs!$I$25=FALSE,0,IF($C8=inputs!$B$30,$C8,0))) -> 0 | BV8: =IF($C8="","",IF(inputs!$I$25=FALSE,0,IF($C8=inputs!$B$31,$C8,0))) -> 0 | BW8: =IF($C8="","",IF(inputs!$I$25=FALSE,0,IF($C8=inputs!$B$32,$C8,0))) -> 0 | BX8: =IF($C8="","",IF(inputs!$I$25=FALSE,0,IF($C8=inputs!$B$33,$C8,0))) -> 0 | BY8: =IF($C8="","",IF($C8=inputs!$B$6,K8,0)) -> 0 | BZ8: =IF($C8="","",IF($C8=inputs!$B$6,X8,V8)) -> 0 | CA8: =IF($C8="","",IF($C8=inputs!$B$6,AB8,Z8)) -> 0 | CB8: =IF($C8="","",IF($C8=inputs!$B$6,AF8,AD8)) -> 0 | CC8: =IF($C8="","",IF($C8=inputs!$B$6,AJ8,AH8)) -> 0 | CD8: 0 | CE8: 0 | CF8: 0 | CG8: 0 | CH8: 0 | CI8: 0 | CJ8: 0 | CK8: 0 | CL8: 0 | CM8: 0 | CN8: =IF($C8="","",IF(BY8=0,0,IF($C8=inputs!$B$6,P8,0))) -> 0 | CO8: =IF($C8="","",IF(BZ8=0,0,IF($C8=inputs!$B$6,Q8,IF($C8=inputs!$B$30,P8-Q8,0)))) -> 0 | CP8: =IF($C8="","",IF(CA8=0,0,IF($C8=inputs!$B$6,R8,IF($C8=inputs!$B$30,P8-Q8,IF($C8=inputs!$B$31,Q8-R8,0))))) -> 0 | CQ8: =IF($C8="","",IF(CB8=0,0,IF($C8=inputs!$B$6,S8,IF($C8=inputs!$B$30,P8-Q8,IF($C8=inputs!$B$31,Q8-R8,IF($C8=inputs!$B$32,R8-S8,0)))))) -> 0 | CR8: =IF($C8="","",IF(CC8=0,0,IF($C8=inputs!$B$6,T8,IF($C8=inputs!$B$30,P8-Q8,IF($C8=inputs!$B$31,Q8-R8,IF($C8=inputs!$B$32,R8-S8,IF($C8=inputs!$B$33,S8-T8,0))))))) -> 0 | CS8: 0 | CT8: 0 | CU8: 0 | CV8: 0 | CW8: 0 | CX8: 0 | CY8: 0 | CZ8: 0 | DA8: 0 | DB8: 0 | DC8: =IF($C8="","",IF(BY8=0,0,IF($C8=inputs!$B$6,BO8,0))) -> 0 | DD8: =IF($C8="","",IF(BZ8=0,0,IF(C8=inputs!$B$6,BP8,IF(C8=inputs!$B$30,(EXP('Equations - Parameters'!$D$42)*V8^('Equations - Parameters'!$E$42)*O8^'Equations - Parameters'!$F$42),0)))) -> 0 | DE8: =IF($C8="","",IF(CA8=0,0,IF(C8=inputs!$B$6,BQ8,IF(C8=inputs!$B$30,EXP('Equations - Parameters'!$D$42)*V8^('Equations - Parameters'!$E$42)*O8^'Equations - Parameters'!$F$42,IF(C8=inputs!$B$31,EXP('Equations - Parameters'!$D$42)*Z8^('Equations - Parameters'!$E$42)*O8^'Equations - Parameters'!$F$42,0))))) -> 0 | DF8: =IF($C8="","",IF(CB8=0,0,IF(C8=inputs!$B$6,BR8,IF(C8=inputs!$B$30,EXP('Equations - Parameters'!$D$42)*V8^('Equations - Parameters'!$E$42)*O8^'Equations - Parameters'!$F$42,IF(C8=inputs!$B$31,EXP('Equations - Parameters'!$D$42)*Z8^('Equations - Parameters'!$E$42)*O8^'Equations - Parameters'!$F$42,IF(C8=inputs!$B$32,EXP('Equations - Parameters'!$D$42)*AD8^('Equations - Parameters'!$E$42)*O8^'Equations - Parameters'!$F$42,0)))))) -> 0 | DG8: =IF($C8="","",IF(CC8=0,0,IF(C8=inputs!$B$6,BS8,IF(C8=inputs!$B$30,EXP('Equations - Parameters'!$D$42)*V8^('Equations - Parameters'!$E$42)*O8^'Equations - Parameters'!$F$42,IF(C8=inputs!$B$31,EXP('Equations - Parameters'!$D$42)*Z8^('Equations - Parameters'!$E$42)*O8^'Equations - Parameters'!$F$42,IF(C8=inputs!$B$32,EXP('Equations - Parameters'!$D$42)*AD8^('Equations - Parameters'!$E$42)*O8^'Equations - Parameters'!$F$42,IF(C8=inputs!$B$33,EXP('Equations - Parameters'!$D$42)*AJ8^('Equations - Parameters'!$E$42)*O8^'Equations - Parameters'!$F$42,0))))))) -> 0 | DH8: 0 | DI8: 0 | DJ8: 0 | DK8: 0 | DL8: 0 | DM8: 0 | DN8: 0 | DO8: 0 | DP8: 0 | DQ8: 0 | DR8: =IF($C8="","",IF(C8=inputs!$B$6,BJ8,0)) -> 0 | DS8: =IF($C8="","",IF($C8=0,0,IF(DD8=0,0,('Equations - Parameters'!$E$45*LN($AV8)+'Equations - Parameters'!$D$45)*DD8))) -> 0 | DT8: =IF($C8="","",IF($C8=0,0,IF(DE8=0,0,('Equations - Parameters'!$E$45*LN($AV8)+'Equations - Parameters'!$D$45)*DE8))) -> 0 | DU8: =IF($C8="","",IF($C8=0,0,IF(DF8=0,0,('Equations - Parameters'!$E$45*LN($AV8)+'Equations - Parameters'!$D$45)*DF8))) -> 0 | DV8: =IF($C8="","",IF($C8=0,0,IF(DG8=0,0,('Equations - Parameters'!$E$45*LN($AV8)+'Equations - Parameters'!$D$45)*DG8))) -> 0 | DW8: =IF($C8="","",IF(L8=inputs!$B$6,BO8,0)) -> 0 | DX8: 0 | DY8: 0 | DZ8: 0 | EA8: 0 | EB8: 0 | EC8: 0 | ED8: 0 | EE8: 0 | EF8: 0 | EG8: 0 | EH8: 0 | EI8: 0 | EJ8: 0 | EK8: 0 | EL8: =IF($C8="","",IF(P8=0,0,IF(C8<2,0,BO8*EXP('Equations - Parameters'!$D$56*('Equations - Parameters'!$H$159/AU8)^'Equations - Parameters'!$E$56-'Equations - Parameters'!$F$56*P8^'Equations - Parameters'!$G$56*('Equations - Parameters'!$G$159/AU8)^'Equations - Parameters'!$H$56)))) -> 0 | EM8: =IF($C8="","",IF(P8=0,0,IF(C8<2,0,BO8*EXP('Equations - Parameters'!$D$56*('Equations - Parameters'!$H$160/AU8)^'Equations - Parameters'!$E$56-'Equations - Parameters'!$F$56*P8^'Equations - Parameters'!$G$56*('Equations - Parameters'!$G$160/AU8)^'Equations - Parameters'!$H$56)-EL8))) -> 0 | EN8: =IF($C8="","",IF(P8=0,0,IF(C8<2,0,BO8*EXP('Equations - Parameters'!$D$56*('Equations - Parameters'!$H$161/AU8)^'Equations - Parameters'!$E$56-'Equations - Parameters'!$F$56*P8^'Equations - Parameters'!$G$56*('Equations - Parameters'!$G$161/AU8)^'Equations - Parameters'!$H$56)-EM8-EL8))) -> 0 | EO8: =IF($C8="","",IF(Q8=0,0,IF(C8<2,0,IF(BP8=0,0,BP8*EXP('Equations - Parameters'!$D$56*('Equations - Parameters'!$H$159/AV8)^'Equations - Parameters'!$E$56-'Equations - Parameters'!$F$56*Q8^'Equations - Parameters'!$G$56*('Equations - Parameters'!$G$159/AV8)^'Equations - Parameters'!$H$56))))) -> 0 | EP8: =IF($C8="","",IF(Q8=0,0,IF(C8<2,0,IF(BP8=0,0,BP8*EXP('Equations - Parameters'!$D$56*('Equations - Parameters'!$H$160/AV8)^'Equations - Parameters'!$E$56-'Equations - Parameters'!$F$56*Q8^'Equations - Parameters'!$G$56*('Equations - Parameters'!$G$160/AV8)^'Equations - Parameters'!$H$56)-EO8)))) -> 0 | EQ8: =IF($C8="","",IF(Q8=0,0,IF(C8<2,0,IF(BP8=0,0,BP8*EXP('Equations - Parameters'!$D$56*('Equations - Parameters'!$H$161/AV8)^'Equations - Parameters'!$E$56-'Equations - Parameters'!$F$56*Q8^'Equations - Parameters'!$G$56*('Equations - Parameters'!$G$161/AV8)^'Equations - Parameters'!$H$56)-EP8-EO8)))) -> 0 | ER8: =IF($C8="","",IF(R8=0,0,IF(C8<2,0,IF(BQ8=0,0,BQ8*EXP('Equations - Parameters'!$D$56*('Equations - Parameters'!$H$159/AW8)^'Equations - Parameters'!$E$56-'Equations - Parameters'!$F$56*R8^'Equations - Parameters'!$G$56*('Equations - Parameters'!$G$159/AW8)^'Equations - Parameters'!$H$56))))) -> 0 | ES8: =IF($C8="","",IF(R8=0,0,IF(C8<2,0,IF(BQ8=0,0,BQ8*EXP('Equations - Parameters'!$D$56*('Equations - Parameters'!$H$160/AW8)^'Equations - Parameters'!$E$56-'Equations - Parameters'!$F$56*R8^'Equations - Parameters'!$G$56*('Equations - Parameters'!$G$160/AW8)^'Equations - Parameters'!$H$56)-ER8)))) -> 0 | ET8: =IF($C8="","",IF(R8=0,0,IF(C8<2,0,IF(BQ8=0,0,BQ8*EXP('Equations - Parameters'!$D$56*('Equations - Parameters'!$H$161/AW8)^'Equations - Parameters'!$E$56-'Equations - Parameters'!$F$56*R8^'Equations - Parameters'!$G$56*('Equations - Parameters'!$G$161/AW8)^'Equations - Parameters'!$H$56)-ES8-ER8)))) -> 0 | EU8: =IF($C8="","",IF(S8=0,0,IF(C8<2,0,IF(BR8=0,0,BR8*EXP('Equations - Parameters'!$D$56*('Equations - Parameters'!$H$159/AX8)^'Equations - Parameters'!$E$56-'Equations - Parameters'!$F$56*S8^'Equations - Parameters'!$G$56*('Equations - Parameters'!$G$159/AX8)^'Equations - Parameters'!$H$56))))) -> 0 | EV8: =IF($C8="","",IF(S8=0,0,IF(C8<2,0,IF(BR8=0,0,BR8*EXP('Equations - Parameters'!$D$56*('Equations - Parameters'!$H$160/AX8)^'Equations - Parameters'!$E$56-'Equations - Parameters'!$F$56*S8^'Equations - Parameters'!$G$56*('Equations - Parameters'!$G$160/AX8)^'Equations - Parameters'!$H$56)-EU8)))) -> 0 | EW8: =IF($C8="","",IF(S8=0,0,IF(C8<2,0,IF(BR8=0,0,BR8*EXP('Equations - Parameters'!$D$56*('Equations - Parameters'!$H$161/AX8)^'Equations - Parameters'!$E$56-'Equations - Parameters'!$F$56*S8^'Equations - Parameters'!$G$56*('Equations - Parameters'!$G$161/AX8)^'Equations - Parameters'!$H$56)-EV8-EU8)))) -> 0 | EX8: =IF($C8="","",IF(T8=0,0,IF(C8<2,0,IF(BS8=0,0,BS8*EXP('Equations - Parameters'!$D$56*('Equations - Parameters'!$H$159/AY8)^'Equations - Parameters'!$E$56-'Equations - Parameters'!$F$56*T8^'Equations - Parameters'!$G$56*('Equations - Parameters'!$G$159/AY8)^'Equations - Parameters'!$H$56))))) -> 0 | EY8: =IF($C8="","",IF(T8=0,0,IF(C8<2,0,IF(BS8=0,0,BS8*EXP('Equations - Parameters'!$D$56*('Equations - Parameters'!$H$160/AY8)^'Equations - Parameters'!$E$56-'Equations - Parameters'!$F$56*T8^'Equations - Parameters'!$G$56*('Equations - Parameters'!$G$160/AY8)^'Equations - Parameters'!$H$56)-EX8)))) -> 0 | EZ8: =IF($C8="","",IF(T8=0,0,IF(C8<2,0,IF(BS8=0,0,BS8*EXP('Equations - Parameters'!$D$56*('Equations - Parameters'!$H$161/AY8)^'Equations - Parameters'!$E$56-'Equations - Parameters'!$F$56*T8^'Equations - Parameters'!$G$56*('Equations - Parameters'!$G$161/AY8)^'Equations - Parameters'!$H$56)-EY8-EX8)))) -> 0 | FA8: =IF($C8="","",IF(DC8=0,0,DC8*EXP('Equations - Parameters'!$D$56*('Equations - Parameters'!$H$159/EG8)^'Equations - Parameters'!$E$56-'Equations - Parameters'!$F$56*CN8^'Equations - Parameters'!$G$56*('Equations - Parameters'!$G$159/EG8)^'Equations - Parameters'!$H$56))) -> 0 | FB8: =IF($C8="","",IF(DC8=0,0,DC8*EXP('Equations - Parameters'!$D$56*('Equations - Parameters'!$H$160/EG8)^'Equations - Parameters'!$E$56-'Equations - Parameters'!$F$56*CN8^'Equations - Parameters'!$G$56*('Equations - Parameters'!$G$160/EG8)^'Equations - Parameters'!$H$56)-FA8)) -> 0 | FC8: =IF($C8="","",IF(DC8=0,0,DC8*EXP('Equations - Parameters'!$D$56*('Equations - Parameters'!$H$161/EG8)^'Equations - Parameters'!$E$56-'Equations - Parameters'!$F$56*CN8^'Equations - Parameters'!$G$56*('Equations - Parameters'!$G$161/EG8)^'Equations - Parameters'!$H$56)-FB8-FA8)) -> 0 | FD8: =IF($C8="","",IF(DD8=0,0,DD8*EXP('Equations - Parameters'!$D$56*('Equations - Parameters'!$H$159/EH8)^'Equations - Parameters'!$E$56-'Equations - Parameters'!$F$56*CO8^'Equations - Parameters'!$G$56*('Equations - Parameters'!$G$159/EH8)^'Equations - Parameters'!$H$56))) -> 0 | FE8: =IF($C8="","",IF(DD8=0,0,DD8*EXP('Equations - Parameters'!$D$56*('Equations - Parameters'!$H$160/EH8)^'Equations - Parameters'!$E$56-'Equations - Parameters'!$F$56*CO8^'Equations - Parameters'!$G$56*('Equations - Parameters'!$G$160/EH8)^'Equations - Parameters'!$H$56)-FD8)) -> 0 | FF8: =IF($C8="","",IF(DD8=0,0,DD8*EXP('Equations - Parameters'!$D$56*('Equations - Parameters'!$H$161/EH8)^'Equations - Parameters'!$E$56-'Equations - Parameters'!$F$56*CO8^'Equations - Parameters'!$G$56*('Equations - Parameters'!$G$161/EH8)^'Equations - Parameters'!$H$56)-FE8-FD8)) -> 0 | FG8: =IF($C8="","",IF(DE8=0,0,DE8*EXP('Equations - Parameters'!$D$56*('Equations - Parameters'!$H$159/EI8)^'Equations - Parameters'!$E$56-'Equations - Parameters'!$F$56*CP8^'Equations - Parameters'!$G$56*('Equations - Parameters'!$G$159/EI8)^'Equations - Parameters'!$H$56))) -> 0 | FH8: =IF($C8="","",IF(DE8=0,0,DE8*EXP('Equations - Parameters'!$D$56*('Equations - Parameters'!$H$160/EI8)^'Equations - Parameters'!$E$56-'Equations - Parameters'!$F$56*CP8^'Equations - Parameters'!$G$56*('Equations - Parameters'!$G$160/EI8)^'Equations - Parameters'!$H$56)-FG8)) -> 0 | FI8: =IF($C8="","",IF(DE8=0,0,DE8*EXP('Equations - Parameters'!$D$56*('Equations - Parameters'!$H$161/EI8)^'Equations - Parameters'!$E$56-'Equations - Parameters'!$F$56*CP8^'Equations - Parameters'!$G$56*('Equations - Parameters'!$G$161/EI8)^'Equations - Parameters'!$H$56)-FH8-FG8)) -> 0 | FJ8: =IF($C8="","",IF(DF8=0,0,DF8*EXP('Equations - Parameters'!$D$56*('Equations - Parameters'!$H$159/EJ8)^'Equations - Parameters'!$E$56-'Equations - Parameters'!$F$56*CQ8^'Equations - Parameters'!$G$56*('Equations - Parameters'!$G$159/EJ8)^'Equations - Parameters'!$H$56))) -> 0 | FK8: =IF($C8="","",IF(DF8=0,0,DF8*EXP('Equations - Parameters'!$D$56*('Equations - Parameters'!$H$160/EJ8)^'Equations - Parameters'!$E$56-'Equations - Parameters'!$F$56*CQ8^'Equations - Parameters'!$G$56*('Equations - Parameters'!$G$160/EJ8)^'Equations - Parameters'!$H$56)-FJ8)) -> 0 | FL8: =IF($C8="","",IF(DF8=0,0,DF8*EXP('Equations - Parameters'!$D$56*('Equations - Parameters'!$H$161/EJ8)^'Equations - Parameters'!$E$56-'Equations - Parameters'!$F$56*CQ8^'Equations - Parameters'!$G$56*('Equations - Parameters'!$G$161/EJ8)^'Equations - Parameters'!$H$56)-FK8-FJ8)) -> 0 | FM8: =IF($C8="","",IF(DG8=0,0,DG8*EXP('Equations - Parameters'!$D$56*('Equations - Parameters'!$H$159/EK8)^'Equations - Parameters'!$E$56-'Equations - Parameters'!$F$56*CR8^'Equations - Parameters'!$G$56*('Equations - Parameters'!$G$159/EK8)^'Equations - Parameters'!$H$56))) -> 0 | FN8: =IF($C8="","",IF(DG8=0,0,DG8*EXP('Equations - Parameters'!$D$56*('Equations - Parameters'!$H$160/EK8)^'Equations - Parameters'!$E$56-'Equations - Parameters'!$F$56*CR8^'Equations - Parameters'!$G$56*('Equations - Parameters'!$G$160/EK8)^'Equations - Parameters'!$H$56)-FM8)) -> 0 | FO8: =IF($C8="","",IF(DG8=0,0,DG8*EXP('Equations - Parameters'!$D$56*('Equations - Parameters'!$H$161/EK8)^'Equations - Parameters'!$E$56-'Equations - Parameters'!$F$56*CR8^'Equations - Parameters'!$G$56*('Equations - Parameters'!$G$161/EK8)^'Equations - Parameters'!$H$56)-FN8-FM8)) -> 0 | FP8: =IF($C8="","",IF(P8=0,0,IF(C8<2,0,BJ8*EXP('Equations - Parameters'!$D$56*('Equations - Parameters'!$H$159/AU8)^'Equations - Parameters'!$E$56-'Equations - Parameters'!$F$56*P8^'Equations - Parameters'!$G$56*('Equations - Parameters'!$G$159/AU8)^'Equations - Parameters'!$H$56)))) -> 0 | FQ8: =IF($C8="","",IF(P8=0,0,IF(C8<2,0,BJ8*EXP('Equations - Parameters'!$D$56*('Equations - Parameters'!$H$160/AU8)^'Equations - Parameters'!$E$56-'Equations - Parameters'!$F$56*P8^'Equations - Parameters'!$G$56*('Equations - Parameters'!$G$160/AU8)^'Equations - Parameters'!$H$56)-FP8))) -> 0 | FR8: =IF($C8="","",IF(P8=0,0,IF(C8<2,0,BJ8*EXP('Equations - Parameters'!$D$56*('Equations - Parameters'!$H$161/AU8)^'Equations - Parameters'!$E$56-'Equations - Parameters'!$F$56*P8^'Equations - Parameters'!$G$56*('Equations - Parameters'!$G$161/AU8)^'Equations - Parameters'!$H$56)-FQ8-FP8))) -> 0 | FS8: =IF($C8="","",IF(Q8=0,0,IF(C8<2,0,IF(BK8=0,0,BK8*EXP('Equations - Parameters'!$D$56*('Equations - Parameters'!$H$159/AV8)^'Equations - Parameters'!$E$56-'Equations - Parameters'!$F$56*Q8^'Equations - Parameters'!$G$56*('Equations - Parameters'!$G$159/AV8)^'Equations - Parameters'!$H$56))))) -> 0 | FT8: =IF($C8="","",IF(Q8=0,0,IF(C8<2,0,IF(BK8=0,0,BK8*EXP('Equations - Parameters'!$D$56*('Equations - Parameters'!$H$160/AV8)^'Equations - Parameters'!$E$56-'Equations - Parameters'!$F$56*Q8^'Equations - Parameters'!$G$56*('Equations - Parameters'!$G$160/AV8)^'Equations - Parameters'!$H$56)-FS8)))) -> 0 | FU8: =IF($C8="","",IF(Q8=0,0,IF(C8<2,0,IF(BK8=0,0,BK8*EXP('Equations - Parameters'!$D$56*('Equations - Parameters'!$H$161/AV8)^'Equations - Parameters'!$E$56-'Equations - Parameters'!$F$56*Q8^'Equations - Parameters'!$G$56*('Equations - Parameters'!$G$161/AV8)^'Equations - Parameters'!$H$56)-FT8-FS8)))) -> 0 | FV8: =IF($C8="","",IF(R8=0,0,IF(C8<2,0,IF(BL8=0,0,BL8*EXP('Equations - Parameters'!$D$56*('Equations - Parameters'!$H$159/AW8)^'Equations - Parameters'!$E$56-'Equations - Parameters'!$F$56*R8^'Equations - Parameters'!$G$56*('Equations - Parameters'!$G$159/AW8)^'Equations - Parameters'!$H$56))))) -> 0 | FW8: =IF($C8="","",IF(R8=0,0,IF(C8<2,0,IF(BL8=0,0,BL8*EXP('Equations - Parameters'!$D$56*('Equations - Parameters'!$H$160/AW8)^'Equations - Parameters'!$E$56-'Equations - Parameters'!$F$56*R8^'Equations - Parameters'!$G$56*('Equations - Parameters'!$G$160/AW8)^'Equations - Parameters'!$H$56)-FV8)))) -> 0 | FX8: =IF($C8="","",IF(R8=0,0,IF(C8<2,0,IF(BL8=0,0,BL8*EXP('Equations - Parameters'!$D$56*('Equations - Parameters'!$H$161/AW8)^'Equations - Parameters'!$E$56-'Equations - Parameters'!$F$56*R8^'Equations - Parameters'!$G$56*('Equations - Parameters'!$G$161/AW8)^'Equations - Parameters'!$H$56)-FW8-FV8)))) -> 0 | FY8: =IF($C8="","",IF(S8=0,0,IF(C8<2,0,IF(BM8=0,0,BM8*EXP('Equations - Parameters'!$D$56*('Equations - Parameters'!$H$159/AX8)^'Equations - Parameters'!$E$56-'Equations - Parameters'!$F$56*S8^'Equations - Parameters'!$G$56*('Equations - Parameters'!$G$159/AX8)^'Equations - Parameters'!$H$56))))) -> 0 | FZ8: =IF($C8="","",IF(S8=0,0,IF(C8<2,0,IF(BM8=0,0,BM8*EXP('Equations - Parameters'!$D$56*('Equations - Parameters'!$H$160/AX8)^'Equations - Parameters'!$E$56-'Equations - Parameters'!$F$56*S8^'Equations - Parameters'!$G$56*('Equations - Parameters'!$G$160/AX8)^'Equations - Parameters'!$H$56)-FY8)))) -> 0 | GA8: =IF($C8="","",IF(S8=0,0,IF(C8<2,0,IF(BM8=0,0,BM8*EXP('Equations - Parameters'!$D$56*('Equations - Parameters'!$H$161/AX8)^'Equations - Parameters'!$E$56-'Equations - Parameters'!$F$56*S8^'Equations - Parameters'!$G$56*('Equations - Parameters'!$G$161/AX8)^'Equations - Parameters'!$H$56)-FZ8-FY8)))) -> 0 | GB8: =IF($C8="","",IF(T8=0,0,IF(C8<2,0,IF(BN8=0,0,BN8*EXP('Equations - Parameters'!$D$56*('Equations - Parameters'!$H$159/AY8)^'Equations - Parameters'!$E$56-'Equations - Parameters'!$F$56*T8^'Equations - Parameters'!$G$56*('Equations - Parameters'!$G$159/AY8)^'Equations - Parameters'!$H$56))))) -> 0 | GC8: =IF($C8="","",IF(T8=0,0,IF(C8<2,0,IF(BN8=0,0,BN8*EXP('Equations - Parameters'!$D$56*('Equations - Parameters'!$H$160/AY8)^'Equations - Parameters'!$E$56-'Equations - Parameters'!$F$56*T8^'Equations - Parameters'!$G$56*('Equations - Parameters'!$G$160/AY8)^'Equations - Parameters'!$H$56)-GB8)))) -> 0 | GD8: =IF($C8="","",IF(T8=0,0,IF(C8<2,0,IF(BN8=0,0,BN8*EXP('Equations - Parameters'!$D$56*('Equations - Parameters'!$H$161/AY8)^'Equations - Parameters'!$E$56-'Equations - Parameters'!$F$56*T8^'Equations - Parameters'!$G$56*('Equations - Parameters'!$G$161/AY8)^'Equations - Parameters'!$H$56)-GC8-GB8)))) -> 0 | GE8: =IF($C8="","",IF(DR8=0,0,DR8*EXP('Equations - Parameters'!$D$56*('Equations - Parameters'!$H$159/EG8)^'Equations - Parameters'!$E$56-'Equations - Parameters'!$F$56*CN8^'Equations - Parameters'!$G$56*('Equations - Parameters'!$G$159/EG8)^'Equations - Parameters'!$H$56))) -> 0 | GF8: =IF($C8="","",IF(DR8=0,0,DR8*EXP('Equations - Parameters'!$D$56*('Equations - Parameters'!$H$160/EG8)^'Equations - Parameters'!$E$56-'Equations - Parameters'!$F$56*CN8^'Equations - Parameters'!$G$56*('Equations - Parameters'!$G$160/EG8)^'Equations - Parameters'!$H$56)-GE8)) -> 0 | GG8: =IF($C8="","",IF(DR8=0,0,DR8*EXP('Equations - Parameters'!$D$56*('Equations - Parameters'!$H$161/EG8)^'Equations - Parameters'!$E$56-'Equations - Parameters'!$F$56*CN8^'Equations - Parameters'!$G$56*('Equations - Parameters'!$G$161/EG8)^'Equations - Parameters'!$H$56)-GF8-GE8)) -> 0 | GH8: =IF($C8="","",IF(DS8=0,0,DS8*EXP('Equations - Parameters'!$D$56*('Equations - Parameters'!$H$159/EH8)^'Equations - Parameters'!$E$56-'Equations - Parameters'!$F$56*CO8^'Equations - Parameters'!$G$56*('Equations - Parameters'!$G$159/EH8)^'Equations - Parameters'!$H$56))) -> 0 | GI8: =IF($C8="","",IF(DS8=0,0,DS8*EXP('Equations - Parameters'!$D$56*('Equations - Parameters'!$H$160/EH8)^'Equations - Parameters'!$E$56-'Equations - Parameters'!$F$56*CO8^'Equations - Parameters'!$G$56*('Equations - Parameters'!$G$160/EH8)^'Equations - Parameters'!$H$56)-GH8)) -> 0 | GJ8: =IF($C8="","",IF(DS8=0,0,DS8*EXP('Equations - Parameters'!$D$56*('Equations - Parameters'!$H$161/EH8)^'Equations - Parameters'!$E$56-'Equations - Parameters'!$F$56*CO8^'Equations - Parameters'!$G$56*('Equations - Parameters'!$G$161/EH8)^'Equations - Parameters'!$H$56)-GI8-GH8)) -> 0 | GK8: =IF($C8="","",IF(DT8=0,0,DT8*EXP('Equations - Parameters'!$D$56*('Equations - Parameters'!$H$159/EI8)^'Equations - Parameters'!$E$56-'Equations - Parameters'!$F$56*CP8^'Equations - Parameters'!$G$56*('Equations - Parameters'!$G$159/EI8)^'Equations - Parameters'!$H$56))) -> 0 | GL8: =IF($C8="","",IF(DT8=0,0,DT8*EXP('Equations - Parameters'!$D$56*('Equations - Parameters'!$H$160/EI8)^'Equations - Parameters'!$E$56-'Equations - Parameters'!$F$56*CP8^'Equations - Parameters'!$G$56*('Equations - Parameters'!$G$160/EI8)^'Equations - Parameters'!$H$56)-GK8)) -> 0 | GM8: =IF($C8="","",IF(DT8=0,0,DT8*EXP('Equations - Parameters'!$D$56*('Equations - Parameters'!$H$161/EI8)^'Equations - Parameters'!$E$56-'Equations - Parameters'!$F$56*CP8^'Equations - Parameters'!$G$56*('Equations - Parameters'!$G$161/EI8)^'Equations - Parameters'!$H$56)-GL8-GK8)) -> 0 | GN8: =IF($C8="","",IF(DU8=0,0,DU8*EXP('Equations - Parameters'!$D$56*('Equations - Parameters'!$H$159/EJ8)^'Equations - Parameters'!$E$56-'Equations - Parameters'!$F$56*CQ8^'Equations - Parameters'!$G$56*('Equations - Parameters'!$G$159/EJ8)^'Equations - Parameters'!$H$56))) -> 0 | GO8: =IF($C8="","",IF(DU8=0,0,DU8*EXP('Equations - Parameters'!$D$56*('Equations - Parameters'!$H$160/EJ8)^'Equations - Parameters'!$E$56-'Equations - Parameters'!$F$56*CQ8^'Equations - Parameters'!$G$56*('Equations - Parameters'!$G$160/EJ8)^'Equations - Parameters'!$H$56)-GN8)) -> 0 | GP8: =IF($C8="","",IF(DU8=0,0,DU8*EXP('Equations - Parameters'!$D$56*('Equations - Parameters'!$H$161/EJ8)^'Equations - Parameters'!$E$56-'Equations - Parameters'!$F$56*CQ8^'Equations - Parameters'!$G$56*('Equations - Parameters'!$G$161/EJ8)^'Equations - Parameters'!$H$56)-GO8-GN8)) -> 0 | GQ8: =IF($C8="","",IF(DV8=0,0,DV8*EXP('Equations - Parameters'!$D$56*('Equations - Parameters'!$H$159/EK8)^'Equations - Parameters'!$E$56-'Equations - Parameters'!$F$56*CR8^'Equations - Parameters'!$G$56*('Equations - Parameters'!$G$159/EK8)^'Equations - Parameters'!$H$56))) -> 0 | GR8: =IF($C8="","",IF(DV8=0,0,DV8*EXP('Equations - Parameters'!$D$56*('Equations - Parameters'!$H$160/EK8)^'Equations - Parameters'!$E$56-'Equations - Parameters'!$F$56*CR8^'Equations - Parameters'!$G$56*('Equations - Parameters'!$G$160/EK8)^'Equations - Parameters'!$H$56)-GQ8)) -> 0 | GS8: =IF($C8="","",IF(DV8=0,0,DV8*EXP('Equations - Parameters'!$D$56*('Equations - Parameters'!$H$161/EK8)^'Equations - Parameters'!$E$56-'Equations - Parameters'!$F$56*CR8^'Equations - Parameters'!$G$56*('Equations - Parameters'!$G$161/EK8)^'Equations - Parameters'!$H$56)-GR8-GQ8)) -> 0
A9: 5 | B9: =+IF(AND(inputs!$I$19=FALSE,A9+inputs!$K$5-1>inputs!$B$6),"",IF(AND(inputs!$K$2=TRUE,A9<=inputs!$B$6),1,IF(AND(inputs!$K$3=TRUE,A9+inputs!$K$5<=inputs!$B$6),1,IF(inputs!$K$2=TRUE,ROUNDDOWN((A9-1)/(inputs!$B$6),0)+1,ROUNDDOWN((A9+inputs!$K$5-1)/(inputs!$B$6),0)+1)))) -> 1 | C9: =+IF(B9="","",IF(AND(inputs!$I$19=FALSE,A9+inputs!$K$5-1>inputs!$B$6),"",IF(C8=inputs!$B$6,1,IF(AND(inputs!$K$2=TRUE,A9=0),0,IF(AND(inputs!$K$3=TRUE,A9=0),inputs!$K$5,IF(C8=inputs!$B$6,0,C8+1)))))) -> 5 | D9: =IF(A9>25,"",IF(A9="","",'Equations - Parameters'!$B$12*inputs!$K$6*(1-EXP('Equations - Parameters'!$C$12*A9))^'Equations - Parameters'!$D$12)) -> 12.21350854 | E9: =IF(A9>25,"",IF(A9>=inputs!$J$20,('Equations - Parameters'!$D$16*inputs!$J$17+'Equations - Parameters'!$E$16*inputs!$J$18)*(A9-inputs!$J$20)*EXP(-(A9-inputs!$J$20)*('Equations - Parameters'!$F$16*inputs!$J$17+'Equations - Parameters'!$G$16*inputs!$J$18)),0)+IF(A9>=inputs!$J$21,('Equations - Parameters'!$D$16*inputs!$J$17+'Equations - Parameters'!$E$16*inputs!$J$18)*(A9-inputs!$J$21)*EXP(-(A9-inputs!$J$21)*('Equations - Parameters'!$F$16*inputs!$J$17+'Equations - Parameters'!$G$16*inputs!$J$18)),0)+IF(A9>=inputs!$J$22,('Equations - Parameters'!$D$16*inputs!$J$17+'Equations - Parameters'!$E$16*inputs!$J$18)*(A9-inputs!$J$22)*EXP(-(A9-inputs!$J$22)*('Equations - Parameters'!$F$16*inputs!$J$17+'Equations - Parameters'!$G$16*inputs!$J$18)),0)+IF(A9>=inputs!$J$23,('Equations - Parameters'!$D$16*inputs!$J$17+'Equations - Parameters'!$E$16*inputs!$J$18)*(A9-inputs!$J$23)*EXP(-(A9-inputs!$J$23)*('Equations - Parameters'!$F$16*inputs!$J$17+'Equations - Parameters'!$G$16*inputs!$J$18)),0)) -> 0 | F9: =IF(A9>25,"",('Equations - Parameters'!$E$12*0+'Equations - Parameters'!$F$12*inputs!$J$8+'Equations - Parameters'!$G$12*inputs!$J$9+'Equations - Parameters'!$H$12*inputs!$J$10*inputs!$J$8)*A9*EXP('Equations - Parameters'!$I$12*A9)) -> 0 | G9: 12.21350854 | H9: =IF(C9="","",IF(AND(inputs!$K$2=TRUE,A9=0),0,IF(AND(inputs!$K$3=TRUE,A9=0),inputs!$K$15,(IF(C9=0,0,IF(AND(inputs!$K$3=TRUE, B8=1), EXP( LN(H8) + 'Equations - Parameters'!$C$28*(1/C9 - 1/C8) + ('Equations - Parameters'!$D$28*(LN(L9)-LN(L8))) + ('Equations - Parameters'!$E$28*(LN(P9)-LN(P8))) + 'Equations - Parameters'!$F$28*(LN(L9)/C9 - LN(L8)/C8) + 'Equations - Parameters'!$G$28*(LN(P9)/C9 - LN(P8)/C8) ), EXP('Equations - Parameters'!$B$20+'Equations - Parameters'!$C$20/C9)*L9^('Equations - Parameters'!$D$20+'Equations - Parameters'!$E$20/C9)*P9^('Equations - Parameters'!$F$20+'Equations - Parameters'!$G$20/C9))))))) -> 11.18079544 | I9: =IF(C9="","",IF($C9>=inputs!$J$20,('Equations - Parameters'!$C$24*inputs!$J$17+'Equations - Parameters'!$D$24*inputs!$J$18)*($C9-inputs!$J$20)*EXP(-($C9-inputs!$J$20)*('Equations - Parameters'!$E$24*inputs!$J$17+'Equations - Parameters'!$F$24*inputs!$J$18+'Equations - Parameters'!$G$24*inputs!$J$3+'Equations - Parameters'!$H$24*inputs!$J$2)),0)+IF($C9>=inputs!$J$21,('Equations - Parameters'!$C$24*inputs!$J$17+'Equations - Parameters'!$D$24*inputs!$J$18)*($C9-inputs!$J$21)*EXP(-($C9-inputs!$J$21)*('Equations - Parameters'!$E$24*inputs!$J$17+'Equations - Parameters'!$F$24*inputs!$J$18+'Equations - Parameters'!$G$24*inputs!$J$3+'Equations - Parameters'!$H$24*inputs!$J$2)),0)+IF($C9>=inputs!$J$22,('Equations - Parameters'!$C$24*inputs!$J$17+'Equations - Parameters'!$D$24*inputs!$J$18)*($C9-inputs!$J$22)*EXP(-($C9-inputs!$J$22)*('Equations - Parameters'!$E$24*inputs!$J$17+'Equations - Parameters'!$F$24*inputs!$J$18+'Equations - Parameters'!$G$24*inputs!$J$3+'Equations - Parameters'!$H$24*inputs!$J$2)),0)+IF($C9>=inputs!$J$23,('Equations - Parameters'!$C$24*inputs!$J$17+'Equations - Parameters'!$D$24*inputs!$J$18)*($C9-inputs!$J$23)*EXP(-($C9-inputs!$J$23)*('Equations - Parameters'!$E$24*inputs!$J$17+'Equations - Parameters'!$F$24*inputs!$J$18+'Equations - Parameters'!$G$24*inputs!$J$3+'Equations - Parameters'!$H$24*inputs!$J$2)),0)) -> 0 | J9: =IF(C9="","",IF(C9=0,0,('Equations - Parameters'!$H$20*0+'Equations - Parameters'!$I$20*inputs!$J$9)*C9*EXP('Equations - Parameters'!$J$20*C9))) -> 0 | K9: 11.18079544 | L9: =IF(C9="","",IF(AND(inputs!$K$2=TRUE,A9=0),0,IF(AND(inputs!$K$3=TRUE,A9=0),inputs!$K$13,(IF(C9=0,0,'Equations - Parameters'!$B$12*inputs!$K$6*(1-EXP('Equations - Parameters'!$C$12*C9))^'Equations - Parameters'!$D$12))))) -> 12.21350854 | M9: =IF(C9="","",IF(C9>=inputs!$J$20,('Equations - Parameters'!$D$16*inputs!$J$17+'Equations - Parameters'!$E$16*inputs!$J$18)*(C9-inputs!$J$20)*EXP(-(C9-inputs!$J$20)*('Equations - Parameters'!$F$16*inputs!$J$17+'Equations - Parameters'!$G$16*inputs!$J$18)),0)+IF(C9>=inputs!$J$21,('Equations - Parameters'!$D$16*inputs!$J$17+'Equations - Parameters'!$E$16*inputs!$J$18)*(C9-inputs!$J$21)*EXP(-(C9-inputs!$J$21)*('Equations - Parameters'!$F$16*inputs!$J$17+'Equations - Parameters'!$G$16*inputs!$J$18)),0)+IF(C9>=inputs!$J$22,('Equations - Parameters'!$D$16*inputs!$J$17+'Equations - Parameters'!$E$16*inputs!$J$18)*(C9-inputs!$J$22)*EXP(-(C9-inputs!$J$22)*('Equations - Parameters'!$F$16*inputs!$J$17+'Equations - Parameters'!$G$16*inputs!$J$18)),0)+IF(C9>=inputs!$J$23,('Equations - Parameters'!$D$16*inputs!$J$17+'Equations - Parameters'!$E$16*inputs!$J$18)*(C9-inputs!$J$23)*EXP(-(C9-inputs!$J$23)*('Equations - Parameters'!$F$16*inputs!$J$17+'Equations - Parameters'!$G$16*inputs!$J$18)),0)) -> 0 | N9: =IF(C9="","",('Equations - Parameters'!$E$12*0+'Equations - Parameters'!$F$12*inputs!$J$8+'Equations - Parameters'!$G$12*inputs!$J$9+'Equations - Parameters'!$H$12*inputs!$J$10*inputs!$J$8)*C9*EXP('Equations - Parameters'!$I$12*C9)) -> 0 | O9: 12.21350854 | P9: =IF(C9="","",IF(AND(inputs!$K$2=TRUE,A9=0),0,IF(AND(inputs!$K$2=TRUE,A9=1),inputs!$I$13,IF(AND(inputs!$K$3=TRUE,A9=0),inputs!$K$14,IF(C8=inputs!$B$6,inputs!$B$9,P8*EXP(('Equations - Parameters'!$D$7)*(C9^'Equations - Parameters'!$E$7-C8^'Equations - Parameters'!$E$7))))))) -> 588.1075593 | Q9: =IF(C9="","",IF(inputs!$J$25=0,0,IF(inputs!$B$30>C9,P9,IF(inputs!$B$30=C9,(P9-(inputs!$C$30*P9)),Q8*EXP(-(-'Equations - Parameters'!$D$7-'Equations - Parameters'!$F$7*inputs!$J$25)*(C9^'Equations - Parameters'!$E$7-C8^'Equations - Parameters'!$E$7)))))) -> 0 | R9: =IF(C9="","",IF(inputs!$J$25=0,0,IF(inputs!$B$31>C9,Q9,IF(inputs!$B$31=C9,(Q9-(inputs!$C$31*Q9)),R8*EXP(-(-'Equations - Parameters'!$D$7-'Equations - Parameters'!$F$7*inputs!$J$25)*(C9^'Equations - Parameters'!$E$7-C8^'Equations - Parameters'!$E$7)))))) -> 0 | S9: =IF(C9="","",IF(inputs!$J$25=0,0,IF(inputs!$B$32>C9,R9,IF(inputs!$B$32=C9,(R9-(inputs!$C$32*R9)),S8*EXP(-(-'Equations - Parameters'!$D$7-'Equations - Parameters'!$F$7*inputs!$J$25)*(C9^'Equations - Parameters'!$E$7-C8^'Equations - Parameters'!$E$7)))))) -> 0 | T9: =IF(C9="","",IF(inputs!$J$25=0,0,IF(inputs!$B$33>C9,S9,IF(inputs!$B$33=C9,(S9-(inputs!$C$33*S9)),T8*EXP(-(-'Equations - Parameters'!$D$7-'Equations - Parameters'!$F$7*inputs!$J$25)*(C9^'Equations - Parameters'!$E$7-C8^'Equations - Parameters'!$E$7)))))) -> 0 | U9: =IF(C9="","",IF(inputs!$I$25=FALSE,0,IF(C9>=inputs!$B$30,EXP('Equations - Parameters'!$B$20+'Equations - Parameters'!$C$20/C9)*O9^('Equations - Parameters'!$D$20+'Equations - Parameters'!$E$20/C9)*Q9^('Equations - Parameters'!$F$20+'Equations - Parameters'!$G$20/C9)+I9+J9,0))) -> 0 | V9: =IF(C9="","",IF(inputs!$I$25=FALSE,0,IF(C9=inputs!$B$30,K9*((P9-Q9)/P9)^'Equations - Parameters'!$F$31,0))) -> 0 | W9: =IF(C9="","",IF(inputs!$I$25=FALSE,0,IF(C9<inputs!$B$30,0,IF(C9=inputs!$B$30,(1-X9/U9),W8*EXP('Equations - Parameters'!$F$34*(C9-C8)))))) -> 0 | X9: =IF(C9="","",IF(inputs!$I$25=FALSE,0,IF(C9<inputs!$B$30,K9,IF(C9=inputs!$B$30,K9-V9,U9*(1-W9))))) -> 0 | Y9: =IF(C9="","",IF(inputs!$I$25=FALSE,0,IF(inputs!$J$30<2,0,IF(C9>=inputs!$B$31,EXP('Equations - Parameters'!$B$20+'Equations - Parameters'!$C$20/C9)*O9^('Equations - Parameters'!$D$20+'Equations - Parameters'!$E$20/C9)*R9^('Equations - Parameters'!$F$20+'Equations - Parameters'!$G$20/C9)+I9+J9,0)))) -> 0 | Z9: =IF(C9="","",IF(inputs!$I$25=FALSE,0,IF(inputs!$J$30<2,0,IF(C9=inputs!$B$31,X9*((Q9-R9)/Q9)^'Equations - Parameters'!$F$31,0)))) -> 0 | AA9: =IF(C9="","",IF(inputs!$I$25=FALSE,0,IF(inputs!$J$30<2,0,IF(C9<inputs!$B$31,0,IF(C9=inputs!$B$31,(1-AB9/Y9),AA8*EXP('Equations - Parameters'!$F$34*(C9-C8))))))) -> 0 | AB9: =IF(C9="","",IF(inputs!$I$25=FALSE,0,IF(inputs!$J$30<2,0,IF(inputs!$I$25=FALSE,0,IF(C9<inputs!$B$31,X9,IF(C9=inputs!$B$31,X9-Z9,Y9*(1-AA9))))))) -> 0 | AC9: =IF(C9="","",IF(inputs!$I$25=FALSE,0,IF(inputs!$J$30<3,0,IF(C9>=inputs!$B$32,EXP('Equations - Parameters'!$B$20+'Equations - Parameters'!$C$20/C9)*O9^('Equations - Parameters'!$D$20+'Equations - Parameters'!$E$20/C9)*S9^('Equations - Parameters'!$F$20+'Equations - Parameters'!$G$20/C9)+I9+J9,0)))) -> 0 | AD9: =IF(C9="","",IF(inputs!$I$25=FALSE,0,IF(inputs!$J$30<3,0,IF($C9=inputs!$B$32,AC9*((R9-S9)/R9)^'Equations - Parameters'!$F$31,0)))) -> 0 | AE9: =IF(C9="","",IF(inputs!$I$25=FALSE,0,IF(inputs!$J$30<3,0,IF(C9<inputs!$B$32,0,IF(C9=inputs!$B$32,(1-AF9/AC9),AE8*EXP('Equations - Parameters'!$F$34*(C9-C8))))))) -> 0 | AF9: =IF(C9="","",IF(inputs!$I$25=FALSE,0,IF(inputs!$J$30<3,0,IF($C9<inputs!$B$32,AB9,IF(C9=inputs!$B$32,AB9-AD9,AC9*(1-AE9)))))) -> 0 | AG9: =IF(C9="","",IF(inputs!$I$25=FALSE,0,IF(inputs!$J$30<4,0,IF(C9>=inputs!$B$33,EXP('Equations - Parameters'!$B$20+'Equations - Parameters'!$C$20/C9)*O9^('Equations - Parameters'!$D$20+'Equations - Parameters'!$E$20/C9)*T9^('Equations - Parameters'!$F$20+'Equations - Parameters'!$G$20/C9)+I9+J9,0)))) -> 0 | AH9: =IF(C9="","",IF(inputs!$I$25=FALSE,0,IF(inputs!$J$30<4,0,IF($C9=inputs!$B$33,AG9*((S9-T9)/S9)^'Equations - Parameters'!$F$31,0)))) -> 0 | AI9: =IF(C9="","",IF(inputs!$I$25=FALSE,0,IF(inputs!$J$30<4,0,IF(C9<inputs!$B$33,0,IF(C9=inputs!$B$33,(1-AJ9/AG9),AI8*EXP('Equations - Parameters'!$F$34*(C9-C8))))))) -> 0 | AJ9: =IF(C9="","",IF(inputs!$I$25=FALSE,0,IF(inputs!$J$30<4,0,IF($C9<inputs!$B$33,AF9,IF(C9=inputs!$B$33,AF9-AH9,AG9*(1-AI9)))))) -> 0 | AK9: 588.1075593 | AL9: 0 | AM9: 0 | AN9: 0 | AO9: 0 | AP9: 11.18079544 | AQ9: 0 | AR9: 0 | AS9: 0 | AT9: 0 | AU9: 1.866999818 | AV9: =IF(C9="","",IF(AL9=0,0,IF(inputs!$I$25=FALSE,0,IF(C9=0,0,2*SQRT(AQ9/(AL9*PI()))*12)))) -> 0 | AW9: =IF($C9="","",IF(AM9=0,0,IF(inputs!$I$25=FALSE,0,IF($C9=0,0,2*SQRT(AR9/(AM9*PI()))*12)))) -> 0 | AX9: =IF($C9="","",IF(AN9=0,0,IF(inputs!$I$25=FALSE,0,IF(inputs!$J$30<3,0,IF(C9=0,0,2*SQRT(AS9/(AN9*PI()))*12))))) -> 0 | AY9: =IF($C9="","",IF(AO9=0,0,IF(inputs!$I$25=FALSE,0,IF(inputs!$J$30<4,0,IF(C9=0,0,2*SQRT(AT9/(AO9*PI()))*12))))) -> 0 | AZ9: 39.77803485 | BA9: 0 | BB9: 0 | BC9: 0 | BD9: 0 | BE9: =IF($C9="","",IF($C9=0,0,IF(P9=0,0,EXP('Equations - Parameters'!$D$38+'Equations - Parameters'!$E$38*LN($O9)+'Equations - Parameters'!$F$38*LN(P9)+'Equations - Parameters'!$G$38*LN(K9/P9))))) -> 1.431563598 | BF9: =IF($C9="","",IF($C9=0,0,IF(Q9=0,0,IF(BA9=0,0,EXP('Equations - Parameters'!$D$38+'Equations - Parameters'!$E$38*LN($O9)+'Equations - Parameters'!$F$38*LN(Q9)+'Equations - Parameters'!$G$38*LN(X9/Q9)))))) -> 0 | BG9: =IF($C9="","",IF($C9=0,0,IF(R9=0,0,IF(BB9=0,0,EXP('Equations - Parameters'!$D$38+'Equations - Parameters'!$E$38*LN($O9)+'Equations - Parameters'!$F$38*LN(R9)+'Equations - Parameters'!$G$38*LN(AB9/R9)))))) -> 0 | BH9: =IF($C9="","",IF($C9=0,0,IF(S9=0,0,IF(BC9=0,0,EXP('Equations - Parameters'!$D$38+'Equations - Parameters'!$E$38*LN($O9)+'Equations - Parameters'!$F$38*LN(S9)+'Equations - Parameters'!$G$38*LN(AF9/S9)))))) -> 0 | BI9: =IF($C9="","",IF($C9=0,0,IF(T9=0,0,IF(BD9=0,0,EXP('Equations - Parameters'!$D$38+'Equations - Parameters'!$E$38*LN($O9)+'Equations - Parameters'!$F$38*LN(T9)+'Equations - Parameters'!$G$38*LN(AJ9/T9)))))) -> 0 | BJ9: =IF($C9="","",IF($C9=0,0,IF(P9=0,0,('Equations - Parameters'!$E$45*LN(AU9)+'Equations - Parameters'!$D$45)*BO9))) -> 43.946083 | BK9: =IF($C9="","",IF($C9=0,0,IF(Q9=0,0,IF(BP9=0,0,('Equations - Parameters'!$E$45*LN(AV9)+'Equations - Parameters'!$D$45)*BP9)))) -> 0 | BL9: =IF($C9="","",IF($C9=0,0,IF(R9=0,0,IF(BQ9=0,0,('Equations - Parameters'!$E$45*LN(AW9)+'Equations - Parameters'!$D$45)*BQ9)))) -> 0 | BM9: =IF($C9="","",IF($C9=0,0,IF(S9=0,0,IF(BR9=0,0,('Equations - Parameters'!$E$45*LN(AX9)+'Equations - Parameters'!$D$45)*BR9)))) -> 0 | BN9: =IF($C9="","",IF($C9=0,0,IF(T9=0,0,IF(BS9=0,0,('Equations - Parameters'!$E$45*LN(AY9)+'Equations - Parameters'!$D$45)*BS9)))) -> 0 | BO9: =IF($C9="","",EXP('Equations - Parameters'!$D$42)*O9^('Equations - Parameters'!$E$42)*K9^'Equations - Parameters'!$F$42) -> 79.58127145 | BP9: =IF($C9="","",EXP('Equations - Parameters'!$D$42)*$O9^('Equations - Parameters'!$E$42)*X9^'Equations - Parameters'!$F$42) -> 0 | BQ9: =IF($C9="","",EXP('Equations - Parameters'!$D$42)*$O9^('Equations - Parameters'!$E$42)*AB9^'Equations - Parameters'!$F$42) -> 0 | BR9: =IF($C9="","",EXP('Equations - Parameters'!$D$42)*$O9^('Equations - Parameters'!$E$42)*AF9^'Equations - Parameters'!$F$42) -> 0 | BS9: =IF($C9="","",EXP('Equations - Parameters'!$D$42)*$O9^('Equations - Parameters'!$E$42)*AJ9^'Equations - Parameters'!$F$42) -> 0 | BT9: 0 | BU9: =IF($C9="","",IF(inputs!$I$25=FALSE,0,IF($C9=inputs!$B$30,$C9,0))) -> 0 | BV9: =IF($C9="","",IF(inputs!$I$25=FALSE,0,IF($C9=inputs!$B$31,$C9,0))) -> 0 | BW9: =IF($C9="","",IF(inputs!$I$25=FALSE,0,IF($C9=inputs!$B$32,$C9,0))) -> 0 | BX9: =IF($C9="","",IF(inputs!$I$25=FALSE,0,IF($C9=inputs!$B$33,$C9,0))) -> 0 | BY9: =IF($C9="","",IF($C9=inputs!$B$6,K9,0)) -> 0 | BZ9: =IF($C9="","",IF($C9=inputs!$B$6,X9,V9)) -> 0 | CA9: =IF($C9="","",IF($C9=inputs!$B$6,AB9,Z9)) -> 0 | CB9: =IF($C9="","",IF($C9=inputs!$B$6,AF9,AD9)) -> 0 | CC9: =IF($C9="","",IF($C9=inputs!$B$6,AJ9,AH9)) -> 0 | CD9: 0 | CE9: 0 | CF9: 0 | CG9: 0 | CH9: 0 | CI9: 0 | CJ9: 0 | CK9: 0 | CL9: 0 | CM9: 0 | CN9: =IF($C9="","",IF(BY9=0,0,IF($C9=inputs!$B$6,P9,0))) -> 0 | CO9: =IF($C9="","",IF(BZ9=0,0,IF($C9=inputs!$B$6,Q9,IF($C9=inputs!$B$30,P9-Q9,0)))) -> 0 | CP9: =IF($C9="","",IF(CA9=0,0,IF($C9=inputs!$B$6,R9,IF($C9=inputs!$B$30,P9-Q9,IF($C9=inputs!$B$31,Q9-R9,0))))) -> 0 | CQ9: =IF($C9="","",IF(CB9=0,0,IF($C9=inputs!$B$6,S9,IF($C9=inputs!$B$30,P9-Q9,IF($C9=inputs!$B$31,Q9-R9,IF($C9=inputs!$B$32,R9-S9,0)))))) -> 0 | CR9: =IF($C9="","",IF(CC9=0,0,IF($C9=inputs!$B$6,T9,IF($C9=inputs!$B$30,P9-Q9,IF($C9=inputs!$B$31,Q9-R9,IF($C9=inputs!$B$32,R9-S9,IF($C9=inputs!$B$33,S9-T9,0))))))) -> 0 | CS9: 0 | CT9: 0 | CU9: 0 | CV9: 0 | CW9: 0 | CX9: 0 | CY9: 0 | CZ9: 0 | DA9: 0 | DB9: 0 | DC9: =IF($C9="","",IF(BY9=0,0,IF($C9=inputs!$B$6,BO9,0))) -> 0 | DD9: =IF($C9="","",IF(BZ9=0,0,IF(C9=inputs!$B$6,BP9,IF(C9=inputs!$B$30,(EXP('Equations - Parameters'!$D$42)*V9^('Equations - Parameters'!$E$42)*O9^'Equations - Parameters'!$F$42),0)))) -> 0 | DE9: =IF($C9="","",IF(CA9=0,0,IF(C9=inputs!$B$6,BQ9,IF(C9=inputs!$B$30,EXP('Equations - Parameters'!$D$42)*V9^('Equations - Parameters'!$E$42)*O9^'Equations - Parameters'!$F$42,IF(C9=inputs!$B$31,EXP('Equations - Parameters'!$D$42)*Z9^('Equations - Parameters'!$E$42)*O9^'Equations - Parameters'!$F$42,0))))) -> 0 | DF9: =IF($C9="","",IF(CB9=0,0,IF(C9=inputs!$B$6,BR9,IF(C9=inputs!$B$30,EXP('Equations - Parameters'!$D$42)*V9^('Equations - Parameters'!$E$42)*O9^'Equations - Parameters'!$F$42,IF(C9=inputs!$B$31,EXP('Equations - Parameters'!$D$42)*Z9^('Equations - Parameters'!$E$42)*O9^'Equations - Parameters'!$F$42,IF(C9=inputs!$B$32,EXP('Equations - Parameters'!$D$42)*AD9^('Equations - Parameters'!$E$42)*O9^'Equations - Parameters'!$F$42,0)))))) -> 0 | DG9: =IF($C9="","",IF(CC9=0,0,IF(C9=inputs!$B$6,BS9,IF(C9=inputs!$B$30,EXP('Equations - Parameters'!$D$42)*V9^('Equations - Parameters'!$E$42)*O9^'Equations - Parameters'!$F$42,IF(C9=inputs!$B$31,EXP('Equations - Parameters'!$D$42)*Z9^('Equations - Parameters'!$E$42)*O9^'Equations - Parameters'!$F$42,IF(C9=inputs!$B$32,EXP('Equations - Parameters'!$D$42)*AD9^('Equations - Parameters'!$E$42)*O9^'Equations - Parameters'!$F$42,IF(C9=inputs!$B$33,EXP('Equations - Parameters'!$D$42)*AJ9^('Equations - Parameters'!$E$42)*O9^'Equations - Parameters'!$F$42,0))))))) -> 0 | DH9: 0 | DI9: 0 | DJ9: 0 | DK9: 0 | DL9: 0 | DM9: 0 | DN9: 0 | DO9: 0 | DP9: 0 | DQ9: 0 | DR9: =IF($C9="","",IF(C9=inputs!$B$6,BJ9,0)) -> 0 | DS9: =IF($C9="","",IF($C9=0,0,IF(DD9=0,0,('Equations - Parameters'!$E$45*LN($AV9)+'Equations - Parameters'!$D$45)*DD9))) -> 0 | DT9: =IF($C9="","",IF($C9=0,0,IF(DE9=0,0,('Equations - Parameters'!$E$45*LN($AV9)+'Equations - Parameters'!$D$45)*DE9))) -> 0 | DU9: =IF($C9="","",IF($C9=0,0,IF(DF9=0,0,('Equations - Parameters'!$E$45*LN($AV9)+'Equations - Parameters'!$D$45)*DF9))) -> 0 | DV9: =IF($C9="","",IF($C9=0,0,IF(DG9=0,0,('Equations - Parameters'!$E$45*LN($AV9)+'Equations - Parameters'!$D$45)*DG9))) -> 0 | DW9: =IF($C9="","",IF(L9=inputs!$B$6,BO9,0)) -> 0 | DX9: 0 | DY9: 0 | DZ9: 0 | EA9: 0 | EB9: 0 | EC9: 0 | ED9: 0 | EE9: 0 | EF9: 0 | EG9: 0 | EH9: 0 | EI9: 0 | EJ9: 0 | EK9: 0 | EL9: =IF($C9="","",IF(P9=0,0,IF(C9<2,0,BO9*EXP('Equations - Parameters'!$D$56*('Equations - Parameters'!$H$159/AU9)^'Equations - Parameters'!$E$56-'Equations - Parameters'!$F$56*P9^'Equations - Parameters'!$G$56*('Equations - Parameters'!$G$159/AU9)^'Equations - Parameters'!$H$56)))) -> 0 | EM9: =IF($C9="","",IF(P9=0,0,IF(C9<2,0,BO9*EXP('Equations - Parameters'!$D$56*('Equations - Parameters'!$H$160/AU9)^'Equations - Parameters'!$E$56-'Equations - Parameters'!$F$56*P9^'Equations - Parameters'!$G$56*('Equations - Parameters'!$G$160/AU9)^'Equations - Parameters'!$H$56)-EL9))) -> 0 | EN9: =IF($C9="","",IF(P9=0,0,IF(C9<2,0,BO9*EXP('Equations - Parameters'!$D$56*('Equations - Parameters'!$H$161/AU9)^'Equations - Parameters'!$E$56-'Equations - Parameters'!$F$56*P9^'Equations - Parameters'!$G$56*('Equations - Parameters'!$G$161/AU9)^'Equations - Parameters'!$H$56)-EM9-EL9))) -> 7.043880174e-110 | EO9: =IF($C9="","",IF(Q9=0,0,IF(C9<2,0,IF(BP9=0,0,BP9*EXP('Equations - Parameters'!$D$56*('Equations - Parameters'!$H$159/AV9)^'Equations - Parameters'!$E$56-'Equations - Parameters'!$F$56*Q9^'Equations - Parameters'!$G$56*('Equations - Parameters'!$G$159/AV9)^'Equations - Parameters'!$H$56))))) -> 0 | EP9: =IF($C9="","",IF(Q9=0,0,IF(C9<2,0,IF(BP9=0,0,BP9*EXP('Equations - Parameters'!$D$56*('Equations - Parameters'!$H$160/AV9)^'Equations - Parameters'!$E$56-'Equations - Parameters'!$F$56*Q9^'Equations - Parameters'!$G$56*('Equations - Parameters'!$G$160/AV9)^'Equations - Parameters'!$H$56)-EO9)))) -> 0 | EQ9: =IF($C9="","",IF(Q9=0,0,IF(C9<2,0,IF(BP9=0,0,BP9*EXP('Equations - Parameters'!$D$56*('Equations - Parameters'!$H$161/AV9)^'Equations - Parameters'!$E$56-'Equations - Parameters'!$F$56*Q9^'Equations - Parameters'!$G$56*('Equations - Parameters'!$G$161/AV9)^'Equations - Parameters'!$H$56)-EP9-EO9)))) -> 0 | ER9: =IF($C9="","",IF(R9=0,0,IF(C9<2,0,IF(BQ9=0,0,BQ9*EXP('Equations - Parameters'!$D$56*('Equations - Parameters'!$H$159/AW9)^'Equations - Parameters'!$E$56-'Equations - Parameters'!$F$56*R9^'Equations - Parameters'!$G$56*('Equations - Parameters'!$G$159/AW9)^'Equations - Parameters'!$H$56))))) -> 0 | ES9: =IF($C9="","",IF(R9=0,0,IF(C9<2,0,IF(BQ9=0,0,BQ9*EXP('Equations - Parameters'!$D$56*('Equations - Parameters'!$H$160/AW9)^'Equations - Parameters'!$E$56-'Equations - Parameters'!$F$56*R9^'Equations - Parameters'!$G$56*('Equations - Parameters'!$G$160/AW9)^'Equations - Parameters'!$H$56)-ER9)))) -> 0 | ET9: =IF($C9="","",IF(R9=0,0,IF(C9<2,0,IF(BQ9=0,0,BQ9*EXP('Equations - Parameters'!$D$56*('Equations - Parameters'!$H$161/AW9)^'Equations - Parameters'!$E$56-'Equations - Parameters'!$F$56*R9^'Equations - Parameters'!$G$56*('Equations - Parameters'!$G$161/AW9)^'Equations - Parameters'!$H$56)-ES9-ER9)))) -> 0 | EU9: =IF($C9="","",IF(S9=0,0,IF(C9<2,0,IF(BR9=0,0,BR9*EXP('Equations - Parameters'!$D$56*('Equations - Parameters'!$H$159/AX9)^'Equations - Parameters'!$E$56-'Equations - Parameters'!$F$56*S9^'Equations - Parameters'!$G$56*('Equations - Parameters'!$G$159/AX9)^'Equations - Parameters'!$H$56))))) -> 0 | EV9: =IF($C9="","",IF(S9=0,0,IF(C9<2,0,IF(BR9=0,0,BR9*EXP('Equations - Parameters'!$D$56*('Equations - Parameters'!$H$160/AX9)^'Equations - Parameters'!$E$56-'Equations - Parameters'!$F$56*S9^'Equations - Parameters'!$G$56*('Equations - Parameters'!$G$160/AX9)^'Equations - Parameters'!$H$56)-EU9)))) -> 0 | EW9: =IF($C9="","",IF(S9=0,0,IF(C9<2,0,IF(BR9=0,0,BR9*EXP('Equations - Parameters'!$D$56*('Equations - Parameters'!$H$161/AX9)^'Equations - Parameters'!$E$56-'Equations - Parameters'!$F$56*S9^'Equations - Parameters'!$G$56*('Equations - Parameters'!$G$161/AX9)^'Equations - Parameters'!$H$56)-EV9-EU9)))) -> 0 | EX9: =IF($C9="","",IF(T9=0,0,IF(C9<2,0,IF(BS9=0,0,BS9*EXP('Equations - Parameters'!$D$56*('Equations - Parameters'!$H$159/AY9)^'Equations - Parameters'!$E$56-'Equations - Parameters'!$F$56*T9^'Equations - Parameters'!$G$56*('Equations - Parameters'!$G$159/AY9)^'Equations - Parameters'!$H$56))))) -> 0 | EY9: =IF($C9="","",IF(T9=0,0,IF(C9<2,0,IF(BS9=0,0,BS9*EXP('Equations - Parameters'!$D$56*('Equations - Parameters'!$H$160/AY9)^'Equations - Parameters'!$E$56-'Equations - Parameters'!$F$56*T9^'Equations - Parameters'!$G$56*('Equations - Parameters'!$G$160/AY9)^'Equations - Parameters'!$H$56)-EX9)))) -> 0 | EZ9: =IF($C9="","",IF(T9=0,0,IF(C9<2,0,IF(BS9=0,0,BS9*EXP('Equations - Parameters'!$D$56*('Equations - Parameters'!$H$161/AY9)^'Equations - Parameters'!$E$56-'Equations - Parameters'!$F$56*T9^'Equations - Parameters'!$G$56*('Equations - Parameters'!$G$161/AY9)^'Equations - Parameters'!$H$56)-EY9-EX9)))) -> 0 | FA9: =IF($C9="","",IF(DC9=0,0,DC9*EXP('Equations - Parameters'!$D$56*('Equations - Parameters'!$H$159/EG9)^'Equations - Parameters'!$E$56-'Equations - Parameters'!$F$56*CN9^'Equations - Parameters'!$G$56*('Equations - Parameters'!$G$159/EG9)^'Equations - Parameters'!$H$56))) -> 0 | FB9: =IF($C9="","",IF(DC9=0,0,DC9*EXP('Equations - Parameters'!$D$56*('Equations - Parameters'!$H$160/EG9)^'Equations - Parameters'!$E$56-'Equations - Parameters'!$F$56*CN9^'Equations - Parameters'!$G$56*('Equations - Parameters'!$G$160/EG9)^'Equations - Parameters'!$H$56)-FA9)) -> 0 | FC9: =IF($C9="","",IF(DC9=0,0,DC9*EXP('Equations - Parameters'!$D$56*('Equations - Parameters'!$H$161/EG9)^'Equations - Parameters'!$E$56-'Equations - Parameters'!$F$56*CN9^'Equations - Parameters'!$G$56*('Equations - Parameters'!$G$161/EG9)^'Equations - Parameters'!$H$56)-FB9-FA9)) -> 0 | FD9: =IF($C9="","",IF(DD9=0,0,DD9*EXP('Equations - Parameters'!$D$56*('Equations - Parameters'!$H$159/EH9)^'Equations - Parameters'!$E$56-'Equations - Parameters'!$F$56*CO9^'Equations - Parameters'!$G$56*('Equations - Parameters'!$G$159/EH9)^'Equations - Parameters'!$H$56))) -> 0 | FE9: =IF($C9="","",IF(DD9=0,0,DD9*EXP('Equations - Parameters'!$D$56*('Equations - Parameters'!$H$160/EH9)^'Equations - Parameters'!$E$56-'Equations - Parameters'!$F$56*CO9^'Equations - Parameters'!$G$56*('Equations - Parameters'!$G$160/EH9)^'Equations - Parameters'!$H$56)-FD9)) -> 0 | FF9: =IF($C9="","",IF(DD9=0,0,DD9*EXP('Equations - Parameters'!$D$56*('Equations - Parameters'!$H$161/EH9)^'Equations - Parameters'!$E$56-'Equations - Parameters'!$F$56*CO9^'Equations - Parameters'!$G$56*('Equations - Parameters'!$G$161/EH9)^'Equations - Parameters'!$H$56)-FE9-FD9)) -> 0 | FG9: =IF($C9="","",IF(DE9=0,0,DE9*EXP('Equations - Parameters'!$D$56*('Equations - Parameters'!$H$159/EI9)^'Equations - Parameters'!$E$56-'Equations - Parameters'!$F$56*CP9^'Equations - Parameters'!$G$56*('Equations - Parameters'!$G$159/EI9)^'Equations - Parameters'!$H$56))) -> 0 | FH9: =IF($C9="","",IF(DE9=0,0,DE9*EXP('Equations - Parameters'!$D$56*('Equations - Parameters'!$H$160/EI9)^'Equations - Parameters'!$E$56-'Equations - Parameters'!$F$56*CP9^'Equations - Parameters'!$G$56*('Equations - Parameters'!$G$160/EI9)^'Equations - Parameters'!$H$56)-FG9)) -> 0 | FI9: =IF($C9="","",IF(DE9=0,0,DE9*EXP('Equations - Parameters'!$D$56*('Equations - Parameters'!$H$161/EI9)^'Equations - Parameters'!$E$56-'Equations - Parameters'!$F$56*CP9^'Equations - Parameters'!$G$56*('Equations - Parameters'!$G$161/EI9)^'Equations - Parameters'!$H$56)-FH9-FG9)) -> 0 | FJ9: =IF($C9="","",IF(DF9=0,0,DF9*EXP('Equations - Parameters'!$D$56*('Equations - Parameters'!$H$159/EJ9)^'Equations - Parameters'!$E$56-'Equations - Parameters'!$F$56*CQ9^'Equations - Parameters'!$G$56*('Equations - Parameters'!$G$159/EJ9)^'Equations - Parameters'!$H$56))) -> 0 | FK9: =IF($C9="","",IF(DF9=0,0,DF9*EXP('Equations - Parameters'!$D$56*('Equations - Parameters'!$H$160/EJ9)^'Equations - Parameters'!$E$56-'Equations - Parameters'!$F$56*CQ9^'Equations - Parameters'!$G$56*('Equations - Parameters'!$G$160/EJ9)^'Equations - Parameters'!$H$56)-FJ9)) -> 0 | FL9: =IF($C9="","",IF(DF9=0,0,DF9*EXP('Equations - Parameters'!$D$56*('Equations - Parameters'!$H$161/EJ9)^'Equations - Parameters'!$E$56-'Equations - Parameters'!$F$56*CQ9^'Equations - Parameters'!$G$56*('Equations - Parameters'!$G$161/EJ9)^'Equations - Parameters'!$H$56)-FK9-FJ9)) -> 0 | FM9: =IF($C9="","",IF(DG9=0,0,DG9*EXP('Equations - Parameters'!$D$56*('Equations - Parameters'!$H$159/EK9)^'Equations - Parameters'!$E$56-'Equations - Parameters'!$F$56*CR9^'Equations - Parameters'!$G$56*('Equations - Parameters'!$G$159/EK9)^'Equations - Parameters'!$H$56))) -> 0 | FN9: =IF($C9="","",IF(DG9=0,0,DG9*EXP('Equations - Parameters'!$D$56*('Equations - Parameters'!$H$160/EK9)^'Equations - Parameters'!$E$56-'Equations - Parameters'!$F$56*CR9^'Equations - Parameters'!$G$56*('Equations - Parameters'!$G$160/EK9)^'Equations - Parameters'!$H$56)-FM9)) -> 0 | FO9: =IF($C9="","",IF(DG9=0,0,DG9*EXP('Equations - Parameters'!$D$56*('Equations - Parameters'!$H$161/EK9)^'Equations - Parameters'!$E$56-'Equations - Parameters'!$F$56*CR9^'Equations - Parameters'!$G$56*('Equations - Parameters'!$G$161/EK9)^'Equations - Parameters'!$H$56)-FN9-FM9)) -> 0 | FP9: =IF($C9="","",IF(P9=0,0,IF(C9<2,0,BJ9*EXP('Equations - Parameters'!$D$56*('Equations - Parameters'!$H$159/AU9)^'Equations - Parameters'!$E$56-'Equations - Parameters'!$F$56*P9^'Equations - Parameters'!$G$56*('Equations - Parameters'!$G$159/AU9)^'Equations - Parameters'!$H$56)))) -> 0 | FQ9: =IF($C9="","",IF(P9=0,0,IF(C9<2,0,BJ9*EXP('Equations - Parameters'!$D$56*('Equations - Parameters'!$H$160/AU9)^'Equations - Parameters'!$E$56-'Equations - Parameters'!$F$56*P9^'Equations - Parameters'!$G$56*('Equations - Parameters'!$G$160/AU9)^'Equations - Parameters'!$H$56)-FP9))) -> 0 | FR9: =IF($C9="","",IF(P9=0,0,IF(C9<2,0,BJ9*EXP('Equations - Parameters'!$D$56*('Equations - Parameters'!$H$161/AU9)^'Equations - Parameters'!$E$56-'Equations - Parameters'!$F$56*P9^'Equations - Parameters'!$G$56*('Equations - Parameters'!$G$161/AU9)^'Equations - Parameters'!$H$56)-FQ9-FP9))) -> 3.889746132e-110 | FS9: =IF($C9="","",IF(Q9=0,0,IF(C9<2,0,IF(BK9=0,0,BK9*EXP('Equations - Parameters'!$D$56*('Equations - Parameters'!$H$159/AV9)^'Equations - Parameters'!$E$56-'Equations - Parameters'!$F$56*Q9^'Equations - Parameters'!$G$56*('Equations - Parameters'!$G$159/AV9)^'Equations - Parameters'!$H$56))))) -> 0 | FT9: =IF($C9="","",IF(Q9=0,0,IF(C9<2,0,IF(BK9=0,0,BK9*EXP('Equations - Parameters'!$D$56*('Equations - Parameters'!$H$160/AV9)^'Equations - Parameters'!$E$56-'Equations - Parameters'!$F$56*Q9^'Equations - Parameters'!$G$56*('Equations - Parameters'!$G$160/AV9)^'Equations - Parameters'!$H$56)-FS9)))) -> 0 | FU9: =IF($C9="","",IF(Q9=0,0,IF(C9<2,0,IF(BK9=0,0,BK9*EXP('Equations - Parameters'!$D$56*('Equations - Parameters'!$H$161/AV9)^'Equations - Parameters'!$E$56-'Equations - Parameters'!$F$56*Q9^'Equations - Parameters'!$G$56*('Equations - Parameters'!$G$161/AV9)^'Equations - Parameters'!$H$56)-FT9-FS9)))) -> 0 | FV9: =IF($C9="","",IF(R9=0,0,IF(C9<2,0,IF(BL9=0,0,BL9*EXP('Equations - Parameters'!$D$56*('Equations - Parameters'!$H$159/AW9)^'Equations - Parameters'!$E$56-'Equations - Parameters'!$F$56*R9^'Equations - Parameters'!$G$56*('Equations - Parameters'!$G$159/AW9)^'Equations - Parameters'!$H$56))))) -> 0 | FW9: =IF($C9="","",IF(R9=0,0,IF(C9<2,0,IF(BL9=0,0,BL9*EXP('Equations - Parameters'!$D$56*('Equations - Parameters'!$H$160/AW9)^'Equations - Parameters'!$E$56-'Equations - Parameters'!$F$56*R9^'Equations - Parameters'!$G$56*('Equations - Parameters'!$G$160/AW9)^'Equations - Parameters'!$H$56)-FV9)))) -> 0 | FX9: =IF($C9="","",IF(R9=0,0,IF(C9<2,0,IF(BL9=0,0,BL9*EXP('Equations - Parameters'!$D$56*('Equations - Parameters'!$H$161/AW9)^'Equations - Parameters'!$E$56-'Equations - Parameters'!$F$56*R9^'Equations - Parameters'!$G$56*('Equations - Parameters'!$G$161/AW9)^'Equations - Parameters'!$H$56)-FW9-FV9)))) -> 0 | FY9: =IF($C9="","",IF(S9=0,0,IF(C9<2,0,IF(BM9=0,0,BM9*EXP('Equations - Parameters'!$D$56*('Equations - Parameters'!$H$159/AX9)^'Equations - Parameters'!$E$56-'Equations - Parameters'!$F$56*S9^'Equations - Parameters'!$G$56*('Equations - Parameters'!$G$159/AX9)^'Equations - Parameters'!$H$56))))) -> 0 | FZ9: =IF($C9="","",IF(S9=0,0,IF(C9<2,0,IF(BM9=0,0,BM9*EXP('Equations - Parameters'!$D$56*('Equations - Parameters'!$H$160/AX9)^'Equations - Parameters'!$E$56-'Equations - Parameters'!$F$56*S9^'Equations - Parameters'!$G$56*('Equations - Parameters'!$G$160/AX9)^'Equations - Parameters'!$H$56)-FY9)))) -> 0 | GA9: =IF($C9="","",IF(S9=0,0,IF(C9<2,0,IF(BM9=0,0,BM9*EXP('Equations - Parameters'!$D$56*('Equations - Parameters'!$H$161/AX9)^'Equations - Parameters'!$E$56-'Equations - Parameters'!$F$56*S9^'Equations - Parameters'!$G$56*('Equations - Parameters'!$G$161/AX9)^'Equations - Parameters'!$H$56)-FZ9-FY9)))) -> 0 | GB9: =IF($C9="","",IF(T9=0,0,IF(C9<2,0,IF(BN9=0,0,BN9*EXP('Equations - Parameters'!$D$56*('Equations - Parameters'!$H$159/AY9)^'Equations - Parameters'!$E$56-'Equations - Parameters'!$F$56*T9^'Equations - Parameters'!$G$56*('Equations - Parameters'!$G$159/AY9)^'Equations - Parameters'!$H$56))))) -> 0 | GC9: =IF($C9="","",IF(T9=0,0,IF(C9<2,0,IF(BN9=0,0,BN9*EXP('Equations - Parameters'!$D$56*('Equations - Parameters'!$H$160/AY9)^'Equations - Parameters'!$E$56-'Equations - Parameters'!$F$56*T9^'Equations - Parameters'!$G$56*('Equations - Parameters'!$G$160/AY9)^'Equations - Parameters'!$H$56)-GB9)))) -> 0 | GD9: =IF($C9="","",IF(T9=0,0,IF(C9<2,0,IF(BN9=0,0,BN9*EXP('Equations - Parameters'!$D$56*('Equations - Parameters'!$H$161/AY9)^'Equations - Parameters'!$E$56-'Equations - Parameters'!$F$56*T9^'Equations - Parameters'!$G$56*('Equations - Parameters'!$G$161/AY9)^'Equations - Parameters'!$H$56)-GC9-GB9)))) -> 0 | GE9: =IF($C9="","",IF(DR9=0,0,DR9*EXP('Equations - Parameters'!$D$56*('Equations - Parameters'!$H$159/EG9)^'Equations - Parameters'!$E$56-'Equations - Parameters'!$F$56*CN9^'Equations - Parameters'!$G$56*('Equations - Parameters'!$G$159/EG9)^'Equations - Parameters'!$H$56))) -> 0 | GF9: =IF($C9="","",IF(DR9=0,0,DR9*EXP('Equations - Parameters'!$D$56*('Equations - Parameters'!$H$160/EG9)^'Equations - Parameters'!$E$56-'Equations - Parameters'!$F$56*CN9^'Equations - Parameters'!$G$56*('Equations - Parameters'!$G$160/EG9)^'Equations - Parameters'!$H$56)-GE9)) -> 0 | GG9: =IF($C9="","",IF(DR9=0,0,DR9*EXP('Equations - Parameters'!$D$56*('Equations - Parameters'!$H$161/EG9)^'Equations - Parameters'!$E$56-'Equations - Parameters'!$F$56*CN9^'Equations - Parameters'!$G$56*('Equations - Parameters'!$G$161/EG9)^'Equations - Parameters'!$H$56)-GF9-GE9)) -> 0 | GH9: =IF($C9="","",IF(DS9=0,0,DS9*EXP('Equations - Parameters'!$D$56*('Equations - Parameters'!$H$159/EH9)^'Equations - Parameters'!$E$56-'Equations - Parameters'!$F$56*CO9^'Equations - Parameters'!$G$56*('Equations - Parameters'!$G$159/EH9)^'Equations - Parameters'!$H$56))) -> 0 | GI9: =IF($C9="","",IF(DS9=0,0,DS9*EXP('Equations - Parameters'!$D$56*('Equations - Parameters'!$H$160/EH9)^'Equations - Parameters'!$E$56-'Equations - Parameters'!$F$56*CO9^'Equations - Parameters'!$G$56*('Equations - Parameters'!$G$160/EH9)^'Equations - Parameters'!$H$56)-GH9)) -> 0 | GJ9: =IF($C9="","",IF(DS9=0,0,DS9*EXP('Equations - Parameters'!$D$56*('Equations - Parameters'!$H$161/EH9)^'Equations - Parameters'!$E$56-'Equations - Parameters'!$F$56*CO9^'Equations - Parameters'!$G$56*('Equations - Parameters'!$G$161/EH9)^'Equations - Parameters'!$H$56)-GI9-GH9)) -> 0 | GK9: =IF($C9="","",IF(DT9=0,0,DT9*EXP('Equations - Parameters'!$D$56*('Equations - Parameters'!$H$159/EI9)^'Equations - Parameters'!$E$56-'Equations - Parameters'!$F$56*CP9^'Equations - Parameters'!$G$56*('Equations - Parameters'!$G$159/EI9)^'Equations - Parameters'!$H$56))) -> 0 | GL9: =IF($C9="","",IF(DT9=0,0,DT9*EXP('Equations - Parameters'!$D$56*('Equations - Parameters'!$H$160/EI9)^'Equations - Parameters'!$E$56-'Equations - Parameters'!$F$56*CP9^'Equations - Parameters'!$G$56*('Equations - Parameters'!$G$160/EI9)^'Equations - Parameters'!$H$56)-GK9)) -> 0 | GM9: =IF($C9="","",IF(DT9=0,0,DT9*EXP('Equations - Parameters'!$D$56*('Equations - Parameters'!$H$161/EI9)^'Equations - Parameters'!$E$56-'Equations - Parameters'!$F$56*CP9^'Equations - Parameters'!$G$56*('Equations - Parameters'!$G$161/EI9)^'Equations - Parameters'!$H$56)-GL9-GK9)) -> 0 | GN9: =IF($C9="","",IF(DU9=0,0,DU9*EXP('Equations - Parameters'!$D$56*('Equations - Parameters'!$H$159/EJ9)^'Equations - Parameters'!$E$56-'Equations - Parameters'!$F$56*CQ9^'Equations - Parameters'!$G$56*('Equations - Parameters'!$G$159/EJ9)^'Equations - Parameters'!$H$56))) -> 0 | GO9: =IF($C9="","",IF(DU9=0,0,DU9*EXP('Equations - Parameters'!$D$56*('Equations - Parameters'!$H$160/EJ9)^'Equations - Parameters'!$E$56-'Equations - Parameters'!$F$56*CQ9^'Equations - Parameters'!$G$56*('Equations - Parameters'!$G$160/EJ9)^'Equations - Parameters'!$H$56)-GN9)) -> 0 | GP9: =IF($C9="","",IF(DU9=0,0,DU9*EXP('Equations - Parameters'!$D$56*('Equations - Parameters'!$H$161/EJ9)^'Equations - Parameters'!$E$56-'Equations - Parameters'!$F$56*CQ9^'Equations - Parameters'!$G$56*('Equations - Parameters'!$G$161/EJ9)^'Equations - Parameters'!$H$56)-GO9-GN9)) -> 0 | GQ9: =IF($C9="","",IF(DV9=0,0,DV9*EXP('Equations - Parameters'!$D$56*('Equations - Parameters'!$H$159/EK9)^'Equations - Parameters'!$E$56-'Equations - Parameters'!$F$56*CR9^'Equations - Parameters'!$G$56*('Equations - Parameters'!$G$159/EK9)^'Equations - Parameters'!$H$56))) -> 0 | GR9: =IF($C9="","",IF(DV9=0,0,DV9*EXP('Equations - Parameters'!$D$56*('Equations - Parameters'!$H$160/EK9)^'Equations - Parameters'!$E$56-'Equations - Parameters'!$F$56*CR9^'Equations - Parameters'!$G$56*('Equations - Parameters'!$G$160/EK9)^'Equations - Parameters'!$H$56)-GQ9)) -> 0 | GS9: =IF($C9="","",IF(DV9=0,0,DV9*EXP('Equations - Parameters'!$D$56*('Equations - Parameters'!$H$161/EK9)^'Equations - Parameters'!$E$56-'Equations - Parameters'!$F$56*CR9^'Equations - Parameters'!$G$56*('Equations - Parameters'!$G$161/EK9)^'Equations - Parameters'!$H$56)-GR9-GQ9)) -> 0
A10: 6 | B10: =+IF(AND(inputs!$I$19=FALSE,A10+inputs!$K$5-1>inputs!$B$6),"",IF(AND(inputs!$K$2=TRUE,A10<=inputs!$B$6),1,IF(AND(inputs!$K$3=TRUE,A10+inputs!$K$5<=inputs!$B$6),1,IF(inputs!$K$2=TRUE,ROUNDDOWN((A10-1)/(inputs!$B$6),0)+1,ROUNDDOWN((A10+inputs!$K$5-1)/(inputs!$B$6),0)+1)))) -> 1 | C10: =+IF(B10="","",IF(AND(inputs!$I$19=FALSE,A10+inputs!$K$5-1>inputs!$B$6),"",IF(C9=inputs!$B$6,1,IF(AND(inputs!$K$2=TRUE,A10=0),0,IF(AND(inputs!$K$3=TRUE,A10=0),inputs!$K$5,IF(C9=inputs!$B$6,0,C9+1)))))) -> 6 | D10: =IF(A10>25,"",IF(A10="","",'Equations - Parameters'!$B$12*inputs!$K$6*(1-EXP('Equations - Parameters'!$C$12*A10))^'Equations - Parameters'!$D$12)) -> 15.95300616 | E10: =IF(A10>25,"",IF(A10>=inputs!$J$20,('Equations - Parameters'!$D$16*inputs!$J$17+'Equations - Parameters'!$E$16*inputs!$J$18)*(A10-inputs!$J$20)*EXP(-(A10-inputs!$J$20)*('Equations - Parameters'!$F$16*inputs!$J$17+'Equations - Parameters'!$G$16*inputs!$J$18)),0)+IF(A10>=inputs!$J$21,('Equations - Parameters'!$D$16*inputs!$J$17+'Equations - Parameters'!$E$16*inputs!$J$18)*(A10-inputs!$J$21)*EXP(-(A10-inputs!$J$21)*('Equations - Parameters'!$F$16*inputs!$J$17+'Equations - Parameters'!$G$16*inputs!$J$18)),0)+IF(A10>=inputs!$J$22,('Equations - Parameters'!$D$16*inputs!$J$17+'Equations - Parameters'!$E$16*inputs!$J$18)*(A10-inputs!$J$22)*EXP(-(A10-inputs!$J$22)*('Equations - Parameters'!$F$16*inputs!$J$17+'Equations - Parameters'!$G$16*inputs!$J$18)),0)+IF(A10>=inputs!$J$23,('Equations - Parameters'!$D$16*inputs!$J$17+'Equations - Parameters'!$E$16*inputs!$J$18)*(A10-inputs!$J$23)*EXP(-(A10-inputs!$J$23)*('Equations - Parameters'!$F$16*inputs!$J$17+'Equations - Parameters'!$G$16*inputs!$J$18)),0)) -> 0 | F10: =IF(A10>25,"",('Equations - Parameters'!$E$12*0+'Equations - Parameters'!$F$12*inputs!$J$8+'Equations - Parameters'!$G$12*inputs!$J$9+'Equations - Parameters'!$H$12*inputs!$J$10*inputs!$J$8)*A10*EXP('Equations - Parameters'!$I$12*A10)) -> 0 | G10: 15.95300616 | H10: =IF(C10="","",IF(AND(inputs!$K$2=TRUE,A10=0),0,IF(AND(inputs!$K$3=TRUE,A10=0),inputs!$K$15,(IF(C10=0,0,IF(AND(inputs!$K$3=TRUE, B9=1), EXP( LN(H9) + 'Equations - Parameters'!$C$28*(1/C10 - 1/C9) + ('Equations - Parameters'!$D$28*(LN(L10)-LN(L9))) + ('Equations - Parameters'!$E$28*(LN(P10)-LN(P9))) + 'Equations - Parameters'!$F$28*(LN(L10)/C10 - LN(L9)/C9) + 'Equations - Parameters'!$G$28*(LN(P10)/C10 - LN(P9)/C9) ), EXP('Equations - Parameters'!$B$20+'Equations - Parameters'!$C$20/C10)*L10^('Equations - Parameters'!$D$20+'Equations - Parameters'!$E$20/C10)*P10^('Equations - Parameters'!$F$20+'Equations - Parameters'!$G$20/C10))))))) -> 19.7377239 | I10: =IF(C10="","",IF($C10>=inputs!$J$20,('Equations - Parameters'!$C$24*inputs!$J$17+'Equations - Parameters'!$D$24*inputs!$J$18)*($C10-inputs!$J$20)*EXP(-($C10-inputs!$J$20)*('Equations - Parameters'!$E$24*inputs!$J$17+'Equations - Parameters'!$F$24*inputs!$J$18+'Equations - Parameters'!$G$24*inputs!$J$3+'Equations - Parameters'!$H$24*inputs!$J$2)),0)+IF($C10>=inputs!$J$21,('Equations - Parameters'!$C$24*inputs!$J$17+'Equations - Parameters'!$D$24*inputs!$J$18)*($C10-inputs!$J$21)*EXP(-($C10-inputs!$J$21)*('Equations - Parameters'!$E$24*inputs!$J$17+'Equations - Parameters'!$F$24*inputs!$J$18+'Equations - Parameters'!$G$24*inputs!$J$3+'Equations - Parameters'!$H$24*inputs!$J$2)),0)+IF($C10>=inputs!$J$22,('Equations - Parameters'!$C$24*inputs!$J$17+'Equations - Parameters'!$D$24*inputs!$J$18)*($C10-inputs!$J$22)*EXP(-($C10-inputs!$J$22)*('Equations - Parameters'!$E$24*inputs!$J$17+'Equations - Parameters'!$F$24*inputs!$J$18+'Equations - Parameters'!$G$24*inputs!$J$3+'Equations - Parameters'!$H$24*inputs!$J$2)),0)+IF($C10>=inputs!$J$23,('Equations - Parameters'!$C$24*inputs!$J$17+'Equations - Parameters'!$D$24*inputs!$J$18)*($C10-inputs!$J$23)*EXP(-($C10-inputs!$J$23)*('Equations - Parameters'!$E$24*inputs!$J$17+'Equations - Parameters'!$F$24*inputs!$J$18+'Equations - Parameters'!$G$24*inputs!$J$3+'Equations - Parameters'!$H$24*inputs!$J$2)),0)) -> 0 | J10: =IF(C10="","",IF(C10=0,0,('Equations - Parameters'!$H$20*0+'Equations - Parameters'!$I$20*inputs!$J$9)*C10*EXP('Equations - Parameters'!$J$20*C10))) -> 0 | K10: 19.7377239 | L10: =IF(C10="","",IF(AND(inputs!$K$2=TRUE,A10=0),0,IF(AND(inputs!$K$3=TRUE,A10=0),inputs!$K$13,(IF(C10=0,0,'Equations - Parameters'!$B$12*inputs!$K$6*(1-EXP('Equations - Parameters'!$C$12*C10))^'Equations - Parameters'!$D$12))))) -> 15.95300616 | M10: =IF(C10="","",IF(C10>=inputs!$J$20,('Equations - Parameters'!$D$16*inputs!$J$17+'Equations - Parameters'!$E$16*inputs!$J$18)*(C10-inputs!$J$20)*EXP(-(C10-inputs!$J$20)*('Equations - Parameters'!$F$16*inputs!$J$17+'Equations - Parameters'!$G$16*inputs!$J$18)),0)+IF(C10>=inputs!$J$21,('Equations - Parameters'!$D$16*inputs!$J$17+'Equations - Parameters'!$E$16*inputs!$J$18)*(C10-inputs!$J$21)*EXP(-(C10-inputs!$J$21)*('Equations - Parameters'!$F$16*inputs!$J$17+'Equations - Parameters'!$G$16*inputs!$J$18)),0)+IF(C10>=inputs!$J$22,('Equations - Parameters'!$D$16*inputs!$J$17+'Equations - Parameters'!$E$16*inputs!$J$18)*(C10-inputs!$J$22)*EXP(-(C10-inputs!$J$22)*('Equations - Parameters'!$F$16*inputs!$J$17+'Equations - Parameters'!$G$16*inputs!$J$18)),0)+IF(C10>=inputs!$J$23,('Equations - Parameters'!$D$16*inputs!$J$17+'Equations - Parameters'!$E$16*inputs!$J$18)*(C10-inputs!$J$23)*EXP(-(C10-inputs!$J$23)*('Equations - Parameters'!$F$16*inputs!$J$17+'Equations - Parameters'!$G$16*inputs!$J$18)),0)) -> 0 | N10: =IF(C10="","",('Equations - Parameters'!$E$12*0+'Equations - Parameters'!$F$12*inputs!$J$8+'Equations - Parameters'!$G$12*inputs!$J$9+'Equations - Parameters'!$H$12*inputs!$J$10*inputs!$J$8)*C10*EXP('Equations - Parameters'!$I$12*C10)) -> 0 | O10: 15.95300616 | P10: =IF(C10="","",IF(AND(inputs!$K$2=TRUE,A10=0),0,IF(AND(inputs!$K$2=TRUE,A10=1),inputs!$I$13,IF(AND(inputs!$K$3=TRUE,A10=0),inputs!$K$14,IF(C9=inputs!$B$6,inputs!$B$9,P9*EXP(('Equations - Parameters'!$D$7)*(C10^'Equations - Parameters'!$E$7-C9^'Equations - Parameters'!$E$7))))))) -> 582.298593 | Q10: =IF(C10="","",IF(inputs!$J$25=0,0,IF(inputs!$B$30>C10,P10,IF(inputs!$B$30=C10,(P10-(inputs!$C$30*P10)),Q9*EXP(-(-'Equations - Parameters'!$D$7-'Equations - Parameters'!$F$7*inputs!$J$25)*(C10^'Equations - Parameters'!$E$7-C9^'Equations - Parameters'!$E$7)))))) -> 0 | R10: =IF(C10="","",IF(inputs!$J$25=0,0,IF(inputs!$B$31>C10,Q10,IF(inputs!$B$31=C10,(Q10-(inputs!$C$31*Q10)),R9*EXP(-(-'Equations - Parameters'!$D$7-'Equations - Parameters'!$F$7*inputs!$J$25)*(C10^'Equations - Parameters'!$E$7-C9^'Equations - Parameters'!$E$7)))))) -> 0 | S10: =IF(C10="","",IF(inputs!$J$25=0,0,IF(inputs!$B$32>C10,R10,IF(inputs!$B$32=C10,(R10-(inputs!$C$32*R10)),S9*EXP(-(-'Equations - Parameters'!$D$7-'Equations - Parameters'!$F$7*inputs!$J$25)*(C10^'Equations - Parameters'!$E$7-C9^'Equations - Parameters'!$E$7)))))) -> 0 | T10: =IF(C10="","",IF(inputs!$J$25=0,0,IF(inputs!$B$33>C10,S10,IF(inputs!$B$33=C10,(S10-(inputs!$C$33*S10)),T9*EXP(-(-'Equations - Parameters'!$D$7-'Equations - Parameters'!$F$7*inputs!$J$25)*(C10^'Equations - Parameters'!$E$7-C9^'Equations - Parameters'!$E$7)))))) -> 0 | U10: =IF(C10="","",IF(inputs!$I$25=FALSE,0,IF(C10>=inputs!$B$30,EXP('Equations - Parameters'!$B$20+'Equations - Parameters'!$C$20/C10)*O10^('Equations - Parameters'!$D$20+'Equations - Parameters'!$E$20/C10)*Q10^('Equations - Parameters'!$F$20+'Equations - Parameters'!$G$20/C10)+I10+J10,0))) -> 0 | V10: =IF(C10="","",IF(inputs!$I$25=FALSE,0,IF(C10=inputs!$B$30,K10*((P10-Q10)/P10)^'Equations - Parameters'!$F$31,0))) -> 0 | W10: =IF(C10="","",IF(inputs!$I$25=FALSE,0,IF(C10<inputs!$B$30,0,IF(C10=inputs!$B$30,(1-X10/U10),W9*EXP('Equations - Parameters'!$F$34*(C10-C9)))))) -> 0 | X10: =IF(C10="","",IF(inputs!$I$25=FALSE,0,IF(C10<inputs!$B$30,K10,IF(C10=inputs!$B$30,K10-V10,U10*(1-W10))))) -> 0 | Y10: =IF(C10="","",IF(inputs!$I$25=FALSE,0,IF(inputs!$J$30<2,0,IF(C10>=inputs!$B$31,EXP('Equations - Parameters'!$B$20+'Equations - Parameters'!$C$20/C10)*O10^('Equations - Parameters'!$D$20+'Equations - Parameters'!$E$20/C10)*R10^('Equations - Parameters'!$F$20+'Equations - Parameters'!$G$20/C10)+I10+J10,0)))) -> 0 | Z10: =IF(C10="","",IF(inputs!$I$25=FALSE,0,IF(inputs!$J$30<2,0,IF(C10=inputs!$B$31,X10*((Q10-R10)/Q10)^'Equations - Parameters'!$F$31,0)))) -> 0 | AA10: =IF(C10="","",IF(inputs!$I$25=FALSE,0,IF(inputs!$J$30<2,0,IF(C10<inputs!$B$31,0,IF(C10=inputs!$B$31,(1-AB10/Y10),AA9*EXP('Equations - Parameters'!$F$34*(C10-C9))))))) -> 0 | AB10: =IF(C10="","",IF(inputs!$I$25=FALSE,0,IF(inputs!$J$30<2,0,IF(inputs!$I$25=FALSE,0,IF(C10<inputs!$B$31,X10,IF(C10=inputs!$B$31,X10-Z10,Y10*(1-AA10))))))) -> 0 | AC10: =IF(C10="","",IF(inputs!$I$25=FALSE,0,IF(inputs!$J$30<3,0,IF(C10>=inputs!$B$32,EXP('Equations - Parameters'!$B$20+'Equations - Parameters'!$C$20/C10)*O10^('Equations - Parameters'!$D$20+'Equations - Parameters'!$E$20/C10)*S10^('Equations - Parameters'!$F$20+'Equations - Parameters'!$G$20/C10)+I10+J10,0)))) -> 0 | AD10: =IF(C10="","",IF(inputs!$I$25=FALSE,0,IF(inputs!$J$30<3,0,IF($C10=inputs!$B$32,AC10*((R10-S10)/R10)^'Equations - Parameters'!$F$31,0)))) -> 0 | AE10: =IF(C10="","",IF(inputs!$I$25=FALSE,0,IF(inputs!$J$30<3,0,IF(C10<inputs!$B$32,0,IF(C10=inputs!$B$32,(1-AF10/AC10),AE9*EXP('Equations - Parameters'!$F$34*(C10-C9))))))) -> 0 | AF10: =IF(C10="","",IF(inputs!$I$25=FALSE,0,IF(inputs!$J$30<3,0,IF($C10<inputs!$B$32,AB10,IF(C10=inputs!$B$32,AB10-AD10,AC10*(1-AE10)))))) -> 0 | AG10: =IF(C10="","",IF(inputs!$I$25=FALSE,0,IF(inputs!$J$30<4,0,IF(C10>=inputs!$B$33,EXP('Equations - Parameters'!$B$20+'Equations - Parameters'!$C$20/C10)*O10^('Equations - Parameters'!$D$20+'Equations - Parameters'!$E$20/C10)*T10^('Equations - Parameters'!$F$20+'Equations - Parameters'!$G$20/C10)+I10+J10,0)))) -> 0 | AH10: =IF(C10="","",IF(inputs!$I$25=FALSE,0,IF(inputs!$J$30<4,0,IF($C10=inputs!$B$33,AG10*((S10-T10)/S10)^'Equations - Parameters'!$F$31,0)))) -> 0 | AI10: =IF(C10="","",IF(inputs!$I$25=FALSE,0,IF(inputs!$J$30<4,0,IF(C10<inputs!$B$33,0,IF(C10=inputs!$B$33,(1-AJ10/AG10),AI9*EXP('Equations - Parameters'!$F$34*(C10-C9))))))) -> 0 | AJ10: =IF(C10="","",IF(inputs!$I$25=FALSE,0,IF(inputs!$J$30<4,0,IF($C10<inputs!$B$33,AF10,IF(C10=inputs!$B$33,AF10-AH10,AG10*(1-AI10)))))) -> 0 | AK10: 582.298593 | AL10: 0 | AM10: 0 | AN10: 0 | AO10: 0 | AP10: 19.7377239 | AQ10: 0 | AR10: 0 | AS10: 0 | AT10: 0 | AU10: 2.492940825 | AV10: =IF(C10="","",IF(AL10=0,0,IF(inputs!$I$25=FALSE,0,IF(C10=0,0,2*SQRT(AQ10/(AL10*PI()))*12)))) -> 0 | AW10: =IF($C10="","",IF(AM10=0,0,IF(inputs!$I$25=FALSE,0,IF($C10=0,0,2*SQRT(AR10/(AM10*PI()))*12)))) -> 0 | AX10: =IF($C10="","",IF(AN10=0,0,IF(inputs!$I$25=FALSE,0,IF(inputs!$J$30<3,0,IF(C10=0,0,2*SQRT(AS10/(AN10*PI()))*12))))) -> 0 | AY10: =IF($C10="","",IF(AO10=0,0,IF(inputs!$I$25=FALSE,0,IF(inputs!$J$30<4,0,IF(C10=0,0,2*SQRT(AT10/(AO10*PI()))*12))))) -> 0 | AZ10: 62.64240923 | BA10: 0 | BB10: 0 | BC10: 0 | BD10: 0 | BE10: =IF($C10="","",IF($C10=0,0,IF(P10=0,0,EXP('Equations - Parameters'!$D$38+'Equations - Parameters'!$E$38*LN($O10)+'Equations - Parameters'!$F$38*LN(P10)+'Equations - Parameters'!$G$38*LN(K10/P10))))) -> 2.00008023 | BF10: =IF($C10="","",IF($C10=0,0,IF(Q10=0,0,IF(BA10=0,0,EXP('Equations - Parameters'!$D$38+'Equations - Parameters'!$E$38*LN($O10)+'Equations - Parameters'!$F$38*LN(Q10)+'Equations - Parameters'!$G$38*LN(X10/Q10)))))) -> 0 | BG10: =IF($C10="","",IF($C10=0,0,IF(R10=0,0,IF(BB10=0,0,EXP('Equations - Parameters'!$D$38+'Equations - Parameters'!$E$38*LN($O10)+'Equations - Parameters'!$F$38*LN(R10)+'Equations - Parameters'!$G$38*LN(AB10/R10)))))) -> 0 | BH10: =IF($C10="","",IF($C10=0,0,IF(S10=0,0,IF(BC10=0,0,EXP('Equations - Parameters'!$D$38+'Equations - Parameters'!$E$38*LN($O10)+'Equations - Parameters'!$F$38*LN(S10)+'Equations - Parameters'!$G$38*LN(AF10/S10)))))) -> 0 | BI10: =IF($C10="","",IF($C10=0,0,IF(T10=0,0,IF(BD10=0,0,EXP('Equations - Parameters'!$D$38+'Equations - Parameters'!$E$38*LN($O10)+'Equations - Parameters'!$F$38*LN(T10)+'Equations - Parameters'!$G$38*LN(AJ10/T10)))))) -> 0 | BJ10: =IF($C10="","",IF($C10=0,0,IF(P10=0,0,('Equations - Parameters'!$E$45*LN(AU10)+'Equations - Parameters'!$D$45)*BO10))) -> 107.2978854 | BK10: =IF($C10="","",IF($C10=0,0,IF(Q10=0,0,IF(BP10=0,0,('Equations - Parameters'!$E$45*LN(AV10)+'Equations - Parameters'!$D$45)*BP10)))) -> 0 | BL10: =IF($C10="","",IF($C10=0,0,IF(R10=0,0,IF(BQ10=0,0,('Equations - Parameters'!$E$45*LN(AW10)+'Equations - Parameters'!$D$45)*BQ10)))) -> 0 | BM10: =IF($C10="","",IF($C10=0,0,IF(S10=0,0,IF(BR10=0,0,('Equations - Parameters'!$E$45*LN(AX10)+'Equations - Parameters'!$D$45)*BR10)))) -> 0 | BN10: =IF($C10="","",IF($C10=0,0,IF(T10=0,0,IF(BS10=0,0,('Equations - Parameters'!$E$45*LN(AY10)+'Equations - Parameters'!$D$45)*BS10)))) -> 0 | BO10: =IF($C10="","",EXP('Equations - Parameters'!$D$42)*O10^('Equations - Parameters'!$E$42)*K10^'Equations - Parameters'!$F$42) -> 177.441757 | BP10: =IF($C10="","",EXP('Equations - Parameters'!$D$42)*$O10^('Equations - Parameters'!$E$42)*X10^'Equations - Parameters'!$F$42) -> 0 | BQ10: =IF($C10="","",EXP('Equations - Parameters'!$D$42)*$O10^('Equations - Parameters'!$E$42)*AB10^'Equations - Parameters'!$F$42) -> 0 | BR10: =IF($C10="","",EXP('Equations - Parameters'!$D$42)*$O10^('Equations - Parameters'!$E$42)*AF10^'Equations - Parameters'!$F$42) -> 0 | BS10: =IF($C10="","",EXP('Equations - Parameters'!$D$42)*$O10^('Equations - Parameters'!$E$42)*AJ10^'Equations - Parameters'!$F$42) -> 0 | BT10: 0 | BU10: =IF($C10="","",IF(inputs!$I$25=FALSE,0,IF($C10=inputs!$B$30,$C10,0))) -> 0 | BV10: =IF($C10="","",IF(inputs!$I$25=FALSE,0,IF($C10=inputs!$B$31,$C10,0))) -> 0 | BW10: =IF($C10="","",IF(inputs!$I$25=FALSE,0,IF($C10=inputs!$B$32,$C10,0))) -> 0 | BX10: =IF($C10="","",IF(inputs!$I$25=FALSE,0,IF($C10=inputs!$B$33,$C10,0))) -> 0 | BY10: =IF($C10="","",IF($C10=inputs!$B$6,K10,0)) -> 0 | BZ10: =IF($C10="","",IF($C10=inputs!$B$6,X10,V10)) -> 0 | CA10: =IF($C10="","",IF($C10=inputs!$B$6,AB10,Z10)) -> 0 | CB10: =IF($C10="","",IF($C10=inputs!$B$6,AF10,AD10)) -> 0 | CC10: =IF($C10="","",IF($C10=inputs!$B$6,AJ10,AH10)) -> 0 | CD10: 0 | CE10: 0 | CF10: 0 | CG10: 0 | CH10: 0 | CI10: 0 | CJ10: 0 | CK10: 0 | CL10: 0 | CM10: 0 | CN10: =IF($C10="","",IF(BY10=0,0,IF($C10=inputs!$B$6,P10,0))) -> 0 | CO10: =IF($C10="","",IF(BZ10=0,0,IF($C10=inputs!$B$6,Q10,IF($C10=inputs!$B$30,P10-Q10,0)))) -> 0 | CP10: =IF($C10="","",IF(CA10=0,0,IF($C10=inputs!$B$6,R10,IF($C10=inputs!$B$30,P10-Q10,IF($C10=inputs!$B$31,Q10-R10,0))))) -> 0 | CQ10: =IF($C10="","",IF(CB10=0,0,IF($C10=inputs!$B$6,S10,IF($C10=inputs!$B$30,P10-Q10,IF($C10=inputs!$B$31,Q10-R10,IF($C10=inputs!$B$32,R10-S10,0)))))) -> 0 | CR10: =IF($C10="","",IF(CC10=0,0,IF($C10=inputs!$B$6,T10,IF($C10=inputs!$B$30,P10-Q10,IF($C10=inputs!$B$31,Q10-R10,IF($C10=inputs!$B$32,R10-S10,IF($C10=inputs!$B$33,S10-T10,0))))))) -> 0 | CS10: 0 | CT10: 0 | CU10: 0 | CV10: 0 | CW10: 0 | CX10: 0 | CY10: 0 | CZ10: 0 | DA10: 0 | DB10: 0 | DC10: =IF($C10="","",IF(BY10=0,0,IF($C10=inputs!$B$6,BO10,0))) -> 0 | DD10: =IF($C10="","",IF(BZ10=0,0,IF(C10=inputs!$B$6,BP10,IF(C10=inputs!$B$30,(EXP('Equations - Parameters'!$D$42)*V10^('Equations - Parameters'!$E$42)*O10^'Equations - Parameters'!$F$42),0)))) -> 0 | DE10: =IF($C10="","",IF(CA10=0,0,IF(C10=inputs!$B$6,BQ10,IF(C10=inputs!$B$30,EXP('Equations - Parameters'!$D$42)*V10^('Equations - Parameters'!$E$42)*O10^'Equations - Parameters'!$F$42,IF(C10=inputs!$B$31,EXP('Equations - Parameters'!$D$42)*Z10^('Equations - Parameters'!$E$42)*O10^'Equations - Parameters'!$F$42,0))))) -> 0 | DF10: =IF($C10="","",IF(CB10=0,0,IF(C10=inputs!$B$6,BR10,IF(C10=inputs!$B$30,EXP('Equations - Parameters'!$D$42)*V10^('Equations - Parameters'!$E$42)*O10^'Equations - Parameters'!$F$42,IF(C10=inputs!$B$31,EXP('Equations - Parameters'!$D$42)*Z10^('Equations - Parameters'!$E$42)*O10^'Equations - Parameters'!$F$42,IF(C10=inputs!$B$32,EXP('Equations - Parameters'!$D$42)*AD10^('Equations - Parameters'!$E$42)*O10^'Equations - Parameters'!$F$42,0)))))) -> 0 | DG10: =IF($C10="","",IF(CC10=0,0,IF(C10=inputs!$B$6,BS10,IF(C10=inputs!$B$30,EXP('Equations - Parameters'!$D$42)*V10^('Equations - Parameters'!$E$42)*O10^'Equations - Parameters'!$F$42,IF(C10=inputs!$B$31,EXP('Equations - Parameters'!$D$42)*Z10^('Equations - Parameters'!$E$42)*O10^'Equations - Parameters'!$F$42,IF(C10=inputs!$B$32,EXP('Equations - Parameters'!$D$42)*AD10^('Equations - Parameters'!$E$42)*O10^'Equations - Parameters'!$F$42,IF(C10=inputs!$B$33,EXP('Equations - Parameters'!$D$42)*AJ10^('Equations - Parameters'!$E$42)*O10^'Equations - Parameters'!$F$42,0))))))) -> 0 | DH10: 0 | DI10: 0 | DJ10: 0 | DK10: 0 | DL10: 0 | DM10: 0 | DN10: 0 | DO10: 0 | DP10: 0 | DQ10: 0 | DR10: =IF($C10="","",IF(C10=inputs!$B$6,BJ10,0)) -> 0 | DS10: =IF($C10="","",IF($C10=0,0,IF(DD10=0,0,('Equations - Parameters'!$E$45*LN($AV10)+'Equations - Parameters'!$D$45)*DD10))) -> 0 | DT10: =IF($C10="","",IF($C10=0,0,IF(DE10=0,0,('Equations - Parameters'!$E$45*LN($AV10)+'Equations - Parameters'!$D$45)*DE10))) -> 0 | DU10: =IF($C10="","",IF($C10=0,0,IF(DF10=0,0,('Equations - Parameters'!$E$45*LN($AV10)+'Equations - Parameters'!$D$45)*DF10))) -> 0 | DV10: =IF($C10="","",IF($C10=0,0,IF(DG10=0,0,('Equations - Parameters'!$E$45*LN($AV10)+'Equations - Parameters'!$D$45)*DG10))) -> 0 | DW10: =IF($C10="","",IF(L10=inputs!$B$6,BO10,0)) -> 0 | DX10: 0 | DY10: 0 | DZ10: 0 | EA10: 0 | EB10: 0 | EC10: 0 | ED10: 0 | EE10: 0 | EF10: 0 | EG10: 0 | EH10: 0 | EI10: 0 | EJ10: 0 | EK10: 0 | EL10: =IF($C10="","",IF(P10=0,0,IF(C10<2,0,BO10*EXP('Equations - Parameters'!$D$56*('Equations - Parameters'!$H$159/AU10)^'Equations - Parameters'!$E$56-'Equations - Parameters'!$F$56*P10^'Equations - Parameters'!$G$56*('Equations - Parameters'!$G$159/AU10)^'Equations - Parameters'!$H$56)))) -> 0 | EM10: =IF($C10="","",IF(P10=0,0,IF(C10<2,0,BO10*EXP('Equations - Parameters'!$D$56*('Equations - Parameters'!$H$160/AU10)^'Equations - Parameters'!$E$56-'Equations - Parameters'!$F$56*P10^'Equations - Parameters'!$G$56*('Equations - Parameters'!$G$160/AU10)^'Equations - Parameters'!$H$56)-EL10))) -> 4.882228596e-115 | EN10: =IF($C10="","",IF(P10=0,0,IF(C10<2,0,BO10*EXP('Equations - Parameters'!$D$56*('Equations - Parameters'!$H$161/AU10)^'Equations - Parameters'!$E$56-'Equations - Parameters'!$F$56*P10^'Equations - Parameters'!$G$56*('Equations - Parameters'!$G$161/AU10)^'Equations - Parameters'!$H$56)-EM10-EL10))) -> 8.647171607e-20 | EO10: =IF($C10="","",IF(Q10=0,0,IF(C10<2,0,IF(BP10=0,0,BP10*EXP('Equations - Parameters'!$D$56*('Equations - Parameters'!$H$159/AV10)^'Equations - Parameters'!$E$56-'Equations - Parameters'!$F$56*Q10^'Equations - Parameters'!$G$56*('Equations - Parameters'!$G$159/AV10)^'Equations - Parameters'!$H$56))))) -> 0 | EP10: =IF($C10="","",IF(Q10=0,0,IF(C10<2,0,IF(BP10=0,0,BP10*EXP('Equations - Parameters'!$D$56*('Equations - Parameters'!$H$160/AV10)^'Equations - Parameters'!$E$56-'Equations - Parameters'!$F$56*Q10^'Equations - Parameters'!$G$56*('Equations - Parameters'!$G$160/AV10)^'Equations - Parameters'!$H$56)-EO10)))) -> 0 | EQ10: =IF($C10="","",IF(Q10=0,0,IF(C10<2,0,IF(BP10=0,0,BP10*EXP('Equations - Parameters'!$D$56*('Equations - Parameters'!$H$161/AV10)^'Equations - Parameters'!$E$56-'Equations - Parameters'!$F$56*Q10^'Equations - Parameters'!$G$56*('Equations - Parameters'!$G$161/AV10)^'Equations - Parameters'!$H$56)-EP10-EO10)))) -> 0 | ER10: =IF($C10="","",IF(R10=0,0,IF(C10<2,0,IF(BQ10=0,0,BQ10*EXP('Equations - Parameters'!$D$56*('Equations - Parameters'!$H$159/AW10)^'Equations - Parameters'!$E$56-'Equations - Parameters'!$F$56*R10^'Equations - Parameters'!$G$56*('Equations - Parameters'!$G$159/AW10)^'Equations - Parameters'!$H$56))))) -> 0 | ES10: =IF($C10="","",IF(R10=0,0,IF(C10<2,0,IF(BQ10=0,0,BQ10*EXP('Equations - Parameters'!$D$56*('Equations - Parameters'!$H$160/AW10)^'Equations - Parameters'!$E$56-'Equations - Parameters'!$F$56*R10^'Equations - Parameters'!$G$56*('Equations - Parameters'!$G$160/AW10)^'Equations - Parameters'!$H$56)-ER10)))) -> 0 | ET10: =IF($C10="","",IF(R10=0,0,IF(C10<2,0,IF(BQ10=0,0,BQ10*EXP('Equations - Parameters'!$D$56*('Equations - Parameters'!$H$161/AW10)^'Equations - Parameters'!$E$56-'Equations - Parameters'!$F$56*R10^'Equations - Parameters'!$G$56*('Equations - Parameters'!$G$161/AW10)^'Equations - Parameters'!$H$56)-ES10-ER10)))) -> 0 | EU10: =IF($C10="","",IF(S10=0,0,IF(C10<2,0,IF(BR10=0,0,BR10*EXP('Equations - Parameters'!$D$56*('Equations - Parameters'!$H$159/AX10)^'Equations - Parameters'!$E$56-'Equations - Parameters'!$F$56*S10^'Equations - Parameters'!$G$56*('Equations - Parameters'!$G$159/AX10)^'Equations - Parameters'!$H$56))))) -> 0 | EV10: =IF($C10="","",IF(S10=0,0,IF(C10<2,0,IF(BR10=0,0,BR10*EXP('Equations - Parameters'!$D$56*('Equations - Parameters'!$H$160/AX10)^'Equations - Parameters'!$E$56-'Equations - Parameters'!$F$56*S10^'Equations - Parameters'!$G$56*('Equations - Parameters'!$G$160/AX10)^'Equations - Parameters'!$H$56)-EU10)))) -> 0 | EW10: =IF($C10="","",IF(S10=0,0,IF(C10<2,0,IF(BR10=0,0,BR10*EXP('Equations - Parameters'!$D$56*('Equations - Parameters'!$H$161/AX10)^'Equations - Parameters'!$E$56-'Equations - Parameters'!$F$56*S10^'Equations - Parameters'!$G$56*('Equations - Parameters'!$G$161/AX10)^'Equations - Parameters'!$H$56)-EV10-EU10)))) -> 0 | EX10: =IF($C10="","",IF(T10=0,0,IF(C10<2,0,IF(BS10=0,0,BS10*EXP('Equations - Parameters'!$D$56*('Equations - Parameters'!$H$159/AY10)^'Equations - Parameters'!$E$56-'Equations - Parameters'!$F$56*T10^'Equations - Parameters'!$G$56*('Equations - Parameters'!$G$159/AY10)^'Equations - Parameters'!$H$56))))) -> 0 | EY10: =IF($C10="","",IF(T10=0,0,IF(C10<2,0,IF(BS10=0,0,BS10*EXP('Equations - Parameters'!$D$56*('Equations - Parameters'!$H$160/AY10)^'Equations - Parameters'!$E$56-'Equations - Parameters'!$F$56*T10^'Equations - Parameters'!$G$56*('Equations - Parameters'!$G$160/AY10)^'Equations - Parameters'!$H$56)-EX10)))) -> 0 | EZ10: =IF($C10="","",IF(T10=0,0,IF(C10<2,0,IF(BS10=0,0,BS10*EXP('Equations - Parameters'!$D$56*('Equations - Parameters'!$H$161/AY10)^'Equations - Parameters'!$E$56-'Equations - Parameters'!$F$56*T10^'Equations - Parameters'!$G$56*('Equations - Parameters'!$G$161/AY10)^'Equations - Parameters'!$H$56)-EY10-EX10)))) -> 0 | FA10: =IF($C10="","",IF(DC10=0,0,DC10*EXP('Equations - Parameters'!$D$56*('Equations - Parameters'!$H$159/EG10)^'Equations - Parameters'!$E$56-'Equations - Parameters'!$F$56*CN10^'Equations - Parameters'!$G$56*('Equations - Parameters'!$G$159/EG10)^'Equations - Parameters'!$H$56))) -> 0 | FB10: =IF($C10="","",IF(DC10=0,0,DC10*EXP('Equations - Parameters'!$D$56*('Equations - Parameters'!$H$160/EG10)^'Equations - Parameters'!$E$56-'Equations - Parameters'!$F$56*CN10^'Equations - Parameters'!$G$56*('Equations - Parameters'!$G$160/EG10)^'Equations - Parameters'!$H$56)-FA10)) -> 0 | FC10: =IF($C10="","",IF(DC10=0,0,DC10*EXP('Equations - Parameters'!$D$56*('Equations - Parameters'!$H$161/EG10)^'Equations - Parameters'!$E$56-'Equations - Parameters'!$F$56*CN10^'Equations - Parameters'!$G$56*('Equations - Parameters'!$G$161/EG10)^'Equations - Parameters'!$H$56)-FB10-FA10)) -> 0 | FD10: =IF($C10="","",IF(DD10=0,0,DD10*EXP('Equations - Parameters'!$D$56*('Equations - Parameters'!$H$159/EH10)^'Equations - Parameters'!$E$56-'Equations - Parameters'!$F$56*CO10^'Equations - Parameters'!$G$56*('Equations - Parameters'!$G$159/EH10)^'Equations - Parameters'!$H$56))) -> 0 | FE10: =IF($C10="","",IF(DD10=0,0,DD10*EXP('Equations - Parameters'!$D$56*('Equations - Parameters'!$H$160/EH10)^'Equations - Parameters'!$E$56-'Equations - Parameters'!$F$56*CO10^'Equations - Parameters'!$G$56*('Equations - Parameters'!$G$160/EH10)^'Equations - Parameters'!$H$56)-FD10)) -> 0 | FF10: =IF($C10="","",IF(DD10=0,0,DD10*EXP('Equations - Parameters'!$D$56*('Equations - Parameters'!$H$161/EH10)^'Equations - Parameters'!$E$56-'Equations - Parameters'!$F$56*CO10^'Equations - Parameters'!$G$56*('Equations - Parameters'!$G$161/EH10)^'Equations - Parameters'!$H$56)-FE10-FD10)) -> 0 | FG10: =IF($C10="","",IF(DE10=0,0,DE10*EXP('Equations - Parameters'!$D$56*('Equations - Parameters'!$H$159/EI10)^'Equations - Parameters'!$E$56-'Equations - Parameters'!$F$56*CP10^'Equations - Parameters'!$G$56*('Equations - Parameters'!$G$159/EI10)^'Equations - Parameters'!$H$56))) -> 0 | FH10: =IF($C10="","",IF(DE10=0,0,DE10*EXP('Equations - Parameters'!$D$56*('Equations - Parameters'!$H$160/EI10)^'Equations - Parameters'!$E$56-'Equations - Parameters'!$F$56*CP10^'Equations - Parameters'!$G$56*('Equations - Parameters'!$G$160/EI10)^'Equations - Parameters'!$H$56)-FG10)) -> 0 | FI10: =IF($C10="","",IF(DE10=0,0,DE10*EXP('Equations - Parameters'!$D$56*('Equations - Parameters'!$H$161/EI10)^'Equations - Parameters'!$E$56-'Equations - Parameters'!$F$56*CP10^'Equations - Parameters'!$G$56*('Equations - Parameters'!$G$161/EI10)^'Equations - Parameters'!$H$56)-FH10-FG10)) -> 0 | FJ10: =IF($C10="","",IF(DF10=0,0,DF10*EXP('Equations - Parameters'!$D$56*('Equations - Parameters'!$H$159/EJ10)^'Equations - Parameters'!$E$56-'Equations - Parameters'!$F$56*CQ10^'Equations - Parameters'!$G$56*('Equations - Parameters'!$G$159/EJ10)^'Equations - Parameters'!$H$56))) -> 0 | FK10: =IF($C10="","",IF(DF10=0,0,DF10*EXP('Equations - Parameters'!$D$56*('Equations - Parameters'!$H$160/EJ10)^'Equations - Parameters'!$E$56-'Equations - Parameters'!$F$56*CQ10^'Equations - Parameters'!$G$56*('Equations - Parameters'!$G$160/EJ10)^'Equations - Parameters'!$H$56)-FJ10)) -> 0 | FL10: =IF($C10="","",IF(DF10=0,0,DF10*EXP('Equations - Parameters'!$D$56*('Equations - Parameters'!$H$161/EJ10)^'Equations - Parameters'!$E$56-'Equations - Parameters'!$F$56*CQ10^'Equations - Parameters'!$G$56*('Equations - Parameters'!$G$161/EJ10)^'Equations - Parameters'!$H$56)-FK10-FJ10)) -> 0 | FM10: =IF($C10="","",IF(DG10=0,0,DG10*EXP('Equations - Parameters'!$D$56*('Equations - Parameters'!$H$159/EK10)^'Equations - Parameters'!$E$56-'Equations - Parameters'!$F$56*CR10^'Equations - Parameters'!$G$56*('Equations - Parameters'!$G$159/EK10)^'Equations - Parameters'!$H$56))) -> 0 | FN10: =IF($C10="","",IF(DG10=0,0,DG10*EXP('Equations - Parameters'!$D$56*('Equations - Parameters'!$H$160/EK10)^'Equations - Parameters'!$E$56-'Equations - Parameters'!$F$56*CR10^'Equations - Parameters'!$G$56*('Equations - Parameters'!$G$160/EK10)^'Equations - Parameters'!$H$56)-FM10)) -> 0 | FO10: =IF($C10="","",IF(DG10=0,0,DG10*EXP('Equations - Parameters'!$D$56*('Equations - Parameters'!$H$161/EK10)^'Equations - Parameters'!$E$56-'Equations - Parameters'!$F$56*CR10^'Equations - Parameters'!$G$56*('Equations - Parameters'!$G$161/EK10)^'Equations - Parameters'!$H$56)-FN10-FM10)) -> 0 | FP10: =IF($C10="","",IF(P10=0,0,IF(C10<2,0,BJ10*EXP('Equations - Parameters'!$D$56*('Equations - Parameters'!$H$159/AU10)^'Equations - Parameters'!$E$56-'Equations - Parameters'!$F$56*P10^'Equations - Parameters'!$G$56*('Equations - Parameters'!$G$159/AU10)^'Equations - Parameters'!$H$56)))) -> 0 | FQ10: =IF($C10="","",IF(P10=0,0,IF(C10<2,0,BJ10*EXP('Equations - Parameters'!$D$56*('Equations - Parameters'!$H$160/AU10)^'Equations - Parameters'!$E$56-'Equations - Parameters'!$F$56*P10^'Equations - Parameters'!$G$56*('Equations - Parameters'!$G$160/AU10)^'Equations - Parameters'!$H$56)-FP10))) -> 2.952252126e-115 | FR10: =IF($C10="","",IF(P10=0,0,IF(C10<2,0,BJ10*EXP('Equations - Parameters'!$D$56*('Equations - Parameters'!$H$161/AU10)^'Equations - Parameters'!$E$56-'Equations - Parameters'!$F$56*P10^'Equations - Parameters'!$G$56*('Equations - Parameters'!$G$161/AU10)^'Equations - Parameters'!$H$56)-FQ10-FP10))) -> 5.228888869e-20 | FS10: =IF($C10="","",IF(Q10=0,0,IF(C10<2,0,IF(BK10=0,0,BK10*EXP('Equations - Parameters'!$D$56*('Equations - Parameters'!$H$159/AV10)^'Equations - Parameters'!$E$56-'Equations - Parameters'!$F$56*Q10^'Equations - Parameters'!$G$56*('Equations - Parameters'!$G$159/AV10)^'Equations - Parameters'!$H$56))))) -> 0 | FT10: =IF($C10="","",IF(Q10=0,0,IF(C10<2,0,IF(BK10=0,0,BK10*EXP('Equations - Parameters'!$D$56*('Equations - Parameters'!$H$160/AV10)^'Equations - Parameters'!$E$56-'Equations - Parameters'!$F$56*Q10^'Equations - Parameters'!$G$56*('Equations - Parameters'!$G$160/AV10)^'Equations - Parameters'!$H$56)-FS10)))) -> 0 | FU10: =IF($C10="","",IF(Q10=0,0,IF(C10<2,0,IF(BK10=0,0,BK10*EXP('Equations - Parameters'!$D$56*('Equations - Parameters'!$H$161/AV10)^'Equations - Parameters'!$E$56-'Equations - Parameters'!$F$56*Q10^'Equations - Parameters'!$G$56*('Equations - Parameters'!$G$161/AV10)^'Equations - Parameters'!$H$56)-FT10-FS10)))) -> 0 | FV10: =IF($C10="","",IF(R10=0,0,IF(C10<2,0,IF(BL10=0,0,BL10*EXP('Equations - Parameters'!$D$56*('Equations - Parameters'!$H$159/AW10)^'Equations - Parameters'!$E$56-'Equations - Parameters'!$F$56*R10^'Equations - Parameters'!$G$56*('Equations - Parameters'!$G$159/AW10)^'Equations - Parameters'!$H$56))))) -> 0 | FW10: =IF($C10="","",IF(R10=0,0,IF(C10<2,0,IF(BL10=0,0,BL10*EXP('Equations - Parameters'!$D$56*('Equations - Parameters'!$H$160/AW10)^'Equations - Parameters'!$E$56-'Equations - Parameters'!$F$56*R10^'Equations - Parameters'!$G$56*('Equations - Parameters'!$G$160/AW10)^'Equations - Parameters'!$H$56)-FV10)))) -> 0 | FX10: =IF($C10="","",IF(R10=0,0,IF(C10<2,0,IF(BL10=0,0,BL10*EXP('Equations - Parameters'!$D$56*('Equations - Parameters'!$H$161/AW10)^'Equations - Parameters'!$E$56-'Equations - Parameters'!$F$56*R10^'Equations - Parameters'!$G$56*('Equations - Parameters'!$G$161/AW10)^'Equations - Parameters'!$H$56)-FW10-FV10)))) -> 0 | FY10: =IF($C10="","",IF(S10=0,0,IF(C10<2,0,IF(BM10=0,0,BM10*EXP('Equations - Parameters'!$D$56*('Equations - Parameters'!$H$159/AX10)^'Equations - Parameters'!$E$56-'Equations - Parameters'!$F$56*S10^'Equations - Parameters'!$G$56*('Equations - Parameters'!$G$159/AX10)^'Equations - Parameters'!$H$56))))) -> 0 | FZ10: =IF($C10="","",IF(S10=0,0,IF(C10<2,0,IF(BM10=0,0,BM10*EXP('Equations - Parameters'!$D$56*('Equations - Parameters'!$H$160/AX10)^'Equations - Parameters'!$E$56-'Equations - Parameters'!$F$56*S10^'Equations - Parameters'!$G$56*('Equations - Parameters'!$G$160/AX10)^'Equations - Parameters'!$H$56)-FY10)))) -> 0 | GA10: =IF($C10="","",IF(S10=0,0,IF(C10<2,0,IF(BM10=0,0,BM10*EXP('Equations - Parameters'!$D$56*('Equations - Parameters'!$H$161/AX10)^'Equations - Parameters'!$E$56-'Equations - Parameters'!$F$56*S10^'Equations - Parameters'!$G$56*('Equations - Parameters'!$G$161/AX10)^'Equations - Parameters'!$H$56)-FZ10-FY10)))) -> 0 | GB10: =IF($C10="","",IF(T10=0,0,IF(C10<2,0,IF(BN10=0,0,BN10*EXP('Equations - Parameters'!$D$56*('Equations - Parameters'!$H$159/AY10)^'Equations - Parameters'!$E$56-'Equations - Parameters'!$F$56*T10^'Equations - Parameters'!$G$56*('Equations - Parameters'!$G$159/AY10)^'Equations - Parameters'!$H$56))))) -> 0 | GC10: =IF($C10="","",IF(T10=0,0,IF(C10<2,0,IF(BN10=0,0,BN10*EXP('Equations - Parameters'!$D$56*('Equations - Parameters'!$H$160/AY10)^'Equations - Parameters'!$E$56-'Equations - Parameters'!$F$56*T10^'Equations - Parameters'!$G$56*('Equations - Parameters'!$G$160/AY10)^'Equations - Parameters'!$H$56)-GB10)))) -> 0 | GD10: =IF($C10="","",IF(T10=0,0,IF(C10<2,0,IF(BN10=0,0,BN10*EXP('Equations - Parameters'!$D$56*('Equations - Parameters'!$H$161/AY10)^'Equations - Parameters'!$E$56-'Equations - Parameters'!$F$56*T10^'Equations - Parameters'!$G$56*('Equations - Parameters'!$G$161/AY10)^'Equations - Parameters'!$H$56)-GC10-GB10)))) -> 0 | GE10: =IF($C10="","",IF(DR10=0,0,DR10*EXP('Equations - Parameters'!$D$56*('Equations - Parameters'!$H$159/EG10)^'Equations - Parameters'!$E$56-'Equations - Parameters'!$F$56*CN10^'Equations - Parameters'!$G$56*('Equations - Parameters'!$G$159/EG10)^'Equations - Parameters'!$H$56))) -> 0 | GF10: =IF($C10="","",IF(DR10=0,0,DR10*EXP('Equations - Parameters'!$D$56*('Equations - Parameters'!$H$160/EG10)^'Equations - Parameters'!$E$56-'Equations - Parameters'!$F$56*CN10^'Equations - Parameters'!$G$56*('Equations - Parameters'!$G$160/EG10)^'Equations - Parameters'!$H$56)-GE10)) -> 0 | GG10: =IF($C10="","",IF(DR10=0,0,DR10*EXP('Equations - Parameters'!$D$56*('Equations - Parameters'!$H$161/EG10)^'Equations - Parameters'!$E$56-'Equations - Parameters'!$F$56*CN10^'Equations - Parameters'!$G$56*('Equations - Parameters'!$G$161/EG10)^'Equations - Parameters'!$H$56)-GF10-GE10)) -> 0 | GH10: =IF($C10="","",IF(DS10=0,0,DS10*EXP('Equations - Parameters'!$D$56*('Equations - Parameters'!$H$159/EH10)^'Equations - Parameters'!$E$56-'Equations - Parameters'!$F$56*CO10^'Equations - Parameters'!$G$56*('Equations - Parameters'!$G$159/EH10)^'Equations - Parameters'!$H$56))) -> 0 | GI10: =IF($C10="","",IF(DS10=0,0,DS10*EXP('Equations - Parameters'!$D$56*('Equations - Parameters'!$H$160/EH10)^'Equations - Parameters'!$E$56-'Equations - Parameters'!$F$56*CO10^'Equations - Parameters'!$G$56*('Equations - Parameters'!$G$160/EH10)^'Equations - Parameters'!$H$56)-GH10)) -> 0 | GJ10: =IF($C10="","",IF(DS10=0,0,DS10*EXP('Equations - Parameters'!$D$56*('Equations - Parameters'!$H$161/EH10)^'Equations - Parameters'!$E$56-'Equations - Parameters'!$F$56*CO10^'Equations - Parameters'!$G$56*('Equations - Parameters'!$G$161/EH10)^'Equations - Parameters'!$H$56)-GI10-GH10)) -> 0 | GK10: =IF($C10="","",IF(DT10=0,0,DT10*EXP('Equations - Parameters'!$D$56*('Equations - Parameters'!$H$159/EI10)^'Equations - Parameters'!$E$56-'Equations - Parameters'!$F$56*CP10^'Equations - Parameters'!$G$56*('Equations - Parameters'!$G$159/EI10)^'Equations - Parameters'!$H$56))) -> 0 | GL10: =IF($C10="","",IF(DT10=0,0,DT10*EXP('Equations - Parameters'!$D$56*('Equations - Parameters'!$H$160/EI10)^'Equations - Parameters'!$E$56-'Equations - Parameters'!$F$56*CP10^'Equations - Parameters'!$G$56*('Equations - Parameters'!$G$160/EI10)^'Equations - Parameters'!$H$56)-GK10)) -> 0 | GM10: =IF($C10="","",IF(DT10=0,0,DT10*EXP('Equations - Parameters'!$D$56*('Equations - Parameters'!$H$161/EI10)^'Equations - Parameters'!$E$56-'Equations - Parameters'!$F$56*CP10^'Equations - Parameters'!$G$56*('Equations - Parameters'!$G$161/EI10)^'Equations - Parameters'!$H$56)-GL10-GK10)) -> 0 | GN10: =IF($C10="","",IF(DU10=0,0,DU10*EXP('Equations - Parameters'!$D$56*('Equations - Parameters'!$H$159/EJ10)^'Equations - Parameters'!$E$56-'Equations - Parameters'!$F$56*CQ10^'Equations - Parameters'!$G$56*('Equations - Parameters'!$G$159/EJ10)^'Equations - Parameters'!$H$56))) -> 0 | GO10: =IF($C10="","",IF(DU10=0,0,DU10*EXP('Equations - Parameters'!$D$56*('Equations - Parameters'!$H$160/EJ10)^'Equations - Parameters'!$E$56-'Equations - Parameters'!$F$56*CQ10^'Equations - Parameters'!$G$56*('Equations - Parameters'!$G$160/EJ10)^'Equations - Parameters'!$H$56)-GN10)) -> 0 | GP10: =IF($C10="","",IF(DU10=0,0,DU10*EXP('Equations - Parameters'!$D$56*('Equations - Parameters'!$H$161/EJ10)^'Equations - Parameters'!$E$56-'Equations - Parameters'!$F$56*CQ10^'Equations - Parameters'!$G$56*('Equations - Parameters'!$G$161/EJ10)^'Equations - Parameters'!$H$56)-GO10-GN10)) -> 0 | GQ10: =IF($C10="","",IF(DV10=0,0,DV10*EXP('Equations - Parameters'!$D$56*('Equations - Parameters'!$H$159/EK10)^'Equations - Parameters'!$E$56-'Equations - Parameters'!$F$56*CR10^'Equations - Parameters'!$G$56*('Equations - Parameters'!$G$159/EK10)^'Equations - Parameters'!$H$56))) -> 0 | GR10: =IF($C10="","",IF(DV10=0,0,DV10*EXP('Equations - Parameters'!$D$56*('Equations - Parameters'!$H$160/EK10)^'Equations - Parameters'!$E$56-'Equations - Parameters'!$F$56*CR10^'Equations - Parameters'!$G$56*('Equations - Parameters'!$G$160/EK10)^'Equations - Parameters'!$H$56)-GQ10)) -> 0 | GS10: =IF($C10="","",IF(DV10=0,0,DV10*EXP('Equations - Parameters'!$D$56*('Equations - Parameters'!$H$161/EK10)^'Equations - Parameters'!$E$56-'Equations - Parameters'!$F$56*CR10^'Equations - Parameters'!$G$56*('Equations - Parameters'!$G$161/EK10)^'Equations - Parameters'!$H$56)-GR10-GQ10)) -> 0
